Workbook

Sheet Synthése
A1: Zone | B1: Temps de transit | C1: Temps passé | F1: Temps passé total | G1: Temps Alloué | J1: Temps alloué total | K1: % Aléas Temps passé / Temps Aloué | L1: Difference TA-TP | N1: Nombre de Pointage | O1: Heure / Pointage
C2: Min | D2: Max | E2: Moyen | G2: Min | H2: Max | I2: Moyen
A3: ='Ajusteage Ebavurage'!B4 -> Ajustage / ébavurage | B3: ='Ajusteage Ebavurage'!C4 -> 7.982905983 | C3: ='Ajusteage Ebavurage'!D4 -> 0.05 | D3: ='Ajusteage Ebavurage'!E4 -> 130.5 | E3: ='Ajusteage Ebavurage'!F4 -> 8.461742424 | F3: ='Ajusteage Ebavurage'!G4 -> 1116.95 | G3: ='Ajusteage Ebavurage'!H4 -> 0 | H3: ='Ajusteage Ebavurage'!I4 -> 60 | I3: ='Ajusteage Ebavurage'!J4 -> 12.90853107 | J3: ='Ajusteage Ebavurage'!K4 -> 1777.21 | K3: =1/'Ajusteage Ebavurage'!L4 -> 0.6284850974 | L3: =J3-F3 -> 660.26 | M3: =IF(L3<0,"Attention","") ->  | N3: ='Ajusteage Ebavurage'!M4 -> 482 | O3: ='Ajusteage Ebavurage'!N4 -> 2.317323651
A4: =Controle!B4 -> Contrôle | B4: =Controle!C4 -> 4.899224806 | C4: =Controle!D4 -> 0 | D4: =Controle!E4 -> 70.78 | E4: =Controle!F4 -> 2.146820276 | F4: =Controle!G4 -> 465.86 | G4: =Controle!H4 -> 0 | H4: =Controle!I4 -> 28.5 | I4: =Controle!J4 -> 4.537155172 | J4: =Controle!K4 -> 747.53 | K4: =1/Controle!L4 -> 0.6231990689 | L4: =J4-F4 -> 281.67 | M4: =IF(L4<0,"Attention","") ->  | N4: =Controle!M4 -> 336 | O4: =Controle!N4 -> 1.386488095
A5: ='Controle Final'!B4 -> Contrôle final | B5: ='Controle Final'!C4 -> 4.612903226 | C5: ='Controle Final'!D4 -> 0.01 | D5: ='Controle Final'!E4 -> 62.25 | E5: ='Controle Final'!F4 -> 5.0825 | F5: ='Controle Final'!G4 -> 1158.81 | G5: ='Controle Final'!H4 -> 0 | H5: ='Controle Final'!I4 -> 225 | I5: ='Controle Final'!J4 -> 11.29234114 | J5: ='Controle Final'!K4 -> 3389.37 | K5: =1/'Controle Final'!L4 -> 0.3418953965 | L5: 2230.56 | N5: ='Controle Final'!M4 -> 518 | O5: ='Controle Final'!N4 -> 2.237084942 | Q5: 0
A6: =Divers!B4 -> Divers | B6: =Divers!C4 -> 17.15044248 | C6: =Divers!D4 -> 0.08 | D6: =Divers!E4 -> 181.2 | E6: =Divers!F4 -> 6.372436548 | F6: =Divers!G4 -> 1255.37 | G6: =Divers!H4 -> 0 | H6: =Divers!I4 -> 15.85 | I6: =Divers!J4 -> 1.620428212 | J6: =Divers!K4 -> 576.16 | K6: =1/Divers!L4 -> 2.178856568 | L6: -679.21 | M6: Attention | N6: =Divers!M4 -> 1761 | O6: =Divers!N4 -> 0.7128733674
A7: =Fraisage!B4 -> Fraisage | B7: =Fraisage!C4 -> 13.28318584 | C7: =Fraisage!D4 -> 0 | D7: =Fraisage!E4 -> 46.96 | E7: =Fraisage!F4 -> 10.93454545 | F7: =Fraisage!G4 -> 1202.8 | G7: =Fraisage!H4 -> 0 | H7: =Fraisage!I4 -> 3887.25 | I7: =Fraisage!J4 -> 59.5484472 | J7: =Fraisage!K4 -> 5565.51 | K7: =1/Fraisage!L4 -> 0.216116762 | L7: 4362.71 | N7: =Fraisage!M4 -> 605 | O7: =Fraisage!N4 -> 1.988099174
A8: =Magasin!B4 -> Magasin | B8: =Magasin!C4 -> 9.673913043 | C8: =Magasin!D4 -> 0 | D8: =Magasin!E4 -> 288.16 | E8: =Magasin!F4 -> 1.850163043 | F8: =Magasin!G4 -> 680.86 | G8: =Magasin!H4 -> 0 | H8: =Magasin!I4 -> 45 | I8: =Magasin!J4 -> 1.100826873 | J8: =Magasin!K4 -> 284.29 | K8: =1/Magasin!L4 -> 2.39494882 | L8: -396.57 | M8: Attention | N8: =Magasin!M4 -> 651 | O8: =Magasin!N4 -> 1.045867896
A9: =Montage!B4 -> Montage | B9: =Montage!C4 -> 16.5 | C9: =Montage!D4 -> 1.75 | D9: =Montage!E4 -> 135.76 | E9: =Montage!F4 -> 27.20666667 | F9: =Montage!G4 -> 408.1 | G9: =Montage!H4 -> 0.01 | H9: =Montage!I4 -> 142 | I9: =Montage!J4 -> 50.38291667 | J9: =Montage!K4 -> 810.36 | K9: =1/Montage!L4 -> 0.5036033368 | L9: 402.26 | N9: =Montage!M4 -> 131 | O9: =Montage!N4 -> 3.115267176
A10: ='Procédés Spéciaux'!B4 -> Procédés spéciaux | B10: ='Procédés Spéciaux'!C4 -> 6.178571429 | C10: ='Procédés Spéciaux'!D4 -> 0.4 | D10: ='Procédés Spéciaux'!E4 -> 40.36 | E10: ='Procédés Spéciaux'!F4 -> 6.00972973 | F10: ='Procédés Spéciaux'!G4 -> 222.36 | G10: ='Procédés Spéciaux'!H4 -> 0 | H10: ='Procédés Spéciaux'!I4 -> 15.5 | I10: ='Procédés Spéciaux'!J4 -> 6.390555556 | J10: ='Procédés Spéciaux'!K4 -> 207.6 | K10: =1/'Procédés Spéciaux'!L4 -> 1.071098266 | L10: -14.76 | M10: Attention | N10: ='Procédés Spéciaux'!M4 -> 96 | O10: ='Procédés Spéciaux'!N4 -> 2.31625
A11: ='Rectif denture'!B4 -> Rectif denture | B11: ='Rectif denture'!C4 -> 9.705882353 | C11: ='Rectif denture'!D4 -> 1.35 | D11: ='Rectif denture'!E4 -> 35.43 | E11: ='Rectif denture'!F4 -> 15.11857143 | F11: ='Rectif denture'!G4 -> 529.15 | G11: ='Rectif denture'!H4 -> 0 | H11: ='Rectif denture'!I4 -> 62.5 | I11: ='Rectif denture'!J4 -> 17.96765957 | J11: ='Rectif denture'!K4 -> 883.88 | K11: =1/'Rectif denture'!L4 -> 0.5986672399 | L11: 354.73 | N11: ='Rectif denture'!M4 -> 245 | O11: ='Rectif denture'!N4 -> 2.159795918
A12: =Rectification!B4 -> Rectification | B12: =Rectification!C4 -> 8.369565217 | C12: =Rectification!D4 -> 0.02 | D12: =Rectification!E4 -> 102.43 | E12: =Rectification!F4 -> 10.54076923 | F12: =Rectification!G4 -> 1507.33 | G12: =Rectification!H4 -> 0.1 | H12: =Rectification!I4 -> 93 | I12: =Rectification!J4 -> 19.67153846 | J12: =Rectification!K4 -> 3137.45 | K12: =1/Rectification!L4 -> 0.4804315607 | L12: 1630.12 | N12: =Rectification!M4 -> 805 | O12: =Rectification!N4 -> 1.872459627
A13: =Taillage!B4 -> Taillage | B13: =Taillage!C4 -> 10.96202532 | C13: =Taillage!D4 -> 0 | D13: =Taillage!E4 -> 143.99 | E13: =Taillage!F4 -> 19.61391304 | F13: =Taillage!G4 -> 1353.36 | G13: =Taillage!H4 -> 0 | H13: =Taillage!I4 -> 270.75 | I13: =Taillage!J4 -> 41.18 | J13: =Taillage!K4 -> 6087.76 | K13: =1/Taillage!L4 -> 0.2223083696 | L13: 4734.4 | N13: =Taillage!M4 -> 745 | O13: =Taillage!N4 -> 1.816590604
A14: ='Taillage Conique'!B4 -> Taillage conique | B14: ='Taillage Conique'!C4 -> 20.60606061 | C14: ='Taillage Conique'!D4 -> 1.9 | D14: ='Taillage Conique'!E4 -> 112.36 | E14: ='Taillage Conique'!F4 -> 31.82138889 | F14: ='Taillage Conique'!G4 -> 1145.57 | G14: ='Taillage Conique'!H4 -> 1.5 | H14: ='Taillage Conique'!I4 -> 145 | I14: ='Taillage Conique'!J4 -> 64.815625 | J14: ='Taillage Conique'!K4 -> 4058.58 | K14: =1/'Taillage Conique'!L4 -> 0.2822588196 | L14: 2913.01 | N14: ='Taillage Conique'!M4 -> 720 | O14: ='Taillage Conique'!N4 -> 1.591069444
A15: =Tournage!B4 -> Tournage | B15: =Tournage!C4 -> 10.70348837 | C15: =Tournage!D4 -> 0 | D15: =Tournage!E4 -> 68.43 | E15: =Tournage!F4 -> 14.56813559 | F15: =Tournage!G4 -> 2578.56 | G15: =Tournage!H4 -> 0 | H15: =Tournage!I4 -> 43.8 | I15: =Tournage!J4 -> 16.61382759 | J15: =Tournage!K4 -> 4269.19 | K15: =1/Tournage!L4 -> 0.6039927949 | L15: 1690.63 | N15: =Tournage!M4 -> 1453 | O15: =Tournage!N4 -> 1.774645561
A16: Total Indus | B16: =AVERAGE(B3:B15) -> 10.81755144 | F16: =SUM(F3:F15) -> 13625.08 | J16: =SUM(J3:J15) -> 31794.89 | L16: =SUMIF(L3:L15,"<"&Q5) -> -1090.54 | N16: =SUM(N3:N15) -> 8548 | O16: =SUM(O3:O15) -> 24.33381546

Sheet Ajusteage Ebavurage
B2: Zone | C2: Temps de transit | D2: Temps passé | G2: Temps passé total | H2: Temps Alloué | K2: Temps alloué total | L2: Temps passé / Temps alloué | M2: Nombre de Pointage | N2: Heure / Pointage
D3: Min | E3: Max | F3: Moyen | H3: Min | I3: Max | J3: Moyen | L3: Total Zone
B4: =C16 -> Ajustage / ébavurage | C4: =AVERAGE(L16:L5998) -> 7.982905983 | D4: =temps!B1 -> 0.05 | E4: =temps!A1 -> 130.5 | F4: =temps!B2 -> 8.461742424 | G4: =SUM(X:X) -> 1116.95 | H4: =MIN(AS:AS) -> 0 | I4: =MAX(AR:AR) -> 60 | J4: =AVERAGEIF(E16:E4998,1,AR:AR) -> 12.90853107 | K4: =SUMIFS($AR:$AR,$E:$E,1) -> 1777.21 | L4: =K4/G4 -> 1.591127624 | M4: =COUNTIF(E16:E4998,"1")+COUNTIF(E16:E4998,0) -> 482 | N4: =G4/M4 -> 2.317323651
A15: Après COFI ? | B15: OF & Phase | C15: Secteur | D15: Date | E15: Premier ? | F15: Dernier ? | G15: OF & Phase & premier | H15: OF & Phase & dernier | I15: Date Premier | J15: Date dernière | K15: Date précé | L15: Temps de transite | M15: Type Pointage | N15: Obs. | O15: Affaire | P15: Rang | Q15: Phase | R15: Désignation Phase | S15: Pièce | T15: Sous pièce | U15: C.Frais | V15: Employé | W15: Nom employé | X15: Heures | Y15: Coûts | Z15: Nb. Pièces finies | AA15: Nb. Pièces abimées | AB15: Machine | AC15: Taux homme | AD15: Taux machine | AE15: Date | AF15: Heure debut | AG15: Date fin | AH15: Heure fin | AI15: Service | AJ15: Client | AK15: Commande | AL15: Activité | AM15: Section | AN15: Etat Af. | AO15: Type Af. | AP15: Typologie | AQ15: Famille | AR15: Prévu total | AS15: Prévu TP | AT15: Prévu pour nb pièces pointées | AU15: N° de pointage
A16: 0 | B16: 34341220 | C16: Ajustage / ébavurage | D16: 2014-10-29 | E16: 1 | F16: 0 | G16: 343412201 | H16: 343412200 | I16: 41941 | O16: 343412 | P16: 999/1 | Q16: 20 | R16: AJUSTAGE | S16: TEST | T16: TEST | U16: AJUS | V16: TEST | W16: TEST | X16: 1.42 | Y16: TEST | Z16: TEST | AA16: TEST | AB16: TEST | AC16: TEST | AD16: TEST | AE16: 2014-10-29 | AF16: 09:05:00 | AG16: 2014-10-29 | AH16: 10:30:00 | AI16: TEST | AJ16: TEST | AK16: TEST | AL16: TEST | AM16: TEST | AN16: TEST | AO16: TEST | AP16: TEST | AQ16: TEST | AR16: 2.2 | AS16: 0.25 | AT16: TEST | AU16: TEST
A17: 0 | B17: 34341220 | C17: Ajustage / ébavurage | D17: 2014-10-29 | E17: 0 | F17: 1 | G17: 343412200 | H17: 343412201 | J17: 41941 | O17: 343412 | P17: 999/1 | Q17: 20 | R17: AJUSTAGE | S17: TEST | T17: TEST | U17: AJUS | V17: TEST | W17: TEST | X17: 1.32 | Y17: TEST | Z17: TEST | AA17: TEST | AB17: TEST | AC17: TEST | AD17: TEST | AE17: 2014-10-29 | AF17: 10:50:00 | AG17: 2014-10-29 | AH17: 12:09:00 | AI17: TEST | AJ17: TEST | AK17: TEST | AL17: TEST | AM17: TEST | AN17: TEST | AO17: TEST | AP17: TEST | AQ17: TEST | AR17: 2.2 | AS17: 0.25 | AT17: TEST | AU17: TEST
A18: 0 | B18: 34341320 | C18: Ajustage / ébavurage | D18: 2014-10-29 | E18: 1 | F18: 1 | G18: 343413201 | H18: 343413201 | I18: 41941 | J18: 41941 | O18: 343413 | P18: 999/2 | Q18: 20 | R18: AJUSTAGE | S18: TEST | T18: TEST | U18: AJUS | V18: TEST | W18: TEST | X18: 1.17 | Y18: TEST | Z18: TEST | AA18: TEST | AB18: TEST | AC18: TEST | AD18: TEST | AE18: 2014-10-29 | AF18: 12:09:00 | AG18: 2014-10-29 | AH18: 13:19:00 | AI18: TEST | AJ18: TEST | AK18: TEST | AL18: TEST | AM18: TEST | AN18: TEST | AO18: TEST | AP18: TEST | AQ18: TEST | AR18: 0.7 | AS18: 0.25 | AT18: TEST | AU18: TEST
A19: 0 | B19: 355934180 | C19: Ajustage / ébavurage | D19: 2014-09-23 | E19: 1 | F19: 0 | G19: 3559341801 | H19: 3559341800 | I19: 41905 | K19: 41897 | L19: 8 | O19: 355934 | P19: 1 | Q19: 180 | R19: EBAVURAGE/BROSSAGE | S19: TEST | T19: TEST | U19: EBAV | V19: TEST | W19: TEST | X19: 4.33 | Y19: TEST | Z19: TEST | AA19: TEST | AB19: TEST | AC19: TEST | AD19: TEST | AE19: 2014-09-23 | AF19: 07:09:00 | AG19: 2014-09-23 | AH19: 11:29:00 | AI19: TEST | AJ19: TEST | AK19: TEST | AL19: TEST | AM19: TEST | AN19: TEST | AO19: TEST | AP19: TEST | AQ19: TEST | AR19: 4.75 | AS19: 0.25 | AT19: TEST | AU19: TEST
A20: 0 | B20: 355934180 | C20: Ajustage / ébavurage | D20: 2014-09-23 | E20: 0 | F20: 0 | G20: 3559341800 | H20: 3559341800 | O20: 355934 | P20: 1 | Q20: 180 | R20: EBAVURAGE/BROSSAGE | S20: TEST | T20: TEST | U20: EBAV | V20: TEST | W20: TEST | X20: 1.05 | Y20: TEST | Z20: TEST | AA20: TEST | AB20: TEST | AC20: TEST | AD20: TEST | AE20: 2014-09-23 | AF20: 12:14:00 | AG20: 2014-09-23 | AH20: 13:17:00 | AI20: TEST | AJ20: TEST | AK20: TEST | AL20: TEST | AM20: TEST | AN20: TEST | AO20: TEST | AP20: TEST | AQ20: TEST | AR20: 4.75 | AS20: 0.25 | AT20: TEST | AU20: TEST
A21: 0 | B21: 355934180 | C21: Ajustage / ébavurage | D21: 2014-09-22 | E21: 0 | F21: 0 | G21: 3559341800 | H21: 3559341800 | O21: 355934 | P21: 1 | Q21: 180 | R21: EBAVURAGE/BROSSAGE | S21: TEST | T21: TEST | U21: EBAV | V21: TEST | W21: TEST | X21: 4.38 | Y21: TEST | Z21: TEST | AA21: TEST | AB21: TEST | AC21: TEST | AD21: TEST | AE21: 2014-09-22 | AF21: 07:05:00 | AG21: 2014-09-22 | AH21: 11:28:00 | AI21: TEST | AJ21: TEST | AK21: TEST | AL21: TEST | AM21: TEST | AN21: TEST | AO21: TEST | AP21: TEST | AQ21: TEST | AR21: 4.75 | AS21: 0.25 | AT21: TEST | AU21: TEST
A22: 0 | B22: 355934180 | C22: Ajustage / ébavurage | D22: 2014-09-22 | E22: 0 | F22: 1 | G22: 3559341800 | H22: 3559341801 | J22: 41904 | O22: 355934 | P22: 1 | Q22: 180 | R22: EBAVURAGE/BROSSAGE | S22: TEST | T22: TEST | U22: EBAV | V22: TEST | W22: TEST | X22: 3.82 | Y22: TEST | Z22: TEST | AA22: TEST | AB22: TEST | AC22: TEST | AD22: TEST | AE22: 2014-09-22 | AF22: 12:09:00 | AG22: 2014-09-22 | AH22: 15:58:00 | AI22: TEST | AJ22: TEST | AK22: TEST | AL22: TEST | AM22: TEST | AN22: TEST | AO22: TEST | AP22: TEST | AQ22: TEST | AR22: 4.75 | AS22: 0.25 | AT22: TEST | AU22: TEST
A23: 0 | B23: 35593420 | C23: Ajustage / ébavurage | D23: 2014-10-29 | E23: 1 | F23: 1 | G23: 355934201 | H23: 355934201 | I23: 41941 | J23: 41941 | O23: 355934 | P23: 999/2 | Q23: 20 | R23: AJUSTAGE | S23: TEST | T23: TEST | U23: AJUS | V23: TEST | W23: TEST | X23: 0.85 | Y23: TEST | Z23: TEST | AA23: TEST | AB23: TEST | AC23: TEST | AD23: TEST | AE23: 2014-10-29 | AF23: 08:15:00 | AG23: 2014-10-29 | AH23: 09:06:00 | AI23: TEST | AJ23: TEST | AK23: TEST | AL23: TEST | AM23: TEST | AN23: TEST | AO23: TEST | AP23: TEST | AQ23: TEST | AR23: 4 | AS23: 0.25 | AT23: TEST | AU23: TEST
A24: 0 | B24: 357686160 | C24: Ajustage / ébavurage | D24: 2014-11-07 | E24: 1 | F24: 0 | G24: 3576861601 | H24: 3576861600 | I24: 41950 | K24: 41949 | L24: 1 | O24: 357686 | P24: 1 | Q24: 160 | R24: AJUSTAGE | S24: TEST | T24: TEST | U24: AJUS | V24: TEST | W24: TEST | X24: 1.05 | Y24: TEST | Z24: TEST | AA24: TEST | AB24: TEST | AC24: TEST | AD24: TEST | AE24: 2014-11-07 | AF24: 06:57:00 | AG24: 2014-11-07 | AH24: 08:00:00 | AI24: TEST | AJ24: TEST | AK24: TEST | AL24: TEST | AM24: TEST | AN24: TEST | AO24: TEST | AP24: TEST | AQ24: TEST | AR24: 5.3 | AS24: 0.5 | AT24: TEST | AU24: TEST
A25: 0 | B25: 357686160 | C25: Ajustage / ébavurage | D25: 2014-11-07 | E25: 0 | F25: 0 | G25: 3576861600 | H25: 3576861600 | O25: 357686 | P25: 1 | Q25: 160 | R25: AJUSTAGE | S25: TEST | T25: TEST | U25: AJUS | V25: TEST | W25: TEST | X25: 2.73 | Y25: TEST | Z25: TEST | AA25: TEST | AB25: TEST | AC25: TEST | AD25: TEST | AE25: 2014-11-07 | AF25: 08:12:00 | AG25: 2014-11-07 | AH25: 10:56:00 | AI25: TEST | AJ25: TEST | AK25: TEST | AL25: TEST | AM25: TEST | AN25: TEST | AO25: TEST | AP25: TEST | AQ25: TEST | AR25: 5.3 | AS25: 0.5 | AT25: TEST | AU25: TEST
A26: 0 | B26: 357686160 | C26: Ajustage / ébavurage | D26: 2014-11-06 | E26: 0 | F26: 1 | G26: 3576861600 | H26: 3576861601 | J26: 41949 | O26: 357686 | P26: 1 | Q26: 160 | R26: AJUSTAGE | S26: TEST | T26: TEST | U26: AJUS | V26: TEST | W26: TEST | X26: 2.4 | Y26: TEST | Z26: TEST | AA26: TEST | AB26: TEST | AC26: TEST | AD26: TEST | AE26: 2014-11-06 | AF26: 13:33:00 | AG26: 2014-11-06 | AH26: 15:57:00 | AI26: TEST | AJ26: TEST | AK26: TEST | AL26: TEST | AM26: TEST | AN26: TEST | AO26: TEST | AP26: TEST | AQ26: TEST | AR26: 5.3 | AS26: 0.5 | AT26: TEST | AU26: TEST
A27: 0 | B27: 706580320 | C27: Ajustage / ébavurage | D27: 2014-11-06 | E27: 1 | F27: 1 | G27: 7065803201 | H27: 7065803201 | I27: 41949 | J27: 41949 | K27: 41942 | L27: 7 | O27: 706580 | P27: 1 | Q27: 320 | R27: EBAVURAGE | S27: TEST | T27: TEST | U27: EBAV | V27: TEST | W27: TEST | X27: 2.55 | Y27: TEST | Z27: TEST | AA27: TEST | AB27: TEST | AC27: TEST | AD27: TEST | AE27: 2014-11-06 | AF27: 07:01:00 | AG27: 2014-11-06 | AH27: 09:34:00 | AI27: TEST | AJ27: TEST | AK27: TEST | AL27: TEST | AM27: TEST | AN27: TEST | AO27: TEST | AP27: TEST | AQ27: TEST | AR27: 9.85 | AS27: 0.25 | AT27: TEST | AU27: TEST
A28: 0 | B28: 70709980 | C28: Ajustage / ébavurage | D28: 2014-11-05 | E28: 1 | F28: 0 | G28: 707099801 | H28: 707099800 | I28: 41948 | K28: 41928 | L28: 20 | O28: 707099 | P28: 1 | Q28: 80 | R28: EBAVURAGE AERONAUTIQUE | S28: TEST | T28: TEST | U28: EBAVA | V28: TEST | W28: TEST | X28: 1.97 | Y28: TEST | Z28: TEST | AA28: TEST | AB28: TEST | AC28: TEST | AD28: TEST | AE28: 2014-11-05 | AF28: 06:01:00 | AG28: 2014-11-05 | AH28: 07:59:00 | AI28: TEST | AJ28: TEST | AK28: TEST | AL28: TEST | AM28: TEST | AN28: TEST | AO28: TEST | AP28: TEST | AQ28: TEST | AR28: 28.75 | AS28: 0.25 | AT28: TEST | AU28: TEST
A29: 0 | B29: 70709980 | C29: Ajustage / ébavurage | D29: 2014-11-05 | E29: 0 | F29: 0 | G29: 707099800 | H29: 707099800 | O29: 707099 | P29: 1 | Q29: 80 | R29: EBAVURAGE AERONAUTIQUE | S29: TEST | T29: TEST | U29: EBAVA | V29: TEST | W29: TEST | X29: 2.38 | Y29: TEST | Z29: TEST | AA29: TEST | AB29: TEST | AC29: TEST | AD29: TEST | AE29: 2014-11-05 | AF29: 08:21:00 | AG29: 2014-11-05 | AH29: 10:44:00 | AI29: TEST | AJ29: TEST | AK29: TEST | AL29: TEST | AM29: TEST | AN29: TEST | AO29: TEST | AP29: TEST | AQ29: TEST | AR29: 28.75 | AS29: 0.25 | AT29: TEST | AU29: TEST
A30: 0 | B30: 70709980 | C30: Ajustage / ébavurage | D30: 2014-11-05 | E30: 0 | F30: 1 | G30: 707099800 | H30: 707099801 | J30: 41948 | O30: 707099 | P30: 1 | Q30: 80 | R30: EBAVURAGE AERONAUTIQUE | S30: TEST | T30: TEST | U30: EBAVA | V30: TEST | W30: TEST | X30: 2.23 | Y30: TEST | Z30: TEST | AA30: TEST | AB30: TEST | AC30: TEST | AD30: TEST | AE30: 2014-11-05 | AF30: 11:03:00 | AG30: 2014-11-05 | AH30: 13:17:00 | AI30: TEST | AJ30: TEST | AK30: TEST | AL30: TEST | AM30: TEST | AN30: TEST | AO30: TEST | AP30: TEST | AQ30: TEST | AR30: 28.75 | AS30: 0.25 | AT30: TEST | AU30: TEST
A31: 0 | B31: 705429150 | C31: Ajustage / ébavurage | D31: 2014-10-03 | E31: 1 | F31: 0 | G31: 7054291501 | H31: 7054291500 | I31: 41915 | K31: 41906 | L31: 9 | O31: 705429 | P31: 1 | Q31: 150 | R31: EBAVURAGE / BROSSAGE AERONAUTIQUE | S31: TEST | T31: TEST | U31: EBAV | V31: TEST | W31: TEST | X31: 5.73 | Y31: TEST | Z31: TEST | AA31: TEST | AB31: TEST | AC31: TEST | AD31: TEST | AE31: 2014-10-03 | AF31: 07:00:00 | AG31: 2014-10-03 | AH31: 12:44:00 | AI31: TEST | AJ31: TEST | AK31: TEST | AL31: TEST | AM31: TEST | AN31: TEST | AO31: TEST | AP31: TEST | AQ31: TEST | AR31: 8.25 | AS31: 0.25 | AT31: TEST | AU31: TEST
A32: 0 | B32: 705429150 | C32: Ajustage / ébavurage | D32: 2014-10-02 | E32: 0 | F32: 0 | G32: 7054291500 | H32: 7054291500 | O32: 705429 | P32: 1 | Q32: 150 | R32: EBAVURAGE / BROSSAGE AERONAUTIQUE | S32: TEST | T32: TEST | U32: EBAV | V32: TEST | W32: TEST | X32: 1.5 | Y32: TEST | Z32: TEST | AA32: TEST | AB32: TEST | AC32: TEST | AD32: TEST | AE32: 2014-10-02 | AF32: 09:58:00 | AG32: 2014-10-02 | AH32: 11:28:00 | AI32: TEST | AJ32: TEST | AK32: TEST | AL32: TEST | AM32: TEST | AN32: TEST | AO32: TEST | AP32: TEST | AQ32: TEST | AR32: 8.25 | AS32: 0.25 | AT32: TEST | AU32: TEST
A33: 0 | B33: 705429150 | C33: Ajustage / ébavurage | D33: 2014-10-02 | E33: 0 | F33: 1 | G33: 7054291500 | H33: 7054291501 | J33: 41914 | O33: 705429 | P33: 1 | Q33: 150 | R33: EBAVURAGE / BROSSAGE AERONAUTIQUE | S33: TEST | T33: TEST | U33: EBAV | V33: TEST | W33: TEST | X33: 3.8 | Y33: TEST | Z33: TEST | AA33: TEST | AB33: TEST | AC33: TEST | AD33: TEST | AE33: 2014-10-02 | AF33: 12:11:00 | AG33: 2014-10-02 | AH33: 15:59:00 | AI33: TEST | AJ33: TEST | AK33: TEST | AL33: TEST | AM33: TEST | AN33: TEST | AO33: TEST | AP33: TEST | AQ33: TEST | AR33: 8.25 | AS33: 0.25 | AT33: TEST | AU33: TEST
A34: 0 | B34: 705433180 | C34: Ajustage / ébavurage | D34: 2014-09-17 | E34: 1 | F34: 0 | G34: 7054331801 | H34: 7054331800 | I34: 41899 | O34: 705433 | P34: 1 | Q34: 180 | R34: EBAVURAGE/BROSSAGE | S34: TEST | T34: TEST | U34: EBAV | V34: TEST | W34: TEST | X34: 3.52 | Y34: TEST | Z34: TEST | AA34: TEST | AB34: TEST | AC34: TEST | AD34: TEST | AE34: 2014-09-17 | AF34: 06:59:00 | AG34: 2014-09-17 | AH34: 10:30:00 | AI34: TEST | AJ34: TEST | AK34: TEST | AL34: TEST | AM34: TEST | AN34: TEST | AO34: TEST | AP34: TEST | AQ34: TEST | AR34: 4.75 | AS34: 0.25 | AT34: TEST | AU34: TEST
A35: 0 | B35: 705433180 | C35: Ajustage / ébavurage | D35: 2014-09-16 | E35: 0 | F35: 0 | G35: 7054331800 | H35: 7054331800 | O35: 705433 | P35: 1 | Q35: 180 | R35: EBAVURAGE/BROSSAGE | S35: TEST | T35: TEST | U35: EBAV | V35: TEST | W35: TEST | X35: 1.32 | Y35: TEST | Z35: TEST | AA35: TEST | AB35: TEST | AC35: TEST | AD35: TEST | AE35: 2014-09-16 | AF35: 07:03:00 | AG35: 2014-09-16 | AH35: 08:22:00 | AI35: TEST | AJ35: TEST | AK35: TEST | AL35: TEST | AM35: TEST | AN35: TEST | AO35: TEST | AP35: TEST | AQ35: TEST | AR35: 4.75 | AS35: 0.25 | AT35: TEST | AU35: TEST
A36: 0 | B36: 705433180 | C36: Ajustage / ébavurage | D36: 2014-09-16 | E36: 0 | F36: 0 | G36: 7054331800 | H36: 7054331800 | O36: 705433 | P36: 1 | Q36: 180 | R36: EBAVURAGE/BROSSAGE | S36: TEST | T36: TEST | U36: EBAV | V36: TEST | W36: TEST | X36: 1.5 | Y36: TEST | Z36: TEST | AA36: TEST | AB36: TEST | AC36: TEST | AD36: TEST | AE36: 2014-09-16 | AF36: 14:28:00 | AG36: 2014-09-16 | AH36: 15:58:00 | AI36: TEST | AJ36: TEST | AK36: TEST | AL36: TEST | AM36: TEST | AN36: TEST | AO36: TEST | AP36: TEST | AQ36: TEST | AR36: 4.75 | AS36: 0.25 | AT36: TEST | AU36: TEST
A37: 0 | B37: 705433180 | C37: Ajustage / ébavurage | D37: 2014-09-15 | E37: 0 | F37: 0 | G37: 7054331800 | H37: 7054331800 | O37: 705433 | P37: 1 | Q37: 180 | R37: EBAVURAGE/BROSSAGE | S37: TEST | T37: TEST | U37: EBAV | V37: TEST | W37: TEST | X37: 0.77 | Y37: TEST | Z37: TEST | AA37: TEST | AB37: TEST | AC37: TEST | AD37: TEST | AE37: 2014-09-15 | AF37: 07:11:00 | AG37: 2014-09-15 | AH37: 07:57:00 | AI37: TEST | AJ37: TEST | AK37: TEST | AL37: TEST | AM37: TEST | AN37: TEST | AO37: TEST | AP37: TEST | AQ37: TEST | AR37: 4.75 | AS37: 0.25 | AT37: TEST | AU37: TEST
A38: 0 | B38: 705433180 | C38: Ajustage / ébavurage | D38: 2014-09-15 | E38: 0 | F38: 0 | G38: 7054331800 | H38: 7054331800 | O38: 705433 | P38: 1 | Q38: 180 | R38: EBAVURAGE/BROSSAGE | S38: TEST | T38: TEST | U38: EBAV | V38: TEST | W38: TEST | X38: 3.33 | Y38: TEST | Z38: TEST | AA38: TEST | AB38: TEST | AC38: TEST | AD38: TEST | AE38: 2014-09-15 | AF38: 08:08:00 | AG38: 2014-09-15 | AH38: 11:28:00 | AI38: TEST | AJ38: TEST | AK38: TEST | AL38: TEST | AM38: TEST | AN38: TEST | AO38: TEST | AP38: TEST | AQ38: TEST | AR38: 4.75 | AS38: 0.25 | AT38: TEST | AU38: TEST
A39: 0 | B39: 705433180 | C39: Ajustage / ébavurage | D39: 2014-09-15 | E39: 0 | F39: 1 | G39: 7054331800 | H39: 7054331801 | J39: 41897 | O39: 705433 | P39: 1 | Q39: 180 | R39: EBAVURAGE/BROSSAGE | S39: TEST | T39: TEST | U39: EBAV | V39: TEST | W39: TEST | X39: 3.75 | Y39: TEST | Z39: TEST | AA39: TEST | AB39: TEST | AC39: TEST | AD39: TEST | AE39: 2014-09-15 | AF39: 12:15:00 | AG39: 2014-09-15 | AH39: 16:00:00 | AI39: TEST | AJ39: TEST | AK39: TEST | AL39: TEST | AM39: TEST | AN39: TEST | AO39: TEST | AP39: TEST | AQ39: TEST | AR39: 4.75 | AS39: 0.25 | AT39: TEST | AU39: TEST
A40: 0 | B40: 705434180 | C40: Ajustage / ébavurage | D40: 2014-09-18 | E40: 1 | F40: 1 | G40: 7054341801 | H40: 7054341801 | I40: 41900 | J40: 41900 | O40: 705434 | P40: 1 | Q40: 180 | R40: EBAVURAGE/BROSSAGE | S40: TEST | T40: TEST | U40: EBAV | V40: TEST | W40: TEST | X40: 0.42 | Y40: TEST | Z40: TEST | AA40: TEST | AB40: TEST | AC40: TEST | AD40: TEST | AE40: 2014-09-18 | AF40: 07:01:00 | AG40: 2014-09-18 | AH40: 07:26:00 | AI40: TEST | AJ40: TEST | AK40: TEST | AL40: TEST | AM40: TEST | AN40: TEST | AO40: TEST | AP40: TEST | AQ40: TEST | AR40: 4.75 | AS40: 0.25 | AT40: TEST | AU40: TEST
A41: 0 | B41: 705434180 | C41: Ajustage / ébavurage | D41: 2014-09-18 | E41: 1 | F41: 0 | G41: 7054341801 | H41: 7054341800 | I41: 41900 | O41: 705434 | P41: 1 | Q41: 180 | R41: EBAVURAGE/BROSSAGE | S41: TEST | T41: TEST | U41: EBAV | V41: TEST | W41: TEST | X41: 2.47 | Y41: TEST | Z41: TEST | AA41: TEST | AB41: TEST | AC41: TEST | AD41: TEST | AE41: 2014-09-18 | AF41: 09:00:00 | AG41: 2014-09-18 | AH41: 11:28:00 | AI41: TEST | AJ41: TEST | AK41: TEST | AL41: TEST | AM41: TEST | AN41: TEST | AO41: TEST | AP41: TEST | AQ41: TEST | AR41: 4.75 | AS41: 0.25 | AT41: TEST | AU41: TEST
A42: 0 | B42: 705434180 | C42: Ajustage / ébavurage | D42: 2014-09-18 | E42: 0 | F42: 0 | G42: 7054341800 | H42: 7054341800 | O42: 705434 | P42: 1 | Q42: 180 | R42: EBAVURAGE/BROSSAGE | S42: TEST | T42: TEST | U42: EBAV | V42: TEST | W42: TEST | X42: 3.47 | Y42: TEST | Z42: TEST | AA42: TEST | AB42: TEST | AC42: TEST | AD42: TEST | AE42: 2014-09-18 | AF42: 12:10:00 | AG42: 2014-09-18 | AH42: 15:38:00 | AI42: TEST | AJ42: TEST | AK42: TEST | AL42: TEST | AM42: TEST | AN42: TEST | AO42: TEST | AP42: TEST | AQ42: TEST | AR42: 4.75 | AS42: 0.25 | AT42: TEST | AU42: TEST
A43: 0 | B43: 705434180 | C43: Ajustage / ébavurage | D43: 2014-09-17 | E43: 0 | F43: 1 | G43: 7054341800 | H43: 7054341801 | J43: 41899 | O43: 705434 | P43: 1 | Q43: 180 | R43: EBAVURAGE/BROSSAGE | S43: TEST | T43: TEST | U43: EBAV | V43: TEST | W43: TEST | X43: 0.97 | Y43: TEST | Z43: TEST | AA43: TEST | AB43: TEST | AC43: TEST | AD43: TEST | AE43: 2014-09-17 | AF43: 10:30:00 | AG43: 2014-09-17 | AH43: 11:28:00 | AI43: TEST | AJ43: TEST | AK43: TEST | AL43: TEST | AM43: TEST | AN43: TEST | AO43: TEST | AP43: TEST | AQ43: TEST | AR43: 4.75 | AS43: 0.25 | AT43: TEST | AU43: TEST
A44: 0 | B44: 705434180 | C44: Ajustage / ébavurage | D44: 2014-09-17 | E44: 1 | F44: 1 | G44: 7054341801 | H44: 7054341801 | I44: 41899 | J44: 41899 | O44: 705434 | P44: 1 | Q44: 180 | R44: EBAVURAGE/BROSSAGE | S44: TEST | T44: TEST | U44: EBAV | V44: TEST | W44: TEST | X44: 3.78 | Y44: TEST | Z44: TEST | AA44: TEST | AB44: TEST | AC44: TEST | AD44: TEST | AE44: 2014-09-17 | AF44: 12:10:00 | AG44: 2014-09-17 | AH44: 15:57:00 | AI44: TEST | AJ44: TEST | AK44: TEST | AL44: TEST | AM44: TEST | AN44: TEST | AO44: TEST | AP44: TEST | AQ44: TEST | AR44: 4.75 | AS44: 0.25 | AT44: TEST | AU44: TEST
A45: 0 | B45: 70709980 | C45: Ajustage / ébavurage | D45: 2014-11-04 | E45: 1 | F45: 1 | G45: 707099801 | H45: 707099801 | I45: 41947 | J45: 41947 | K45: 41928 | L45: 19 | O45: 707099 | P45: 1 | Q45: 80 | R45: EBAVURAGE AERONAUTIQUE | S45: TEST | T45: TEST | U45: EBAVA | V45: TEST | W45: TEST | X45: 2.55 | Y45: TEST | Z45: TEST | AA45: TEST | AB45: TEST | AC45: TEST | AD45: TEST | AE45: 2014-11-04 | AF45: 10:50:00 | AG45: 2014-11-04 | AH45: 13:23:00 | AI45: TEST | AJ45: TEST | AK45: TEST | AL45: TEST | AM45: TEST | AN45: TEST | AO45: TEST | AP45: TEST | AQ45: TEST | AR45: 28.75 | AS45: 0.25 | AT45: TEST | AU45: TEST
A46: 0 | B46: 705858130 | C46: Ajustage / ébavurage | D46: 2014-10-29 | E46: 1 | F46: 0 | G46: 7058581301 | H46: 7058581300 | I46: 41941 | O46: 705858 | P46: 1 | Q46: 130 | R46: EBAVURAGE | S46: TEST | T46: TEST | U46: EBAV | V46: TEST | W46: TEST | X46: 0.02 | Y46: TEST | Z46: TEST | AA46: TEST | AB46: TEST | AC46: TEST | AD46: TEST | AE46: 2014-10-29 | AF46: 17:40:00 | AG46: 2014-10-29 | AH46: 17:41:00 | AI46: TEST | AJ46: TEST | AK46: TEST | AL46: TEST | AM46: TEST | AN46: TEST | AO46: TEST | AP46: TEST | AQ46: TEST | AR46: 0.25 | AS46: 0.25 | AT46: TEST | AU46: TEST
A47: 0 | B47: 705858130 | C47: Ajustage / ébavurage | D47: 2014-10-29 | E47: 0 | F47: 1 | G47: 7058581300 | H47: 7058581301 | J47: 41941 | O47: 705858 | P47: 1 | Q47: 130 | R47: EBAVURAGE | S47: TEST | T47: TEST | U47: EBAV | V47: TEST | W47: TEST | X47: 2.98 | Y47: TEST | Z47: TEST | AA47: TEST | AB47: TEST | AC47: TEST | AD47: TEST | AE47: 2014-10-29 | AF47: 17:41:00 | AG47: 2014-10-29 | AH47: 20:40:00 | AI47: TEST | AJ47: TEST | AK47: TEST | AL47: TEST | AM47: TEST | AN47: TEST | AO47: TEST | AP47: TEST | AQ47: TEST | AR47: 0.25 | AS47: 0.25 | AT47: TEST | AU47: TEST
A48: 0 | B48: 705942110 | C48: Ajustage / ébavurage | D48: 2014-10-10 | E48: 1 | F48: 0 | G48: 7059421101 | H48: 7059421100 | I48: 41922 | O48: 705942 | P48: 1 | Q48: 110 | R48: AJUSTAGE | S48: TEST | T48: TEST | U48: AJUS | V48: TEST | W48: TEST | X48: 1.12 | Y48: TEST | Z48: TEST | AA48: TEST | AB48: TEST | AC48: TEST | AD48: TEST | AE48: 2014-10-10 | AF48: 06:57:00 | AG48: 2014-10-10 | AH48: 08:04:00 | AI48: TEST | AJ48: TEST | AK48: TEST | AL48: TEST | AM48: TEST | AN48: TEST | AO48: TEST | AP48: TEST | AQ48: TEST | AR48: 4 | AS48: 0.25 | AT48: TEST | AU48: TEST
A49: 0 | B49: 705942110 | C49: Ajustage / ébavurage | D49: 2014-10-10 | E49: 0 | F49: 1 | G49: 7059421100 | H49: 7059421101 | J49: 41922 | O49: 705942 | P49: 1 | Q49: 110 | R49: AJUSTAGE | S49: TEST | T49: TEST | U49: AJUS | V49: TEST | W49: TEST | X49: 1.93 | Y49: TEST | Z49: TEST | AA49: TEST | AB49: TEST | AC49: TEST | AD49: TEST | AE49: 2014-10-10 | AF49: 08:18:00 | AG49: 2014-10-10 | AH49: 10:14:00 | AI49: TEST | AJ49: TEST | AK49: TEST | AL49: TEST | AM49: TEST | AN49: TEST | AO49: TEST | AP49: TEST | AQ49: TEST | AR49: 4 | AS49: 0.25 | AT49: TEST | AU49: TEST
A50: 0 | B50: 705999260 | C50: Ajustage / ébavurage | D50: 2014-09-17 | E50: 1 | F50: 0 | G50: 7059992601 | H50: 7059992600 | I50: 41899 | O50: 705999 | P50: 1 | Q50: 260 | R50: EBAVURAGE/BROSSAGE | S50: TEST | T50: TEST | U50: EBAV | V50: TEST | W50: TEST | X50: 1.1 | Y50: TEST | Z50: TEST | AA50: TEST | AB50: TEST | AC50: TEST | AD50: TEST | AE50: 2014-09-17 | AF50: 06:56:00 | AG50: 2014-09-17 | AH50: 08:02:00 | AI50: TEST | AJ50: TEST | AK50: TEST | AL50: TEST | AM50: TEST | AN50: TEST | AO50: TEST | AP50: TEST | AQ50: TEST | AR50: 16.55 | AS50: 0.17 | AT50: TEST | AU50: TEST
A51: 0 | B51: 705999260 | C51: Ajustage / ébavurage | D51: 2014-09-17 | E51: 0 | F51: 1 | G51: 7059992600 | H51: 7059992601 | J51: 41899 | O51: 705999 | P51: 1 | Q51: 260 | R51: EBAVURAGE/BROSSAGE | S51: TEST | T51: TEST | U51: EBAV | V51: TEST | W51: TEST | X51: 1.37 | Y51: TEST | Z51: TEST | AA51: TEST | AB51: TEST | AC51: TEST | AD51: TEST | AE51: 2014-09-17 | AF51: 08:14:00 | AG51: 2014-09-17 | AH51: 09:36:00 | AI51: TEST | AJ51: TEST | AK51: TEST | AL51: TEST | AM51: TEST | AN51: TEST | AO51: TEST | AP51: TEST | AQ51: TEST | AR51: 16.55 | AS51: 0.17 | AT51: TEST | AU51: TEST
A52: 0 | B52: 705999260 | C52: Ajustage / ébavurage | D52: 2014-09-16 | E52: 1 | F52: 1 | G52: 7059992601 | H52: 7059992601 | I52: 41898 | J52: 41898 | O52: 705999 | P52: 1 | Q52: 260 | R52: EBAVURAGE/BROSSAGE | S52: TEST | T52: TEST | U52: EBAV | V52: TEST | W52: TEST | X52: 3.5 | Y52: TEST | Z52: TEST | AA52: TEST | AB52: TEST | AC52: TEST | AD52: TEST | AE52: 2014-09-16 | AF52: 12:27:00 | AG52: 2014-09-16 | AH52: 15:57:00 | AI52: TEST | AJ52: TEST | AK52: TEST | AL52: TEST | AM52: TEST | AN52: TEST | AO52: TEST | AP52: TEST | AQ52: TEST | AR52: 16.55 | AS52: 0.17 | AT52: TEST | AU52: TEST
A53: 0 | B53: 70599930 | C53: Ajustage / ébavurage | D53: 2014-11-03 | E53: 1 | F53: 0 | G53: 705999301 | H53: 705999300 | I53: 41946 | K53: 41920 | L53: 26 | O53: 705999 | P53: 999/1 | Q53: 30 | R53: BROSSAGE DENTURE | S53: TEST | T53: TEST | U53: EBAV | V53: TEST | W53: TEST | X53: 3.22 | Y53: TEST | Z53: TEST | AA53: TEST | AB53: TEST | AC53: TEST | AD53: TEST | AE53: 2014-11-03 | AF53: 07:00:00 | AG53: 2014-11-03 | AH53: 10:13:00 | AI53: TEST | AJ53: TEST | AK53: TEST | AL53: TEST | AM53: TEST | AN53: TEST | AO53: TEST | AP53: TEST | AQ53: TEST | AR53: 9.05 | AS53: 0.17 | AT53: TEST | AU53: TEST
A54: 0 | B54: 70599930 | C54: Ajustage / ébavurage | D54: 2014-10-30 | E54: 0 | F54: 0 | G54: 705999300 | H54: 705999300 | O54: 705999 | P54: 999/1 | Q54: 30 | R54: BROSSAGE DENTURE | S54: TEST | T54: TEST | U54: EBAV | V54: TEST | W54: TEST | X54: 0.4 | Y54: TEST | Z54: TEST | AA54: TEST | AB54: TEST | AC54: TEST | AD54: TEST | AE54: 2014-10-30 | AF54: 07:34:00 | AG54: 2014-10-30 | AH54: 07:58:00 | AI54: TEST | AJ54: TEST | AK54: TEST | AL54: TEST | AM54: TEST | AN54: TEST | AO54: TEST | AP54: TEST | AQ54: TEST | AR54: 9.05 | AS54: 0.17 | AT54: TEST | AU54: TEST
A55: 0 | B55: 70599930 | C55: Ajustage / ébavurage | D55: 2014-10-30 | E55: 0 | F55: 0 | G55: 705999300 | H55: 705999300 | O55: 705999 | P55: 999/1 | Q55: 30 | R55: BROSSAGE DENTURE | S55: TEST | T55: TEST | U55: EBAV | V55: TEST | W55: TEST | X55: 0.13 | Y55: TEST | Z55: TEST | AA55: TEST | AB55: TEST | AC55: TEST | AD55: TEST | AE55: 2014-10-30 | AF55: 07:58:00 | AG55: 2014-10-30 | AH55: 08:06:00 | AI55: TEST | AJ55: TEST | AK55: TEST | AL55: TEST | AM55: TEST | AN55: TEST | AO55: TEST | AP55: TEST | AQ55: TEST | AR55: 9.05 | AS55: 0.17 | AT55: TEST | AU55: TEST
A56: 0 | B56: 70599930 | C56: Ajustage / ébavurage | D56: 2014-10-30 | E56: 0 | F56: 0 | G56: 705999300 | H56: 705999300 | O56: 705999 | P56: 999/1 | Q56: 30 | R56: BROSSAGE DENTURE | S56: TEST | T56: TEST | U56: EBAV | V56: TEST | W56: TEST | X56: 0.9 | Y56: TEST | Z56: TEST | AA56: TEST | AB56: TEST | AC56: TEST | AD56: TEST | AE56: 2014-10-30 | AF56: 10:34:00 | AG56: 2014-10-30 | AH56: 11:28:00 | AI56: TEST | AJ56: TEST | AK56: TEST | AL56: TEST | AM56: TEST | AN56: TEST | AO56: TEST | AP56: TEST | AQ56: TEST | AR56: 9.05 | AS56: 0.17 | AT56: TEST | AU56: TEST
A57: 0 | B57: 70599930 | C57: Ajustage / ébavurage | D57: 2014-10-30 | E57: 0 | F57: 0 | G57: 705999300 | H57: 705999300 | O57: 705999 | P57: 999/1 | Q57: 30 | R57: BROSSAGE DENTURE | S57: TEST | T57: TEST | U57: EBAV | V57: TEST | W57: TEST | X57: 2.28 | Y57: TEST | Z57: TEST | AA57: TEST | AB57: TEST | AC57: TEST | AD57: TEST | AE57: 2014-10-30 | AF57: 11:02:00 | AG57: 2014-10-30 | AH57: 13:19:00 | AI57: TEST | AJ57: TEST | AK57: TEST | AL57: TEST | AM57: TEST | AN57: TEST | AO57: TEST | AP57: TEST | AQ57: TEST | AR57: 9.05 | AS57: 0.17 | AT57: TEST | AU57: TEST
A58: 0 | B58: 70599930 | C58: Ajustage / ébavurage | D58: 2014-10-30 | E58: 0 | F58: 0 | G58: 705999300 | H58: 705999300 | O58: 705999 | P58: 999/1 | Q58: 30 | R58: BROSSAGE DENTURE | S58: TEST | T58: TEST | U58: EBAV | V58: TEST | W58: TEST | X58: 3.77 | Y58: TEST | Z58: TEST | AA58: TEST | AB58: TEST | AC58: TEST | AD58: TEST | AE58: 2014-10-30 | AF58: 12:13:00 | AG58: 2014-10-30 | AH58: 15:59:00 | AI58: TEST | AJ58: TEST | AK58: TEST | AL58: TEST | AM58: TEST | AN58: TEST | AO58: TEST | AP58: TEST | AQ58: TEST | AR58: 9.05 | AS58: 0.17 | AT58: TEST | AU58: TEST
A59: 0 | B59: 70599930 | C59: Ajustage / ébavurage | D59: 2014-10-30 | E59: 0 | F59: 0 | G59: 705999300 | H59: 705999300 | O59: 705999 | P59: 999/1 | Q59: 30 | R59: BROSSAGE DENTURE | S59: TEST | T59: TEST | U59: EBAV | V59: TEST | W59: TEST | X59: 1.73 | Y59: TEST | Z59: TEST | AA59: TEST | AB59: TEST | AC59: TEST | AD59: TEST | AE59: 2014-10-30 | AF59: 13:56:00 | AG59: 2014-10-30 | AH59: 15:40:00 | AI59: TEST | AJ59: TEST | AK59: TEST | AL59: TEST | AM59: TEST | AN59: TEST | AO59: TEST | AP59: TEST | AQ59: TEST | AR59: 9.05 | AS59: 0.17 | AT59: TEST | AU59: TEST
A60: 0 | B60: 70599930 | C60: Ajustage / ébavurage | D60: 2014-10-29 | E60: 0 | F60: 0 | G60: 705999300 | H60: 705999300 | O60: 705999 | P60: 999/1 | Q60: 30 | R60: BROSSAGE DENTURE | S60: TEST | T60: TEST | U60: EBAV | V60: TEST | W60: TEST | X60: 0.9 | Y60: TEST | Z60: TEST | AA60: TEST | AB60: TEST | AC60: TEST | AD60: TEST | AE60: 2014-10-29 | AF60: 16:08:00 | AG60: 2014-10-29 | AH60: 17:02:00 | AI60: TEST | AJ60: TEST | AK60: TEST | AL60: TEST | AM60: TEST | AN60: TEST | AO60: TEST | AP60: TEST | AQ60: TEST | AR60: 9.05 | AS60: 0.17 | AT60: TEST | AU60: TEST
A61: 0 | B61: 70599930 | C61: Ajustage / ébavurage | D61: 2014-10-29 | E61: 0 | F61: 0 | G61: 705999300 | H61: 705999300 | O61: 705999 | P61: 999/1 | Q61: 30 | R61: BROSSAGE DENTURE | S61: TEST | T61: TEST | U61: EBAV | V61: TEST | W61: TEST | X61: 1.07 | Y61: TEST | Z61: TEST | AA61: TEST | AB61: TEST | AC61: TEST | AD61: TEST | AE61: 2014-10-29 | AF61: 17:21:00 | AG61: 2014-10-29 | AH61: 18:25:00 | AI61: TEST | AJ61: TEST | AK61: TEST | AL61: TEST | AM61: TEST | AN61: TEST | AO61: TEST | AP61: TEST | AQ61: TEST | AR61: 9.05 | AS61: 0.17 | AT61: TEST | AU61: TEST
A62: 0 | B62: 70599930 | C62: Ajustage / ébavurage | D62: 2014-10-29 | E62: 0 | F62: 1 | G62: 705999300 | H62: 705999301 | J62: 41941 | O62: 705999 | P62: 999/1 | Q62: 30 | R62: BROSSAGE DENTURE | S62: TEST | T62: TEST | U62: EBAV | V62: TEST | W62: TEST | X62: 2.37 | Y62: TEST | Z62: TEST | AA62: TEST | AB62: TEST | AC62: TEST | AD62: TEST | AE62: 2014-10-29 | AF62: 18:25:00 | AG62: 2014-10-29 | AH62: 20:47:00 | AI62: TEST | AJ62: TEST | AK62: TEST | AL62: TEST | AM62: TEST | AN62: TEST | AO62: TEST | AP62: TEST | AQ62: TEST | AR62: 9.05 | AS62: 0.17 | AT62: TEST | AU62: TEST
A63: 0 | B63: 706148150 | C63: Ajustage / ébavurage | D63: 2014-09-26 | E63: 1 | F63: 0 | G63: 7061481501 | H63: 7061481500 | I63: 41908 | K63: 41905 | L63: 3 | O63: 706148 | P63: 1 | Q63: 150 | R63: AJUSTAGE | S63: TEST | T63: TEST | U63: AJUS | V63: TEST | W63: TEST | X63: 1.73 | Y63: TEST | Z63: TEST | AA63: TEST | AB63: TEST | AC63: TEST | AD63: TEST | AE63: 2014-09-26 | AF63: 07:02:00 | AG63: 2014-09-26 | AH63: 08:46:00 | AI63: TEST | AJ63: TEST | AK63: TEST | AL63: TEST | AM63: TEST | AN63: TEST | AO63: TEST | AP63: TEST | AQ63: TEST | AR63: 27.25 | AS63: 0.25 | AT63: TEST | AU63: TEST
A64: 0 | B64: 706148150 | C64: Ajustage / ébavurage | D64: 2014-09-25 | E64: 0 | F64: 0 | G64: 7061481500 | H64: 7061481500 | O64: 706148 | P64: 1 | Q64: 150 | R64: AJUSTAGE | S64: TEST | T64: TEST | U64: AJUS | V64: TEST | W64: TEST | X64: 4.4 | Y64: TEST | Z64: TEST | AA64: TEST | AB64: TEST | AC64: TEST | AD64: TEST | AE64: 2014-09-25 | AF64: 07:05:00 | AG64: 2014-09-25 | AH64: 11:29:00 | AI64: TEST | AJ64: TEST | AK64: TEST | AL64: TEST | AM64: TEST | AN64: TEST | AO64: TEST | AP64: TEST | AQ64: TEST | AR64: 27.25 | AS64: 0.25 | AT64: TEST | AU64: TEST
A65: 0 | B65: 706148150 | C65: Ajustage / ébavurage | D65: 2014-09-25 | E65: 0 | F65: 0 | G65: 7061481500 | H65: 7061481500 | O65: 706148 | P65: 1 | Q65: 150 | R65: AJUSTAGE | S65: TEST | T65: TEST | U65: AJUS | V65: TEST | W65: TEST | X65: 3.75 | Y65: TEST | Z65: TEST | AA65: TEST | AB65: TEST | AC65: TEST | AD65: TEST | AE65: 2014-09-25 | AF65: 12:13:00 | AG65: 2014-09-25 | AH65: 15:58:00 | AI65: TEST | AJ65: TEST | AK65: TEST | AL65: TEST | AM65: TEST | AN65: TEST | AO65: TEST | AP65: TEST | AQ65: TEST | AR65: 27.25 | AS65: 0.25 | AT65: TEST | AU65: TEST
A66: 0 | B66: 706148150 | C66: Ajustage / ébavurage | D66: 2014-09-24 | E66: 0 | F66: 0 | G66: 7061481500 | H66: 7061481500 | O66: 706148 | P66: 1 | Q66: 150 | R66: AJUSTAGE | S66: TEST | T66: TEST | U66: AJUS | V66: TEST | W66: TEST | X66: 0.18 | Y66: TEST | Z66: TEST | AA66: TEST | AB66: TEST | AC66: TEST | AD66: TEST | AE66: 2014-09-24 | AF66: 11:17:00 | AG66: 2014-09-24 | AH66: 11:28:00 | AI66: TEST | AJ66: TEST | AK66: TEST | AL66: TEST | AM66: TEST | AN66: TEST | AO66: TEST | AP66: TEST | AQ66: TEST | AR66: 27.25 | AS66: 0.25 | AT66: TEST | AU66: TEST
A67: 0 | B67: 706148150 | C67: Ajustage / ébavurage | D67: 2014-09-24 | E67: 0 | F67: 1 | G67: 7061481500 | H67: 7061481501 | J67: 41906 | O67: 706148 | P67: 1 | Q67: 150 | R67: AJUSTAGE | S67: TEST | T67: TEST | U67: AJUS | V67: TEST | W67: TEST | X67: 3.72 | Y67: TEST | Z67: TEST | AA67: TEST | AB67: TEST | AC67: TEST | AD67: TEST | AE67: 2014-09-24 | AF67: 12:15:00 | AG67: 2014-09-24 | AH67: 15:58:00 | AI67: TEST | AJ67: TEST | AK67: TEST | AL67: TEST | AM67: TEST | AN67: TEST | AO67: TEST | AP67: TEST | AQ67: TEST | AR67: 27.25 | AS67: 0.25 | AT67: TEST | AU67: TEST
A68: 0 | B68: 70721080 | C68: Ajustage / ébavurage | D68: 2014-11-03 | E68: 1 | F68: 1 | G68: 707210801 | H68: 707210801 | I68: 41946 | J68: 41946 | K68: 41946 | L68: 0 | O68: 707210 | P68: 1 | Q68: 80 | R68: EBAVURAGE | S68: TEST | T68: TEST | U68: EBAV | V68: TEST | W68: TEST | X68: 2.33 | Y68: TEST | Z68: TEST | AA68: TEST | AB68: TEST | AC68: TEST | AD68: TEST | AE68: 2014-11-03 | AF68: 10:50:00 | AG68: 2014-11-03 | AH68: 13:10:00 | AI68: TEST | AJ68: TEST | AK68: TEST | AL68: TEST | AM68: TEST | AN68: TEST | AO68: TEST | AP68: TEST | AQ68: TEST | AR68: 0.56 | AS68: 0 | AT68: TEST | AU68: TEST
A69: 0 | B69: 706279140 | C69: Ajustage / ébavurage | D69: 2014-11-07 | E69: 1 | F69: 0 | G69: 7062791401 | H69: 7062791400 | I69: 41950 | K69: 41949 | L69: 1 | O69: 706279 | P69: 1 | Q69: 140 | R69: AJUSTAGE | S69: TEST | T69: TEST | U69: AJUS | V69: TEST | W69: TEST | X69: 3.12 | Y69: TEST | Z69: TEST | AA69: TEST | AB69: TEST | AC69: TEST | AD69: TEST | AE69: 2014-11-07 | AF69: 08:53:00 | AG69: 2014-11-07 | AH69: 12:00:00 | AI69: TEST | AJ69: TEST | AK69: TEST | AL69: TEST | AM69: TEST | AN69: TEST | AO69: TEST | AP69: TEST | AQ69: TEST | AR69: 15 | AS69: 0 | AT69: TEST | AU69: TEST
A70: 0 | B70: 706279140 | C70: Ajustage / ébavurage | D70: 2014-10-24 | E70: 0 | F70: 0 | G70: 7062791400 | H70: 7062791400 | O70: 706279 | P70: 1 | Q70: 140 | R70: AJUSTAGE | S70: TEST | T70: TEST | U70: AJUS | V70: TEST | W70: TEST | X70: 1.05 | Y70: TEST | Z70: TEST | AA70: TEST | AB70: TEST | AC70: TEST | AD70: TEST | AE70: 2014-10-24 | AF70: 06:57:00 | AG70: 2014-10-24 | AH70: 08:00:00 | AI70: TEST | AJ70: TEST | AK70: TEST | AL70: TEST | AM70: TEST | AN70: TEST | AO70: TEST | AP70: TEST | AQ70: TEST | AR70: 15 | AS70: 0 | AT70: TEST | AU70: TEST
A71: 0 | B71: 706279140 | C71: Ajustage / ébavurage | D71: 2014-10-24 | E71: 0 | F71: 0 | G71: 7062791400 | H71: 7062791400 | O71: 706279 | P71: 1 | Q71: 140 | R71: AJUSTAGE | S71: TEST | T71: TEST | U71: AJUS | V71: TEST | W71: TEST | X71: 0.77 | Y71: TEST | Z71: TEST | AA71: TEST | AB71: TEST | AC71: TEST | AD71: TEST | AE71: 2014-10-24 | AF71: 08:12:00 | AG71: 2014-10-24 | AH71: 08:58:00 | AI71: TEST | AJ71: TEST | AK71: TEST | AL71: TEST | AM71: TEST | AN71: TEST | AO71: TEST | AP71: TEST | AQ71: TEST | AR71: 15 | AS71: 0 | AT71: TEST | AU71: TEST
A72: 0 | B72: 706279140 | C72: Ajustage / ébavurage | D72: 2014-10-23 | E72: 0 | F72: 0 | G72: 7062791400 | H72: 7062791400 | O72: 706279 | P72: 1 | Q72: 140 | R72: AJUSTAGE | S72: TEST | T72: TEST | U72: AJUS | V72: TEST | W72: TEST | X72: 1.55 | Y72: TEST | Z72: TEST | AA72: TEST | AB72: TEST | AC72: TEST | AD72: TEST | AE72: 2014-10-23 | AF72: 09:54:00 | AG72: 2014-10-23 | AH72: 11:27:00 | AI72: TEST | AJ72: TEST | AK72: TEST | AL72: TEST | AM72: TEST | AN72: TEST | AO72: TEST | AP72: TEST | AQ72: TEST | AR72: 15 | AS72: 0 | AT72: TEST | AU72: TEST
A73: 0 | B73: 706279140 | C73: Ajustage / ébavurage | D73: 2014-10-23 | E73: 0 | F73: 0 | G73: 7062791400 | H73: 7062791400 | O73: 706279 | P73: 1 | Q73: 140 | R73: AJUSTAGE | S73: TEST | T73: TEST | U73: AJUS | V73: TEST | W73: TEST | X73: 3.75 | Y73: TEST | Z73: TEST | AA73: TEST | AB73: TEST | AC73: TEST | AD73: TEST | AE73: 2014-10-23 | AF73: 12:12:00 | AG73: 2014-10-23 | AH73: 15:57:00 | AI73: TEST | AJ73: TEST | AK73: TEST | AL73: TEST | AM73: TEST | AN73: TEST | AO73: TEST | AP73: TEST | AQ73: TEST | AR73: 15 | AS73: 0 | AT73: TEST | AU73: TEST
A74: 0 | B74: 706279140 | C74: Ajustage / ébavurage | D74: 2014-10-09 | E74: 0 | F74: 1 | G74: 7062791400 | H74: 7062791401 | J74: 41921 | O74: 706279 | P74: 1 | Q74: 140 | R74: AJUSTAGE | S74: TEST | T74: TEST | U74: AJUS | V74: TEST | W74: TEST | X74: 0.62 | Y74: TEST | Z74: TEST | AA74: TEST | AB74: TEST | AC74: TEST | AD74: TEST | AE74: 2014-10-09 | AF74: 07:34:00 | AG74: 2014-10-09 | AH74: 08:11:00 | AI74: TEST | AJ74: TEST | AK74: TEST | AL74: TEST | AM74: TEST | AN74: TEST | AO74: TEST | AP74: TEST | AQ74: TEST | AR74: 15 | AS74: 0 | AT74: TEST | AU74: TEST
A75: 0 | B75: 706279170 | C75: Ajustage / ébavurage | D75: 2014-10-24 | E75: 1 | F75: 1 | G75: 7062791701 | H75: 7062791701 | I75: 41936 | J75: 41936 | K75: 41934 | L75: 2 | O75: 706279 | P75: 1 | Q75: 170 | R75: EBAVURAGE | S75: TEST | T75: TEST | U75: EBAV | V75: TEST | W75: TEST | X75: 3.97 | Y75: TEST | Z75: TEST | AA75: TEST | AB75: TEST | AC75: TEST | AD75: TEST | AE75: 2014-10-24 | AF75: 08:59:00 | AG75: 2014-10-24 | AH75: 12:57:00 | AI75: TEST | AJ75: TEST | AK75: TEST | AL75: TEST | AM75: TEST | AN75: TEST | AO75: TEST | AP75: TEST | AQ75: TEST | AR75: 12.01 | AS75: 0.01 | AT75: TEST | AU75: TEST
A76: 0 | B76: 706280100 | C76: Ajustage / ébavurage | D76: 2014-10-13 | E76: 1 | F76: 1 | G76: 7062801001 | H76: 7062801001 | I76: 41925 | J76: 41925 | O76: 706280 | P76: 1 | Q76: 100 | R76: AJUSTAGE | S76: TEST | T76: TEST | U76: AJUS | V76: TEST | W76: TEST | X76: 0.95 | Y76: TEST | Z76: TEST | AA76: TEST | AB76: TEST | AC76: TEST | AD76: TEST | AE76: 2014-10-13 | AF76: 07:01:00 | AG76: 2014-10-13 | AH76: 07:58:00 | AI76: TEST | AJ76: TEST | AK76: TEST | AL76: TEST | AM76: TEST | AN76: TEST | AO76: TEST | AP76: TEST | AQ76: TEST | AR76: 6 | AS76: 0 | AT76: TEST | AU76: TEST
A77: 0 | B77: 706280100 | C77: Ajustage / ébavurage | D77: 2014-10-13 | E77: 1 | F77: 0 | G77: 7062801001 | H77: 7062801000 | I77: 41925 | O77: 706280 | P77: 1 | Q77: 100 | R77: AJUSTAGE | S77: TEST | T77: TEST | U77: AJUS | V77: TEST | W77: TEST | X77: 1.52 | Y77: TEST | Z77: TEST | AA77: TEST | AB77: TEST | AC77: TEST | AD77: TEST | AE77: 2014-10-13 | AF77: 08:07:00 | AG77: 2014-10-13 | AH77: 09:38:00 | AI77: TEST | AJ77: TEST | AK77: TEST | AL77: TEST | AM77: TEST | AN77: TEST | AO77: TEST | AP77: TEST | AQ77: TEST | AR77: 6 | AS77: 0 | AT77: TEST | AU77: TEST
A78: 0 | B78: 706280100 | C78: Ajustage / ébavurage | D78: 2014-10-10 | E78: 0 | F78: 1 | G78: 7062801000 | H78: 7062801001 | J78: 41922 | O78: 706280 | P78: 1 | Q78: 100 | R78: AJUSTAGE | S78: TEST | T78: TEST | U78: AJUS | V78: TEST | W78: TEST | X78: 2.7 | Y78: TEST | Z78: TEST | AA78: TEST | AB78: TEST | AC78: TEST | AD78: TEST | AE78: 2014-10-10 | AF78: 10:14:00 | AG78: 2014-10-10 | AH78: 12:56:00 | AI78: TEST | AJ78: TEST | AK78: TEST | AL78: TEST | AM78: TEST | AN78: TEST | AO78: TEST | AP78: TEST | AQ78: TEST | AR78: 6 | AS78: 0 | AT78: TEST | AU78: TEST
A79: 0 | B79: 706280100 | C79: Ajustage / ébavurage | D79: 2014-10-06 | E79: 1 | F79: 1 | G79: 7062801001 | H79: 7062801001 | I79: 41918 | J79: 41918 | O79: 706280 | P79: 1 | Q79: 100 | R79: AJUSTAGE | S79: TEST | T79: TEST | U79: AJUS | V79: TEST | W79: TEST | X79: 1.05 | Y79: TEST | Z79: TEST | AA79: TEST | AB79: TEST | AC79: TEST | AD79: TEST | AE79: 2014-10-06 | AF79: 06:57:00 | AG79: 2014-10-06 | AH79: 08:00:00 | AI79: TEST | AJ79: TEST | AK79: TEST | AL79: TEST | AM79: TEST | AN79: TEST | AO79: TEST | AP79: TEST | AQ79: TEST | AR79: 6 | AS79: 0 | AT79: TEST | AU79: TEST
A80: 0 | B80: 70599930 | C80: Ajustage / ébavurage | D80: 2014-10-31 | E80: 1 | F80: 1 | G80: 705999301 | H80: 705999301 | I80: 41943 | J80: 41943 | K80: 41920 | L80: 23 | O80: 705999 | P80: 999/1 | Q80: 30 | R80: BROSSAGE DENTURE | S80: TEST | T80: TEST | U80: EBAV | V80: TEST | W80: TEST | X80: 5.95 | Y80: TEST | Z80: TEST | AA80: TEST | AB80: TEST | AC80: TEST | AD80: TEST | AE80: 2014-10-31 | AF80: 06:59:00 | AG80: 2014-10-31 | AH80: 12:56:00 | AI80: TEST | AJ80: TEST | AK80: TEST | AL80: TEST | AM80: TEST | AN80: TEST | AO80: TEST | AP80: TEST | AQ80: TEST | AR80: 9.05 | AS80: 0.17 | AT80: TEST | AU80: TEST
A81: 0 | B81: 706754310 | C81: Ajustage / ébavurage | D81: 2014-10-31 | E81: 1 | F81: 0 | G81: 7067543101 | H81: 7067543100 | I81: 41943 | K81: 41939 | L81: 4 | O81: 706754 | P81: 1 | Q81: 310 | R81: AJUSTAGE | S81: TEST | T81: TEST | U81: AJUS | V81: TEST | W81: TEST | X81: 1.02 | Y81: TEST | Z81: TEST | AA81: TEST | AB81: TEST | AC81: TEST | AD81: TEST | AE81: 2014-10-31 | AF81: 06:56:00 | AG81: 2014-10-31 | AH81: 07:57:00 | AI81: TEST | AJ81: TEST | AK81: TEST | AL81: TEST | AM81: TEST | AN81: TEST | AO81: TEST | AP81: TEST | AQ81: TEST | AR81: 13.64 | AS81: 0.25 | AT81: TEST | AU81: TEST
A82: 0 | B82: 706754310 | C82: Ajustage / ébavurage | D82: 2014-10-31 | E82: 0 | F82: 1 | G82: 7067543100 | H82: 7067543101 | J82: 41943 | O82: 706754 | P82: 1 | Q82: 310 | R82: AJUSTAGE | S82: TEST | T82: TEST | U82: AJUS | V82: TEST | W82: TEST | X82: 4.77 | Y82: TEST | Z82: TEST | AA82: TEST | AB82: TEST | AC82: TEST | AD82: TEST | AE82: 2014-10-31 | AF82: 08:10:00 | AG82: 2014-10-31 | AH82: 12:56:00 | AI82: TEST | AJ82: TEST | AK82: TEST | AL82: TEST | AM82: TEST | AN82: TEST | AO82: TEST | AP82: TEST | AQ82: TEST | AR82: 13.64 | AS82: 0.25 | AT82: TEST | AU82: TEST
A83: 0 | B83: 706914120 | C83: Ajustage / ébavurage | D83: 2014-10-31 | E83: 1 | F83: 0 | G83: 7069141201 | H83: 7069141200 | I83: 41943 | O83: 706914 | P83: 1 | Q83: 120 | R83: MONTAGE | S83: TEST | T83: TEST | U83: AJUS | V83: TEST | W83: TEST | X83: 2.15 | Y83: TEST | Z83: TEST | AA83: TEST | AB83: TEST | AC83: TEST | AD83: TEST | AE83: 2014-10-31 | AF83: 07:13:00 | AG83: 2014-10-31 | AH83: 09:22:00 | AI83: TEST | AJ83: TEST | AK83: TEST | AL83: TEST | AM83: TEST | AN83: TEST | AO83: TEST | AP83: TEST | AQ83: TEST | AR83: 18.68 | AS83: 1 | AT83: TEST | AU83: TEST
A84: 0 | B84: 706914120 | C84: Ajustage / ébavurage | D84: 2014-10-31 | E84: 0 | F84: 0 | G84: 7069141200 | H84: 7069141200 | O84: 706914 | P84: 1 | Q84: 120 | R84: MONTAGE | S84: TEST | T84: TEST | U84: AJUS | V84: TEST | W84: TEST | X84: 1.62 | Y84: TEST | Z84: TEST | AA84: TEST | AB84: TEST | AC84: TEST | AD84: TEST | AE84: 2014-10-31 | AF84: 09:01:00 | AG84: 2014-10-31 | AH84: 10:38:00 | AI84: TEST | AJ84: TEST | AK84: TEST | AL84: TEST | AM84: TEST | AN84: TEST | AO84: TEST | AP84: TEST | AQ84: TEST | AR84: 18.68 | AS84: 1 | AT84: TEST | AU84: TEST
A85: 0 | B85: 706914120 | C85: Ajustage / ébavurage | D85: 2014-10-31 | E85: 0 | F85: 1 | G85: 7069141200 | H85: 7069141201 | J85: 41943 | O85: 706914 | P85: 1 | Q85: 120 | R85: MONTAGE | S85: TEST | T85: TEST | U85: AJUS | V85: TEST | W85: TEST | X85: 2.43 | Y85: TEST | Z85: TEST | AA85: TEST | AB85: TEST | AC85: TEST | AD85: TEST | AE85: 2014-10-31 | AF85: 10:52:00 | AG85: 2014-10-31 | AH85: 13:18:00 | AI85: TEST | AJ85: TEST | AK85: TEST | AL85: TEST | AM85: TEST | AN85: TEST | AO85: TEST | AP85: TEST | AQ85: TEST | AR85: 18.68 | AS85: 1 | AT85: TEST | AU85: TEST
A86: 0 | B86: 70628080 | C86: Ajustage / ébavurage | D86: 2014-09-22 | E86: 1 | F86: 0 | G86: 706280801 | H86: 706280800 | I86: 41904 | O86: 706280 | P86: 1 | Q86: 80 | R86: AJUSTAGE | S86: TEST | T86: TEST | U86: AJUS | V86: TEST | W86: TEST | X86: 0.98 | Y86: TEST | Z86: TEST | AA86: TEST | AB86: TEST | AC86: TEST | AD86: TEST | AE86: 2014-09-22 | AF86: 06:55:00 | AG86: 2014-09-22 | AH86: 07:54:00 | AI86: TEST | AJ86: TEST | AK86: TEST | AL86: TEST | AM86: TEST | AN86: TEST | AO86: TEST | AP86: TEST | AQ86: TEST | AR86: 20 | AS86: 0 | AT86: TEST | AU86: TEST
A87: 0 | B87: 70628080 | C87: Ajustage / ébavurage | D87: 2014-09-22 | E87: 0 | F87: 0 | G87: 706280800 | H87: 706280800 | O87: 706280 | P87: 1 | Q87: 80 | R87: AJUSTAGE | S87: TEST | T87: TEST | U87: AJUS | V87: TEST | W87: TEST | X87: 2.4 | Y87: TEST | Z87: TEST | AA87: TEST | AB87: TEST | AC87: TEST | AD87: TEST | AE87: 2014-09-22 | AF87: 08:04:00 | AG87: 2014-09-22 | AH87: 10:28:00 | AI87: TEST | AJ87: TEST | AK87: TEST | AL87: TEST | AM87: TEST | AN87: TEST | AO87: TEST | AP87: TEST | AQ87: TEST | AR87: 20 | AS87: 0 | AT87: TEST | AU87: TEST
A88: 0 | B88: 70628080 | C88: Ajustage / ébavurage | D88: 2014-09-18 | E88: 0 | F88: 0 | G88: 706280800 | H88: 706280800 | O88: 706280 | P88: 1 | Q88: 80 | R88: AJUSTAGE | S88: TEST | T88: TEST | U88: AJUS | V88: TEST | W88: TEST | X88: 1.4 | Y88: TEST | Z88: TEST | AA88: TEST | AB88: TEST | AC88: TEST | AD88: TEST | AE88: 2014-09-18 | AF88: 06:35:00 | AG88: 2014-09-18 | AH88: 07:59:00 | AI88: TEST | AJ88: TEST | AK88: TEST | AL88: TEST | AM88: TEST | AN88: TEST | AO88: TEST | AP88: TEST | AQ88: TEST | AR88: 20 | AS88: 0 | AT88: TEST | AU88: TEST
A89: 0 | B89: 70628080 | C89: Ajustage / ébavurage | D89: 2014-09-18 | E89: 0 | F89: 0 | G89: 706280800 | H89: 706280800 | O89: 706280 | P89: 1 | Q89: 80 | R89: AJUSTAGE | S89: TEST | T89: TEST | U89: AJUS | V89: TEST | W89: TEST | X89: 3.23 | Y89: TEST | Z89: TEST | AA89: TEST | AB89: TEST | AC89: TEST | AD89: TEST | AE89: 2014-09-18 | AF89: 08:13:00 | AG89: 2014-09-18 | AH89: 11:27:00 | AI89: TEST | AJ89: TEST | AK89: TEST | AL89: TEST | AM89: TEST | AN89: TEST | AO89: TEST | AP89: TEST | AQ89: TEST | AR89: 20 | AS89: 0 | AT89: TEST | AU89: TEST
A90: 0 | B90: 70628080 | C90: Ajustage / ébavurage | D90: 2014-09-18 | E90: 0 | F90: 0 | G90: 706280800 | H90: 706280800 | O90: 706280 | P90: 1 | Q90: 80 | R90: AJUSTAGE | S90: TEST | T90: TEST | U90: AJUS | V90: TEST | W90: TEST | X90: 3.32 | Y90: TEST | Z90: TEST | AA90: TEST | AB90: TEST | AC90: TEST | AD90: TEST | AE90: 2014-09-18 | AF90: 11:53:00 | AG90: 2014-09-18 | AH90: 15:12:00 | AI90: TEST | AJ90: TEST | AK90: TEST | AL90: TEST | AM90: TEST | AN90: TEST | AO90: TEST | AP90: TEST | AQ90: TEST | AR90: 20 | AS90: 0 | AT90: TEST | AU90: TEST
A91: 0 | B91: 70628080 | C91: Ajustage / ébavurage | D91: 2014-09-17 | E91: 0 | F91: 0 | G91: 706280800 | H91: 706280800 | O91: 706280 | P91: 1 | Q91: 80 | R91: AJUSTAGE | S91: TEST | T91: TEST | U91: AJUS | V91: TEST | W91: TEST | X91: 1.87 | Y91: TEST | Z91: TEST | AA91: TEST | AB91: TEST | AC91: TEST | AD91: TEST | AE91: 2014-09-17 | AF91: 09:36:00 | AG91: 2014-09-17 | AH91: 11:28:00 | AI91: TEST | AJ91: TEST | AK91: TEST | AL91: TEST | AM91: TEST | AN91: TEST | AO91: TEST | AP91: TEST | AQ91: TEST | AR91: 20 | AS91: 0 | AT91: TEST | AU91: TEST
A92: 0 | B92: 70628080 | C92: Ajustage / ébavurage | D92: 2014-09-17 | E92: 0 | F92: 0 | G92: 706280800 | H92: 706280800 | O92: 706280 | P92: 1 | Q92: 80 | R92: AJUSTAGE | S92: TEST | T92: TEST | U92: AJUS | V92: TEST | W92: TEST | X92: 3.72 | Y92: TEST | Z92: TEST | AA92: TEST | AB92: TEST | AC92: TEST | AD92: TEST | AE92: 2014-09-17 | AF92: 12:14:00 | AG92: 2014-09-17 | AH92: 15:57:00 | AI92: TEST | AJ92: TEST | AK92: TEST | AL92: TEST | AM92: TEST | AN92: TEST | AO92: TEST | AP92: TEST | AQ92: TEST | AR92: 20 | AS92: 0 | AT92: TEST | AU92: TEST
A93: 0 | B93: 70628080 | C93: Ajustage / ébavurage | D93: 2014-09-16 | E93: 0 | F93: 0 | G93: 706280800 | H93: 706280800 | O93: 706280 | P93: 1 | Q93: 80 | R93: AJUSTAGE | S93: TEST | T93: TEST | U93: AJUS | V93: TEST | W93: TEST | X93: 0.93 | Y93: TEST | Z93: TEST | AA93: TEST | AB93: TEST | AC93: TEST | AD93: TEST | AE93: 2014-09-16 | AF93: 10:32:00 | AG93: 2014-09-16 | AH93: 11:28:00 | AI93: TEST | AJ93: TEST | AK93: TEST | AL93: TEST | AM93: TEST | AN93: TEST | AO93: TEST | AP93: TEST | AQ93: TEST | AR93: 20 | AS93: 0 | AT93: TEST | AU93: TEST
A94: 0 | B94: 70628080 | C94: Ajustage / ébavurage | D94: 2014-09-16 | E94: 0 | F94: 1 | G94: 706280800 | H94: 706280801 | J94: 41898 | O94: 706280 | P94: 1 | Q94: 80 | R94: AJUSTAGE | S94: TEST | T94: TEST | U94: AJUS | V94: TEST | W94: TEST | X94: 0.23 | Y94: TEST | Z94: TEST | AA94: TEST | AB94: TEST | AC94: TEST | AD94: TEST | AE94: 2014-09-16 | AF94: 12:12:00 | AG94: 2014-09-16 | AH94: 12:26:00 | AI94: TEST | AJ94: TEST | AK94: TEST | AL94: TEST | AM94: TEST | AN94: TEST | AO94: TEST | AP94: TEST | AQ94: TEST | AR94: 20 | AS94: 0 | AT94: TEST | AU94: TEST
A95: 0 | B95: 706306260 | C95: Ajustage / ébavurage | D95: 2014-11-04 | E95: 1 | F95: 0 | G95: 7063062601 | H95: 7063062600 | I95: 41947 | K95: 41941 | L95: 6 | O95: 706306 | P95: 1 | Q95: 260 | R95: EBAVURAGE/BROSSAGE | S95: TEST | T95: TEST | U95: EBAV | V95: TEST | W95: TEST | X95: 2.07 | Y95: TEST | Z95: TEST | AA95: TEST | AB95: TEST | AC95: TEST | AD95: TEST | AE95: 2014-11-04 | AF95: 08:33:00 | AG95: 2014-11-04 | AH95: 10:37:00 | AI95: TEST | AJ95: TEST | AK95: TEST | AL95: TEST | AM95: TEST | AN95: TEST | AO95: TEST | AP95: TEST | AQ95: TEST | AR95: 3.04 | AS95: 0.17 | AT95: TEST | AU95: TEST
A96: 0 | B96: 706306260 | C96: Ajustage / ébavurage | D96: 2014-11-03 | E96: 0 | F96: 0 | G96: 7063062600 | H96: 7063062600 | O96: 706306 | P96: 1 | Q96: 260 | R96: EBAVURAGE/BROSSAGE | S96: TEST | T96: TEST | U96: EBAV | V96: TEST | W96: TEST | X96: 1.25 | Y96: TEST | Z96: TEST | AA96: TEST | AB96: TEST | AC96: TEST | AD96: TEST | AE96: 2014-11-03 | AF96: 10:13:00 | AG96: 2014-11-03 | AH96: 11:28:00 | AI96: TEST | AJ96: TEST | AK96: TEST | AL96: TEST | AM96: TEST | AN96: TEST | AO96: TEST | AP96: TEST | AQ96: TEST | AR96: 3.04 | AS96: 0.17 | AT96: TEST | AU96: TEST
A97: 0 | B97: 706306260 | C97: Ajustage / ébavurage | D97: 2014-11-03 | E97: 0 | F97: 1 | G97: 7063062600 | H97: 7063062601 | J97: 41946 | O97: 706306 | P97: 1 | Q97: 260 | R97: EBAVURAGE/BROSSAGE | S97: TEST | T97: TEST | U97: EBAV | V97: TEST | W97: TEST | X97: 3.83 | Y97: TEST | Z97: TEST | AA97: TEST | AB97: TEST | AC97: TEST | AD97: TEST | AE97: 2014-11-03 | AF97: 12:06:00 | AG97: 2014-11-03 | AH97: 15:56:00 | AI97: TEST | AJ97: TEST | AK97: TEST | AL97: TEST | AM97: TEST | AN97: TEST | AO97: TEST | AP97: TEST | AQ97: TEST | AR97: 3.04 | AS97: 0.17 | AT97: TEST | AU97: TEST
A98: 0 | B98: 706754310 | C98: Ajustage / ébavurage | D98: 2014-10-30 | E98: 1 | F98: 1 | G98: 7067543101 | H98: 7067543101 | I98: 41942 | J98: 41942 | K98: 41939 | L98: 3 | O98: 706754 | P98: 1 | Q98: 310 | R98: AJUSTAGE | S98: TEST | T98: TEST | U98: AJUS | V98: TEST | W98: TEST | X98: 3.75 | Y98: TEST | Z98: TEST | AA98: TEST | AB98: TEST | AC98: TEST | AD98: TEST | AE98: 2014-10-30 | AF98: 12:12:00 | AG98: 2014-10-30 | AH98: 15:57:00 | AI98: TEST | AJ98: TEST | AK98: TEST | AL98: TEST | AM98: TEST | AN98: TEST | AO98: TEST | AP98: TEST | AQ98: TEST | AR98: 13.64 | AS98: 0.25 | AT98: TEST | AU98: TEST
A99: 0 | B99: 706914120 | C99: Ajustage / ébavurage | D99: 2014-10-30 | E99: 1 | F99: 1 | G99: 7069141201 | H99: 7069141201 | I99: 41942 | J99: 41942 | O99: 706914 | P99: 1 | Q99: 120 | R99: MONTAGE | S99: TEST | T99: TEST | U99: AJUS | V99: TEST | W99: TEST | X99: 1.83 | Y99: TEST | Z99: TEST | AA99: TEST | AB99: TEST | AC99: TEST | AD99: TEST | AE99: 2014-10-30 | AF99: 14:38:00 | AG99: 2014-10-30 | AH99: 16:28:00 | AI99: TEST | AJ99: TEST | AK99: TEST | AL99: TEST | AM99: TEST | AN99: TEST | AO99: TEST | AP99: TEST | AQ99: TEST | AR99: 18.68 | AS99: 1 | AT99: TEST | AU99: TEST
A100: 0 | B100: 70706480 | C100: Ajustage / ébavurage | D100: 2014-10-30 | E100: 1 | F100: 1 | G100: 707064801 | H100: 707064801 | I100: 41942 | J100: 41942 | K100: 41936 | L100: 6 | O100: 707064 | P100: 1 | Q100: 80 | R100: EBAVURAGE | S100: TEST | T100: TEST | U100: EBAV | V100: TEST | W100: TEST | X100: 3.78 | Y100: TEST | Z100: TEST | AA100: TEST | AB100: TEST | AC100: TEST | AD100: TEST | AE100: 2014-10-30 | AF100: 12:12:00 | AG100: 2014-10-30 | AH100: 15:59:00 | AI100: TEST | AJ100: TEST | AK100: TEST | AL100: TEST | AM100: TEST | AN100: TEST | AO100: TEST | AP100: TEST | AQ100: TEST | AR100: 3 | AS100: 0 | AT100: TEST | AU100: TEST
A101: 0 | B101: 70706620 | C101: Ajustage / ébavurage | D101: 2014-10-30 | E101: 1 | F101: 1 | G101: 707066201 | H101: 707066201 | I101: 41942 | J101: 41942 | O101: 707066 | P101: 999/1 | Q101: 20 | R101: EBAVURAGE | S101: TEST | T101: TEST | U101: EBAV | V101: TEST | W101: TEST | X101: 95.93 | Y101: TEST | Z101: TEST | AA101: TEST | AB101: TEST | AC101: TEST | AD101: TEST | AE101: 2014-10-30 | AF101: 07:04:00 | AG101: 2014-11-03 | AH101: 07:00:00 | AI101: TEST | AJ101: TEST | AK101: TEST | AL101: TEST | AM101: TEST | AN101: TEST | AO101: TEST | AP101: TEST | AQ101: TEST | AR101: 5.25 | AS101: 0.25 | AT101: TEST | AU101: TEST
A102: 0 | B102: 70709980 | C102: Ajustage / ébavurage | D102: 2014-10-30 | E102: 1 | F102: 0 | G102: 707099801 | H102: 707099800 | I102: 41942 | K102: 41928 | L102: 14 | O102: 707099 | P102: 1 | Q102: 80 | R102: EBAVURAGE AERONAUTIQUE | S102: TEST | T102: TEST | U102: EBAVA | V102: TEST | W102: TEST | X102: 0.78 | Y102: TEST | Z102: TEST | AA102: TEST | AB102: TEST | AC102: TEST | AD102: TEST | AE102: 2014-10-30 | AF102: 07:10:00 | AG102: 2014-10-30 | AH102: 07:57:00 | AI102: TEST | AJ102: TEST | AK102: TEST | AL102: TEST | AM102: TEST | AN102: TEST | AO102: TEST | AP102: TEST | AQ102: TEST | AR102: 28.75 | AS102: 0.25 | AT102: TEST | AU102: TEST
A103: 0 | B103: 70709980 | C103: Ajustage / ébavurage | D103: 2014-10-30 | E103: 0 | F103: 0 | G103: 707099800 | H103: 707099800 | O103: 707099 | P103: 1 | Q103: 80 | R103: EBAVURAGE AERONAUTIQUE | S103: TEST | T103: TEST | U103: EBAVA | V103: TEST | W103: TEST | X103: 2.25 | Y103: TEST | Z103: TEST | AA103: TEST | AB103: TEST | AC103: TEST | AD103: TEST | AE103: 2014-10-30 | AF103: 08:14:00 | AG103: 2014-10-30 | AH103: 10:29:00 | AI103: TEST | AJ103: TEST | AK103: TEST | AL103: TEST | AM103: TEST | AN103: TEST | AO103: TEST | AP103: TEST | AQ103: TEST | AR103: 28.75 | AS103: 0.25 | AT103: TEST | AU103: TEST
A104: 0 | B104: 70709980 | C104: Ajustage / ébavurage | D104: 2014-10-30 | E104: 0 | F104: 0 | G104: 707099800 | H104: 707099800 | O104: 707099 | P104: 1 | Q104: 80 | R104: EBAVURAGE AERONAUTIQUE | S104: TEST | T104: TEST | U104: EBAVA | V104: TEST | W104: TEST | X104: 2.45 | Y104: TEST | Z104: TEST | AA104: TEST | AB104: TEST | AC104: TEST | AD104: TEST | AE104: 2014-10-30 | AF104: 10:51:00 | AG104: 2014-10-30 | AH104: 13:18:00 | AI104: TEST | AJ104: TEST | AK104: TEST | AL104: TEST | AM104: TEST | AN104: TEST | AO104: TEST | AP104: TEST | AQ104: TEST | AR104: 28.75 | AS104: 0.25 | AT104: TEST | AU104: TEST
A105: 0 | B105: 70709980 | C105: Ajustage / ébavurage | D105: 2014-10-30 | E105: 0 | F105: 1 | G105: 707099800 | H105: 707099801 | J105: 41942 | O105: 707099 | P105: 1 | Q105: 80 | R105: EBAVURAGE AERONAUTIQUE | S105: TEST | T105: TEST | U105: EBAVA | V105: TEST | W105: TEST | X105: 0.75 | Y105: TEST | Z105: TEST | AA105: TEST | AB105: TEST | AC105: TEST | AD105: TEST | AE105: 2014-10-30 | AF105: 13:22:00 | AG105: 2014-10-30 | AH105: 14:07:00 | AI105: TEST | AJ105: TEST | AK105: TEST | AL105: TEST | AM105: TEST | AN105: TEST | AO105: TEST | AP105: TEST | AQ105: TEST | AR105: 28.75 | AS105: 0.25 | AT105: TEST | AU105: TEST
A106: 0 | B106: 70719780 | C106: Ajustage / ébavurage | D106: 2014-10-30 | E106: 1 | F106: 0 | G106: 707197801 | H106: 707197800 | I106: 41942 | K106: 41939 | L106: 3 | O106: 707197 | P106: 1 | Q106: 80 | R106: EBAVURAGE | S106: TEST | T106: TEST | U106: EBAV | V106: TEST | W106: TEST | X106: 1.02 | Y106: TEST | Z106: TEST | AA106: TEST | AB106: TEST | AC106: TEST | AD106: TEST | AE106: 2014-10-30 | AF106: 06:58:00 | AG106: 2014-10-30 | AH106: 07:59:00 | AI106: TEST | AJ106: TEST | AK106: TEST | AL106: TEST | AM106: TEST | AN106: TEST | AO106: TEST | AP106: TEST | AQ106: TEST | AR106: 12.17 | AS106: 0.17 | AT106: TEST | AU106: TEST
A107: 0 | B107: 70719780 | C107: Ajustage / ébavurage | D107: 2014-10-30 | E107: 0 | F107: 1 | G107: 707197800 | H107: 707197801 | J107: 41942 | O107: 707197 | P107: 1 | Q107: 80 | R107: EBAVURAGE | S107: TEST | T107: TEST | U107: EBAV | V107: TEST | W107: TEST | X107: 3.28 | Y107: TEST | Z107: TEST | AA107: TEST | AB107: TEST | AC107: TEST | AD107: TEST | AE107: 2014-10-30 | AF107: 08:11:00 | AG107: 2014-10-30 | AH107: 11:28:00 | AI107: TEST | AJ107: TEST | AK107: TEST | AL107: TEST | AM107: TEST | AN107: TEST | AO107: TEST | AP107: TEST | AQ107: TEST | AR107: 12.17 | AS107: 0.17 | AT107: TEST | AU107: TEST
A108: 0 | B108: 70644490 | C108: Ajustage / ébavurage | D108: 2014-10-24 | E108: 1 | F108: 0 | G108: 706444901 | H108: 706444900 | I108: 41936 | K108: 41919 | L108: 17 | O108: 706444 | P108: 1 | Q108: 90 | R108: AJUSTAGE | S108: TEST | T108: TEST | U108: AJUS | V108: TEST | W108: TEST | X108: 5.87 | Y108: TEST | Z108: TEST | AA108: TEST | AB108: TEST | AC108: TEST | AD108: TEST | AE108: 2014-10-24 | AF108: 07:05:00 | AG108: 2014-10-24 | AH108: 12:57:00 | AI108: TEST | AJ108: TEST | AK108: TEST | AL108: TEST | AM108: TEST | AN108: TEST | AO108: TEST | AP108: TEST | AQ108: TEST | AR108: 60 | AS108: 0 | AT108: TEST | AU108: TEST
A109: 0 | B109: 70644490 | C109: Ajustage / ébavurage | D109: 2014-10-23 | E109: 0 | F109: 0 | G109: 706444900 | H109: 706444900 | O109: 706444 | P109: 1 | Q109: 90 | R109: AJUSTAGE | S109: TEST | T109: TEST | U109: AJUS | V109: TEST | W109: TEST | X109: 4.12 | Y109: TEST | Z109: TEST | AA109: TEST | AB109: TEST | AC109: TEST | AD109: TEST | AE109: 2014-10-23 | AF109: 07:20:00 | AG109: 2014-10-23 | AH109: 11:27:00 | AI109: TEST | AJ109: TEST | AK109: TEST | AL109: TEST | AM109: TEST | AN109: TEST | AO109: TEST | AP109: TEST | AQ109: TEST | AR109: 60 | AS109: 0 | AT109: TEST | AU109: TEST
A110: 0 | B110: 70644490 | C110: Ajustage / ébavurage | D110: 2014-10-23 | E110: 0 | F110: 0 | G110: 706444900 | H110: 706444900 | O110: 706444 | P110: 1 | Q110: 90 | R110: AJUSTAGE | S110: TEST | T110: TEST | U110: AJUS | V110: TEST | W110: TEST | X110: 3.72 | Y110: TEST | Z110: TEST | AA110: TEST | AB110: TEST | AC110: TEST | AD110: TEST | AE110: 2014-10-23 | AF110: 12:12:00 | AG110: 2014-10-23 | AH110: 15:55:00 | AI110: TEST | AJ110: TEST | AK110: TEST | AL110: TEST | AM110: TEST | AN110: TEST | AO110: TEST | AP110: TEST | AQ110: TEST | AR110: 60 | AS110: 0 | AT110: TEST | AU110: TEST
A111: 0 | B111: 70644490 | C111: Ajustage / ébavurage | D111: 2014-10-16 | E111: 0 | F111: 0 | G111: 706444900 | H111: 706444900 | O111: 706444 | P111: 1 | Q111: 90 | R111: AJUSTAGE | S111: TEST | T111: TEST | U111: AJUS | V111: TEST | W111: TEST | X111: 0.73 | Y111: TEST | Z111: TEST | AA111: TEST | AB111: TEST | AC111: TEST | AD111: TEST | AE111: 2014-10-16 | AF111: 07:13:00 | AG111: 2014-10-16 | AH111: 07:57:00 | AI111: TEST | AJ111: TEST | AK111: TEST | AL111: TEST | AM111: TEST | AN111: TEST | AO111: TEST | AP111: TEST | AQ111: TEST | AR111: 60 | AS111: 0 | AT111: TEST | AU111: TEST
A112: 0 | B112: 70644490 | C112: Ajustage / ébavurage | D112: 2014-10-15 | E112: 0 | F112: 0 | G112: 706444900 | H112: 706444900 | O112: 706444 | P112: 1 | Q112: 90 | R112: AJUSTAGE | S112: TEST | T112: TEST | U112: AJUS | V112: TEST | W112: TEST | X112: 4.35 | Y112: TEST | Z112: TEST | AA112: TEST | AB112: TEST | AC112: TEST | AD112: TEST | AE112: 2014-10-15 | AF112: 07:05:00 | AG112: 2014-10-15 | AH112: 11:26:00 | AI112: TEST | AJ112: TEST | AK112: TEST | AL112: TEST | AM112: TEST | AN112: TEST | AO112: TEST | AP112: TEST | AQ112: TEST | AR112: 60 | AS112: 0 | AT112: TEST | AU112: TEST
A113: 0 | B113: 70644490 | C113: Ajustage / ébavurage | D113: 2014-10-15 | E113: 0 | F113: 0 | G113: 706444900 | H113: 706444900 | O113: 706444 | P113: 1 | Q113: 90 | R113: AJUSTAGE | S113: TEST | T113: TEST | U113: AJUS | V113: TEST | W113: TEST | X113: 3.78 | Y113: TEST | Z113: TEST | AA113: TEST | AB113: TEST | AC113: TEST | AD113: TEST | AE113: 2014-10-15 | AF113: 12:10:00 | AG113: 2014-10-15 | AH113: 15:57:00 | AI113: TEST | AJ113: TEST | AK113: TEST | AL113: TEST | AM113: TEST | AN113: TEST | AO113: TEST | AP113: TEST | AQ113: TEST | AR113: 60 | AS113: 0 | AT113: TEST | AU113: TEST
A114: 0 | B114: 70644490 | C114: Ajustage / ébavurage | D114: 2014-10-14 | E114: 0 | F114: 0 | G114: 706444900 | H114: 706444900 | O114: 706444 | P114: 1 | Q114: 90 | R114: AJUSTAGE | S114: TEST | T114: TEST | U114: AJUS | V114: TEST | W114: TEST | X114: 4.15 | Y114: TEST | Z114: TEST | AA114: TEST | AB114: TEST | AC114: TEST | AD114: TEST | AE114: 2014-10-14 | AF114: 07:19:00 | AG114: 2014-10-14 | AH114: 11:28:00 | AI114: TEST | AJ114: TEST | AK114: TEST | AL114: TEST | AM114: TEST | AN114: TEST | AO114: TEST | AP114: TEST | AQ114: TEST | AR114: 60 | AS114: 0 | AT114: TEST | AU114: TEST
A115: 0 | B115: 70644490 | C115: Ajustage / ébavurage | D115: 2014-10-14 | E115: 0 | F115: 1 | G115: 706444900 | H115: 706444901 | J115: 41926 | O115: 706444 | P115: 1 | Q115: 90 | R115: AJUSTAGE | S115: TEST | T115: TEST | U115: AJUS | V115: TEST | W115: TEST | X115: 3.68 | Y115: TEST | Z115: TEST | AA115: TEST | AB115: TEST | AC115: TEST | AD115: TEST | AE115: 2014-10-14 | AF115: 12:15:00 | AG115: 2014-10-14 | AH115: 15:56:00 | AI115: TEST | AJ115: TEST | AK115: TEST | AL115: TEST | AM115: TEST | AN115: TEST | AO115: TEST | AP115: TEST | AQ115: TEST | AR115: 60 | AS115: 0 | AT115: TEST | AU115: TEST
A116: 0 | B116: 70644990 | C116: Ajustage / ébavurage | D116: 2014-10-14 | E116: 1 | F116: 0 | G116: 706449901 | H116: 706449900 | I116: 41926 | O116: 706449 | P116: 1 | Q116: 90 | R116: EBAVURAGE | S116: TEST | T116: TEST | U116: EBAV | V116: TEST | W116: TEST | X116: 1.07 | Y116: TEST | Z116: TEST | AA116: TEST | AB116: TEST | AC116: TEST | AD116: TEST | AE116: 2014-10-14 | AF116: 06:56:00 | AG116: 2014-10-14 | AH116: 08:00:00 | AI116: TEST | AJ116: TEST | AK116: TEST | AL116: TEST | AM116: TEST | AN116: TEST | AO116: TEST | AP116: TEST | AQ116: TEST | AR116: 6.25 | AS116: 0.25 | AT116: TEST | AU116: TEST
A117: 0 | B117: 70644990 | C117: Ajustage / ébavurage | D117: 2014-10-14 | E117: 0 | F117: 1 | G117: 706449900 | H117: 706449901 | J117: 41926 | O117: 706449 | P117: 1 | Q117: 90 | R117: EBAVURAGE | S117: TEST | T117: TEST | U117: EBAV | V117: TEST | W117: TEST | X117: 1.63 | Y117: TEST | Z117: TEST | AA117: TEST | AB117: TEST | AC117: TEST | AD117: TEST | AE117: 2014-10-14 | AF117: 08:08:00 | AG117: 2014-10-14 | AH117: 09:46:00 | AI117: TEST | AJ117: TEST | AK117: TEST | AL117: TEST | AM117: TEST | AN117: TEST | AO117: TEST | AP117: TEST | AQ117: TEST | AR117: 6.25 | AS117: 0.25 | AT117: TEST | AU117: TEST
A118: 0 | B118: 706450140 | C118: Ajustage / ébavurage | D118: 2014-09-25 | E118: 1 | F118: 0 | G118: 7064501401 | H118: 7064501400 | I118: 41907 | K118: 41900 | L118: 7 | O118: 706450 | P118: 1 | Q118: 140 | R118: AJUSTAGE | S118: TEST | T118: TEST | U118: AJUS | V118: TEST | W118: TEST | X118: 1.05 | Y118: TEST | Z118: TEST | AA118: TEST | AB118: TEST | AC118: TEST | AD118: TEST | AE118: 2014-09-25 | AF118: 06:56:00 | AG118: 2014-09-25 | AH118: 07:59:00 | AI118: TEST | AJ118: TEST | AK118: TEST | AL118: TEST | AM118: TEST | AN118: TEST | AO118: TEST | AP118: TEST | AQ118: TEST | AR118: 9.4 | AS118: 0.25 | AT118: TEST | AU118: TEST
A119: 0 | B119: 706450140 | C119: Ajustage / ébavurage | D119: 2014-09-24 | E119: 0 | F119: 0 | G119: 7064501400 | H119: 7064501400 | O119: 706450 | P119: 1 | Q119: 140 | R119: AJUSTAGE | S119: TEST | T119: TEST | U119: AJUS | V119: TEST | W119: TEST | X119: 0.95 | Y119: TEST | Z119: TEST | AA119: TEST | AB119: TEST | AC119: TEST | AD119: TEST | AE119: 2014-09-24 | AF119: 10:37:00 | AG119: 2014-09-24 | AH119: 11:34:00 | AI119: TEST | AJ119: TEST | AK119: TEST | AL119: TEST | AM119: TEST | AN119: TEST | AO119: TEST | AP119: TEST | AQ119: TEST | AR119: 9.4 | AS119: 0.25 | AT119: TEST | AU119: TEST
A120: 0 | B120: 706450140 | C120: Ajustage / ébavurage | D120: 2014-09-24 | E120: 0 | F120: 0 | G120: 7064501400 | H120: 7064501400 | O120: 706450 | P120: 1 | Q120: 140 | R120: AJUSTAGE | S120: TEST | T120: TEST | U120: AJUS | V120: TEST | W120: TEST | X120: 3.8 | Y120: TEST | Z120: TEST | AA120: TEST | AB120: TEST | AC120: TEST | AD120: TEST | AE120: 2014-09-24 | AF120: 12:09:00 | AG120: 2014-09-24 | AH120: 15:57:00 | AI120: TEST | AJ120: TEST | AK120: TEST | AL120: TEST | AM120: TEST | AN120: TEST | AO120: TEST | AP120: TEST | AQ120: TEST | AR120: 9.4 | AS120: 0.25 | AT120: TEST | AU120: TEST
A121: 0 | B121: 706450140 | C121: Ajustage / ébavurage | D121: 2014-09-23 | E121: 0 | F121: 1 | G121: 7064501400 | H121: 7064501401 | J121: 41905 | O121: 706450 | P121: 1 | Q121: 140 | R121: AJUSTAGE | S121: TEST | T121: TEST | U121: AJUS | V121: TEST | W121: TEST | X121: 1.03 | Y121: TEST | Z121: TEST | AA121: TEST | AB121: TEST | AC121: TEST | AD121: TEST | AE121: 2014-09-23 | AF121: 06:56:00 | AG121: 2014-09-23 | AH121: 07:58:00 | AI121: TEST | AJ121: TEST | AK121: TEST | AL121: TEST | AM121: TEST | AN121: TEST | AO121: TEST | AP121: TEST | AQ121: TEST | AR121: 9.4 | AS121: 0.25 | AT121: TEST | AU121: TEST
A122: 0 | B122: 70707090 | C122: Ajustage / ébavurage | D122: 2014-10-29 | E122: 1 | F122: 1 | G122: 707070901 | H122: 707070901 | I122: 41941 | J122: 41941 | K122: 41939 | L122: 2 | O122: 707070 | P122: 1 | Q122: 90 | R122: AJUSTAGE | S122: TEST | T122: TEST | U122: AJUS | V122: TEST | W122: TEST | X122: 4.63 | Y122: TEST | Z122: TEST | AA122: TEST | AB122: TEST | AC122: TEST | AD122: TEST | AE122: 2014-10-29 | AF122: 12:23:00 | AG122: 2014-10-29 | AH122: 17:01:00 | AI122: TEST | AJ122: TEST | AK122: TEST | AL122: TEST | AM122: TEST | AN122: TEST | AO122: TEST | AP122: TEST | AQ122: TEST | AR122: 4.5 | AS122: 0 | AT122: TEST | AU122: TEST
A123: 0 | B123: 706450140 | C123: Ajustage / ébavurage | D123: 2014-09-23 | E123: 1 | F123: 0 | G123: 7064501401 | H123: 7064501400 | I123: 41905 | K123: 41900 | L123: 5 | O123: 706450 | P123: 1 | Q123: 140 | R123: AJUSTAGE | S123: TEST | T123: TEST | U123: AJUS | V123: TEST | W123: TEST | X123: 3.3 | Y123: TEST | Z123: TEST | AA123: TEST | AB123: TEST | AC123: TEST | AD123: TEST | AE123: 2014-09-23 | AF123: 08:17:00 | AG123: 2014-09-23 | AH123: 11:35:00 | AI123: TEST | AJ123: TEST | AK123: TEST | AL123: TEST | AM123: TEST | AN123: TEST | AO123: TEST | AP123: TEST | AQ123: TEST | AR123: 9.4 | AS123: 0.25 | AT123: TEST | AU123: TEST
A124: 0 | B124: 706450140 | C124: Ajustage / ébavurage | D124: 2014-09-23 | E124: 0 | F124: 0 | G124: 7064501400 | H124: 7064501400 | O124: 706450 | P124: 1 | Q124: 140 | R124: AJUSTAGE | S124: TEST | T124: TEST | U124: AJUS | V124: TEST | W124: TEST | X124: 3.75 | Y124: TEST | Z124: TEST | AA124: TEST | AB124: TEST | AC124: TEST | AD124: TEST | AE124: 2014-09-23 | AF124: 12:12:00 | AG124: 2014-09-23 | AH124: 15:57:00 | AI124: TEST | AJ124: TEST | AK124: TEST | AL124: TEST | AM124: TEST | AN124: TEST | AO124: TEST | AP124: TEST | AQ124: TEST | AR124: 9.4 | AS124: 0.25 | AT124: TEST | AU124: TEST
A125: 0 | B125: 706450140 | C125: Ajustage / ébavurage | D125: 2014-09-22 | E125: 0 | F125: 0 | G125: 7064501400 | H125: 7064501400 | O125: 706450 | P125: 1 | Q125: 140 | R125: AJUSTAGE | S125: TEST | T125: TEST | U125: AJUS | V125: TEST | W125: TEST | X125: 0.97 | Y125: TEST | Z125: TEST | AA125: TEST | AB125: TEST | AC125: TEST | AD125: TEST | AE125: 2014-09-22 | AF125: 10:28:00 | AG125: 2014-09-22 | AH125: 11:26:00 | AI125: TEST | AJ125: TEST | AK125: TEST | AL125: TEST | AM125: TEST | AN125: TEST | AO125: TEST | AP125: TEST | AQ125: TEST | AR125: 9.4 | AS125: 0.25 | AT125: TEST | AU125: TEST
A126: 0 | B126: 706450140 | C126: Ajustage / ébavurage | D126: 2014-09-22 | E126: 0 | F126: 1 | G126: 7064501400 | H126: 7064501401 | J126: 41904 | O126: 706450 | P126: 1 | Q126: 140 | R126: AJUSTAGE | S126: TEST | T126: TEST | U126: AJUS | V126: TEST | W126: TEST | X126: 3.73 | Y126: TEST | Z126: TEST | AA126: TEST | AB126: TEST | AC126: TEST | AD126: TEST | AE126: 2014-09-22 | AF126: 12:13:00 | AG126: 2014-09-22 | AH126: 15:57:00 | AI126: TEST | AJ126: TEST | AK126: TEST | AL126: TEST | AM126: TEST | AN126: TEST | AO126: TEST | AP126: TEST | AQ126: TEST | AR126: 9.4 | AS126: 0.25 | AT126: TEST | AU126: TEST
A127: 0 | B127: 706487130 | C127: Ajustage / ébavurage | D127: 2014-10-17 | E127: 1 | F127: 0 | G127: 7064871301 | H127: 7064871300 | I127: 41929 | K127: 41897 | L127: 32 | O127: 706487 | P127: 1 | Q127: 130 | R127: AJUSTAGE | S127: TEST | T127: TEST | U127: AJUS | V127: TEST | W127: TEST | X127: 6 | Y127: TEST | Z127: TEST | AA127: TEST | AB127: TEST | AC127: TEST | AD127: TEST | AE127: 2014-10-17 | AF127: 06:57:00 | AG127: 2014-10-17 | AH127: 12:57:00 | AI127: TEST | AJ127: TEST | AK127: TEST | AL127: TEST | AM127: TEST | AN127: TEST | AO127: TEST | AP127: TEST | AQ127: TEST | AR127: 15.3 | AS127: 0.1 | AT127: TEST | AU127: TEST
A128: 0 | B128: 706487130 | C128: Ajustage / ébavurage | D128: 2014-10-16 | E128: 0 | F128: 0 | G128: 7064871300 | H128: 7064871300 | O128: 706487 | P128: 1 | Q128: 130 | R128: AJUSTAGE | S128: TEST | T128: TEST | U128: AJUS | V128: TEST | W128: TEST | X128: 0.78 | Y128: TEST | Z128: TEST | AA128: TEST | AB128: TEST | AC128: TEST | AD128: TEST | AE128: 2014-10-16 | AF128: 10:40:00 | AG128: 2014-10-16 | AH128: 11:27:00 | AI128: TEST | AJ128: TEST | AK128: TEST | AL128: TEST | AM128: TEST | AN128: TEST | AO128: TEST | AP128: TEST | AQ128: TEST | AR128: 15.3 | AS128: 0.1 | AT128: TEST | AU128: TEST
A129: 0 | B129: 706487130 | C129: Ajustage / ébavurage | D129: 2014-10-16 | E129: 0 | F129: 0 | G129: 7064871300 | H129: 7064871300 | O129: 706487 | P129: 1 | Q129: 130 | R129: AJUSTAGE | S129: TEST | T129: TEST | U129: AJUS | V129: TEST | W129: TEST | X129: 1.07 | Y129: TEST | Z129: TEST | AA129: TEST | AB129: TEST | AC129: TEST | AD129: TEST | AE129: 2014-10-16 | AF129: 12:11:00 | AG129: 2014-10-16 | AH129: 13:15:00 | AI129: TEST | AJ129: TEST | AK129: TEST | AL129: TEST | AM129: TEST | AN129: TEST | AO129: TEST | AP129: TEST | AQ129: TEST | AR129: 15.3 | AS129: 0.1 | AT129: TEST | AU129: TEST
A130: 0 | B130: 706487130 | C130: Ajustage / ébavurage | D130: 2014-10-16 | E130: 0 | F130: 1 | G130: 7064871300 | H130: 7064871301 | J130: 41928 | O130: 706487 | P130: 1 | Q130: 130 | R130: AJUSTAGE | S130: TEST | T130: TEST | U130: AJUS | V130: TEST | W130: TEST | X130: 1.88 | Y130: TEST | Z130: TEST | AA130: TEST | AB130: TEST | AC130: TEST | AD130: TEST | AE130: 2014-10-16 | AF130: 14:04:00 | AG130: 2014-10-16 | AH130: 15:57:00 | AI130: TEST | AJ130: TEST | AK130: TEST | AL130: TEST | AM130: TEST | AN130: TEST | AO130: TEST | AP130: TEST | AQ130: TEST | AR130: 15.3 | AS130: 0.1 | AT130: TEST | AU130: TEST
A131: 0 | B131: 70734150 | C131: Ajustage / ébavurage | D131: 2014-10-29 | E131: 1 | F131: 1 | G131: 707341501 | H131: 707341501 | I131: 41941 | J131: 41941 | K131: 41940 | L131: 1 | O131: 707341 | P131: 1 | Q131: 50 | R131: EBAVURAGE | S131: TEST | T131: TEST | U131: EBAV | V131: TEST | W131: TEST | X131: 2.5 | Y131: TEST | Z131: TEST | AA131: TEST | AB131: TEST | AC131: TEST | AD131: TEST | AE131: 2014-10-29 | AF131: 09:45:00 | AG131: 2014-10-29 | AH131: 12:15:00 | AI131: TEST | AJ131: TEST | AK131: TEST | AL131: TEST | AM131: TEST | AN131: TEST | AO131: TEST | AP131: TEST | AQ131: TEST | AR131: 2.65 | AS131: 0.25 | AT131: TEST | AU131: TEST
A132: 0 | B132: 35593420 | C132: Ajustage / ébavurage | D132: 2014-10-28 | E132: 1 | F132: 0 | G132: 355934201 | H132: 355934200 | I132: 41940 | O132: 355934 | P132: 999/2 | Q132: 20 | R132: AJUSTAGE | S132: TEST | T132: TEST | U132: AJUS | V132: TEST | W132: TEST | X132: 2.5 | Y132: TEST | Z132: TEST | AA132: TEST | AB132: TEST | AC132: TEST | AD132: TEST | AE132: 2014-10-28 | AF132: 08:58:00 | AG132: 2014-10-28 | AH132: 11:28:00 | AI132: TEST | AJ132: TEST | AK132: TEST | AL132: TEST | AM132: TEST | AN132: TEST | AO132: TEST | AP132: TEST | AQ132: TEST | AR132: 4 | AS132: 0.25 | AT132: TEST | AU132: TEST
A133: 0 | B133: 35593420 | C133: Ajustage / ébavurage | D133: 2014-10-28 | E133: 0 | F133: 1 | G133: 355934200 | H133: 355934201 | J133: 41940 | O133: 355934 | P133: 999/2 | Q133: 20 | R133: AJUSTAGE | S133: TEST | T133: TEST | U133: AJUS | V133: TEST | W133: TEST | X133: 1.75 | Y133: TEST | Z133: TEST | AA133: TEST | AB133: TEST | AC133: TEST | AD133: TEST | AE133: 2014-10-28 | AF133: 12:14:00 | AG133: 2014-10-28 | AH133: 13:59:00 | AI133: TEST | AJ133: TEST | AK133: TEST | AL133: TEST | AM133: TEST | AN133: TEST | AO133: TEST | AP133: TEST | AQ133: TEST | AR133: 4 | AS133: 0.25 | AT133: TEST | AU133: TEST
A134: 0 | B134: 705858130 | C134: Ajustage / ébavurage | D134: 2014-10-28 | E134: 1 | F134: 1 | G134: 7058581301 | H134: 7058581301 | I134: 41940 | J134: 41940 | O134: 705858 | P134: 1 | Q134: 130 | R134: EBAVURAGE | S134: TEST | T134: TEST | U134: EBAV | V134: TEST | W134: TEST | X134: 1.43 | Y134: TEST | Z134: TEST | AA134: TEST | AB134: TEST | AC134: TEST | AD134: TEST | AE134: 2014-10-28 | AF134: 15:34:00 | AG134: 2014-10-28 | AH134: 17:00:00 | AI134: TEST | AJ134: TEST | AK134: TEST | AL134: TEST | AM134: TEST | AN134: TEST | AO134: TEST | AP134: TEST | AQ134: TEST | AR134: 0.25 | AS134: 0.25 | AT134: TEST | AU134: TEST
A135: 0 | B135: 705860130 | C135: Ajustage / ébavurage | D135: 2014-10-28 | E135: 1 | F135: 1 | G135: 7058601301 | H135: 7058601301 | I135: 41940 | J135: 41940 | O135: 705860 | P135: 1 | Q135: 130 | R135: EBAVURAGE | S135: TEST | T135: TEST | U135: EBAV | V135: TEST | W135: TEST | X135: 3.33 | Y135: TEST | Z135: TEST | AA135: TEST | AB135: TEST | AC135: TEST | AD135: TEST | AE135: 2014-10-28 | AF135: 17:20:00 | AG135: 2014-10-28 | AH135: 20:40:00 | AI135: TEST | AJ135: TEST | AK135: TEST | AL135: TEST | AM135: TEST | AN135: TEST | AO135: TEST | AP135: TEST | AQ135: TEST | AR135: 0.25 | AS135: 0.25 | AT135: TEST | AU135: TEST
A136: 0 | B136: 70657720 | C136: Ajustage / ébavurage | D136: 2014-09-26 | E136: 1 | F136: 1 | G136: 706577201 | H136: 706577201 | I136: 41908 | J136: 41908 | O136: 706577 | P136: 999/1 | Q136: 20 | R136: AJUSTAGE | S136: TEST | T136: TEST | U136: AJUS | V136: TEST | W136: TEST | X136: 1.27 | Y136: TEST | Z136: TEST | AA136: TEST | AB136: TEST | AC136: TEST | AD136: TEST | AE136: 2014-09-26 | AF136: 12:02:00 | AG136: 2014-09-26 | AH136: 13:18:00 | AI136: TEST | AJ136: TEST | AK136: TEST | AL136: TEST | AM136: TEST | AN136: TEST | AO136: TEST | AP136: TEST | AQ136: TEST | AR136: 4.6 | AS136: 0.25 | AT136: TEST | AU136: TEST
A137: 0 | B137: 707159110 | C137: Ajustage / ébavurage | D137: 2014-10-28 | E137: 1 | F137: 1 | G137: 7071591101 | H137: 7071591101 | I137: 41940 | J137: 41940 | K137: 41933 | L137: 7 | O137: 707159 | P137: 1 | Q137: 110 | R137: EBAVURAGE AERONAUTIQUE SVT DAQ | S137: TEST | T137: TEST | U137: EBAVA | V137: TEST | W137: TEST | X137: 0.85 | Y137: TEST | Z137: TEST | AA137: TEST | AB137: TEST | AC137: TEST | AD137: TEST | AE137: 2014-10-28 | AF137: 08:07:00 | AG137: 2014-10-28 | AH137: 08:58:00 | AI137: TEST | AJ137: TEST | AK137: TEST | AL137: TEST | AM137: TEST | AN137: TEST | AO137: TEST | AP137: TEST | AQ137: TEST | AR137: 8.65 | AS137: 0.25 | AT137: TEST | AU137: TEST
A138: 0 | B138: 70719780 | C138: Ajustage / ébavurage | D138: 2014-10-28 | E138: 1 | F138: 1 | G138: 707197801 | H138: 707197801 | I138: 41940 | J138: 41940 | K138: 41939 | L138: 1 | O138: 707197 | P138: 1 | Q138: 80 | R138: EBAVURAGE | S138: TEST | T138: TEST | U138: EBAV | V138: TEST | W138: TEST | X138: 1.62 | Y138: TEST | Z138: TEST | AA138: TEST | AB138: TEST | AC138: TEST | AD138: TEST | AE138: 2014-10-28 | AF138: 11:49:00 | AG138: 2014-10-28 | AH138: 13:26:00 | AI138: TEST | AJ138: TEST | AK138: TEST | AL138: TEST | AM138: TEST | AN138: TEST | AO138: TEST | AP138: TEST | AQ138: TEST | AR138: 12.17 | AS138: 0.17 | AT138: TEST | AU138: TEST
A139: 0 | B139: 70728160 | C139: Ajustage / ébavurage | D139: 2014-10-28 | E139: 1 | F139: 1 | G139: 707281601 | H139: 707281601 | I139: 41940 | J139: 41940 | K139: 41940 | L139: 0 | O139: 707281 | P139: 1 | Q139: 60 | R139: EBAVURAGE | S139: TEST | T139: TEST | U139: EBAV | V139: TEST | W139: TEST | X139: 3.13 | Y139: TEST | Z139: TEST | AA139: TEST | AB139: TEST | AC139: TEST | AD139: TEST | AE139: 2014-10-28 | AF139: 12:26:00 | AG139: 2014-10-28 | AH139: 15:34:00 | AI139: TEST | AJ139: TEST | AK139: TEST | AL139: TEST | AM139: TEST | AN139: TEST | AO139: TEST | AP139: TEST | AQ139: TEST | AR139: 5.88 | AS139: 0.25 | AT139: TEST | AU139: TEST
A140: 0 | B140: 70728720 | C140: Ajustage / ébavurage | D140: 2014-10-28 | E140: 1 | F140: 1 | G140: 707287201 | H140: 707287201 | I140: 41940 | J140: 41940 | O140: 707287 | P140: 999/1 | Q140: 20 | R140: EBAVURAGE | S140: TEST | T140: TEST | U140: EBAV | V140: TEST | W140: TEST | X140: 0.65 | Y140: TEST | Z140: TEST | AA140: TEST | AB140: TEST | AC140: TEST | AD140: TEST | AE140: 2014-10-28 | AF140: 15:20:00 | AG140: 2014-10-28 | AH140: 15:59:00 | AI140: TEST | AJ140: TEST | AK140: TEST | AL140: TEST | AM140: TEST | AN140: TEST | AO140: TEST | AP140: TEST | AQ140: TEST | AR140: 5.25 | AS140: 0.25 | AT140: TEST | AU140: TEST
A141: 0 | B141: 70730550 | C141: Ajustage / ébavurage | D141: 2014-10-28 | E141: 1 | F141: 1 | G141: 707305501 | H141: 707305501 | I141: 41940 | J141: 41940 | K141: 41940 | L141: 0 | O141: 707305 | P141: 1 | Q141: 50 | R141: EBAVURAGE | S141: TEST | T141: TEST | U141: EBAV | V141: TEST | W141: TEST | X141: 1.97 | Y141: TEST | Z141: TEST | AA141: TEST | AB141: TEST | AC141: TEST | AD141: TEST | AE141: 2014-10-28 | AF141: 13:59:00 | AG141: 2014-10-28 | AH141: 15:57:00 | AI141: TEST | AJ141: TEST | AK141: TEST | AL141: TEST | AM141: TEST | AN141: TEST | AO141: TEST | AP141: TEST | AQ141: TEST | AR141: 1.22 | AS141: 0 | AT141: TEST | AU141: TEST
A142: 0 | B142: 70644490 | C142: Ajustage / ébavurage | D142: 2014-10-27 | E142: 1 | F142: 0 | G142: 706444901 | H142: 706444900 | I142: 41939 | K142: 41919 | L142: 20 | O142: 706444 | P142: 1 | Q142: 90 | R142: AJUSTAGE | S142: TEST | T142: TEST | U142: AJUS | V142: TEST | W142: TEST | X142: 4.32 | Y142: TEST | Z142: TEST | AA142: TEST | AB142: TEST | AC142: TEST | AD142: TEST | AE142: 2014-10-27 | AF142: 07:10:00 | AG142: 2014-10-27 | AH142: 11:29:00 | AI142: TEST | AJ142: TEST | AK142: TEST | AL142: TEST | AM142: TEST | AN142: TEST | AO142: TEST | AP142: TEST | AQ142: TEST | AR142: 60 | AS142: 0 | AT142: TEST | AU142: TEST
A143: 0 | B143: 70644490 | C143: Ajustage / ébavurage | D143: 2014-10-27 | E143: 0 | F143: 1 | G143: 706444900 | H143: 706444901 | J143: 41939 | O143: 706444 | P143: 1 | Q143: 90 | R143: AJUSTAGE | S143: TEST | T143: TEST | U143: AJUS | V143: TEST | W143: TEST | X143: 1.43 | Y143: TEST | Z143: TEST | AA143: TEST | AB143: TEST | AC143: TEST | AD143: TEST | AE143: 2014-10-27 | AF143: 14:30:00 | AG143: 2014-10-27 | AH143: 15:56:00 | AI143: TEST | AJ143: TEST | AK143: TEST | AL143: TEST | AM143: TEST | AN143: TEST | AO143: TEST | AP143: TEST | AQ143: TEST | AR143: 60 | AS143: 0 | AT143: TEST | AU143: TEST
A144: 0 | B144: 70708760 | C144: Ajustage / ébavurage | D144: 2014-10-27 | E144: 1 | F144: 1 | G144: 707087601 | H144: 707087601 | I144: 41939 | J144: 41939 | K144: 41928 | L144: 11 | O144: 707087 | P144: 1 | Q144: 60 | R144: EBAVURAGE | S144: TEST | T144: TEST | U144: EBAV | V144: TEST | W144: TEST | X144: 2.55 | Y144: TEST | Z144: TEST | AA144: TEST | AB144: TEST | AC144: TEST | AD144: TEST | AE144: 2014-10-27 | AF144: 09:00:00 | AG144: 2014-10-27 | AH144: 11:33:00 | AI144: TEST | AJ144: TEST | AK144: TEST | AL144: TEST | AM144: TEST | AN144: TEST | AO144: TEST | AP144: TEST | AQ144: TEST | AR144: 0.01 | AS144: 0.01 | AT144: TEST | AU144: TEST
A145: 0 | B145: 70709780 | C145: Ajustage / ébavurage | D145: 2014-10-27 | E145: 1 | F145: 0 | G145: 707097801 | H145: 707097800 | I145: 41939 | K145: 41936 | L145: 3 | O145: 707097 | P145: 1 | Q145: 80 | R145: EBAVURAGE | S145: TEST | T145: TEST | U145: EBAV | V145: TEST | W145: TEST | X145: 1.02 | Y145: TEST | Z145: TEST | AA145: TEST | AB145: TEST | AC145: TEST | AD145: TEST | AE145: 2014-10-27 | AF145: 16:01:00 | AG145: 2014-10-27 | AH145: 17:02:00 | AI145: TEST | AJ145: TEST | AK145: TEST | AL145: TEST | AM145: TEST | AN145: TEST | AO145: TEST | AP145: TEST | AQ145: TEST | AR145: 10.1 | AS145: 0.1 | AT145: TEST | AU145: TEST
A146: 0 | B146: 70709780 | C146: Ajustage / ébavurage | D146: 2014-10-27 | E146: 0 | F146: 1 | G146: 707097800 | H146: 707097801 | J146: 41939 | O146: 707097 | P146: 1 | Q146: 80 | R146: EBAVURAGE | S146: TEST | T146: TEST | U146: EBAV | V146: TEST | W146: TEST | X146: 3.37 | Y146: TEST | Z146: TEST | AA146: TEST | AB146: TEST | AC146: TEST | AD146: TEST | AE146: 2014-10-27 | AF146: 17:22:00 | AG146: 2014-10-27 | AH146: 20:44:00 | AI146: TEST | AJ146: TEST | AK146: TEST | AL146: TEST | AM146: TEST | AN146: TEST | AO146: TEST | AP146: TEST | AQ146: TEST | AR146: 10.1 | AS146: 0.1 | AT146: TEST | AU146: TEST
A147: 0 | B147: 707159110 | C147: Ajustage / ébavurage | D147: 2014-10-27 | E147: 1 | F147: 0 | G147: 7071591101 | H147: 7071591100 | I147: 41939 | K147: 41933 | L147: 6 | O147: 707159 | P147: 1 | Q147: 110 | R147: EBAVURAGE AERONAUTIQUE SVT DAQ | S147: TEST | T147: TEST | U147: EBAVA | V147: TEST | W147: TEST | X147: 1.03 | Y147: TEST | Z147: TEST | AA147: TEST | AB147: TEST | AC147: TEST | AD147: TEST | AE147: 2014-10-27 | AF147: 06:57:00 | AG147: 2014-10-27 | AH147: 07:59:00 | AI147: TEST | AJ147: TEST | AK147: TEST | AL147: TEST | AM147: TEST | AN147: TEST | AO147: TEST | AP147: TEST | AQ147: TEST | AR147: 8.65 | AS147: 0.25 | AT147: TEST | AU147: TEST
A148: 0 | B148: 707159110 | C148: Ajustage / ébavurage | D148: 2014-10-27 | E148: 0 | F148: 0 | G148: 7071591100 | H148: 7071591100 | O148: 707159 | P148: 1 | Q148: 110 | R148: EBAVURAGE AERONAUTIQUE SVT DAQ | S148: TEST | T148: TEST | U148: EBAVA | V148: TEST | W148: TEST | X148: 3.27 | Y148: TEST | Z148: TEST | AA148: TEST | AB148: TEST | AC148: TEST | AD148: TEST | AE148: 2014-10-27 | AF148: 08:17:00 | AG148: 2014-10-27 | AH148: 11:33:00 | AI148: TEST | AJ148: TEST | AK148: TEST | AL148: TEST | AM148: TEST | AN148: TEST | AO148: TEST | AP148: TEST | AQ148: TEST | AR148: 8.65 | AS148: 0.25 | AT148: TEST | AU148: TEST
A149: 0 | B149: 707159110 | C149: Ajustage / ébavurage | D149: 2014-10-27 | E149: 0 | F149: 1 | G149: 7071591100 | H149: 7071591101 | J149: 41939 | O149: 707159 | P149: 1 | Q149: 110 | R149: EBAVURAGE AERONAUTIQUE SVT DAQ | S149: TEST | T149: TEST | U149: EBAVA | V149: TEST | W149: TEST | X149: 3.73 | Y149: TEST | Z149: TEST | AA149: TEST | AB149: TEST | AC149: TEST | AD149: TEST | AE149: 2014-10-27 | AF149: 12:13:00 | AG149: 2014-10-27 | AH149: 15:57:00 | AI149: TEST | AJ149: TEST | AK149: TEST | AL149: TEST | AM149: TEST | AN149: TEST | AO149: TEST | AP149: TEST | AQ149: TEST | AR149: 8.65 | AS149: 0.25 | AT149: TEST | AU149: TEST
A150: 0 | B150: 70720960 | C150: Ajustage / ébavurage | D150: 2014-10-27 | E150: 1 | F150: 1 | G150: 707209601 | H150: 707209601 | I150: 41939 | J150: 41939 | K150: 41927 | L150: 12 | O150: 707209 | P150: 1 | Q150: 60 | R150: EBAVURAGE | S150: TEST | T150: TEST | U150: EBAVA | V150: TEST | W150: TEST | X150: 0.85 | Y150: TEST | Z150: TEST | AA150: TEST | AB150: TEST | AC150: TEST | AD150: TEST | AE150: 2014-10-27 | AF150: 07:08:00 | AG150: 2014-10-27 | AH150: 07:59:00 | AI150: TEST | AJ150: TEST | AK150: TEST | AL150: TEST | AM150: TEST | AN150: TEST | AO150: TEST | AP150: TEST | AQ150: TEST | AR150: 9.5 | AS150: 0.5 | AT150: TEST | AU150: TEST
A151: 0 | B151: 70723920 | C151: Ajustage / ébavurage | D151: 2014-10-27 | E151: 1 | F151: 1 | G151: 707239201 | H151: 707239201 | I151: 41939 | J151: 41939 | O151: 707239 | P151: 999/1 | Q151: 20 | R151: EBAVURAGE | S151: TEST | T151: TEST | U151: EBAV | V151: TEST | W151: TEST | X151: 0.97 | Y151: TEST | Z151: TEST | AA151: TEST | AB151: TEST | AC151: TEST | AD151: TEST | AE151: 2014-10-27 | AF151: 13:17:00 | AG151: 2014-10-27 | AH151: 14:15:00 | AI151: TEST | AJ151: TEST | AK151: TEST | AL151: TEST | AM151: TEST | AN151: TEST | AO151: TEST | AP151: TEST | AQ151: TEST | AR151: 4 | AS151: 0.25 | AT151: TEST | AU151: TEST
A152: 0 | B152: 706580320 | C152: Ajustage / ébavurage | D152: 2014-11-05 | E152: 1 | F152: 0 | G152: 7065803201 | H152: 7065803200 | I152: 41948 | K152: 41942 | L152: 6 | O152: 706580 | P152: 1 | Q152: 320 | R152: EBAVURAGE | S152: TEST | T152: TEST | U152: EBAV | V152: TEST | W152: TEST | X152: 1.13 | Y152: TEST | Z152: TEST | AA152: TEST | AB152: TEST | AC152: TEST | AD152: TEST | AE152: 2014-11-05 | AF152: 10:19:00 | AG152: 2014-11-05 | AH152: 11:27:00 | AI152: TEST | AJ152: TEST | AK152: TEST | AL152: TEST | AM152: TEST | AN152: TEST | AO152: TEST | AP152: TEST | AQ152: TEST | AR152: 9.85 | AS152: 0.25 | AT152: TEST | AU152: TEST
A153: 0 | B153: 706580320 | C153: Ajustage / ébavurage | D153: 2014-11-05 | E153: 0 | F153: 1 | G153: 7065803200 | H153: 7065803201 | J153: 41948 | O153: 706580 | P153: 1 | Q153: 320 | R153: EBAVURAGE | S153: TEST | T153: TEST | U153: EBAV | V153: TEST | W153: TEST | X153: 3.78 | Y153: TEST | Z153: TEST | AA153: TEST | AB153: TEST | AC153: TEST | AD153: TEST | AE153: 2014-11-05 | AF153: 12:09:00 | AG153: 2014-11-05 | AH153: 15:56:00 | AI153: TEST | AJ153: TEST | AK153: TEST | AL153: TEST | AM153: TEST | AN153: TEST | AO153: TEST | AP153: TEST | AQ153: TEST | AR153: 9.85 | AS153: 0.25 | AT153: TEST | AU153: TEST
A154: 0 | B154: 706581320 | C154: Ajustage / ébavurage | D154: 2014-11-05 | E154: 1 | F154: 0 | G154: 7065813201 | H154: 7065813200 | I154: 41948 | K154: 41941 | L154: 7 | O154: 706581 | P154: 1 | Q154: 320 | R154: EBAVURAGE | S154: TEST | T154: TEST | U154: EBAV | V154: TEST | W154: TEST | X154: 3.3 | Y154: TEST | Z154: TEST | AA154: TEST | AB154: TEST | AC154: TEST | AD154: TEST | AE154: 2014-11-05 | AF154: 07:01:00 | AG154: 2014-11-05 | AH154: 10:19:00 | AI154: TEST | AJ154: TEST | AK154: TEST | AL154: TEST | AM154: TEST | AN154: TEST | AO154: TEST | AP154: TEST | AQ154: TEST | AR154: 9.85 | AS154: 0.25 | AT154: TEST | AU154: TEST
A155: 0 | B155: 706581320 | C155: Ajustage / ébavurage | D155: 2014-11-04 | E155: 0 | F155: 0 | G155: 7065813200 | H155: 7065813200 | O155: 706581 | P155: 1 | Q155: 320 | R155: EBAVURAGE | S155: TEST | T155: TEST | U155: EBAV | V155: TEST | W155: TEST | X155: 0.88 | Y155: TEST | Z155: TEST | AA155: TEST | AB155: TEST | AC155: TEST | AD155: TEST | AE155: 2014-11-04 | AF155: 10:37:00 | AG155: 2014-11-04 | AH155: 11:30:00 | AI155: TEST | AJ155: TEST | AK155: TEST | AL155: TEST | AM155: TEST | AN155: TEST | AO155: TEST | AP155: TEST | AQ155: TEST | AR155: 9.85 | AS155: 0.25 | AT155: TEST | AU155: TEST
A156: 0 | B156: 706581320 | C156: Ajustage / ébavurage | D156: 2014-11-04 | E156: 0 | F156: 1 | G156: 7065813200 | H156: 7065813201 | J156: 41947 | O156: 706581 | P156: 1 | Q156: 320 | R156: EBAVURAGE | S156: TEST | T156: TEST | U156: EBAV | V156: TEST | W156: TEST | X156: 3.78 | Y156: TEST | Z156: TEST | AA156: TEST | AB156: TEST | AC156: TEST | AD156: TEST | AE156: 2014-11-04 | AF156: 12:10:00 | AG156: 2014-11-04 | AH156: 15:57:00 | AI156: TEST | AJ156: TEST | AK156: TEST | AL156: TEST | AM156: TEST | AN156: TEST | AO156: TEST | AP156: TEST | AQ156: TEST | AR156: 9.85 | AS156: 0.25 | AT156: TEST | AU156: TEST
A157: 0 | B157: 706582120 | C157: Ajustage / ébavurage | D157: 2014-09-16 | E157: 1 | F157: 0 | G157: 7065821201 | H157: 7065821200 | I157: 41898 | O157: 706582 | P157: 1 | Q157: 120 | R157: EBAVURAGE | S157: TEST | T157: TEST | U157: EBAV | V157: TEST | W157: TEST | X157: 3.1 | Y157: TEST | Z157: TEST | AA157: TEST | AB157: TEST | AC157: TEST | AD157: TEST | AE157: 2014-09-16 | AF157: 08:22:00 | AG157: 2014-09-16 | AH157: 11:28:00 | AI157: TEST | AJ157: TEST | AK157: TEST | AL157: TEST | AM157: TEST | AN157: TEST | AO157: TEST | AP157: TEST | AQ157: TEST | AR157: 7.75 | AS157: 0.25 | AT157: TEST | AU157: TEST
A158: 0 | B158: 706582120 | C158: Ajustage / ébavurage | D158: 2014-09-16 | E158: 0 | F158: 1 | G158: 7065821200 | H158: 7065821201 | J158: 41898 | O158: 706582 | P158: 1 | Q158: 120 | R158: EBAVURAGE | S158: TEST | T158: TEST | U158: EBAV | V158: TEST | W158: TEST | X158: 2.32 | Y158: TEST | Z158: TEST | AA158: TEST | AB158: TEST | AC158: TEST | AD158: TEST | AE158: 2014-09-16 | AF158: 12:08:00 | AG158: 2014-09-16 | AH158: 14:27:00 | AI158: TEST | AJ158: TEST | AK158: TEST | AL158: TEST | AM158: TEST | AN158: TEST | AO158: TEST | AP158: TEST | AQ158: TEST | AR158: 7.75 | AS158: 0.25 | AT158: TEST | AU158: TEST
A159: 0 | B159: 70697190 | C159: Ajustage / ébavurage | D159: 2014-10-24 | E159: 1 | F159: 0 | G159: 706971901 | H159: 706971900 | I159: 41936 | K159: 41934 | L159: 2 | O159: 706971 | P159: 1 | Q159: 90 | R159: EBAVURAGE | S159: TEST | T159: TEST | U159: EBAV | V159: TEST | W159: TEST | X159: 1.92 | Y159: TEST | Z159: TEST | AA159: TEST | AB159: TEST | AC159: TEST | AD159: TEST | AE159: 2014-10-24 | AF159: 06:00:00 | AG159: 2014-10-24 | AH159: 07:55:00 | AI159: TEST | AJ159: TEST | AK159: TEST | AL159: TEST | AM159: TEST | AN159: TEST | AO159: TEST | AP159: TEST | AQ159: TEST | AR159: 45.1 | AS159: 0.1 | AT159: TEST | AU159: TEST
A160: 0 | B160: 70697190 | C160: Ajustage / ébavurage | D160: 2014-10-24 | E160: 0 | F160: 0 | G160: 706971900 | H160: 706971900 | O160: 706971 | P160: 1 | Q160: 90 | R160: EBAVURAGE | S160: TEST | T160: TEST | U160: EBAV | V160: TEST | W160: TEST | X160: 0.48 | Y160: TEST | Z160: TEST | AA160: TEST | AB160: TEST | AC160: TEST | AD160: TEST | AE160: 2014-10-24 | AF160: 07:29:00 | AG160: 2014-10-24 | AH160: 07:58:00 | AI160: TEST | AJ160: TEST | AK160: TEST | AL160: TEST | AM160: TEST | AN160: TEST | AO160: TEST | AP160: TEST | AQ160: TEST | AR160: 45.1 | AS160: 0.1 | AT160: TEST | AU160: TEST
A161: 0 | B161: 70697190 | C161: Ajustage / ébavurage | D161: 2014-10-24 | E161: 0 | F161: 0 | G161: 706971900 | H161: 706971900 | O161: 706971 | P161: 1 | Q161: 90 | R161: EBAVURAGE | S161: TEST | T161: TEST | U161: EBAV | V161: TEST | W161: TEST | X161: 0.08 | Y161: TEST | Z161: TEST | AA161: TEST | AB161: TEST | AC161: TEST | AD161: TEST | AE161: 2014-10-24 | AF161: 07:55:00 | AG161: 2014-10-24 | AH161: 08:00:00 | AI161: TEST | AJ161: TEST | AK161: TEST | AL161: TEST | AM161: TEST | AN161: TEST | AO161: TEST | AP161: TEST | AQ161: TEST | AR161: 45.1 | AS161: 0.1 | AT161: TEST | AU161: TEST
A162: 0 | B162: 70697190 | C162: Ajustage / ébavurage | D162: 2014-10-24 | E162: 0 | F162: 0 | G162: 706971900 | H162: 706971900 | O162: 706971 | P162: 1 | Q162: 90 | R162: EBAVURAGE | S162: TEST | T162: TEST | U162: EBAV | V162: TEST | W162: TEST | X162: 2.3 | Y162: TEST | Z162: TEST | AA162: TEST | AB162: TEST | AC162: TEST | AD162: TEST | AE162: 2014-10-24 | AF162: 08:15:00 | AG162: 2014-10-24 | AH162: 10:33:00 | AI162: TEST | AJ162: TEST | AK162: TEST | AL162: TEST | AM162: TEST | AN162: TEST | AO162: TEST | AP162: TEST | AQ162: TEST | AR162: 45.1 | AS162: 0.1 | AT162: TEST | AU162: TEST
A163: 0 | B163: 70697190 | C163: Ajustage / ébavurage | D163: 2014-10-24 | E163: 0 | F163: 0 | G163: 706971900 | H163: 706971900 | O163: 706971 | P163: 1 | Q163: 90 | R163: EBAVURAGE | S163: TEST | T163: TEST | U163: EBAV | V163: TEST | W163: TEST | X163: 2.47 | Y163: TEST | Z163: TEST | AA163: TEST | AB163: TEST | AC163: TEST | AD163: TEST | AE163: 2014-10-24 | AF163: 10:51:00 | AG163: 2014-10-24 | AH163: 13:19:00 | AI163: TEST | AJ163: TEST | AK163: TEST | AL163: TEST | AM163: TEST | AN163: TEST | AO163: TEST | AP163: TEST | AQ163: TEST | AR163: 45.1 | AS163: 0.1 | AT163: TEST | AU163: TEST
A164: 0 | B164: 70697190 | C164: Ajustage / ébavurage | D164: 2014-10-24 | E164: 0 | F164: 0 | G164: 706971900 | H164: 706971900 | O164: 706971 | P164: 1 | Q164: 90 | R164: EBAVURAGE | S164: TEST | T164: TEST | U164: EBAV | V164: TEST | W164: TEST | X164: 3.7 | Y164: TEST | Z164: TEST | AA164: TEST | AB164: TEST | AC164: TEST | AD164: TEST | AE164: 2014-10-24 | AF164: 13:20:00 | AG164: 2014-10-24 | AH164: 17:02:00 | AI164: TEST | AJ164: TEST | AK164: TEST | AL164: TEST | AM164: TEST | AN164: TEST | AO164: TEST | AP164: TEST | AQ164: TEST | AR164: 45.1 | AS164: 0.1 | AT164: TEST | AU164: TEST
A165: 0 | B165: 70697190 | C165: Ajustage / ébavurage | D165: 2014-10-24 | E165: 0 | F165: 1 | G165: 706971900 | H165: 706971901 | J165: 41936 | O165: 706971 | P165: 1 | Q165: 90 | R165: EBAVURAGE | S165: TEST | T165: TEST | U165: EBAV | V165: TEST | W165: TEST | X165: 3.23 | Y165: TEST | Z165: TEST | AA165: TEST | AB165: TEST | AC165: TEST | AD165: TEST | AE165: 2014-10-24 | AF165: 17:22:00 | AG165: 2014-10-24 | AH165: 20:36:00 | AI165: TEST | AJ165: TEST | AK165: TEST | AL165: TEST | AM165: TEST | AN165: TEST | AO165: TEST | AP165: TEST | AQ165: TEST | AR165: 45.1 | AS165: 0.1 | AT165: TEST | AU165: TEST
A166: 0 | B166: 70723920 | C166: Ajustage / ébavurage | D166: 2014-10-24 | E166: 1 | F166: 1 | G166: 707239201 | H166: 707239201 | I166: 41936 | J166: 41936 | O166: 707239 | P166: 999/1 | Q166: 20 | R166: EBAVURAGE | S166: TEST | T166: TEST | U166: EBAV | V166: TEST | W166: TEST | X166: 0.5 | Y166: TEST | Z166: TEST | AA166: TEST | AB166: TEST | AC166: TEST | AD166: TEST | AE166: 2014-10-24 | AF166: 06:00:00 | AG166: 2014-10-24 | AH166: 06:30:00 | AI166: TEST | AJ166: TEST | AK166: TEST | AL166: TEST | AM166: TEST | AN166: TEST | AO166: TEST | AP166: TEST | AQ166: TEST | AR166: 4 | AS166: 0.25 | AT166: TEST | AU166: TEST
A167: 0 | B167: 706697300 | C167: Ajustage / ébavurage | D167: 2014-09-30 | E167: 1 | F167: 0 | G167: 7066973001 | H167: 7066973000 | I167: 41912 | K167: 41904 | L167: 8 | O167: 706697 | P167: 1 | Q167: 300 | R167: EBAVURAGE | S167: TEST | T167: TEST | U167: EBAV | V167: TEST | W167: TEST | X167: 2.52 | Y167: TEST | Z167: TEST | AA167: TEST | AB167: TEST | AC167: TEST | AD167: TEST | AE167: 2014-09-30 | AF167: 08:56:00 | AG167: 2014-09-30 | AH167: 11:27:00 | AI167: TEST | AJ167: TEST | AK167: TEST | AL167: TEST | AM167: TEST | AN167: TEST | AO167: TEST | AP167: TEST | AQ167: TEST | AR167: 4.67 | AS167: 0.17 | AT167: TEST | AU167: TEST
A168: 0 | B168: 706697300 | C168: Ajustage / ébavurage | D168: 2014-09-30 | E168: 0 | F168: 1 | G168: 7066973000 | H168: 7066973001 | J168: 41912 | O168: 706697 | P168: 1 | Q168: 300 | R168: EBAVURAGE | S168: TEST | T168: TEST | U168: EBAV | V168: TEST | W168: TEST | X168: 1.72 | Y168: TEST | Z168: TEST | AA168: TEST | AB168: TEST | AC168: TEST | AD168: TEST | AE168: 2014-09-30 | AF168: 12:12:00 | AG168: 2014-09-30 | AH168: 13:55:00 | AI168: TEST | AJ168: TEST | AK168: TEST | AL168: TEST | AM168: TEST | AN168: TEST | AO168: TEST | AP168: TEST | AQ168: TEST | AR168: 4.67 | AS168: 0.17 | AT168: TEST | AU168: TEST
A169: 0 | B169: 706710120 | C169: Ajustage / ébavurage | D169: 2014-09-29 | E169: 1 | F169: 0 | G169: 7067101201 | H169: 7067101200 | I169: 41911 | K169: 41904 | L169: 7 | O169: 706710 | P169: 1 | Q169: 120 | R169: AJUSTAGE | S169: TEST | T169: TEST | U169: AJUS | V169: TEST | W169: TEST | X169: 4.52 | Y169: TEST | Z169: TEST | AA169: TEST | AB169: TEST | AC169: TEST | AD169: TEST | AE169: 2014-09-29 | AF169: 06:56:00 | AG169: 2014-09-29 | AH169: 11:27:00 | AI169: TEST | AJ169: TEST | AK169: TEST | AL169: TEST | AM169: TEST | AN169: TEST | AO169: TEST | AP169: TEST | AQ169: TEST | AR169: 30.85 | AS169: 0.25 | AT169: TEST | AU169: TEST
A170: 0 | B170: 706710120 | C170: Ajustage / ébavurage | D170: 2014-09-29 | E170: 0 | F170: 0 | G170: 7067101200 | H170: 7067101200 | O170: 706710 | P170: 1 | Q170: 120 | R170: AJUSTAGE | S170: TEST | T170: TEST | U170: AJUS | V170: TEST | W170: TEST | X170: 1.25 | Y170: TEST | Z170: TEST | AA170: TEST | AB170: TEST | AC170: TEST | AD170: TEST | AE170: 2014-09-29 | AF170: 12:13:00 | AG170: 2014-09-29 | AH170: 13:28:00 | AI170: TEST | AJ170: TEST | AK170: TEST | AL170: TEST | AM170: TEST | AN170: TEST | AO170: TEST | AP170: TEST | AQ170: TEST | AR170: 30.85 | AS170: 0.25 | AT170: TEST | AU170: TEST
A171: 0 | B171: 706710120 | C171: Ajustage / ébavurage | D171: 2014-09-26 | E171: 0 | F171: 0 | G171: 7067101200 | H171: 7067101200 | O171: 706710 | P171: 1 | Q171: 120 | R171: AJUSTAGE | S171: TEST | T171: TEST | U171: AJUS | V171: TEST | W171: TEST | X171: 2.12 | Y171: TEST | Z171: TEST | AA171: TEST | AB171: TEST | AC171: TEST | AD171: TEST | AE171: 2014-09-26 | AF171: 05:58:00 | AG171: 2014-09-26 | AH171: 08:05:00 | AI171: TEST | AJ171: TEST | AK171: TEST | AL171: TEST | AM171: TEST | AN171: TEST | AO171: TEST | AP171: TEST | AQ171: TEST | AR171: 30.85 | AS171: 0.25 | AT171: TEST | AU171: TEST
A172: 0 | B172: 706710120 | C172: Ajustage / ébavurage | D172: 2014-09-26 | E172: 0 | F172: 0 | G172: 7067101200 | H172: 7067101200 | O172: 706710 | P172: 1 | Q172: 120 | R172: AJUSTAGE | S172: TEST | T172: TEST | U172: AJUS | V172: TEST | W172: TEST | X172: 4.8 | Y172: TEST | Z172: TEST | AA172: TEST | AB172: TEST | AC172: TEST | AD172: TEST | AE172: 2014-09-26 | AF172: 08:08:00 | AG172: 2014-09-26 | AH172: 12:56:00 | AI172: TEST | AJ172: TEST | AK172: TEST | AL172: TEST | AM172: TEST | AN172: TEST | AO172: TEST | AP172: TEST | AQ172: TEST | AR172: 30.85 | AS172: 0.25 | AT172: TEST | AU172: TEST
A173: 0 | B173: 706710120 | C173: Ajustage / ébavurage | D173: 2014-09-26 | E173: 0 | F173: 0 | G173: 7067101200 | H173: 7067101200 | O173: 706710 | P173: 1 | Q173: 120 | R173: AJUSTAGE | S173: TEST | T173: TEST | U173: AJUS | V173: TEST | W173: TEST | X173: 2.92 | Y173: TEST | Z173: TEST | AA173: TEST | AB173: TEST | AC173: TEST | AD173: TEST | AE173: 2014-09-26 | AF173: 08:16:00 | AG173: 2014-09-26 | AH173: 11:11:00 | AI173: TEST | AJ173: TEST | AK173: TEST | AL173: TEST | AM173: TEST | AN173: TEST | AO173: TEST | AP173: TEST | AQ173: TEST | AR173: 30.85 | AS173: 0.25 | AT173: TEST | AU173: TEST
A174: 0 | B174: 706710120 | C174: Ajustage / ébavurage | D174: 2014-09-26 | E174: 0 | F174: 0 | G174: 7067101200 | H174: 7067101200 | O174: 706710 | P174: 1 | Q174: 120 | R174: AJUSTAGE | S174: TEST | T174: TEST | U174: AJUS | V174: TEST | W174: TEST | X174: 0.52 | Y174: TEST | Z174: TEST | AA174: TEST | AB174: TEST | AC174: TEST | AD174: TEST | AE174: 2014-09-26 | AF174: 11:31:00 | AG174: 2014-09-26 | AH174: 12:02:00 | AI174: TEST | AJ174: TEST | AK174: TEST | AL174: TEST | AM174: TEST | AN174: TEST | AO174: TEST | AP174: TEST | AQ174: TEST | AR174: 30.85 | AS174: 0.25 | AT174: TEST | AU174: TEST
A175: 0 | B175: 706710120 | C175: Ajustage / ébavurage | D175: 2014-09-25 | E175: 0 | F175: 0 | G175: 7067101200 | H175: 7067101200 | O175: 706710 | P175: 1 | Q175: 120 | R175: AJUSTAGE | S175: TEST | T175: TEST | U175: AJUS | V175: TEST | W175: TEST | X175: 5.18 | Y175: TEST | Z175: TEST | AA175: TEST | AB175: TEST | AC175: TEST | AD175: TEST | AE175: 2014-09-25 | AF175: 05:58:00 | AG175: 2014-09-25 | AH175: 11:09:00 | AI175: TEST | AJ175: TEST | AK175: TEST | AL175: TEST | AM175: TEST | AN175: TEST | AO175: TEST | AP175: TEST | AQ175: TEST | AR175: 30.85 | AS175: 0.25 | AT175: TEST | AU175: TEST
A176: 0 | B176: 706710120 | C176: Ajustage / ébavurage | D176: 2014-09-25 | E176: 0 | F176: 0 | G176: 7067101200 | H176: 7067101200 | O176: 706710 | P176: 1 | Q176: 120 | R176: AJUSTAGE | S176: TEST | T176: TEST | U176: AJUS | V176: TEST | W176: TEST | X176: 3.43 | Y176: TEST | Z176: TEST | AA176: TEST | AB176: TEST | AC176: TEST | AD176: TEST | AE176: 2014-09-25 | AF176: 08:06:00 | AG176: 2014-09-25 | AH176: 11:32:00 | AI176: TEST | AJ176: TEST | AK176: TEST | AL176: TEST | AM176: TEST | AN176: TEST | AO176: TEST | AP176: TEST | AQ176: TEST | AR176: 30.85 | AS176: 0.25 | AT176: TEST | AU176: TEST
A177: 0 | B177: 706710120 | C177: Ajustage / ébavurage | D177: 2014-09-25 | E177: 0 | F177: 0 | G177: 7067101200 | H177: 7067101200 | O177: 706710 | P177: 1 | Q177: 120 | R177: AJUSTAGE | S177: TEST | T177: TEST | U177: AJUS | V177: TEST | W177: TEST | X177: 2.78 | Y177: TEST | Z177: TEST | AA177: TEST | AB177: TEST | AC177: TEST | AD177: TEST | AE177: 2014-09-25 | AF177: 11:32:00 | AG177: 2014-09-25 | AH177: 14:19:00 | AI177: TEST | AJ177: TEST | AK177: TEST | AL177: TEST | AM177: TEST | AN177: TEST | AO177: TEST | AP177: TEST | AQ177: TEST | AR177: 30.85 | AS177: 0.25 | AT177: TEST | AU177: TEST
A178: 0 | B178: 706710120 | C178: Ajustage / ébavurage | D178: 2014-09-25 | E178: 0 | F178: 0 | G178: 7067101200 | H178: 7067101200 | O178: 706710 | P178: 1 | Q178: 120 | R178: AJUSTAGE | S178: TEST | T178: TEST | U178: AJUS | V178: TEST | W178: TEST | X178: 3.73 | Y178: TEST | Z178: TEST | AA178: TEST | AB178: TEST | AC178: TEST | AD178: TEST | AE178: 2014-09-25 | AF178: 12:13:00 | AG178: 2014-09-25 | AH178: 15:57:00 | AI178: TEST | AJ178: TEST | AK178: TEST | AL178: TEST | AM178: TEST | AN178: TEST | AO178: TEST | AP178: TEST | AQ178: TEST | AR178: 30.85 | AS178: 0.25 | AT178: TEST | AU178: TEST
A179: 0 | B179: 706710120 | C179: Ajustage / ébavurage | D179: 2014-09-24 | E179: 0 | F179: 0 | G179: 7067101200 | H179: 7067101200 | O179: 706710 | P179: 1 | Q179: 120 | R179: AJUSTAGE | S179: TEST | T179: TEST | U179: AJUS | V179: TEST | W179: TEST | X179: 0.25 | Y179: TEST | Z179: TEST | AA179: TEST | AB179: TEST | AC179: TEST | AD179: TEST | AE179: 2014-09-24 | AF179: 11:00:00 | AG179: 2014-09-24 | AH179: 11:15:00 | AI179: TEST | AJ179: TEST | AK179: TEST | AL179: TEST | AM179: TEST | AN179: TEST | AO179: TEST | AP179: TEST | AQ179: TEST | AR179: 30.85 | AS179: 0.25 | AT179: TEST | AU179: TEST
A180: 0 | B180: 706710120 | C180: Ajustage / ébavurage | D180: 2014-09-24 | E180: 0 | F180: 1 | G180: 7067101200 | H180: 7067101201 | J180: 41906 | O180: 706710 | P180: 1 | Q180: 120 | R180: AJUSTAGE | S180: TEST | T180: TEST | U180: AJUS | V180: TEST | W180: TEST | X180: 2.83 | Y180: TEST | Z180: TEST | AA180: TEST | AB180: TEST | AC180: TEST | AD180: TEST | AE180: 2014-09-24 | AF180: 11:34:00 | AG180: 2014-09-24 | AH180: 14:24:00 | AI180: TEST | AJ180: TEST | AK180: TEST | AL180: TEST | AM180: TEST | AN180: TEST | AO180: TEST | AP180: TEST | AQ180: TEST | AR180: 30.85 | AS180: 0.25 | AT180: TEST | AU180: TEST
A181: 0 | B181: 706711100 | C181: Ajustage / ébavurage | D181: 2014-10-08 | E181: 1 | F181: 0 | G181: 7067111001 | H181: 7067111000 | I181: 41920 | O181: 706711 | P181: 1 | Q181: 100 | R181: AJUSTAGE | S181: TEST | T181: TEST | U181: AJUS | V181: TEST | W181: TEST | X181: 1.52 | Y181: TEST | Z181: TEST | AA181: TEST | AB181: TEST | AC181: TEST | AD181: TEST | AE181: 2014-10-08 | AF181: 09:56:00 | AG181: 2014-10-08 | AH181: 11:27:00 | AI181: TEST | AJ181: TEST | AK181: TEST | AL181: TEST | AM181: TEST | AN181: TEST | AO181: TEST | AP181: TEST | AQ181: TEST | AR181: 13.64 | AS181: 0 | AT181: TEST | AU181: TEST
A182: 0 | B182: 706711100 | C182: Ajustage / ébavurage | D182: 2014-10-08 | E182: 0 | F182: 1 | G182: 7067111000 | H182: 7067111001 | J182: 41920 | O182: 706711 | P182: 1 | Q182: 100 | R182: AJUSTAGE | S182: TEST | T182: TEST | U182: AJUS | V182: TEST | W182: TEST | X182: 3.7 | Y182: TEST | Z182: TEST | AA182: TEST | AB182: TEST | AC182: TEST | AD182: TEST | AE182: 2014-10-08 | AF182: 12:17:00 | AG182: 2014-10-08 | AH182: 15:59:00 | AI182: TEST | AJ182: TEST | AK182: TEST | AL182: TEST | AM182: TEST | AN182: TEST | AO182: TEST | AP182: TEST | AQ182: TEST | AR182: 13.64 | AS182: 0 | AT182: TEST | AU182: TEST
A183: 0 | B183: 706711140 | C183: Ajustage / ébavurage | D183: 2014-11-06 | E183: 1 | F183: 0 | G183: 7067111401 | H183: 7067111400 | I183: 41949 | O183: 706711 | P183: 1 | Q183: 140 | R183: AJUSTAGE | S183: TEST | T183: TEST | U183: AJUS | V183: TEST | W183: TEST | X183: 1.05 | Y183: TEST | Z183: TEST | AA183: TEST | AB183: TEST | AC183: TEST | AD183: TEST | AE183: 2014-11-06 | AF183: 06:56:00 | AG183: 2014-11-06 | AH183: 07:59:00 | AI183: TEST | AJ183: TEST | AK183: TEST | AL183: TEST | AM183: TEST | AN183: TEST | AO183: TEST | AP183: TEST | AQ183: TEST | AR183: 32.99 | AS183: 0.75 | AT183: TEST | AU183: TEST
A184: 0 | B184: 706711140 | C184: Ajustage / ébavurage | D184: 2014-11-06 | E184: 0 | F184: 1 | G184: 7067111400 | H184: 7067111401 | J184: 41949 | O184: 706711 | P184: 1 | Q184: 140 | R184: AJUSTAGE | S184: TEST | T184: TEST | U184: AJUS | V184: TEST | W184: TEST | X184: 2.77 | Y184: TEST | Z184: TEST | AA184: TEST | AB184: TEST | AC184: TEST | AD184: TEST | AE184: 2014-11-06 | AF184: 08:10:00 | AG184: 2014-11-06 | AH184: 10:56:00 | AI184: TEST | AJ184: TEST | AK184: TEST | AL184: TEST | AM184: TEST | AN184: TEST | AO184: TEST | AP184: TEST | AQ184: TEST | AR184: 32.99 | AS184: 0.75 | AT184: TEST | AU184: TEST
A185: 0 | B185: 70709980 | C185: Ajustage / ébavurage | D185: 2014-10-23 | E185: 1 | F185: 1 | G185: 707099801 | H185: 707099801 | I185: 41935 | J185: 41935 | K185: 41928 | L185: 7 | O185: 707099 | P185: 1 | Q185: 80 | R185: EBAVURAGE AERONAUTIQUE | S185: TEST | T185: TEST | U185: EBAVA | V185: TEST | W185: TEST | X185: 1.45 | Y185: TEST | Z185: TEST | AA185: TEST | AB185: TEST | AC185: TEST | AD185: TEST | AE185: 2014-10-23 | AF185: 06:06:00 | AG185: 2014-10-23 | AH185: 07:33:00 | AI185: TEST | AJ185: TEST | AK185: TEST | AL185: TEST | AM185: TEST | AN185: TEST | AO185: TEST | AP185: TEST | AQ185: TEST | AR185: 28.75 | AS185: 0.25 | AT185: TEST | AU185: TEST
A186: 0 | B186: 707194110 | C186: Ajustage / ébavurage | D186: 2014-10-23 | E186: 1 | F186: 0 | G186: 7071941101 | H186: 7071941100 | I186: 41935 | K186: 41932 | L186: 3 | O186: 707194 | P186: 1 | Q186: 110 | R186: EBAVURAGE | S186: TEST | T186: TEST | U186: EBAV | V186: TEST | W186: TEST | X186: 1.95 | Y186: TEST | Z186: TEST | AA186: TEST | AB186: TEST | AC186: TEST | AD186: TEST | AE186: 2014-10-23 | AF186: 06:04:00 | AG186: 2014-10-23 | AH186: 08:01:00 | AI186: TEST | AJ186: TEST | AK186: TEST | AL186: TEST | AM186: TEST | AN186: TEST | AO186: TEST | AP186: TEST | AQ186: TEST | AR186: 3.85 | AS186: 0.25 | AT186: TEST | AU186: TEST
A187: 0 | B187: 707194110 | C187: Ajustage / ébavurage | D187: 2014-10-23 | E187: 0 | F187: 1 | G187: 7071941100 | H187: 7071941101 | J187: 41935 | O187: 707194 | P187: 1 | Q187: 110 | R187: EBAVURAGE | S187: TEST | T187: TEST | U187: EBAV | V187: TEST | W187: TEST | X187: 2.33 | Y187: TEST | Z187: TEST | AA187: TEST | AB187: TEST | AC187: TEST | AD187: TEST | AE187: 2014-10-23 | AF187: 08:10:00 | AG187: 2014-10-23 | AH187: 10:30:00 | AI187: TEST | AJ187: TEST | AK187: TEST | AL187: TEST | AM187: TEST | AN187: TEST | AO187: TEST | AP187: TEST | AQ187: TEST | AR187: 3.85 | AS187: 0.25 | AT187: TEST | AU187: TEST
A188: 0 | B188: 70723920 | C188: Ajustage / ébavurage | D188: 2014-10-23 | E188: 1 | F188: 0 | G188: 707239201 | H188: 707239200 | I188: 41935 | O188: 707239 | P188: 999/1 | Q188: 20 | R188: EBAVURAGE | S188: TEST | T188: TEST | U188: EBAV | V188: TEST | W188: TEST | X188: 2.98 | Y188: TEST | Z188: TEST | AA188: TEST | AB188: TEST | AC188: TEST | AD188: TEST | AE188: 2014-10-23 | AF188: 07:34:00 | AG188: 2014-10-23 | AH188: 10:33:00 | AI188: TEST | AJ188: TEST | AK188: TEST | AL188: TEST | AM188: TEST | AN188: TEST | AO188: TEST | AP188: TEST | AQ188: TEST | AR188: 4 | AS188: 0.25 | AT188: TEST | AU188: TEST
A189: 0 | B189: 70723920 | C189: Ajustage / ébavurage | D189: 2014-10-23 | E189: 0 | F189: 1 | G189: 707239200 | H189: 707239201 | J189: 41935 | O189: 707239 | P189: 999/1 | Q189: 20 | R189: EBAVURAGE | S189: TEST | T189: TEST | U189: EBAV | V189: TEST | W189: TEST | X189: 2.45 | Y189: TEST | Z189: TEST | AA189: TEST | AB189: TEST | AC189: TEST | AD189: TEST | AE189: 2014-10-23 | AF189: 10:51:00 | AG189: 2014-10-23 | AH189: 13:18:00 | AI189: TEST | AJ189: TEST | AK189: TEST | AL189: TEST | AM189: TEST | AN189: TEST | AO189: TEST | AP189: TEST | AQ189: TEST | AR189: 4 | AS189: 0.25 | AT189: TEST | AU189: TEST
A190: 0 | B190: 706824150 | C190: Ajustage / ébavurage | D190: 2014-10-22 | E190: 1 | F190: 0 | G190: 7068241501 | H190: 7068241500 | I190: 41934 | K190: 41904 | L190: 30 | O190: 706824 | P190: 1 | Q190: 150 | R190: AJUSTAGE | S190: TEST | T190: TEST | U190: AJUS | V190: TEST | W190: TEST | X190: 1.03 | Y190: TEST | Z190: TEST | AA190: TEST | AB190: TEST | AC190: TEST | AD190: TEST | AE190: 2014-10-22 | AF190: 06:57:00 | AG190: 2014-10-22 | AH190: 07:59:00 | AI190: TEST | AJ190: TEST | AK190: TEST | AL190: TEST | AM190: TEST | AN190: TEST | AO190: TEST | AP190: TEST | AQ190: TEST | AR190: 13.45 | AS190: 0.25 | AT190: TEST | AU190: TEST
A191: 0 | B191: 706824150 | C191: Ajustage / ébavurage | D191: 2014-10-22 | E191: 0 | F191: 0 | G191: 7068241500 | H191: 7068241500 | O191: 706824 | P191: 1 | Q191: 150 | R191: AJUSTAGE | S191: TEST | T191: TEST | U191: AJUS | V191: TEST | W191: TEST | X191: 3.23 | Y191: TEST | Z191: TEST | AA191: TEST | AB191: TEST | AC191: TEST | AD191: TEST | AE191: 2014-10-22 | AF191: 08:13:00 | AG191: 2014-10-22 | AH191: 11:27:00 | AI191: TEST | AJ191: TEST | AK191: TEST | AL191: TEST | AM191: TEST | AN191: TEST | AO191: TEST | AP191: TEST | AQ191: TEST | AR191: 13.45 | AS191: 0.25 | AT191: TEST | AU191: TEST
A192: 0 | B192: 706824150 | C192: Ajustage / ébavurage | D192: 2014-10-22 | E192: 0 | F192: 1 | G192: 7068241500 | H192: 7068241501 | J192: 41934 | O192: 706824 | P192: 1 | Q192: 150 | R192: AJUSTAGE | S192: TEST | T192: TEST | U192: AJUS | V192: TEST | W192: TEST | X192: 3.75 | Y192: TEST | Z192: TEST | AA192: TEST | AB192: TEST | AC192: TEST | AD192: TEST | AE192: 2014-10-22 | AF192: 12:12:00 | AG192: 2014-10-22 | AH192: 15:57:00 | AI192: TEST | AJ192: TEST | AK192: TEST | AL192: TEST | AM192: TEST | AN192: TEST | AO192: TEST | AP192: TEST | AQ192: TEST | AR192: 13.45 | AS192: 0.25 | AT192: TEST | AU192: TEST
A193: 0 | B193: 70709880 | C193: Ajustage / ébavurage | D193: 2014-10-22 | E193: 1 | F193: 1 | G193: 707098801 | H193: 707098801 | I193: 41934 | J193: 41934 | K193: 41904 | L193: 30 | O193: 707098 | P193: 1 | Q193: 80 | R193: EBAVURAGE AERONAUTIQUE | S193: TEST | T193: TEST | U193: EBAVA | V193: TEST | W193: TEST | X193: 2.12 | Y193: TEST | Z193: TEST | AA193: TEST | AB193: TEST | AC193: TEST | AD193: TEST | AE193: 2014-10-22 | AF193: 18:33:00 | AG193: 2014-10-22 | AH193: 20:40:00 | AI193: TEST | AJ193: TEST | AK193: TEST | AL193: TEST | AM193: TEST | AN193: TEST | AO193: TEST | AP193: TEST | AQ193: TEST | AR193: 28.15 | AS193: 0.25 | AT193: TEST | AU193: TEST
A194: 0 | B194: 70709980 | C194: Ajustage / ébavurage | D194: 2014-10-22 | E194: 1 | F194: 0 | G194: 707099801 | H194: 707099800 | I194: 41934 | K194: 41928 | L194: 6 | O194: 707099 | P194: 1 | Q194: 80 | R194: EBAVURAGE AERONAUTIQUE | S194: TEST | T194: TEST | U194: EBAVA | V194: TEST | W194: TEST | X194: 4.22 | Y194: TEST | Z194: TEST | AA194: TEST | AB194: TEST | AC194: TEST | AD194: TEST | AE194: 2014-10-22 | AF194: 07:12:00 | AG194: 2014-10-22 | AH194: 11:25:00 | AI194: TEST | AJ194: TEST | AK194: TEST | AL194: TEST | AM194: TEST | AN194: TEST | AO194: TEST | AP194: TEST | AQ194: TEST | AR194: 28.75 | AS194: 0.25 | AT194: TEST | AU194: TEST
A195: 0 | B195: 70709980 | C195: Ajustage / ébavurage | D195: 2014-10-22 | E195: 0 | F195: 1 | G195: 707099800 | H195: 707099801 | J195: 41934 | O195: 707099 | P195: 1 | Q195: 80 | R195: EBAVURAGE AERONAUTIQUE | S195: TEST | T195: TEST | U195: EBAVA | V195: TEST | W195: TEST | X195: 3.83 | Y195: TEST | Z195: TEST | AA195: TEST | AB195: TEST | AC195: TEST | AD195: TEST | AE195: 2014-10-22 | AF195: 12:08:00 | AG195: 2014-10-22 | AH195: 15:58:00 | AI195: TEST | AJ195: TEST | AK195: TEST | AL195: TEST | AM195: TEST | AN195: TEST | AO195: TEST | AP195: TEST | AQ195: TEST | AR195: 28.75 | AS195: 0.25 | AT195: TEST | AU195: TEST
A196: 0 | B196: 706751180 | C196: Ajustage / ébavurage | D196: 2014-10-01 | E196: 1 | F196: 0 | G196: 7067511801 | H196: 7067511800 | I196: 41913 | K196: 41897 | L196: 16 | O196: 706751 | P196: 1 | Q196: 180 | R196: AJUSTAGE | S196: TEST | T196: TEST | U196: AJUS | V196: TEST | W196: TEST | X196: 1.05 | Y196: TEST | Z196: TEST | AA196: TEST | AB196: TEST | AC196: TEST | AD196: TEST | AE196: 2014-10-01 | AF196: 06:56:00 | AG196: 2014-10-01 | AH196: 07:59:00 | AI196: TEST | AJ196: TEST | AK196: TEST | AL196: TEST | AM196: TEST | AN196: TEST | AO196: TEST | AP196: TEST | AQ196: TEST | AR196: 6.25 | AS196: 0.25 | AT196: TEST | AU196: TEST
A197: 0 | B197: 706751180 | C197: Ajustage / ébavurage | D197: 2014-10-01 | E197: 0 | F197: 0 | G197: 7067511800 | H197: 7067511800 | O197: 706751 | P197: 1 | Q197: 180 | R197: AJUSTAGE | S197: TEST | T197: TEST | U197: AJUS | V197: TEST | W197: TEST | X197: 0.37 | Y197: TEST | Z197: TEST | AA197: TEST | AB197: TEST | AC197: TEST | AD197: TEST | AE197: 2014-10-01 | AF197: 08:07:00 | AG197: 2014-10-01 | AH197: 08:29:00 | AI197: TEST | AJ197: TEST | AK197: TEST | AL197: TEST | AM197: TEST | AN197: TEST | AO197: TEST | AP197: TEST | AQ197: TEST | AR197: 6.25 | AS197: 0.25 | AT197: TEST | AU197: TEST
A198: 0 | B198: 706751180 | C198: Ajustage / ébavurage | D198: 2014-09-30 | E198: 0 | F198: 1 | G198: 7067511800 | H198: 7067511801 | J198: 41912 | O198: 706751 | P198: 1 | Q198: 180 | R198: AJUSTAGE | S198: TEST | T198: TEST | U198: AJUS | V198: TEST | W198: TEST | X198: 2.03 | Y198: TEST | Z198: TEST | AA198: TEST | AB198: TEST | AC198: TEST | AD198: TEST | AE198: 2014-09-30 | AF198: 13:55:00 | AG198: 2014-09-30 | AH198: 15:57:00 | AI198: TEST | AJ198: TEST | AK198: TEST | AL198: TEST | AM198: TEST | AN198: TEST | AO198: TEST | AP198: TEST | AQ198: TEST | AR198: 6.25 | AS198: 0.25 | AT198: TEST | AU198: TEST
A199: 0 | B199: 706754310 | C199: Ajustage / ébavurage | D199: 2014-10-30 | E199: 1 | F199: 0 | G199: 7067543101 | H199: 7067543100 | I199: 41942 | K199: 41939 | L199: 3 | O199: 706754 | P199: 1 | Q199: 310 | R199: AJUSTAGE | S199: TEST | T199: TEST | U199: AJUS | V199: TEST | W199: TEST | X199: 0.63 | Y199: TEST | Z199: TEST | AA199: TEST | AB199: TEST | AC199: TEST | AD199: TEST | AE199: 2014-10-30 | AF199: 07:20:00 | AG199: 2014-10-30 | AH199: 07:58:00 | AI199: TEST | AJ199: TEST | AK199: TEST | AL199: TEST | AM199: TEST | AN199: TEST | AO199: TEST | AP199: TEST | AQ199: TEST | AR199: 13.64 | AS199: 0.25 | AT199: TEST | AU199: TEST
A200: 0 | B200: 706754310 | C200: Ajustage / ébavurage | D200: 2014-10-30 | E200: 0 | F200: 1 | G200: 7067543100 | H200: 7067543101 | J200: 41942 | O200: 706754 | P200: 1 | Q200: 310 | R200: AJUSTAGE | S200: TEST | T200: TEST | U200: AJUS | V200: TEST | W200: TEST | X200: 3.3 | Y200: TEST | Z200: TEST | AA200: TEST | AB200: TEST | AC200: TEST | AD200: TEST | AE200: 2014-10-30 | AF200: 08:10:00 | AG200: 2014-10-30 | AH200: 11:28:00 | AI200: TEST | AJ200: TEST | AK200: TEST | AL200: TEST | AM200: TEST | AN200: TEST | AO200: TEST | AP200: TEST | AQ200: TEST | AR200: 13.64 | AS200: 0.25 | AT200: TEST | AU200: TEST
A201: 0 | B201: 706755120 | C201: Ajustage / ébavurage | D201: 2014-10-02 | E201: 1 | F201: 0 | G201: 7067551201 | H201: 7067551200 | I201: 41914 | O201: 706755 | P201: 1 | Q201: 120 | R201: EBAVURAGE | S201: TEST | T201: TEST | U201: EBAV | V201: TEST | W201: TEST | X201: 2.07 | Y201: TEST | Z201: TEST | AA201: TEST | AB201: TEST | AC201: TEST | AD201: TEST | AE201: 2014-10-02 | AF201: 08:10:00 | AG201: 2014-10-02 | AH201: 10:14:00 | AI201: TEST | AJ201: TEST | AK201: TEST | AL201: TEST | AM201: TEST | AN201: TEST | AO201: TEST | AP201: TEST | AQ201: TEST | AR201: 11.69 | AS201: 0.25 | AT201: TEST | AU201: TEST
A202: 0 | B202: 706755120 | C202: Ajustage / ébavurage | D202: 2014-10-01 | E202: 0 | F202: 0 | G202: 7067551200 | H202: 7067551200 | O202: 706755 | P202: 1 | Q202: 120 | R202: EBAVURAGE | S202: TEST | T202: TEST | U202: EBAV | V202: TEST | W202: TEST | X202: 2.97 | Y202: TEST | Z202: TEST | AA202: TEST | AB202: TEST | AC202: TEST | AD202: TEST | AE202: 2014-10-01 | AF202: 08:29:00 | AG202: 2014-10-01 | AH202: 11:27:00 | AI202: TEST | AJ202: TEST | AK202: TEST | AL202: TEST | AM202: TEST | AN202: TEST | AO202: TEST | AP202: TEST | AQ202: TEST | AR202: 11.69 | AS202: 0.25 | AT202: TEST | AU202: TEST
A203: 0 | B203: 706755120 | C203: Ajustage / ébavurage | D203: 2014-10-01 | E203: 0 | F203: 1 | G203: 7067551200 | H203: 7067551201 | J203: 41913 | O203: 706755 | P203: 1 | Q203: 120 | R203: EBAVURAGE | S203: TEST | T203: TEST | U203: EBAV | V203: TEST | W203: TEST | X203: 3.73 | Y203: TEST | Z203: TEST | AA203: TEST | AB203: TEST | AC203: TEST | AD203: TEST | AE203: 2014-10-01 | AF203: 12:13:00 | AG203: 2014-10-01 | AH203: 15:57:00 | AI203: TEST | AJ203: TEST | AK203: TEST | AL203: TEST | AM203: TEST | AN203: TEST | AO203: TEST | AP203: TEST | AQ203: TEST | AR203: 11.69 | AS203: 0.25 | AT203: TEST | AU203: TEST
A204: 0 | B204: 706755190 | C204: Ajustage / ébavurage | D204: 2014-10-03 | E204: 1 | F204: 0 | G204: 7067551901 | H204: 7067551900 | I204: 41915 | K204: 41908 | L204: 7 | O204: 706755 | P204: 1 | Q204: 190 | R204: AJUSTAGE | S204: TEST | T204: TEST | U204: AJUS | V204: TEST | W204: TEST | X204: 1.03 | Y204: TEST | Z204: TEST | AA204: TEST | AB204: TEST | AC204: TEST | AD204: TEST | AE204: 2014-10-03 | AF204: 06:55:00 | AG204: 2014-10-03 | AH204: 07:57:00 | AI204: TEST | AJ204: TEST | AK204: TEST | AL204: TEST | AM204: TEST | AN204: TEST | AO204: TEST | AP204: TEST | AQ204: TEST | AR204: 16.89 | AS204: 0.25 | AT204: TEST | AU204: TEST
A205: 0 | B205: 706755190 | C205: Ajustage / ébavurage | D205: 2014-10-03 | E205: 0 | F205: 0 | G205: 7067551900 | H205: 7067551900 | O205: 706755 | P205: 1 | Q205: 190 | R205: AJUSTAGE | S205: TEST | T205: TEST | U205: AJUS | V205: TEST | W205: TEST | X205: 4.8 | Y205: TEST | Z205: TEST | AA205: TEST | AB205: TEST | AC205: TEST | AD205: TEST | AE205: 2014-10-03 | AF205: 08:08:00 | AG205: 2014-10-03 | AH205: 12:56:00 | AI205: TEST | AJ205: TEST | AK205: TEST | AL205: TEST | AM205: TEST | AN205: TEST | AO205: TEST | AP205: TEST | AQ205: TEST | AR205: 16.89 | AS205: 0.25 | AT205: TEST | AU205: TEST
A206: 0 | B206: 706755190 | C206: Ajustage / ébavurage | D206: 2014-10-02 | E206: 0 | F206: 0 | G206: 7067551900 | H206: 7067551900 | O206: 706755 | P206: 1 | Q206: 190 | R206: AJUSTAGE | S206: TEST | T206: TEST | U206: AJUS | V206: TEST | W206: TEST | X206: 1.22 | Y206: TEST | Z206: TEST | AA206: TEST | AB206: TEST | AC206: TEST | AD206: TEST | AE206: 2014-10-02 | AF206: 10:14:00 | AG206: 2014-10-02 | AH206: 11:27:00 | AI206: TEST | AJ206: TEST | AK206: TEST | AL206: TEST | AM206: TEST | AN206: TEST | AO206: TEST | AP206: TEST | AQ206: TEST | AR206: 16.89 | AS206: 0.25 | AT206: TEST | AU206: TEST
A207: 0 | B207: 706755190 | C207: Ajustage / ébavurage | D207: 2014-10-02 | E207: 0 | F207: 1 | G207: 7067551900 | H207: 7067551901 | J207: 41914 | O207: 706755 | P207: 1 | Q207: 190 | R207: AJUSTAGE | S207: TEST | T207: TEST | U207: AJUS | V207: TEST | W207: TEST | X207: 3.75 | Y207: TEST | Z207: TEST | AA207: TEST | AB207: TEST | AC207: TEST | AD207: TEST | AE207: 2014-10-02 | AF207: 12:12:00 | AG207: 2014-10-02 | AH207: 15:57:00 | AI207: TEST | AJ207: TEST | AK207: TEST | AL207: TEST | AM207: TEST | AN207: TEST | AO207: TEST | AP207: TEST | AQ207: TEST | AR207: 16.89 | AS207: 0.25 | AT207: TEST | AU207: TEST
A208: 0 | B208: 70463420 | C208: Ajustage / ébavurage | D208: 2014-10-20 | E208: 1 | F208: 1 | G208: 704634201 | H208: 704634201 | I208: 41932 | J208: 41932 | O208: 704634 | P208: 999/1 | Q208: 20 | R208: AJUSTAGE | S208: TEST | T208: TEST | U208: AJUS | V208: TEST | W208: TEST | X208: 2.93 | Y208: TEST | Z208: TEST | AA208: TEST | AB208: TEST | AC208: TEST | AD208: TEST | AE208: 2014-10-20 | AF208: 13:01:00 | AG208: 2014-10-20 | AH208: 15:57:00 | AI208: TEST | AJ208: TEST | AK208: TEST | AL208: TEST | AM208: TEST | AN208: TEST | AO208: TEST | AP208: TEST | AQ208: TEST | AR208: 4.1 | AS208: 0.5 | AT208: TEST | AU208: TEST
A209: 0 | B209: 705860130 | C209: Ajustage / ébavurage | D209: 2014-10-20 | E209: 1 | F209: 1 | G209: 7058601301 | H209: 7058601301 | I209: 41932 | J209: 41932 | O209: 705860 | P209: 1 | Q209: 130 | R209: EBAVURAGE | S209: TEST | T209: TEST | U209: EBAV | V209: TEST | W209: TEST | X209: 0.02 | Y209: TEST | Z209: TEST | AA209: TEST | AB209: TEST | AC209: TEST | AD209: TEST | AE209: 2014-10-20 | AF209: 07:30:00 | AG209: 2014-10-20 | AH209: 07:31:00 | AI209: TEST | AJ209: TEST | AK209: TEST | AL209: TEST | AM209: TEST | AN209: TEST | AO209: TEST | AP209: TEST | AQ209: TEST | AR209: 0.25 | AS209: 0.25 | AT209: TEST | AU209: TEST
A210: 0 | B210: 706487130 | C210: Ajustage / ébavurage | D210: 2014-10-20 | E210: 1 | F210: 0 | G210: 7064871301 | H210: 7064871300 | I210: 41932 | K210: 41897 | L210: 35 | O210: 706487 | P210: 1 | Q210: 130 | R210: AJUSTAGE | S210: TEST | T210: TEST | U210: AJUS | V210: TEST | W210: TEST | X210: 1.03 | Y210: TEST | Z210: TEST | AA210: TEST | AB210: TEST | AC210: TEST | AD210: TEST | AE210: 2014-10-20 | AF210: 06:58:00 | AG210: 2014-10-20 | AH210: 08:00:00 | AI210: TEST | AJ210: TEST | AK210: TEST | AL210: TEST | AM210: TEST | AN210: TEST | AO210: TEST | AP210: TEST | AQ210: TEST | AR210: 15.3 | AS210: 0.1 | AT210: TEST | AU210: TEST
A211: 0 | B211: 706487130 | C211: Ajustage / ébavurage | D211: 2014-10-20 | E211: 0 | F211: 0 | G211: 7064871300 | H211: 7064871300 | O211: 706487 | P211: 1 | Q211: 130 | R211: AJUSTAGE | S211: TEST | T211: TEST | U211: AJUS | V211: TEST | W211: TEST | X211: 3.32 | Y211: TEST | Z211: TEST | AA211: TEST | AB211: TEST | AC211: TEST | AD211: TEST | AE211: 2014-10-20 | AF211: 08:09:00 | AG211: 2014-10-20 | AH211: 11:28:00 | AI211: TEST | AJ211: TEST | AK211: TEST | AL211: TEST | AM211: TEST | AN211: TEST | AO211: TEST | AP211: TEST | AQ211: TEST | AR211: 15.3 | AS211: 0.1 | AT211: TEST | AU211: TEST
... 286 more rows

Sheet Controle
B2: Zone | C2: Temps de transit | D2: Temps passé | G2: Temps passé total | H2: Temps Alloué | K2: Temps alloué total | L2: Temps passé / Temps alloué | M2: Nombre de Pointage | N2: Heure / Pointage
D3: Min | E3: Max | F3: Moyen | H3: Min | I3: Max | J3: Moyen | L3: Total Zone
B4: =C16 -> Contrôle | C4: =AVERAGE(L16:L5998) -> 4.899224806 | D4: =temps!E1 -> 0 | E4: =temps!D1 -> 70.78 | F4: =temps!E2 -> 2.146820276 | G4: =temps!D2 -> 465.86 | H4: =MIN(AS:AS) -> 0 | I4: =MAX(AR:AR) -> 28.5 | J4: =AVERAGEIF(E16:E4998,1,AR:AR) -> 4.537155172 | K4: =SUMIFS($AR:$AR,$E:$E,1) -> 747.53 | L4: =K4/G4 -> 1.604623707 | M4: =COUNTIF(E16:E4998,"1")+COUNTIF(E16:E4998,0) -> 336 | N4: =G4/M4 -> 1.386488095
A15: Après COFI ? | B15: OF & Phase | C15: Secteur | D15: Date | E15: Premier ? | F15: Dernier ? | G15: OF & Phase & premier | H15: OF & Phase & dernier | I15: Date Premier | J15: Date dernière | K15: Date précé | L15: Temps de transite | M15: Type Pointage | N15: Obs. | O15: Affaire | P15: Rang | Q15: Phase | R15: Désignation Phase | S15: Pièce | T15: Sous pièce | U15: C.Frais | V15: Employé | W15: Nom employé | X15: Heures | Y15: Coûts | Z15: Nb. Pièces finies | AA15: Nb. Pièces abimées | AB15: Machine | AC15: Taux homme | AD15: Taux machine | AE15: Date | AF15: Heure debut | AG15: Date fin | AH15: Heure fin | AI15: Service | AJ15: Client | AK15: Commande | AL15: Activité | AM15: Section | AN15: Etat Af. | AO15: Type Af. | AP15: Typologie | AQ15: Famille | AR15: Prévu total | AS15: Prévu TP | AT15: Prévu pour nb pièces pointées | AU15: N° de pointage
A16: 0 | B16: 2251150 | C16: Contrôle | D16: 2014-10-30 | E16: 1 | F16: 1 | G16: 22511501 | H16: 22511501 | I16: 41942 | J16: 41942 | K16: 41941 | L16: 1 | O16: 22511 | P16: 1 | Q16: 50 | R16: CONTROLE | S16: TEST | T16: TEST | U16: CONT | V16: TEST | W16: TEST | X16: 0.75 | Y16: TEST | Z16: TEST | AA16: TEST | AB16: TEST | AC16: TEST | AD16: TEST | AE16: 2014-10-30 | AF16: 00:00:00 | AH16: 00:00:00 | AI16: TEST | AJ16: TEST | AK16: TEST | AL16: TEST | AM16: TEST | AN16: TEST | AO16: TEST | AP16: TEST | AQ16: TEST | AR16: 1.5 | AS16: 0.3 | AT16: TEST | AU16: TEST
A17: 0 | B17: 343412180 | C17: Contrôle | D17: 2014-10-16 | E17: 1 | F17: 1 | G17: 3434121801 | H17: 3434121801 | I17: 41928 | J17: 41928 | O17: 343412 | P17: 1 | Q17: 180 | R17: CONTROLE | S17: TEST | T17: TEST | U17: CONT | V17: TEST | W17: TEST | X17: 2 | Y17: TEST | Z17: TEST | AA17: TEST | AB17: TEST | AC17: TEST | AD17: TEST | AE17: 2014-10-16 | AF17: 00:00:00 | AH17: 00:00:00 | AI17: TEST | AJ17: TEST | AK17: TEST | AL17: TEST | AM17: TEST | AN17: TEST | AO17: TEST | AP17: TEST | AQ17: TEST | AR17: 0.01 | AS17: 0.01 | AT17: TEST | AU17: TEST
A18: 0 | B18: 343413220 | C18: Contrôle | D18: 2014-10-16 | E18: 1 | F18: 1 | G18: 3434132201 | H18: 3434132201 | I18: 41928 | J18: 41928 | O18: 343413 | P18: 1 | Q18: 220 | R18: CONTROLE | S18: TEST | T18: TEST | U18: CONT | V18: TEST | W18: TEST | X18: 1 | Y18: TEST | Z18: TEST | AA18: TEST | AB18: TEST | AC18: TEST | AD18: TEST | AE18: 2014-10-16 | AF18: 00:00:00 | AH18: 00:00:00 | AI18: TEST | AJ18: TEST | AK18: TEST | AL18: TEST | AM18: TEST | AN18: TEST | AO18: TEST | AP18: TEST | AQ18: TEST | AR18: 0.01 | AS18: 0.01 | AT18: TEST | AU18: TEST
A19: 0 | B19: 355934190 | C19: Contrôle | D19: 2014-09-26 | E19: 1 | F19: 1 | G19: 3559341901 | H19: 3559341901 | I19: 41908 | J19: 41908 | K19: 41904 | L19: 4 | O19: 355934 | P19: 1 | Q19: 190 | R19: CONTROLE DIM. ET GEO. AVANT TRAITEMENT | S19: TEST | T19: TEST | U19: CONT | V19: TEST | W19: TEST | X19: 0.25 | Y19: TEST | Z19: TEST | AA19: TEST | AB19: TEST | AC19: TEST | AD19: TEST | AE19: 2014-09-26 | AF19: 07:00:00 | AG19: 2014-09-26 | AH19: 07:15:00 | AI19: TEST | AJ19: TEST | AK19: TEST | AL19: TEST | AM19: TEST | AN19: TEST | AO19: TEST | AP19: TEST | AQ19: TEST | AR19: 8 | AS19: 0.5 | AT19: TEST | AU19: TEST
A20: 0 | B20: 355934210 | C20: Contrôle | D20: 2014-10-13 | E20: 1 | F20: 0 | G20: 3559342101 | H20: 3559342100 | I20: 41925 | O20: 355934 | P20: 1 | Q20: 210 | R20: CONTROLE DIM. ET GEO. APRES TRAITEMENT | S20: TEST | T20: TEST | U20: CONT | V20: TEST | W20: TEST | X20: 2 | Y20: TEST | Z20: TEST | AA20: TEST | AB20: TEST | AC20: TEST | AD20: TEST | AE20: 2014-10-13 | AF20: 00:00:00 | AH20: 00:00:00 | AI20: TEST | AJ20: TEST | AK20: TEST | AL20: TEST | AM20: TEST | AN20: TEST | AO20: TEST | AP20: TEST | AQ20: TEST | AR20: 1.01 | AS20: 0.5 | AT20: TEST | AU20: TEST
A21: 0 | B21: 355934210 | C21: Contrôle | D21: 2014-10-09 | E21: 0 | F21: 1 | G21: 3559342100 | H21: 3559342101 | J21: 41921 | O21: 355934 | P21: 1 | Q21: 210 | R21: CONTROLE DIM. ET GEO. APRES TRAITEMENT | S21: TEST | T21: TEST | U21: CONT | V21: TEST | W21: TEST | X21: 0.5 | Y21: TEST | Z21: TEST | AA21: TEST | AB21: TEST | AC21: TEST | AD21: TEST | AE21: 2014-10-09 | AF21: 00:00:00 | AH21: 00:00:00 | AI21: TEST | AJ21: TEST | AK21: TEST | AL21: TEST | AM21: TEST | AN21: TEST | AO21: TEST | AP21: TEST | AQ21: TEST | AR21: 1.01 | AS21: 0.5 | AT21: TEST | AU21: TEST
A22: 0 | B22: 35624420 | C22: Contrôle | D22: 2014-09-23 | E22: 1 | F22: 1 | G22: 356244201 | H22: 356244201 | I22: 41905 | J22: 41905 | O22: 356244 | P22: 999/1 | Q22: 20 | R22: CONTROLE | S22: TEST | T22: TEST | U22: CONT | V22: TEST | W22: TEST | X22: 2.9 | Y22: TEST | Z22: TEST | AA22: TEST | AB22: TEST | AC22: TEST | AD22: TEST | AE22: 2014-09-23 | AF22: 17:33:00 | AG22: 2014-09-23 | AH22: 20:27:00 | AI22: TEST | AJ22: TEST | AK22: TEST | AL22: TEST | AM22: TEST | AN22: TEST | AO22: TEST | AP22: TEST | AQ22: TEST | AR22: 3 | AS22: 3 | AT22: TEST | AU22: TEST
A23: 0 | B23: 357686120 | C23: Contrôle | D23: 2014-10-06 | E23: 1 | F23: 0 | G23: 3576861201 | H23: 3576861200 | I23: 41918 | K23: 41897 | L23: 21 | O23: 357686 | P23: 1 | Q23: 120 | R23: CONTROLE | S23: TEST | T23: TEST | U23: CONT | V23: TEST | W23: TEST | X23: 1 | Y23: TEST | Z23: TEST | AA23: TEST | AB23: TEST | AC23: TEST | AD23: TEST | AE23: 2014-10-06 | AF23: 00:00:00 | AH23: 00:00:00 | AI23: TEST | AJ23: TEST | AK23: TEST | AL23: TEST | AM23: TEST | AN23: TEST | AO23: TEST | AP23: TEST | AQ23: TEST | AR23: 2 | AS23: 2 | AT23: TEST | AU23: TEST
A24: 0 | B24: 357686120 | C24: Contrôle | D24: 2014-09-29 | E24: 0 | F24: 1 | G24: 3576861200 | H24: 3576861201 | J24: 41911 | O24: 357686 | P24: 1 | Q24: 120 | R24: CONTROLE | S24: TEST | T24: TEST | U24: CONT | V24: TEST | W24: TEST | X24: 2 | Y24: TEST | Z24: TEST | AA24: TEST | AB24: TEST | AC24: TEST | AD24: TEST | AE24: 2014-09-29 | AF24: 00:00:00 | AH24: 00:00:00 | AI24: TEST | AJ24: TEST | AK24: TEST | AL24: TEST | AM24: TEST | AN24: TEST | AO24: TEST | AP24: TEST | AQ24: TEST | AR24: 2 | AS24: 2 | AT24: TEST | AU24: TEST
A25: 0 | B25: 70013770 | C25: Contrôle | D25: 2014-10-24 | E25: 1 | F25: 1 | G25: 700137701 | H25: 700137701 | I25: 41936 | J25: 41936 | O25: 700137 | P25: 1 | Q25: 70 | R25: CONTROLE | S25: TEST | T25: TEST | U25: CONT | V25: TEST | W25: TEST | X25: 3.5 | Y25: TEST | Z25: TEST | AA25: TEST | AB25: TEST | AC25: TEST | AD25: TEST | AE25: 2014-10-24 | AF25: 00:00:00 | AH25: 00:00:00 | AI25: TEST | AJ25: TEST | AK25: TEST | AL25: TEST | AM25: TEST | AN25: TEST | AO25: TEST | AP25: TEST | AQ25: TEST | AR25: 0.25 | AS25: 0.25 | AT25: TEST | AU25: TEST
A26: 0 | B26: 700960260 | C26: Contrôle | D26: 2014-09-29 | E26: 1 | F26: 1 | G26: 7009602601 | H26: 7009602601 | I26: 41911 | J26: 41911 | O26: 700960 | P26: 1 | Q26: 260 | R26: CONTROLE | S26: TEST | T26: TEST | U26: CONT | V26: TEST | W26: TEST | X26: 1 | Y26: TEST | Z26: TEST | AA26: TEST | AB26: TEST | AC26: TEST | AD26: TEST | AE26: 2014-09-29 | AF26: 00:00:00 | AH26: 00:00:00 | AI26: TEST | AJ26: TEST | AK26: TEST | AL26: TEST | AM26: TEST | AN26: TEST | AO26: TEST | AP26: TEST | AQ26: TEST | AR26: 3.5 | AS26: 0.5 | AT26: TEST | AU26: TEST
A27: 0 | B27: 70096030 | C27: Contrôle | D27: 2014-09-29 | E27: 1 | F27: 1 | G27: 700960301 | H27: 700960301 | I27: 41911 | J27: 41911 | O27: 700960 | P27: 999/2 | Q27: 30 | R27: CONTROLE | S27: TEST | T27: TEST | U27: CONT | V27: TEST | W27: TEST | X27: 0.5 | Y27: TEST | Z27: TEST | AA27: TEST | AB27: TEST | AC27: TEST | AD27: TEST | AE27: 2014-09-29 | AF27: 00:00:00 | AH27: 00:00:00 | AI27: TEST | AJ27: TEST | AK27: TEST | AL27: TEST | AM27: TEST | AN27: TEST | AO27: TEST | AP27: TEST | AQ27: TEST | AR27: 0.5 | AS27: 0.5 | AT27: TEST | AU27: TEST
A28: 0 | B28: 701510260 | C28: Contrôle | D28: 2014-09-19 | E28: 1 | F28: 0 | G28: 7015102601 | H28: 7015102600 | I28: 41901 | O28: 701510 | P28: 1 | Q28: 260 | R28: CONTROLE DIM. ET GEO. APRES TRAITEMENT | S28: TEST | T28: TEST | U28: CONT | V28: TEST | W28: TEST | X28: 5.5 | Y28: TEST | Z28: TEST | AA28: TEST | AB28: TEST | AC28: TEST | AD28: TEST | AE28: 2014-09-19 | AF28: 00:00:00 | AH28: 00:00:00 | AI28: TEST | AJ28: TEST | AK28: TEST | AL28: TEST | AM28: TEST | AN28: TEST | AO28: TEST | AP28: TEST | AQ28: TEST | AR28: 9 | AS28: 9 | AT28: TEST | AU28: TEST
A29: 0 | B29: 701510260 | C29: Contrôle | D29: 2014-09-18 | E29: 0 | F29: 0 | G29: 7015102600 | H29: 7015102600 | O29: 701510 | P29: 1 | Q29: 260 | R29: CONTROLE DIM. ET GEO. APRES TRAITEMENT | S29: TEST | T29: TEST | U29: CONT | V29: TEST | W29: TEST | X29: 3.5 | Y29: TEST | Z29: TEST | AA29: TEST | AB29: TEST | AC29: TEST | AD29: TEST | AE29: 2014-09-18 | AF29: 00:00:00 | AH29: 00:00:00 | AI29: TEST | AJ29: TEST | AK29: TEST | AL29: TEST | AM29: TEST | AN29: TEST | AO29: TEST | AP29: TEST | AQ29: TEST | AR29: 9 | AS29: 9 | AT29: TEST | AU29: TEST
A30: 0 | B30: 701510260 | C30: Contrôle | D30: 2014-09-18 | E30: 0 | F30: 1 | G30: 7015102600 | H30: 7015102601 | J30: 41900 | O30: 701510 | P30: 1 | Q30: 260 | R30: CONTROLE DIM. ET GEO. APRES TRAITEMENT | S30: TEST | T30: TEST | U30: CONT | V30: TEST | W30: TEST | X30: 1 | Y30: TEST | Z30: TEST | AA30: TEST | AB30: TEST | AC30: TEST | AD30: TEST | AE30: 2014-09-18 | AF30: 00:00:00 | AH30: 00:00:00 | AI30: TEST | AJ30: TEST | AK30: TEST | AL30: TEST | AM30: TEST | AN30: TEST | AO30: TEST | AP30: TEST | AQ30: TEST | AR30: 9 | AS30: 9 | AT30: TEST | AU30: TEST
A31: 0 | B31: 706580370 | C31: Contrôle | D31: 2014-11-06 | E31: 1 | F31: 1 | G31: 7065803701 | H31: 7065803701 | I31: 41949 | J31: 41949 | K31: 41918 | L31: 31 | O31: 706580 | P31: 1 | Q31: 370 | R31: CONTROLE | S31: TEST | T31: TEST | U31: CONT | V31: TEST | W31: TEST | X31: 0.3 | Y31: TEST | Z31: TEST | AA31: TEST | AB31: TEST | AC31: TEST | AD31: TEST | AE31: 2014-11-06 | AF31: 00:00:00 | AH31: 00:00:00 | AI31: TEST | AJ31: TEST | AK31: TEST | AL31: TEST | AM31: TEST | AN31: TEST | AO31: TEST | AP31: TEST | AQ31: TEST | AR31: 0.3 | AS31: 0.3 | AT31: TEST | AU31: TEST
A32: 0 | B32: 706581330 | C32: Contrôle | D32: 2014-11-06 | E32: 1 | F32: 1 | G32: 7065813301 | H32: 7065813301 | I32: 41949 | J32: 41949 | K32: 41947 | L32: 2 | O32: 706581 | P32: 1 | Q32: 330 | R32: CONTROLE EXPEDITION | S32: TEST | T32: TEST | U32: CONT | V32: TEST | W32: TEST | X32: 0.3 | Y32: TEST | Z32: TEST | AA32: TEST | AB32: TEST | AC32: TEST | AD32: TEST | AE32: 2014-11-06 | AF32: 00:00:00 | AH32: 00:00:00 | AI32: TEST | AJ32: TEST | AK32: TEST | AL32: TEST | AM32: TEST | AN32: TEST | AO32: TEST | AP32: TEST | AQ32: TEST | AR32: 0.3 | AS32: 0.3 | AT32: TEST | AU32: TEST
A33: 0 | B33: 701510360 | C33: Contrôle | D33: 2014-09-24 | E33: 1 | F33: 1 | G33: 7015103601 | H33: 7015103601 | I33: 41906 | J33: 41906 | K33: 41906 | L33: 0 | O33: 701510 | P33: 1 | Q33: 360 | R33: CONTROLE DEPART S/T | S33: TEST | T33: TEST | U33: CONT | V33: TEST | W33: TEST | X33: 0.08 | Y33: TEST | Z33: TEST | AA33: TEST | AB33: TEST | AC33: TEST | AD33: TEST | AE33: 2014-09-24 | AF33: 10:10:00 | AG33: 2014-09-24 | AH33: 10:15:00 | AI33: TEST | AJ33: TEST | AK33: TEST | AL33: TEST | AM33: TEST | AN33: TEST | AO33: TEST | AP33: TEST | AQ33: TEST | AR33: 7.5 | AS33: 7.5 | AT33: TEST | AU33: TEST
A34: 0 | B34: 701572250 | C34: Contrôle | D34: 2014-11-07 | E34: 1 | F34: 0 | G34: 7015722501 | H34: 7015722500 | I34: 41950 | O34: 701572 | P34: 1 | Q34: 250 | R34: CONTROLE | S34: TEST | T34: TEST | U34: CONT | V34: TEST | W34: TEST | X34: 4.5 | Y34: TEST | Z34: TEST | AA34: TEST | AB34: TEST | AC34: TEST | AD34: TEST | AE34: 2014-11-07 | AF34: 00:00:00 | AH34: 00:00:00 | AI34: TEST | AJ34: TEST | AK34: TEST | AL34: TEST | AM34: TEST | AN34: TEST | AO34: TEST | AP34: TEST | AQ34: TEST | AR34: 0.01 | AS34: 0.01 | AT34: TEST | AU34: TEST
A35: 0 | B35: 701572250 | C35: Contrôle | D35: 2014-11-06 | E35: 0 | F35: 1 | G35: 7015722500 | H35: 7015722501 | J35: 41949 | O35: 701572 | P35: 1 | Q35: 250 | R35: CONTROLE | S35: TEST | T35: TEST | U35: CONT | V35: TEST | W35: TEST | X35: 0.5 | Y35: TEST | Z35: TEST | AA35: TEST | AB35: TEST | AC35: TEST | AD35: TEST | AE35: 2014-11-06 | AF35: 00:00:00 | AH35: 00:00:00 | AI35: TEST | AJ35: TEST | AK35: TEST | AL35: TEST | AM35: TEST | AN35: TEST | AO35: TEST | AP35: TEST | AQ35: TEST | AR35: 0.01 | AS35: 0.01 | AT35: TEST | AU35: TEST
A36: 0 | B36: 702164130 | C36: Contrôle | D36: 2014-10-24 | E36: 1 | F36: 0 | G36: 7021641301 | H36: 7021641300 | I36: 41936 | O36: 702164 | P36: 1 | Q36: 130 | R36: CONTRÔLE INTER OP | S36: TEST | T36: TEST | U36: COIN | V36: TEST | W36: TEST | X36: 0.25 | Y36: TEST | Z36: TEST | AA36: TEST | AB36: TEST | AC36: TEST | AD36: TEST | AE36: 2014-10-24 | AF36: 00:00:00 | AH36: 00:00:00 | AI36: TEST | AJ36: TEST | AK36: TEST | AL36: TEST | AM36: TEST | AN36: TEST | AO36: TEST | AP36: TEST | AQ36: TEST | AR36: 3.75 | AS36: 0 | AT36: TEST | AU36: TEST
A37: 0 | B37: 702164130 | C37: Contrôle | D37: 2014-09-15 | E37: 0 | F37: 1 | G37: 7021641300 | H37: 7021641301 | J37: 41897 | O37: 702164 | P37: 1 | Q37: 130 | R37: CONTRÔLE INTER OP | S37: TEST | T37: TEST | U37: COIN | V37: TEST | W37: TEST | X37: 6 | Y37: TEST | Z37: TEST | AA37: TEST | AB37: TEST | AC37: TEST | AD37: TEST | AE37: 2014-09-15 | AF37: 00:00:00 | AH37: 00:00:00 | AI37: TEST | AJ37: TEST | AK37: TEST | AL37: TEST | AM37: TEST | AN37: TEST | AO37: TEST | AP37: TEST | AQ37: TEST | AR37: 3.75 | AS37: 0 | AT37: TEST | AU37: TEST
A38: 0 | B38: 702165130 | C38: Contrôle | D38: 2014-10-24 | E38: 1 | F38: 0 | G38: 7021651301 | H38: 7021651300 | I38: 41936 | O38: 702165 | P38: 1 | Q38: 130 | R38: CONTRÔLE INTER OP | S38: TEST | T38: TEST | U38: COIN | V38: TEST | W38: TEST | X38: 0.25 | Y38: TEST | Z38: TEST | AA38: TEST | AB38: TEST | AC38: TEST | AD38: TEST | AE38: 2014-10-24 | AF38: 00:00:00 | AH38: 00:00:00 | AI38: TEST | AJ38: TEST | AK38: TEST | AL38: TEST | AM38: TEST | AN38: TEST | AO38: TEST | AP38: TEST | AQ38: TEST | AR38: 3.75 | AS38: 0 | AT38: TEST | AU38: TEST
A39: 0 | B39: 702165130 | C39: Contrôle | D39: 2014-09-16 | E39: 0 | F39: 0 | G39: 7021651300 | H39: 7021651300 | O39: 702165 | P39: 1 | Q39: 130 | R39: CONTRÔLE INTER OP | S39: TEST | T39: TEST | U39: COIN | V39: TEST | W39: TEST | X39: 6 | Y39: TEST | Z39: TEST | AA39: TEST | AB39: TEST | AC39: TEST | AD39: TEST | AE39: 2014-09-16 | AF39: 00:00:00 | AH39: 00:00:00 | AI39: TEST | AJ39: TEST | AK39: TEST | AL39: TEST | AM39: TEST | AN39: TEST | AO39: TEST | AP39: TEST | AQ39: TEST | AR39: 3.75 | AS39: 0 | AT39: TEST | AU39: TEST
A40: 0 | B40: 702165130 | C40: Contrôle | D40: 2014-09-16 | E40: 0 | F40: 0 | G40: 7021651300 | H40: 7021651300 | O40: 702165 | P40: 1 | Q40: 130 | R40: CONTRÔLE INTER OP | S40: TEST | T40: TEST | U40: COIN | V40: TEST | W40: TEST | X40: 0 | Y40: TEST | Z40: TEST | AA40: TEST | AB40: TEST | AC40: TEST | AD40: TEST | AE40: 2014-09-16 | AF40: 00:00:00 | AH40: 00:00:00 | AI40: TEST | AJ40: TEST | AK40: TEST | AL40: TEST | AM40: TEST | AN40: TEST | AO40: TEST | AP40: TEST | AQ40: TEST | AR40: 3.75 | AS40: 0 | AT40: TEST | AU40: TEST
A41: 0 | B41: 702165130 | C41: Contrôle | D41: 2014-09-15 | E41: 0 | F41: 1 | G41: 7021651300 | H41: 7021651301 | J41: 41897 | O41: 702165 | P41: 1 | Q41: 130 | R41: CONTRÔLE INTER OP | S41: TEST | T41: TEST | U41: COIN | V41: TEST | W41: TEST | X41: 1 | Y41: TEST | Z41: TEST | AA41: TEST | AB41: TEST | AC41: TEST | AD41: TEST | AE41: 2014-09-15 | AF41: 00:00:00 | AH41: 00:00:00 | AI41: TEST | AJ41: TEST | AK41: TEST | AL41: TEST | AM41: TEST | AN41: TEST | AO41: TEST | AP41: TEST | AQ41: TEST | AR41: 3.75 | AS41: 0 | AT41: TEST | AU41: TEST
A42: 0 | B42: 705064220 | C42: Contrôle | D42: 2014-10-16 | E42: 1 | F42: 0 | G42: 7050642201 | H42: 7050642200 | I42: 41928 | O42: 705064 | P42: 1 | Q42: 220 | R42: CONTROLE | S42: TEST | T42: TEST | U42: CONT | V42: TEST | W42: TEST | X42: 1 | Y42: TEST | Z42: TEST | AA42: TEST | AB42: TEST | AC42: TEST | AD42: TEST | AE42: 2014-10-16 | AF42: 00:00:00 | AH42: 00:00:00 | AI42: TEST | AJ42: TEST | AK42: TEST | AL42: TEST | AM42: TEST | AN42: TEST | AO42: TEST | AP42: TEST | AQ42: TEST | AR42: 0.01 | AS42: 0.01 | AT42: TEST | AU42: TEST
A43: 0 | B43: 705064220 | C43: Contrôle | D43: 2014-10-15 | E43: 0 | F43: 1 | G43: 7050642200 | H43: 7050642201 | J43: 41927 | O43: 705064 | P43: 1 | Q43: 220 | R43: CONTROLE | S43: TEST | T43: TEST | U43: CONT | V43: TEST | W43: TEST | X43: 3.75 | Y43: TEST | Z43: TEST | AA43: TEST | AB43: TEST | AC43: TEST | AD43: TEST | AE43: 2014-10-15 | AF43: 00:00:00 | AH43: 00:00:00 | AI43: TEST | AJ43: TEST | AK43: TEST | AL43: TEST | AM43: TEST | AN43: TEST | AO43: TEST | AP43: TEST | AQ43: TEST | AR43: 0.01 | AS43: 0.01 | AT43: TEST | AU43: TEST
A44: 0 | B44: 705162260 | C44: Contrôle | D44: 2014-10-01 | E44: 1 | F44: 0 | G44: 7051622601 | H44: 7051622600 | I44: 41913 | O44: 705162 | P44: 1 | Q44: 260 | R44: CONTROLE DIM. ET GEO. APRES TRAITEMENT | S44: TEST | T44: TEST | U44: CONT | V44: TEST | W44: TEST | X44: 1.5 | Y44: TEST | Z44: TEST | AA44: TEST | AB44: TEST | AC44: TEST | AD44: TEST | AE44: 2014-10-01 | AF44: 09:00:00 | AG44: 2014-10-01 | AH44: 10:30:00 | AI44: TEST | AJ44: TEST | AK44: TEST | AL44: TEST | AM44: TEST | AN44: TEST | AO44: TEST | AP44: TEST | AQ44: TEST | AR44: 11.25 | AS44: 0.25 | AT44: TEST | AU44: TEST
A45: 0 | B45: 705162260 | C45: Contrôle | D45: 2014-10-01 | E45: 0 | F45: 1 | G45: 7051622600 | H45: 7051622601 | J45: 41913 | O45: 705162 | P45: 1 | Q45: 260 | R45: CONTROLE DIM. ET GEO. APRES TRAITEMENT | S45: TEST | T45: TEST | U45: CONT | V45: TEST | W45: TEST | X45: 2.5 | Y45: TEST | Z45: TEST | AA45: TEST | AB45: TEST | AC45: TEST | AD45: TEST | AE45: 2014-10-01 | AF45: 10:50:00 | AG45: 2014-10-01 | AH45: 13:20:00 | AI45: TEST | AJ45: TEST | AK45: TEST | AL45: TEST | AM45: TEST | AN45: TEST | AO45: TEST | AP45: TEST | AQ45: TEST | AR45: 11.25 | AS45: 0.25 | AT45: TEST | AU45: TEST
A46: 0 | B46: 705162360 | C46: Contrôle | D46: 2014-10-09 | E46: 1 | F46: 1 | G46: 7051623601 | H46: 7051623601 | I46: 41921 | J46: 41921 | K46: 41921 | L46: 0 | O46: 705162 | P46: 1 | Q46: 360 | R46: CONTROLE DEPART S/T | S46: TEST | T46: TEST | U46: CONT | V46: TEST | W46: TEST | X46: 0.75 | Y46: TEST | Z46: TEST | AA46: TEST | AB46: TEST | AC46: TEST | AD46: TEST | AE46: 2014-10-09 | AF46: 00:00:00 | AH46: 00:00:00 | AI46: TEST | AJ46: TEST | AK46: TEST | AL46: TEST | AM46: TEST | AN46: TEST | AO46: TEST | AP46: TEST | AQ46: TEST | AR46: 1.13 | AS46: 0.25 | AT46: TEST | AU46: TEST
A47: 0 | B47: 705427100 | C47: Contrôle | D47: 2014-10-29 | E47: 1 | F47: 1 | G47: 7054271001 | H47: 7054271001 | I47: 41941 | J47: 41941 | O47: 705427 | P47: 1 | Q47: 100 | R47: CONTROLE EN RECEPTION | S47: TEST | T47: TEST | U47: CONT | V47: TEST | W47: TEST | X47: 0.17 | Y47: TEST | Z47: TEST | AA47: TEST | AB47: TEST | AC47: TEST | AD47: TEST | AE47: 2014-10-29 | AF47: 10:00:00 | AG47: 2014-10-29 | AH47: 10:10:00 | AI47: TEST | AJ47: TEST | AK47: TEST | AL47: TEST | AM47: TEST | AN47: TEST | AO47: TEST | AP47: TEST | AQ47: TEST | AR47: 1.61 | AS47: 0.25 | AT47: TEST | AU47: TEST
A48: 0 | B48: 70716750 | C48: Contrôle | D48: 2014-11-05 | E48: 1 | F48: 1 | G48: 707167501 | H48: 707167501 | I48: 41948 | J48: 41948 | O48: 707167 | P48: 1 | Q48: 50 | R48: CONTROLE | S48: TEST | T48: TEST | U48: CONT | V48: TEST | W48: TEST | X48: 0.5 | Y48: TEST | Z48: TEST | AA48: TEST | AB48: TEST | AC48: TEST | AD48: TEST | AE48: 2014-11-05 | AF48: 00:00:00 | AH48: 00:00:00 | AI48: TEST | AJ48: TEST | AK48: TEST | AL48: TEST | AM48: TEST | AN48: TEST | AO48: TEST | AP48: TEST | AQ48: TEST | AR48: 0.5 | AS48: 0.5 | AT48: TEST | AU48: TEST
A49: 0 | B49: 70716850 | C49: Contrôle | D49: 2014-11-05 | E49: 1 | F49: 1 | G49: 707168501 | H49: 707168501 | I49: 41948 | J49: 41948 | O49: 707168 | P49: 1 | Q49: 50 | R49: CONTROLE | S49: TEST | T49: TEST | U49: CONT | V49: TEST | W49: TEST | X49: 0.5 | Y49: TEST | Z49: TEST | AA49: TEST | AB49: TEST | AC49: TEST | AD49: TEST | AE49: 2014-11-05 | AF49: 00:00:00 | AH49: 00:00:00 | AI49: TEST | AJ49: TEST | AK49: TEST | AL49: TEST | AM49: TEST | AN49: TEST | AO49: TEST | AP49: TEST | AQ49: TEST | AR49: 0.5 | AS49: 0.5 | AT49: TEST | AU49: TEST
A50: 0 | B50: 70716950 | C50: Contrôle | D50: 2014-11-05 | E50: 1 | F50: 1 | G50: 707169501 | H50: 707169501 | I50: 41948 | J50: 41948 | O50: 707169 | P50: 1 | Q50: 50 | R50: CONTROLE | S50: TEST | T50: TEST | U50: CONT | V50: TEST | W50: TEST | X50: 0.5 | Y50: TEST | Z50: TEST | AA50: TEST | AB50: TEST | AC50: TEST | AD50: TEST | AE50: 2014-11-05 | AF50: 00:00:00 | AH50: 00:00:00 | AI50: TEST | AJ50: TEST | AK50: TEST | AL50: TEST | AM50: TEST | AN50: TEST | AO50: TEST | AP50: TEST | AQ50: TEST | AR50: 0.5 | AS50: 0.5 | AT50: TEST | AU50: TEST
A51: 0 | B51: 705428100 | C51: Contrôle | D51: 2014-10-29 | E51: 1 | F51: 1 | G51: 7054281001 | H51: 7054281001 | I51: 41941 | J51: 41941 | O51: 705428 | P51: 1 | Q51: 100 | R51: CONTROLE EN RECEPTION | S51: TEST | T51: TEST | U51: CONT | V51: TEST | W51: TEST | X51: 0.17 | Y51: TEST | Z51: TEST | AA51: TEST | AB51: TEST | AC51: TEST | AD51: TEST | AE51: 2014-10-29 | AF51: 10:10:00 | AG51: 2014-10-29 | AH51: 10:20:00 | AI51: TEST | AJ51: TEST | AK51: TEST | AL51: TEST | AM51: TEST | AN51: TEST | AO51: TEST | AP51: TEST | AQ51: TEST | AR51: 1.78 | AS51: 0.25 | AT51: TEST | AU51: TEST
A52: 0 | B52: 705429170 | C52: Contrôle | D52: 2014-10-09 | E52: 1 | F52: 0 | G52: 7054291701 | H52: 7054291700 | I52: 41921 | K52: 41920 | L52: 1 | O52: 705429 | P52: 1 | Q52: 170 | R52: CONTROLE AVANT NITRURATION | S52: TEST | T52: TEST | U52: CONT | V52: TEST | W52: TEST | X52: 2.2 | Y52: TEST | Z52: TEST | AA52: TEST | AB52: TEST | AC52: TEST | AD52: TEST | AE52: 2014-10-09 | AF52: 00:00:00 | AH52: 00:00:00 | AI52: TEST | AJ52: TEST | AK52: TEST | AL52: TEST | AM52: TEST | AN52: TEST | AO52: TEST | AP52: TEST | AQ52: TEST | AR52: 4.5 | AS52: 0.5 | AT52: TEST | AU52: TEST
A53: 0 | B53: 705429170 | C53: Contrôle | D53: 2014-10-08 | E53: 0 | F53: 1 | G53: 7054291700 | H53: 7054291701 | J53: 41920 | O53: 705429 | P53: 1 | Q53: 170 | R53: CONTROLE AVANT NITRURATION | S53: TEST | T53: TEST | U53: CONT | V53: TEST | W53: TEST | X53: 4.5 | Y53: TEST | Z53: TEST | AA53: TEST | AB53: TEST | AC53: TEST | AD53: TEST | AE53: 2014-10-08 | AF53: 00:00:00 | AH53: 00:00:00 | AI53: TEST | AJ53: TEST | AK53: TEST | AL53: TEST | AM53: TEST | AN53: TEST | AO53: TEST | AP53: TEST | AQ53: TEST | AR53: 4.5 | AS53: 0.5 | AT53: TEST | AU53: TEST
A54: 0 | B54: 705430190 | C54: Contrôle | D54: 2014-09-29 | E54: 1 | F54: 0 | G54: 7054301901 | H54: 7054301900 | I54: 41911 | O54: 705430 | P54: 1 | Q54: 190 | R54: CONTROLE DIM ET GEOMETRIQUE | S54: TEST | T54: TEST | U54: CONT | V54: TEST | W54: TEST | X54: 2.25 | Y54: TEST | Z54: TEST | AA54: TEST | AB54: TEST | AC54: TEST | AD54: TEST | AE54: 2014-09-29 | AF54: 00:00:00 | AH54: 00:00:00 | AI54: TEST | AJ54: TEST | AK54: TEST | AL54: TEST | AM54: TEST | AN54: TEST | AO54: TEST | AP54: TEST | AQ54: TEST | AR54: 3.85 | AS54: 0.25 | AT54: TEST | AU54: TEST
A55: 0 | B55: 705430190 | C55: Contrôle | D55: 2014-09-26 | E55: 0 | F55: 1 | G55: 7054301900 | H55: 7054301901 | J55: 41908 | O55: 705430 | P55: 1 | Q55: 190 | R55: CONTROLE DIM ET GEOMETRIQUE | S55: TEST | T55: TEST | U55: CONT | V55: TEST | W55: TEST | X55: 1.25 | Y55: TEST | Z55: TEST | AA55: TEST | AB55: TEST | AC55: TEST | AD55: TEST | AE55: 2014-09-26 | AF55: 00:00:00 | AH55: 00:00:00 | AI55: TEST | AJ55: TEST | AK55: TEST | AL55: TEST | AM55: TEST | AN55: TEST | AO55: TEST | AP55: TEST | AQ55: TEST | AR55: 3.85 | AS55: 0.25 | AT55: TEST | AU55: TEST
A56: 0 | B56: 705430190 | C56: Contrôle | D56: 2014-09-24 | E56: 1 | F56: 0 | G56: 7054301901 | H56: 7054301900 | I56: 41906 | O56: 705430 | P56: 1 | Q56: 190 | R56: CONTROLE DIM ET GEOMETRIQUE | S56: TEST | T56: TEST | U56: CONT | V56: TEST | W56: TEST | X56: 6 | Y56: TEST | Z56: TEST | AA56: TEST | AB56: TEST | AC56: TEST | AD56: TEST | AE56: 2014-09-24 | AF56: 00:00:00 | AH56: 00:00:00 | AI56: TEST | AJ56: TEST | AK56: TEST | AL56: TEST | AM56: TEST | AN56: TEST | AO56: TEST | AP56: TEST | AQ56: TEST | AR56: 3.85 | AS56: 0.25 | AT56: TEST | AU56: TEST
A57: 0 | B57: 705430190 | C57: Contrôle | D57: 2014-09-24 | E57: 0 | F57: 0 | G57: 7054301900 | H57: 7054301900 | O57: 705430 | P57: 1 | Q57: 190 | R57: CONTROLE DIM ET GEOMETRIQUE | S57: TEST | T57: TEST | U57: CONT | V57: TEST | W57: TEST | X57: 3 | Y57: TEST | Z57: TEST | AA57: TEST | AB57: TEST | AC57: TEST | AD57: TEST | AE57: 2014-09-24 | AF57: 00:00:00 | AH57: 00:00:00 | AI57: TEST | AJ57: TEST | AK57: TEST | AL57: TEST | AM57: TEST | AN57: TEST | AO57: TEST | AP57: TEST | AQ57: TEST | AR57: 3.85 | AS57: 0.25 | AT57: TEST | AU57: TEST
A58: 0 | B58: 705430190 | C58: Contrôle | D58: 2014-09-23 | E58: 0 | F58: 0 | G58: 7054301900 | H58: 7054301900 | O58: 705430 | P58: 1 | Q58: 190 | R58: CONTROLE DIM ET GEOMETRIQUE | S58: TEST | T58: TEST | U58: CONT | V58: TEST | W58: TEST | X58: 7 | Y58: TEST | Z58: TEST | AA58: TEST | AB58: TEST | AC58: TEST | AD58: TEST | AE58: 2014-09-23 | AF58: 00:00:00 | AH58: 00:00:00 | AI58: TEST | AJ58: TEST | AK58: TEST | AL58: TEST | AM58: TEST | AN58: TEST | AO58: TEST | AP58: TEST | AQ58: TEST | AR58: 3.85 | AS58: 0.25 | AT58: TEST | AU58: TEST
A59: 0 | B59: 705430190 | C59: Contrôle | D59: 2014-09-22 | E59: 0 | F59: 0 | G59: 7054301900 | H59: 7054301900 | O59: 705430 | P59: 1 | Q59: 190 | R59: CONTROLE DIM ET GEOMETRIQUE | S59: TEST | T59: TEST | U59: CONT | V59: TEST | W59: TEST | X59: 1 | Y59: TEST | Z59: TEST | AA59: TEST | AB59: TEST | AC59: TEST | AD59: TEST | AE59: 2014-09-22 | AF59: 00:00:00 | AH59: 00:00:00 | AI59: TEST | AJ59: TEST | AK59: TEST | AL59: TEST | AM59: TEST | AN59: TEST | AO59: TEST | AP59: TEST | AQ59: TEST | AR59: 3.85 | AS59: 0.25 | AT59: TEST | AU59: TEST
A60: 0 | B60: 705430190 | C60: Contrôle | D60: 2014-09-22 | E60: 0 | F60: 0 | G60: 7054301900 | H60: 7054301900 | O60: 705430 | P60: 1 | Q60: 190 | R60: CONTROLE DIM ET GEOMETRIQUE | S60: TEST | T60: TEST | U60: CONT | V60: TEST | W60: TEST | X60: 3.5 | Y60: TEST | Z60: TEST | AA60: TEST | AB60: TEST | AC60: TEST | AD60: TEST | AE60: 2014-09-22 | AF60: 00:00:00 | AH60: 00:00:00 | AI60: TEST | AJ60: TEST | AK60: TEST | AL60: TEST | AM60: TEST | AN60: TEST | AO60: TEST | AP60: TEST | AQ60: TEST | AR60: 3.85 | AS60: 0.25 | AT60: TEST | AU60: TEST
A61: 0 | B61: 705430190 | C61: Contrôle | D61: 2014-09-18 | E61: 0 | F61: 1 | G61: 7054301900 | H61: 7054301901 | J61: 41900 | O61: 705430 | P61: 1 | Q61: 190 | R61: CONTROLE DIM ET GEOMETRIQUE | S61: TEST | T61: TEST | U61: CONT | V61: TEST | W61: TEST | X61: 1 | Y61: TEST | Z61: TEST | AA61: TEST | AB61: TEST | AC61: TEST | AD61: TEST | AE61: 2014-09-18 | AF61: 00:00:00 | AH61: 00:00:00 | AI61: TEST | AJ61: TEST | AK61: TEST | AL61: TEST | AM61: TEST | AN61: TEST | AO61: TEST | AP61: TEST | AQ61: TEST | AR61: 3.85 | AS61: 0.25 | AT61: TEST | AU61: TEST
A62: 0 | B62: 705433190 | C62: Contrôle | D62: 2014-09-17 | E62: 1 | F62: 1 | G62: 7054331901 | H62: 7054331901 | I62: 41899 | J62: 41899 | K62: 41897 | L62: 2 | O62: 705433 | P62: 1 | Q62: 190 | R62: CONTROLE DIM. ET GEO. AVANT TRAITEMENT | S62: TEST | T62: TEST | U62: CONT | V62: TEST | W62: TEST | X62: 1.5 | Y62: TEST | Z62: TEST | AA62: TEST | AB62: TEST | AC62: TEST | AD62: TEST | AE62: 2014-09-17 | AF62: 00:00:00 | AH62: 00:00:00 | AI62: TEST | AJ62: TEST | AK62: TEST | AL62: TEST | AM62: TEST | AN62: TEST | AO62: TEST | AP62: TEST | AQ62: TEST | AR62: 8 | AS62: 0.5 | AT62: TEST | AU62: TEST
A63: 0 | B63: 705433210 | C63: Contrôle | D63: 2014-10-20 | E63: 1 | F63: 1 | G63: 7054332101 | H63: 7054332101 | I63: 41932 | J63: 41932 | O63: 705433 | P63: 1 | Q63: 210 | R63: CONTROLE DIM. ET GEO. APRES TRAITEMENT | S63: TEST | T63: TEST | U63: CONT | V63: TEST | W63: TEST | X63: 0.5 | Y63: TEST | Z63: TEST | AA63: TEST | AB63: TEST | AC63: TEST | AD63: TEST | AE63: 2014-10-20 | AF63: 00:00:00 | AH63: 00:00:00 | AI63: TEST | AJ63: TEST | AK63: TEST | AL63: TEST | AM63: TEST | AN63: TEST | AO63: TEST | AP63: TEST | AQ63: TEST | AR63: 1.01 | AS63: 0.5 | AT63: TEST | AU63: TEST
A64: 0 | B64: 705434190 | C64: Contrôle | D64: 2014-09-23 | E64: 1 | F64: 0 | G64: 7054341901 | H64: 7054341900 | I64: 41905 | K64: 41900 | L64: 5 | O64: 705434 | P64: 1 | Q64: 190 | R64: CONTROLE DIM. ET GEO. AVANT TRAITEMENT | S64: TEST | T64: TEST | U64: CONT | V64: TEST | W64: TEST | X64: 0.25 | Y64: TEST | Z64: TEST | AA64: TEST | AB64: TEST | AC64: TEST | AD64: TEST | AE64: 2014-09-23 | AF64: 00:00:00 | AH64: 00:00:00 | AI64: TEST | AJ64: TEST | AK64: TEST | AL64: TEST | AM64: TEST | AN64: TEST | AO64: TEST | AP64: TEST | AQ64: TEST | AR64: 8 | AS64: 0.5 | AT64: TEST | AU64: TEST
A65: 0 | B65: 705434190 | C65: Contrôle | D65: 2014-09-23 | E65: 0 | F65: 1 | G65: 7054341900 | H65: 7054341901 | J65: 41905 | O65: 705434 | P65: 1 | Q65: 190 | R65: CONTROLE DIM. ET GEO. AVANT TRAITEMENT | S65: TEST | T65: TEST | U65: CONT | V65: TEST | W65: TEST | X65: 0.01 | Y65: TEST | Z65: TEST | AA65: TEST | AB65: TEST | AC65: TEST | AD65: TEST | AE65: 2014-09-23 | AF65: 00:00:00 | AH65: 00:00:00 | AI65: TEST | AJ65: TEST | AK65: TEST | AL65: TEST | AM65: TEST | AN65: TEST | AO65: TEST | AP65: TEST | AQ65: TEST | AR65: 8 | AS65: 0.5 | AT65: TEST | AU65: TEST
A66: 0 | B66: 705434210 | C66: Contrôle | D66: 2014-10-13 | E66: 1 | F66: 0 | G66: 7054342101 | H66: 7054342100 | I66: 41925 | O66: 705434 | P66: 1 | Q66: 210 | R66: CONTROLE DIM. ET GEO. APRES TRAITEMENT | S66: TEST | T66: TEST | U66: CONT | V66: TEST | W66: TEST | X66: 2.5 | Y66: TEST | Z66: TEST | AA66: TEST | AB66: TEST | AC66: TEST | AD66: TEST | AE66: 2014-10-13 | AF66: 00:00:00 | AH66: 00:00:00 | AI66: TEST | AJ66: TEST | AK66: TEST | AL66: TEST | AM66: TEST | AN66: TEST | AO66: TEST | AP66: TEST | AQ66: TEST | AR66: 1.01 | AS66: 0.5 | AT66: TEST | AU66: TEST
A67: 0 | B67: 705434210 | C67: Contrôle | D67: 2014-10-13 | E67: 0 | F67: 0 | G67: 7054342100 | H67: 7054342100 | O67: 705434 | P67: 1 | Q67: 210 | R67: CONTROLE DIM. ET GEO. APRES TRAITEMENT | S67: TEST | T67: TEST | U67: CONT | V67: TEST | W67: TEST | X67: 2 | Y67: TEST | Z67: TEST | AA67: TEST | AB67: TEST | AC67: TEST | AD67: TEST | AE67: 2014-10-13 | AF67: 00:00:00 | AH67: 00:00:00 | AI67: TEST | AJ67: TEST | AK67: TEST | AL67: TEST | AM67: TEST | AN67: TEST | AO67: TEST | AP67: TEST | AQ67: TEST | AR67: 1.01 | AS67: 0.5 | AT67: TEST | AU67: TEST
A68: 0 | B68: 705434210 | C68: Contrôle | D68: 2014-10-13 | E68: 0 | F68: 0 | G68: 7054342100 | H68: 7054342100 | O68: 705434 | P68: 1 | Q68: 210 | R68: CONTROLE DIM. ET GEO. APRES TRAITEMENT | S68: TEST | T68: TEST | U68: CONT | V68: TEST | W68: TEST | X68: 0.1 | Y68: TEST | Z68: TEST | AA68: TEST | AB68: TEST | AC68: TEST | AD68: TEST | AE68: 2014-10-13 | AF68: 00:00:00 | AH68: 00:00:00 | AI68: TEST | AJ68: TEST | AK68: TEST | AL68: TEST | AM68: TEST | AN68: TEST | AO68: TEST | AP68: TEST | AQ68: TEST | AR68: 1.01 | AS68: 0.5 | AT68: TEST | AU68: TEST
A69: 0 | B69: 705434210 | C69: Contrôle | D69: 2014-10-10 | E69: 0 | F69: 1 | G69: 7054342100 | H69: 7054342101 | J69: 41922 | O69: 705434 | P69: 1 | Q69: 210 | R69: CONTROLE DIM. ET GEO. APRES TRAITEMENT | S69: TEST | T69: TEST | U69: CONT | V69: TEST | W69: TEST | X69: 0.5 | Y69: TEST | Z69: TEST | AA69: TEST | AB69: TEST | AC69: TEST | AD69: TEST | AE69: 2014-10-10 | AF69: 00:00:00 | AH69: 00:00:00 | AI69: TEST | AJ69: TEST | AK69: TEST | AL69: TEST | AM69: TEST | AN69: TEST | AO69: TEST | AP69: TEST | AQ69: TEST | AR69: 1.01 | AS69: 0.5 | AT69: TEST | AU69: TEST
A70: 0 | B70: 70714280 | C70: Contrôle | D70: 2014-11-04 | E70: 1 | F70: 1 | G70: 707142801 | H70: 707142801 | I70: 41947 | J70: 41947 | O70: 707142 | P70: 1 | Q70: 80 | R70: CONTROLE INTER OP | S70: TEST | T70: TEST | U70: CONT | V70: TEST | W70: TEST | X70: 0.3 | Y70: TEST | Z70: TEST | AA70: TEST | AB70: TEST | AC70: TEST | AD70: TEST | AE70: 2014-11-04 | AF70: 00:00:00 | AH70: 00:00:00 | AI70: TEST | AJ70: TEST | AK70: TEST | AL70: TEST | AM70: TEST | AN70: TEST | AO70: TEST | AP70: TEST | AQ70: TEST | AR70: 0.3 | AS70: 0.3 | AT70: TEST | AU70: TEST
A71: 0 | B71: 70594220 | C71: Contrôle | D71: 2014-10-23 | E71: 1 | F71: 1 | G71: 705942201 | H71: 705942201 | I71: 41935 | J71: 41935 | O71: 705942 | P71: 999/1 | Q71: 20 | R71: CONTROLE | S71: TEST | T71: TEST | U71: CONT | V71: TEST | W71: TEST | X71: 1.25 | Y71: TEST | Z71: TEST | AA71: TEST | AB71: TEST | AC71: TEST | AD71: TEST | AE71: 2014-10-23 | AF71: 00:00:00 | AH71: 00:00:00 | AI71: TEST | AJ71: TEST | AK71: TEST | AL71: TEST | AM71: TEST | AN71: TEST | AO71: TEST | AP71: TEST | AQ71: TEST | AR71: 0.64 | AS71: 0.25 | AT71: TEST | AU71: TEST
A72: 0 | B72: 70596080 | C72: Contrôle | D72: 2014-11-04 | E72: 1 | F72: 1 | G72: 705960801 | H72: 705960801 | I72: 41947 | J72: 41947 | O72: 705960 | P72: 1 | Q72: 80 | R72: CONTROLE DURETE | S72: TEST | T72: TEST | U72: CONT | V72: TEST | W72: TEST | X72: 0.5 | Y72: TEST | Z72: TEST | AA72: TEST | AB72: TEST | AC72: TEST | AD72: TEST | AE72: 2014-11-04 | AF72: 10:00:00 | AG72: 2014-11-04 | AH72: 10:30:00 | AI72: TEST | AJ72: TEST | AK72: TEST | AL72: TEST | AM72: TEST | AN72: TEST | AO72: TEST | AP72: TEST | AQ72: TEST | AR72: 0.5 | AS72: 0.5 | AT72: TEST | AU72: TEST
A73: 0 | B73: 705999280 | C73: Contrôle | D73: 2014-10-13 | E73: 1 | F73: 0 | G73: 7059992801 | H73: 7059992800 | I73: 41925 | K73: 41900 | L73: 25 | O73: 705999 | P73: 1 | Q73: 280 | R73: CONTROLE | S73: TEST | T73: TEST | U73: CONT | V73: TEST | W73: TEST | X73: 0.25 | Y73: TEST | Z73: TEST | AA73: TEST | AB73: TEST | AC73: TEST | AD73: TEST | AE73: 2014-10-13 | AF73: 14:15:00 | AG73: 2014-10-13 | AH73: 14:30:00 | AI73: TEST | AJ73: TEST | AK73: TEST | AL73: TEST | AM73: TEST | AN73: TEST | AO73: TEST | AP73: TEST | AQ73: TEST | AR73: 18.38 | AS73: 2 | AT73: TEST | AU73: TEST
A74: 0 | B74: 705999280 | C74: Contrôle | D74: 2014-10-01 | E74: 0 | F74: 0 | G74: 7059992800 | H74: 7059992800 | O74: 705999 | P74: 1 | Q74: 280 | R74: CONTROLE | S74: TEST | T74: TEST | U74: CONT | V74: TEST | W74: TEST | X74: 4 | Y74: TEST | Z74: TEST | AA74: TEST | AB74: TEST | AC74: TEST | AD74: TEST | AE74: 2014-10-01 | AF74: 00:00:00 | AH74: 00:00:00 | AI74: TEST | AJ74: TEST | AK74: TEST | AL74: TEST | AM74: TEST | AN74: TEST | AO74: TEST | AP74: TEST | AQ74: TEST | AR74: 18.38 | AS74: 2 | AT74: TEST | AU74: TEST
A75: 0 | B75: 705999280 | C75: Contrôle | D75: 2014-09-30 | E75: 0 | F75: 0 | G75: 7059992800 | H75: 7059992800 | O75: 705999 | P75: 1 | Q75: 280 | R75: CONTROLE | S75: TEST | T75: TEST | U75: CONT | V75: TEST | W75: TEST | X75: 3 | Y75: TEST | Z75: TEST | AA75: TEST | AB75: TEST | AC75: TEST | AD75: TEST | AE75: 2014-09-30 | AF75: 00:00:00 | AH75: 00:00:00 | AI75: TEST | AJ75: TEST | AK75: TEST | AL75: TEST | AM75: TEST | AN75: TEST | AO75: TEST | AP75: TEST | AQ75: TEST | AR75: 18.38 | AS75: 2 | AT75: TEST | AU75: TEST
A76: 0 | B76: 705999280 | C76: Contrôle | D76: 2014-09-29 | E76: 0 | F76: 0 | G76: 7059992800 | H76: 7059992800 | O76: 705999 | P76: 1 | Q76: 280 | R76: CONTROLE | S76: TEST | T76: TEST | U76: CONT | V76: TEST | W76: TEST | X76: 0.5 | Y76: TEST | Z76: TEST | AA76: TEST | AB76: TEST | AC76: TEST | AD76: TEST | AE76: 2014-09-29 | AF76: 00:00:00 | AH76: 00:00:00 | AI76: TEST | AJ76: TEST | AK76: TEST | AL76: TEST | AM76: TEST | AN76: TEST | AO76: TEST | AP76: TEST | AQ76: TEST | AR76: 18.38 | AS76: 2 | AT76: TEST | AU76: TEST
A77: 0 | B77: 705999280 | C77: Contrôle | D77: 2014-09-29 | E77: 0 | F77: 0 | G77: 7059992800 | H77: 7059992800 | O77: 705999 | P77: 1 | Q77: 280 | R77: CONTROLE | S77: TEST | T77: TEST | U77: CONT | V77: TEST | W77: TEST | X77: 3 | Y77: TEST | Z77: TEST | AA77: TEST | AB77: TEST | AC77: TEST | AD77: TEST | AE77: 2014-09-29 | AF77: 00:00:00 | AH77: 00:00:00 | AI77: TEST | AJ77: TEST | AK77: TEST | AL77: TEST | AM77: TEST | AN77: TEST | AO77: TEST | AP77: TEST | AQ77: TEST | AR77: 18.38 | AS77: 2 | AT77: TEST | AU77: TEST
A78: 0 | B78: 705999280 | C78: Contrôle | D78: 2014-09-26 | E78: 0 | F78: 0 | G78: 7059992800 | H78: 7059992800 | O78: 705999 | P78: 1 | Q78: 280 | R78: CONTROLE | S78: TEST | T78: TEST | U78: CONT | V78: TEST | W78: TEST | X78: 4.5 | Y78: TEST | Z78: TEST | AA78: TEST | AB78: TEST | AC78: TEST | AD78: TEST | AE78: 2014-09-26 | AF78: 00:00:00 | AH78: 00:00:00 | AI78: TEST | AJ78: TEST | AK78: TEST | AL78: TEST | AM78: TEST | AN78: TEST | AO78: TEST | AP78: TEST | AQ78: TEST | AR78: 18.38 | AS78: 2 | AT78: TEST | AU78: TEST
A79: 0 | B79: 705999280 | C79: Contrôle | D79: 2014-09-26 | E79: 0 | F79: 0 | G79: 7059992800 | H79: 7059992800 | O79: 705999 | P79: 1 | Q79: 280 | R79: CONTROLE | S79: TEST | T79: TEST | U79: CONT | V79: TEST | W79: TEST | X79: 7 | Y79: TEST | Z79: TEST | AA79: TEST | AB79: TEST | AC79: TEST | AD79: TEST | AE79: 2014-09-26 | AF79: 00:00:00 | AH79: 00:00:00 | AI79: TEST | AJ79: TEST | AK79: TEST | AL79: TEST | AM79: TEST | AN79: TEST | AO79: TEST | AP79: TEST | AQ79: TEST | AR79: 18.38 | AS79: 2 | AT79: TEST | AU79: TEST
A80: 0 | B80: 705999280 | C80: Contrôle | D80: 2014-09-26 | E80: 0 | F80: 0 | G80: 7059992800 | H80: 7059992800 | O80: 705999 | P80: 1 | Q80: 280 | R80: CONTROLE | S80: TEST | T80: TEST | U80: CONT | V80: TEST | W80: TEST | X80: 5.83 | Y80: TEST | Z80: TEST | AA80: TEST | AB80: TEST | AC80: TEST | AD80: TEST | AE80: 2014-09-26 | AF80: 07:30:00 | AG80: 2014-09-26 | AH80: 13:20:00 | AI80: TEST | AJ80: TEST | AK80: TEST | AL80: TEST | AM80: TEST | AN80: TEST | AO80: TEST | AP80: TEST | AQ80: TEST | AR80: 18.38 | AS80: 2 | AT80: TEST | AU80: TEST
A81: 0 | B81: 705999280 | C81: Contrôle | D81: 2014-09-25 | E81: 0 | F81: 0 | G81: 7059992800 | H81: 7059992800 | O81: 705999 | P81: 1 | Q81: 280 | R81: CONTROLE | S81: TEST | T81: TEST | U81: CONT | V81: TEST | W81: TEST | X81: 1.5 | Y81: TEST | Z81: TEST | AA81: TEST | AB81: TEST | AC81: TEST | AD81: TEST | AE81: 2014-09-25 | AF81: 00:00:00 | AH81: 00:00:00 | AI81: TEST | AJ81: TEST | AK81: TEST | AL81: TEST | AM81: TEST | AN81: TEST | AO81: TEST | AP81: TEST | AQ81: TEST | AR81: 18.38 | AS81: 2 | AT81: TEST | AU81: TEST
A82: 0 | B82: 705999280 | C82: Contrôle | D82: 2014-09-25 | E82: 0 | F82: 0 | G82: 7059992800 | H82: 7059992800 | O82: 705999 | P82: 1 | Q82: 280 | R82: CONTROLE | S82: TEST | T82: TEST | U82: CONT | V82: TEST | W82: TEST | X82: 6.45 | Y82: TEST | Z82: TEST | AA82: TEST | AB82: TEST | AC82: TEST | AD82: TEST | AE82: 2014-09-25 | AF82: 00:00:00 | AH82: 00:00:00 | AI82: TEST | AJ82: TEST | AK82: TEST | AL82: TEST | AM82: TEST | AN82: TEST | AO82: TEST | AP82: TEST | AQ82: TEST | AR82: 18.38 | AS82: 2 | AT82: TEST | AU82: TEST
A83: 0 | B83: 705999280 | C83: Contrôle | D83: 2014-09-25 | E83: 0 | F83: 0 | G83: 7059992800 | H83: 7059992800 | O83: 705999 | P83: 1 | Q83: 280 | R83: CONTROLE | S83: TEST | T83: TEST | U83: CONT | V83: TEST | W83: TEST | X83: 6.5 | Y83: TEST | Z83: TEST | AA83: TEST | AB83: TEST | AC83: TEST | AD83: TEST | AE83: 2014-09-25 | AF83: 00:00:00 | AH83: 00:00:00 | AI83: TEST | AJ83: TEST | AK83: TEST | AL83: TEST | AM83: TEST | AN83: TEST | AO83: TEST | AP83: TEST | AQ83: TEST | AR83: 18.38 | AS83: 2 | AT83: TEST | AU83: TEST
A84: 0 | B84: 705999280 | C84: Contrôle | D84: 2014-09-25 | E84: 0 | F84: 0 | G84: 7059992800 | H84: 7059992800 | O84: 705999 | P84: 1 | Q84: 280 | R84: CONTROLE | S84: TEST | T84: TEST | U84: CONT | V84: TEST | W84: TEST | X84: 4 | Y84: TEST | Z84: TEST | AA84: TEST | AB84: TEST | AC84: TEST | AD84: TEST | AE84: 2014-09-25 | AF84: 00:00:00 | AH84: 00:00:00 | AI84: TEST | AJ84: TEST | AK84: TEST | AL84: TEST | AM84: TEST | AN84: TEST | AO84: TEST | AP84: TEST | AQ84: TEST | AR84: 18.38 | AS84: 2 | AT84: TEST | AU84: TEST
A85: 0 | B85: 705999280 | C85: Contrôle | D85: 2014-09-24 | E85: 0 | F85: 0 | G85: 7059992800 | H85: 7059992800 | O85: 705999 | P85: 1 | Q85: 280 | R85: CONTROLE | S85: TEST | T85: TEST | U85: CONT | V85: TEST | W85: TEST | X85: 6.25 | Y85: TEST | Z85: TEST | AA85: TEST | AB85: TEST | AC85: TEST | AD85: TEST | AE85: 2014-09-24 | AF85: 00:00:00 | AH85: 00:00:00 | AI85: TEST | AJ85: TEST | AK85: TEST | AL85: TEST | AM85: TEST | AN85: TEST | AO85: TEST | AP85: TEST | AQ85: TEST | AR85: 18.38 | AS85: 2 | AT85: TEST | AU85: TEST
A86: 0 | B86: 705999280 | C86: Contrôle | D86: 2014-09-24 | E86: 0 | F86: 0 | G86: 7059992800 | H86: 7059992800 | O86: 705999 | P86: 1 | Q86: 280 | R86: CONTROLE | S86: TEST | T86: TEST | U86: CONT | V86: TEST | W86: TEST | X86: 7.75 | Y86: TEST | Z86: TEST | AA86: TEST | AB86: TEST | AC86: TEST | AD86: TEST | AE86: 2014-09-24 | AF86: 00:00:00 | AH86: 00:00:00 | AI86: TEST | AJ86: TEST | AK86: TEST | AL86: TEST | AM86: TEST | AN86: TEST | AO86: TEST | AP86: TEST | AQ86: TEST | AR86: 18.38 | AS86: 2 | AT86: TEST | AU86: TEST
A87: 0 | B87: 705999280 | C87: Contrôle | D87: 2014-09-23 | E87: 0 | F87: 0 | G87: 7059992800 | H87: 7059992800 | O87: 705999 | P87: 1 | Q87: 280 | R87: CONTROLE | S87: TEST | T87: TEST | U87: CONT | V87: TEST | W87: TEST | X87: 7.25 | Y87: TEST | Z87: TEST | AA87: TEST | AB87: TEST | AC87: TEST | AD87: TEST | AE87: 2014-09-23 | AF87: 00:00:00 | AH87: 00:00:00 | AI87: TEST | AJ87: TEST | AK87: TEST | AL87: TEST | AM87: TEST | AN87: TEST | AO87: TEST | AP87: TEST | AQ87: TEST | AR87: 18.38 | AS87: 2 | AT87: TEST | AU87: TEST
A88: 0 | B88: 705999280 | C88: Contrôle | D88: 2014-09-22 | E88: 0 | F88: 0 | G88: 7059992800 | H88: 7059992800 | O88: 705999 | P88: 1 | Q88: 280 | R88: CONTROLE | S88: TEST | T88: TEST | U88: CONT | V88: TEST | W88: TEST | X88: 1.5 | Y88: TEST | Z88: TEST | AA88: TEST | AB88: TEST | AC88: TEST | AD88: TEST | AE88: 2014-09-22 | AF88: 00:00:00 | AH88: 00:00:00 | AI88: TEST | AJ88: TEST | AK88: TEST | AL88: TEST | AM88: TEST | AN88: TEST | AO88: TEST | AP88: TEST | AQ88: TEST | AR88: 18.38 | AS88: 2 | AT88: TEST | AU88: TEST
A89: 0 | B89: 705999280 | C89: Contrôle | D89: 2014-09-22 | E89: 0 | F89: 1 | G89: 7059992800 | H89: 7059992801 | J89: 41904 | O89: 705999 | P89: 1 | Q89: 280 | R89: CONTROLE | S89: TEST | T89: TEST | U89: CONT | V89: TEST | W89: TEST | X89: 1.5 | Y89: TEST | Z89: TEST | AA89: TEST | AB89: TEST | AC89: TEST | AD89: TEST | AE89: 2014-09-22 | AF89: 00:00:00 | AH89: 00:00:00 | AI89: TEST | AJ89: TEST | AK89: TEST | AL89: TEST | AM89: TEST | AN89: TEST | AO89: TEST | AP89: TEST | AQ89: TEST | AR89: 18.38 | AS89: 2 | AT89: TEST | AU89: TEST
A90: 0 | B90: 705999300 | C90: Contrôle | D90: 2014-10-16 | E90: 1 | F90: 1 | G90: 7059993001 | H90: 7059993001 | I90: 41928 | J90: 41928 | K90: 41926 | L90: 2 | O90: 705999 | P90: 1 | Q90: 300 | R90: CONTROLE | S90: TEST | T90: TEST | U90: CONT | V90: TEST | W90: TEST | X90: 1 | Y90: TEST | Z90: TEST | AA90: TEST | AB90: TEST | AC90: TEST | AD90: TEST | AE90: 2014-10-16 | AF90: 00:00:00 | AH90: 00:00:00 | AI90: TEST | AJ90: TEST | AK90: TEST | AL90: TEST | AM90: TEST | AN90: TEST | AO90: TEST | AP90: TEST | AQ90: TEST | AR90: 3.89 | AS90: 1 | AT90: TEST | AU90: TEST
A91: 0 | B91: 706306200 | C91: Contrôle | D91: 2014-09-30 | E91: 1 | F91: 0 | G91: 7063062001 | H91: 7063062000 | I91: 41912 | O91: 706306 | P91: 1 | Q91: 200 | R91: CONTROLE | S91: TEST | T91: TEST | U91: CONT | V91: TEST | W91: TEST | X91: 2.75 | Y91: TEST | Z91: TEST | AA91: TEST | AB91: TEST | AC91: TEST | AD91: TEST | AE91: 2014-09-30 | AF91: 00:00:00 | AH91: 00:00:00 | AI91: TEST | AJ91: TEST | AK91: TEST | AL91: TEST | AM91: TEST | AN91: TEST | AO91: TEST | AP91: TEST | AQ91: TEST | AR91: 3.37 | AS91: 0.5 | AT91: TEST | AU91: TEST
A92: 0 | B92: 706306200 | C92: Contrôle | D92: 2014-09-29 | E92: 0 | F92: 1 | G92: 7063062000 | H92: 7063062001 | J92: 41911 | O92: 706306 | P92: 1 | Q92: 200 | R92: CONTROLE | S92: TEST | T92: TEST | U92: CONT | V92: TEST | W92: TEST | X92: 0.5 | Y92: TEST | Z92: TEST | AA92: TEST | AB92: TEST | AC92: TEST | AD92: TEST | AE92: 2014-09-29 | AF92: 00:00:00 | AH92: 00:00:00 | AI92: TEST | AJ92: TEST | AK92: TEST | AL92: TEST | AM92: TEST | AN92: TEST | AO92: TEST | AP92: TEST | AQ92: TEST | AR92: 3.37 | AS92: 0.5 | AT92: TEST | AU92: TEST
A93: 0 | B93: 706306280 | C93: Contrôle | D93: 2014-11-12 | E93: 1 | F93: 1 | G93: 7063062801 | H93: 7063062801 | I93: 41955 | J93: 41955 | K93: 41949 | L93: 6 | O93: 706306 | P93: 1 | Q93: 280 | R93: CONTROLE | S93: TEST | T93: TEST | U93: CONT | V93: TEST | W93: TEST | X93: 2 | Y93: TEST | Z93: TEST | AA93: TEST | AB93: TEST | AC93: TEST | AD93: TEST | AE93: 2014-11-12 | AF93: 00:00:00 | AH93: 00:00:00 | AI93: TEST | AJ93: TEST | AK93: TEST | AL93: TEST | AM93: TEST | AN93: TEST | AO93: TEST | AP93: TEST | AQ93: TEST | AR93: 4.87 | AS93: 2 | AT93: TEST | AU93: TEST
A94: 0 | B94: 706432210 | C94: Contrôle | D94: 2014-10-26 | E94: 1 | F94: 0 | G94: 7064322101 | H94: 7064322100 | I94: 41938 | K94: 41907 | L94: 31 | O94: 706432 | P94: 1 | Q94: 210 | R94: CONTROLE | S94: TEST | T94: TEST | U94: CONT | V94: TEST | W94: TEST | X94: 3.67 | Y94: TEST | Z94: TEST | AA94: TEST | AB94: TEST | AC94: TEST | AD94: TEST | AE94: 2014-10-26 | AF94: 13:20:00 | AG94: 2014-10-26 | AH94: 17:00:00 | AI94: TEST | AJ94: TEST | AK94: TEST | AL94: TEST | AM94: TEST | AN94: TEST | AO94: TEST | AP94: TEST | AQ94: TEST | AR94: 3.08 | AS94: 0.5 | AT94: TEST | AU94: TEST
A95: 0 | B95: 706432210 | C95: Contrôle | D95: 2014-10-26 | E95: 0 | F95: 1 | G95: 7064322100 | H95: 7064322101 | J95: 41938 | O95: 706432 | P95: 1 | Q95: 210 | R95: CONTROLE | S95: TEST | T95: TEST | U95: CONT | V95: TEST | W95: TEST | X95: 3.33 | Y95: TEST | Z95: TEST | AA95: TEST | AB95: TEST | AC95: TEST | AD95: TEST | AE95: 2014-10-26 | AF95: 17:20:00 | AG95: 2014-10-26 | AH95: 20:40:00 | AI95: TEST | AJ95: TEST | AK95: TEST | AL95: TEST | AM95: TEST | AN95: TEST | AO95: TEST | AP95: TEST | AQ95: TEST | AR95: 3.08 | AS95: 0.5 | AT95: TEST | AU95: TEST
A96: 0 | B96: 706432210 | C96: Contrôle | D96: 2014-10-01 | E96: 1 | F96: 1 | G96: 7064322101 | H96: 7064322101 | I96: 41913 | J96: 41913 | K96: 41907 | L96: 6 | O96: 706432 | P96: 1 | Q96: 210 | R96: CONTROLE | S96: TEST | T96: TEST | U96: CONT | V96: TEST | W96: TEST | X96: 1 | Y96: TEST | Z96: TEST | AA96: TEST | AB96: TEST | AC96: TEST | AD96: TEST | AE96: 2014-10-01 | AF96: 00:00:00 | AH96: 00:00:00 | AI96: TEST | AJ96: TEST | AK96: TEST | AL96: TEST | AM96: TEST | AN96: TEST | AO96: TEST | AP96: TEST | AQ96: TEST | AR96: 3.08 | AS96: 0.5 | AT96: TEST | AU96: TEST
A97: 0 | B97: 706444100 | C97: Contrôle | D97: 2014-10-21 | E97: 1 | F97: 1 | G97: 7064441001 | H97: 7064441001 | I97: 41933 | J97: 41933 | O97: 706444 | P97: 1 | Q97: 100 | R97: CONTROLE | S97: TEST | T97: TEST | U97: CONT | V97: TEST | W97: TEST | X97: 3.5 | Y97: TEST | Z97: TEST | AA97: TEST | AB97: TEST | AC97: TEST | AD97: TEST | AE97: 2014-10-21 | AF97: 00:00:00 | AH97: 00:00:00 | AI97: TEST | AJ97: TEST | AK97: TEST | AL97: TEST | AM97: TEST | AN97: TEST | AO97: TEST | AP97: TEST | AQ97: TEST | AR97: 21 | AS97: 0 | AT97: TEST | AU97: TEST
A98: 0 | B98: 707054130 | C98: Contrôle | D98: 2014-10-30 | E98: 1 | F98: 1 | G98: 7070541301 | H98: 7070541301 | I98: 41942 | J98: 41942 | O98: 707054 | P98: 1 | Q98: 130 | R98: CONTROLE DIMENSIONNEL/GEOMETRIQUE | S98: TEST | T98: TEST | U98: CONT | V98: TEST | W98: TEST | X98: 0.8 | Y98: TEST | Z98: TEST | AA98: TEST | AB98: TEST | AC98: TEST | AD98: TEST | AE98: 2014-10-30 | AF98: 00:00:00 | AH98: 00:00:00 | AI98: TEST | AJ98: TEST | AK98: TEST | AL98: TEST | AM98: TEST | AN98: TEST | AO98: TEST | AP98: TEST | AQ98: TEST | AR98: 4.25 | AS98: 0.5 | AT98: TEST | AU98: TEST
A99: 0 | B99: 70706640 | C99: Contrôle | D99: 2014-10-30 | E99: 1 | F99: 1 | G99: 707066401 | H99: 707066401 | I99: 41942 | J99: 41942 | K99: 41942 | L99: 0 | O99: 707066 | P99: 1 | Q99: 40 | R99: CONTRÔLE INTER OP | S99: TEST | T99: TEST | U99: COIN | V99: TEST | W99: TEST | X99: 0.25 | Y99: TEST | Z99: TEST | AA99: TEST | AB99: TEST | AC99: TEST | AD99: TEST | AE99: 2014-10-30 | AF99: 00:00:00 | AH99: 00:00:00 | AI99: TEST | AJ99: TEST | AK99: TEST | AL99: TEST | AM99: TEST | AN99: TEST | AO99: TEST | AP99: TEST | AQ99: TEST | AR99: 2 | AS99: 2 | AT99: TEST | AU99: TEST
A100: 0 | B100: 706449110 | C100: Contrôle | D100: 2014-10-14 | E100: 1 | F100: 1 | G100: 7064491101 | H100: 7064491101 | I100: 41926 | J100: 41926 | O100: 706449 | P100: 1 | Q100: 110 | R100: CONTRÔLE INTER OP | S100: TEST | T100: TEST | U100: COIN | V100: TEST | W100: TEST | X100: 3 | Y100: TEST | Z100: TEST | AA100: TEST | AB100: TEST | AC100: TEST | AD100: TEST | AE100: 2014-10-14 | AF100: 00:00:00 | AH100: 00:00:00 | AI100: TEST | AJ100: TEST | AK100: TEST | AL100: TEST | AM100: TEST | AN100: TEST | AO100: TEST | AP100: TEST | AQ100: TEST | AR100: 1.45 | AS100: 0.25 | AT100: TEST | AU100: TEST
A101: 0 | B101: 706450170 | C101: Contrôle | D101: 2014-10-02 | E101: 1 | F101: 1 | G101: 7064501701 | H101: 7064501701 | I101: 41914 | J101: 41914 | K101: 41911 | L101: 3 | O101: 706450 | P101: 1 | Q101: 170 | R101: CONTROLE | S101: TEST | T101: TEST | U101: CONT | V101: TEST | W101: TEST | X101: 0.75 | Y101: TEST | Z101: TEST | AA101: TEST | AB101: TEST | AC101: TEST | AD101: TEST | AE101: 2014-10-02 | AF101: 07:45:00 | AG101: 2014-10-02 | AH101: 08:30:00 | AI101: TEST | AJ101: TEST | AK101: TEST | AL101: TEST | AM101: TEST | AN101: TEST | AO101: TEST | AP101: TEST | AQ101: TEST | AR101: 0.25 | AS101: 0.25 | AT101: TEST | AU101: TEST
A102: 0 | B102: 706487150 | C102: Contrôle | D102: 2014-10-22 | E102: 1 | F102: 0 | G102: 7064871501 | H102: 7064871500 | I102: 41934 | K102: 41927 | L102: 7 | O102: 706487 | P102: 1 | Q102: 150 | R102: CONTROLE | S102: TEST | T102: TEST | U102: CONT | V102: TEST | W102: TEST | X102: 4 | Y102: TEST | Z102: TEST | AA102: TEST | AB102: TEST | AC102: TEST | AD102: TEST | AE102: 2014-10-22 | AF102: 00:00:00 | AH102: 00:00:00 | AI102: TEST | AJ102: TEST | AK102: TEST | AL102: TEST | AM102: TEST | AN102: TEST | AO102: TEST | AP102: TEST | AQ102: TEST | AR102: 12.16 | AS102: 0 | AT102: TEST | AU102: TEST
A103: 0 | B103: 706487150 | C103: Contrôle | D103: 2014-10-21 | E103: 0 | F103: 1 | G103: 7064871500 | H103: 7064871501 | J103: 41933 | O103: 706487 | P103: 1 | Q103: 150 | R103: CONTROLE | S103: TEST | T103: TEST | U103: CONT | V103: TEST | W103: TEST | X103: 1.5 | Y103: TEST | Z103: TEST | AA103: TEST | AB103: TEST | AC103: TEST | AD103: TEST | AE103: 2014-10-21 | AF103: 00:00:00 | AH103: 00:00:00 | AI103: TEST | AJ103: TEST | AK103: TEST | AL103: TEST | AM103: TEST | AN103: TEST | AO103: TEST | AP103: TEST | AQ103: TEST | AR103: 12.16 | AS103: 0 | AT103: TEST | AU103: TEST
A104: 0 | B104: 707159120 | C104: Contrôle | D104: 2014-10-28 | E104: 1 | F104: 1 | G104: 7071591201 | H104: 7071591201 | I104: 41940 | J104: 41940 | K104: 41940 | L104: 0 | O104: 707159 | P104: 1 | Q104: 120 | R104: CONTROLE | S104: TEST | T104: TEST | U104: CONT | V104: TEST | W104: TEST | X104: 1.4 | Y104: TEST | Z104: TEST | AA104: TEST | AB104: TEST | AC104: TEST | AD104: TEST | AE104: 2014-10-28 | AF104: 00:00:00 | AH104: 00:00:00 | AI104: TEST | AJ104: TEST | AK104: TEST | AL104: TEST | AM104: TEST | AN104: TEST | AO104: TEST | AP104: TEST | AQ104: TEST | AR104: 2 | AS104: 2 | AT104: TEST | AU104: TEST
A105: 0 | B105: 70716380 | C105: Contrôle | D105: 2014-10-28 | E105: 1 | F105: 1 | G105: 707163801 | H105: 707163801 | I105: 41940 | J105: 41940 | O105: 707163 | P105: 1 | Q105: 80 | R105: CONTRÔLE INTER OP | S105: TEST | T105: TEST | U105: COIN | V105: TEST | W105: TEST | X105: 1 | Y105: TEST | Z105: TEST | AA105: TEST | AB105: TEST | AC105: TEST | AD105: TEST | AE105: 2014-10-28 | AF105: 00:00:00 | AH105: 00:00:00 | AI105: TEST | AJ105: TEST | AK105: TEST | AL105: TEST | AM105: TEST | AN105: TEST | AO105: TEST | AP105: TEST | AQ105: TEST | AR105: 17.5 | AS105: 0 | AT105: TEST | AU105: TEST
A106: 0 | B106: 70723970 | C106: Contrôle | D106: 2014-10-28 | E106: 1 | F106: 1 | G106: 707239701 | H106: 707239701 | I106: 41940 | J106: 41940 | K106: 41919 | L106: 21 | O106: 707239 | P106: 1 | Q106: 70 | R106: CONTROLE | S106: TEST | T106: TEST | U106: CONT | V106: TEST | W106: TEST | X106: 0.5 | Y106: TEST | Z106: TEST | AA106: TEST | AB106: TEST | AC106: TEST | AD106: TEST | AE106: 2014-10-28 | AF106: 00:00:00 | AH106: 00:00:00 | AI106: TEST | AJ106: TEST | AK106: TEST | AL106: TEST | AM106: TEST | AN106: TEST | AO106: TEST | AP106: TEST | AQ106: TEST | AR106: 8 | AS106: 0.5 | AT106: TEST | AU106: TEST
A107: 0 | B107: 70724050 | C107: Contrôle | D107: 2014-10-28 | E107: 1 | F107: 0 | G107: 707240501 | H107: 707240500 | I107: 41940 | K107: 41927 | L107: 13 | O107: 707240 | P107: 1 | Q107: 50 | R107: FRAISAGE CENTRE USINAGE | S107: TEST | T107: TEST | U107: CONT | V107: TEST | W107: TEST | X107: 0.95 | Y107: TEST | Z107: TEST | AA107: TEST | AB107: TEST | AC107: TEST | AD107: TEST | AE107: 2014-10-28 | AF107: 07:01:00 | AG107: 2014-10-28 | AH107: 07:58:00 | AI107: TEST | AJ107: TEST | AK107: TEST | AL107: TEST | AM107: TEST | AN107: TEST | AO107: TEST | AP107: TEST | AQ107: TEST | AR107: 19.75 | AS107: 1 | AT107: TEST | AU107: TEST
A108: 0 | B108: 70724050 | C108: Contrôle | D108: 2014-10-28 | E108: 0 | F108: 0 | G108: 707240500 | H108: 707240500 | O108: 707240 | P108: 1 | Q108: 50 | R108: FRAISAGE CENTRE USINAGE | S108: TEST | T108: TEST | U108: CONT | V108: TEST | W108: TEST | X108: 3.4 | Y108: TEST | Z108: TEST | AA108: TEST | AB108: TEST | AC108: TEST | AD108: TEST | AE108: 2014-10-28 | AF108: 08:06:00 | AG108: 2014-10-28 | AH108: 11:30:00 | AI108: TEST | AJ108: TEST | AK108: TEST | AL108: TEST | AM108: TEST | AN108: TEST | AO108: TEST | AP108: TEST | AQ108: TEST | AR108: 19.75 | AS108: 1 | AT108: TEST | AU108: TEST
A109: 0 | B109: 70724050 | C109: Contrôle | D109: 2014-10-28 | E109: 0 | F109: 1 | G109: 707240500 | H109: 707240501 | J109: 41940 | O109: 707240 | P109: 1 | Q109: 50 | R109: FRAISAGE CENTRE USINAGE | S109: TEST | T109: TEST | U109: CONT | V109: TEST | W109: TEST | X109: 3.8 | Y109: TEST | Z109: TEST | AA109: TEST | AB109: TEST | AC109: TEST | AD109: TEST | AE109: 2014-10-28 | AF109: 12:10:00 | AG109: 2014-10-28 | AH109: 15:58:00 | AI109: TEST | AJ109: TEST | AK109: TEST | AL109: TEST | AM109: TEST | AN109: TEST | AO109: TEST | AP109: TEST | AQ109: TEST | AR109: 19.75 | AS109: 1 | AT109: TEST | AU109: TEST
A110: 0 | B110: 707105200 | C110: Contrôle | D110: 2014-10-27 | E110: 1 | F110: 1 | G110: 7071052001 | H110: 7071052001 | I110: 41939 | J110: 41939 | K110: 41905 | L110: 34 | O110: 707105 | P110: 1 | Q110: 200 | R110: CONTROLE | S110: TEST | T110: TEST | U110: CONT | V110: TEST | W110: TEST | X110: 1.5 | Y110: TEST | Z110: TEST | AA110: TEST | AB110: TEST | AC110: TEST | AD110: TEST | AE110: 2014-10-27 | AF110: 00:00:00 | AH110: 00:00:00 | AI110: TEST | AJ110: TEST | AK110: TEST | AL110: TEST | AM110: TEST | AN110: TEST | AO110: TEST | AP110: TEST | AQ110: TEST | AR110: 0.01 | AS110: 0.01 | AT110: TEST | AU110: TEST
A111: 0 | B111: 70724050 | C111: Contrôle | D111: 2014-10-27 | E111: 1 | F111: 0 | G111: 707240501 | H111: 707240500 | I111: 41939 | K111: 41927 | L111: 12 | O111: 707240 | P111: 1 | Q111: 50 | R111: FRAISAGE CENTRE USINAGE | S111: TEST | T111: TEST | U111: CONT | V111: TEST | W111: TEST | X111: 1.03 | Y111: TEST | Z111: TEST | AA111: TEST | AB111: TEST | AC111: TEST | AD111: TEST | AE111: 2014-10-27 | AF111: 06:57:00 | AG111: 2014-10-27 | AH111: 07:59:00 | AI111: TEST | AJ111: TEST | AK111: TEST | AL111: TEST | AM111: TEST | AN111: TEST | AO111: TEST | AP111: TEST | AQ111: TEST | AR111: 19.75 | AS111: 1 | AT111: TEST | AU111: TEST
A112: 0 | B112: 70724050 | C112: Contrôle | D112: 2014-10-27 | E112: 0 | F112: 0 | G112: 707240500 | H112: 707240500 | O112: 707240 | P112: 1 | Q112: 50 | R112: FRAISAGE CENTRE USINAGE | S112: TEST | T112: TEST | U112: CONT | V112: TEST | W112: TEST | X112: 3.3 | Y112: TEST | Z112: TEST | AA112: TEST | AB112: TEST | AC112: TEST | AD112: TEST | AE112: 2014-10-27 | AF112: 08:15:00 | AG112: 2014-10-27 | AH112: 11:33:00 | AI112: TEST | AJ112: TEST | AK112: TEST | AL112: TEST | AM112: TEST | AN112: TEST | AO112: TEST | AP112: TEST | AQ112: TEST | AR112: 19.75 | AS112: 1 | AT112: TEST | AU112: TEST
A113: 0 | B113: 70724050 | C113: Contrôle | D113: 2014-10-27 | E113: 0 | F113: 1 | G113: 707240500 | H113: 707240501 | J113: 41939 | O113: 707240 | P113: 1 | Q113: 50 | R113: FRAISAGE CENTRE USINAGE | S113: TEST | T113: TEST | U113: CONT | V113: TEST | W113: TEST | X113: 3.78 | Y113: TEST | Z113: TEST | AA113: TEST | AB113: TEST | AC113: TEST | AD113: TEST | AE113: 2014-10-27 | AF113: 12:12:00 | AG113: 2014-10-27 | AH113: 15:59:00 | AI113: TEST | AJ113: TEST | AK113: TEST | AL113: TEST | AM113: TEST | AN113: TEST | AO113: TEST | AP113: TEST | AQ113: TEST | AR113: 19.75 | AS113: 1 | AT113: TEST | AU113: TEST
A114: 0 | B114: 706582130 | C114: Contrôle | D114: 2014-09-16 | E114: 1 | F114: 1 | G114: 7065821301 | H114: 7065821301 | I114: 41898 | J114: 41898 | K114: 41898 | L114: 0 | O114: 706582 | P114: 1 | Q114: 130 | R114: CONTROLE DIM. ET GEO. AVANT TRAITEMENT | S114: TEST | T114: TEST | U114: CONT | V114: TEST | W114: TEST | X114: 0.5 | Y114: TEST | Z114: TEST | AA114: TEST | AB114: TEST | AC114: TEST | AD114: TEST | AE114: 2014-09-16 | AF114: 00:00:00 | AH114: 00:00:00 | AI114: TEST | AJ114: TEST | AK114: TEST | AL114: TEST | AM114: TEST | AN114: TEST | AO114: TEST | AP114: TEST | AQ114: TEST | AR114: 2.35 | AS114: 0.25 | AT114: TEST | AU114: TEST
A115: 0 | B115: 706582150 | C115: Contrôle | D115: 2014-10-17 | E115: 1 | F115: 0 | G115: 7065821501 | H115: 7065821500 | I115: 41929 | O115: 706582 | P115: 1 | Q115: 150 | R115: CONTROLE DIM. ET GEO. APRES TRAITEMENT | S115: TEST | T115: TEST | U115: CONT | V115: TEST | W115: TEST | X115: 3.75 | Y115: TEST | Z115: TEST | AA115: TEST | AB115: TEST | AC115: TEST | AD115: TEST | AE115: 2014-10-17 | AF115: 00:00:00 | AH115: 00:00:00 | AI115: TEST | AJ115: TEST | AK115: TEST | AL115: TEST | AM115: TEST | AN115: TEST | AO115: TEST | AP115: TEST | AQ115: TEST | AR115: 3.25 | AS115: 0.25 | AT115: TEST | AU115: TEST
A116: 0 | B116: 706582150 | C116: Contrôle | D116: 2014-10-16 | E116: 0 | F116: 0 | G116: 7065821500 | H116: 7065821500 | O116: 706582 | P116: 1 | Q116: 150 | R116: CONTROLE DIM. ET GEO. APRES TRAITEMENT | S116: TEST | T116: TEST | U116: CONT | V116: TEST | W116: TEST | X116: 2.75 | Y116: TEST | Z116: TEST | AA116: TEST | AB116: TEST | AC116: TEST | AD116: TEST | AE116: 2014-10-16 | AF116: 00:00:00 | AH116: 00:00:00 | AI116: TEST | AJ116: TEST | AK116: TEST | AL116: TEST | AM116: TEST | AN116: TEST | AO116: TEST | AP116: TEST | AQ116: TEST | AR116: 3.25 | AS116: 0.25 | AT116: TEST | AU116: TEST
A117: 0 | B117: 706582150 | C117: Contrôle | D117: 2014-10-15 | E117: 0 | F117: 1 | G117: 7065821500 | H117: 7065821501 | J117: 41927 | O117: 706582 | P117: 1 | Q117: 150 | R117: CONTROLE DIM. ET GEO. APRES TRAITEMENT | S117: TEST | T117: TEST | U117: CONT | V117: TEST | W117: TEST | X117: 1 | Y117: TEST | Z117: TEST | AA117: TEST | AB117: TEST | AC117: TEST | AD117: TEST | AE117: 2014-10-15 | AF117: 00:00:00 | AH117: 00:00:00 | AI117: TEST | AJ117: TEST | AK117: TEST | AL117: TEST | AM117: TEST | AN117: TEST | AO117: TEST | AP117: TEST | AQ117: TEST | AR117: 3.25 | AS117: 0.25 | AT117: TEST | AU117: TEST
A118: 0 | B118: 706582170 | C118: Contrôle | D118: 2014-10-17 | E118: 1 | F118: 1 | G118: 7065821701 | H118: 7065821701 | I118: 41929 | J118: 41929 | K118: 41927 | L118: 2 | O118: 706582 | P118: 1 | Q118: 170 | R118: CONTROLE | S118: TEST | T118: TEST | U118: CONT | V118: TEST | W118: TEST | X118: 0.25 | Y118: TEST | Z118: TEST | AA118: TEST | AB118: TEST | AC118: TEST | AD118: TEST | AE118: 2014-10-17 | AF118: 00:00:00 | AH118: 00:00:00 | AI118: TEST | AJ118: TEST | AK118: TEST | AL118: TEST | AM118: TEST | AN118: TEST | AO118: TEST | AP118: TEST | AQ118: TEST | AR118: 0.25 | AS118: 0.25 | AT118: TEST | AU118: TEST
A119: 0 | B119: 706943100 | C119: Contrôle | D119: 2014-10-24 | E119: 1 | F119: 1 | G119: 7069431001 | H119: 7069431001 | I119: 41936 | J119: 41936 | O119: 706943 | P119: 1 | Q119: 100 | R119: CONTROLE | S119: TEST | T119: TEST | U119: CONT | V119: TEST | W119: TEST | X119: 0.5 | Y119: TEST | Z119: TEST | AA119: TEST | AB119: TEST | AC119: TEST | AD119: TEST | AE119: 2014-10-24 | AF119: 00:00:00 | AH119: 00:00:00 | AI119: TEST | AJ119: TEST | AK119: TEST | AL119: TEST | AM119: TEST | AN119: TEST | AO119: TEST | AP119: TEST | AQ119: TEST | AR119: 0.33 | AS119: 0.33 | AT119: TEST | AU119: TEST
A120: 0 | B120: 706610100 | C120: Contrôle | D120: 2014-10-27 | E120: 1 | F120: 1 | G120: 7066101001 | H120: 7066101001 | I120: 41939 | J120: 41939 | O120: 706610 | P120: 1 | Q120: 100 | R120: CONTROLE | S120: TEST | T120: TEST | U120: CONT | V120: TEST | W120: TEST | X120: 1.25 | Y120: TEST | Z120: TEST | AA120: TEST | AB120: TEST | AC120: TEST | AD120: TEST | AE120: 2014-10-27 | AF120: 00:00:00 | AH120: 00:00:00 | AI120: TEST | AJ120: TEST | AK120: TEST | AL120: TEST | AM120: TEST | AN120: TEST | AO120: TEST | AP120: TEST | AQ120: TEST | AR120: 0.5 | AS120: 0.5 | AT120: TEST | AU120: TEST
A121: 0 | B121: 70724050 | C121: Contrôle | D121: 2014-10-24 | E121: 1 | F121: 0 | G121: 707240501 | H121: 707240500 | I121: 41936 | K121: 41927 | L121: 9 | O121: 707240 | P121: 1 | Q121: 50 | R121: FRAISAGE CENTRE USINAGE | S121: TEST | T121: TEST | U121: CONT | V121: TEST | W121: TEST | X121: 1 | Y121: TEST | Z121: TEST | AA121: TEST | AB121: TEST | AC121: TEST | AD121: TEST | AE121: 2014-10-24 | AF121: 06:59:00 | AG121: 2014-10-24 | AH121: 07:59:00 | AI121: TEST | AJ121: TEST | AK121: TEST | AL121: TEST | AM121: TEST | AN121: TEST | AO121: TEST | AP121: TEST | AQ121: TEST | AR121: 19.75 | AS121: 1 | AT121: TEST | AU121: TEST
A122: 0 | B122: 70724050 | C122: Contrôle | D122: 2014-10-24 | E122: 0 | F122: 1 | G122: 707240500 | H122: 707240501 | J122: 41936 | O122: 707240 | P122: 1 | Q122: 50 | R122: FRAISAGE CENTRE USINAGE | S122: TEST | T122: TEST | U122: CONT | V122: TEST | W122: TEST | X122: 4.82 | Y122: TEST | Z122: TEST | AA122: TEST | AB122: TEST | AC122: TEST | AD122: TEST | AE122: 2014-10-24 | AF122: 08:10:00 | AG122: 2014-10-24 | AH122: 12:59:00 | AI122: TEST | AJ122: TEST | AK122: TEST | AL122: TEST | AM122: TEST | AN122: TEST | AO122: TEST | AP122: TEST | AQ122: TEST | AR122: 19.75 | AS122: 1 | AT122: TEST | AU122: TEST
A123: 0 | B123: 706656190 | C123: Contrôle | D123: 2014-09-18 | E123: 1 | F123: 1 | G123: 7066561901 | H123: 7066561901 | I123: 41900 | J123: 41900 | O123: 706656 | P123: 1 | Q123: 190 | R123: CONTRÔLE INTER OP | S123: TEST | T123: TEST | U123: COIN | V123: TEST | W123: TEST | X123: 1.5 | Y123: TEST | Z123: TEST | AA123: TEST | AB123: TEST | AC123: TEST | AD123: TEST | AE123: 2014-09-18 | AF123: 00:00:00 | AH123: 00:00:00 | AI123: TEST | AJ123: TEST | AK123: TEST | AL123: TEST | AM123: TEST | AN123: TEST | AO123: TEST | AP123: TEST | AQ123: TEST | AR123: 10.35 | AS123: 0.25 | AT123: TEST | AU123: TEST
A124: 0 | B124: 706711110 | C124: Contrôle | D124: 2014-10-14 | E124: 1 | F124: 1 | G124: 7067111101 | H124: 7067111101 | I124: 41926 | J124: 41926 | K124: 41920 | L124: 6 | O124: 706711 | P124: 1 | Q124: 110 | R124: CONTRÔLE INTER OP | S124: TEST | T124: TEST | U124: COIN | V124: TEST | W124: TEST | X124: 1 | Y124: TEST | Z124: TEST | AA124: TEST | AB124: TEST | AC124: TEST | AD124: TEST | AE124: 2014-10-14 | AF124: 00:00:00 | AH124: 00:00:00 | AI124: TEST | AJ124: TEST | AK124: TEST | AL124: TEST | AM124: TEST | AN124: TEST | AO124: TEST | AP124: TEST | AQ124: TEST | AR124: 2.73 | AS124: 0.25 | AT124: TEST | AU124: TEST
A125: 0 | B125: 706711120 | C125: Contrôle | D125: 2014-10-14 | E125: 1 | F125: 0 | G125: 7067111201 | H125: 7067111200 | I125: 41926 | K125: 41926 | L125: 0 | O125: 706711 | P125: 1 | Q125: 120 | R125: CONTRÔLE INTER OP | S125: TEST | T125: TEST | U125: COIN | V125: TEST | W125: TEST | X125: 0.5 | Y125: TEST | Z125: TEST | AA125: TEST | AB125: TEST | AC125: TEST | AD125: TEST | AE125: 2014-10-14 | AF125: 00:00:00 | AH125: 00:00:00 | AI125: TEST | AJ125: TEST | AK125: TEST | AL125: TEST | AM125: TEST | AN125: TEST | AO125: TEST | AP125: TEST | AQ125: TEST | AR125: 0.75 | AS125: 0.75 | AT125: TEST | AU125: TEST
A126: 0 | B126: 706711120 | C126: Contrôle | D126: 2014-10-14 | E126: 0 | F126: 1 | G126: 7067111200 | H126: 7067111201 | J126: 41926 | O126: 706711 | P126: 1 | Q126: 120 | R126: CONTRÔLE INTER OP | S126: TEST | T126: TEST | U126: COIN | V126: TEST | W126: TEST | X126: 0.75 | Y126: TEST | Z126: TEST | AA126: TEST | AB126: TEST | AC126: TEST | AD126: TEST | AE126: 2014-10-14 | AF126: 00:00:00 | AH126: 00:00:00 | AI126: TEST | AJ126: TEST | AK126: TEST | AL126: TEST | AM126: TEST | AN126: TEST | AO126: TEST | AP126: TEST | AQ126: TEST | AR126: 0.75 | AS126: 0.75 | AT126: TEST | AU126: TEST
A127: 0 | B127: 70724050 | C127: Contrôle | D127: 2014-10-23 | E127: 1 | F127: 0 | G127: 707240501 | H127: 707240500 | I127: 41935 | K127: 41927 | L127: 8 | O127: 707240 | P127: 1 | Q127: 50 | R127: FRAISAGE CENTRE USINAGE | S127: TEST | T127: TEST | U127: CONT | V127: TEST | W127: TEST | X127: 1.02 | Y127: TEST | Z127: TEST | AA127: TEST | AB127: TEST | AC127: TEST | AD127: TEST | AE127: 2014-10-23 | AF127: 06:57:00 | AG127: 2014-10-23 | AH127: 07:58:00 | AI127: TEST | AJ127: TEST | AK127: TEST | AL127: TEST | AM127: TEST | AN127: TEST | AO127: TEST | AP127: TEST | AQ127: TEST | AR127: 19.75 | AS127: 1 | AT127: TEST | AU127: TEST
A128: 0 | B128: 70724050 | C128: Contrôle | D128: 2014-10-23 | E128: 0 | F128: 1 | G128: 707240500 | H128: 707240501 | J128: 41935 | O128: 707240 | P128: 1 | Q128: 50 | R128: FRAISAGE CENTRE USINAGE | S128: TEST | T128: TEST | U128: CONT | V128: TEST | W128: TEST | X128: 1.88 | Y128: TEST | Z128: TEST | AA128: TEST | AB128: TEST | AC128: TEST | AD128: TEST | AE128: 2014-10-23 | AF128: 08:06:00 | AG128: 2014-10-23 | AH128: 09:59:00 | AI128: TEST | AJ128: TEST | AK128: TEST | AL128: TEST | AM128: TEST | AN128: TEST | AO128: TEST | AP128: TEST | AQ128: TEST | AR128: 19.75 | AS128: 1 | AT128: TEST | AU128: TEST
A129: 0 | B129: 706620110 | C129: Contrôle | D129: 2014-10-22 | E129: 1 | F129: 1 | G129: 7066201101 | H129: 7066201101 | I129: 41934 | J129: 41934 | O129: 706620 | P129: 1 | Q129: 110 | R129: CONTROLE | S129: TEST | T129: TEST | U129: CONT | V129: TEST | W129: TEST | X129: 0.25 | Y129: TEST | Z129: TEST | AA129: TEST | AB129: TEST | AC129: TEST | AD129: TEST | AE129: 2014-10-22 | AF129: 00:00:00 | AH129: 00:00:00 | AI129: TEST | AJ129: TEST | AK129: TEST | AL129: TEST | AM129: TEST | AN129: TEST | AO129: TEST | AP129: TEST | AQ129: TEST | AR129: 2 | AS129: 2 | AT129: TEST | AU129: TEST
A130: 0 | B130: 706755220 | C130: Contrôle | D130: 2014-10-22 | E130: 1 | F130: 0 | G130: 7067552201 | H130: 7067552200 | I130: 41934 | K130: 41919 | L130: 15 | O130: 706755 | P130: 1 | Q130: 220 | R130: CONTROLE EXPEDITION | S130: TEST | T130: TEST | U130: CONT | V130: TEST | W130: TEST | X130: 0.75 | Y130: TEST | Z130: TEST | AA130: TEST | AB130: TEST | AC130: TEST | AD130: TEST | AE130: 2014-10-22 | AF130: 00:00:00 | AH130: 00:00:00 | AI130: TEST | AJ130: TEST | AK130: TEST | AL130: TEST | AM130: TEST | AN130: TEST | AO130: TEST | AP130: TEST | AQ130: TEST | AR130: 0.3 | AS130: 0.3 | AT130: TEST | AU130: TEST
A131: 0 | B131: 706755220 | C131: Contrôle | D131: 2014-10-22 | E131: 0 | F131: 1 | G131: 7067552200 | H131: 7067552201 | J131: 41934 | O131: 706755 | P131: 1 | Q131: 220 | R131: CONTROLE EXPEDITION | S131: TEST | T131: TEST | U131: CONT | V131: TEST | W131: TEST | X131: 0 | Y131: TEST | Z131: TEST | AA131: TEST | AB131: TEST | AC131: TEST | AD131: TEST | AE131: 2014-10-22 | AF131: 00:00:00 | AH131: 00:00:00 | AI131: TEST | AJ131: TEST | AK131: TEST | AL131: TEST | AM131: TEST | AN131: TEST | AO131: TEST | AP131: TEST | AQ131: TEST | AR131: 0.3 | AS131: 0.3 | AT131: TEST | AU131: TEST
A132: 0 | B132: 706819160 | C132: Contrôle | D132: 2014-10-22 | E132: 1 | F132: 1 | G132: 7068191601 | H132: 7068191601 | I132: 41934 | J132: 41934 | K132: 41932 | L132: 2 | O132: 706819 | P132: 1 | Q132: 160 | R132: CONTROLE | S132: TEST | T132: TEST | U132: CONT | V132: TEST | W132: TEST | X132: 4 | Y132: TEST | Z132: TEST | AA132: TEST | AB132: TEST | AC132: TEST | AD132: TEST | AE132: 2014-10-22 | AF132: 00:00:00 | AH132: 00:00:00 | AI132: TEST | AJ132: TEST | AK132: TEST | AL132: TEST | AM132: TEST | AN132: TEST | AO132: TEST | AP132: TEST | AQ132: TEST | AR132: 3 | AS132: 3 | AT132: TEST | AU132: TEST
A133: 0 | B133: 70706640 | C133: Contrôle | D133: 2014-10-22 | E133: 1 | F133: 1 | G133: 707066401 | H133: 707066401 | I133: 41934 | J133: 41934 | K133: 41942 | O133: 707066 | P133: 1 | Q133: 40 | R133: CONTRÔLE INTER OP | S133: TEST | T133: TEST | U133: COIN | V133: TEST | W133: TEST | X133: 0.63 | Y133: TEST | Z133: TEST | AA133: TEST | AB133: TEST | AC133: TEST | AD133: TEST | AE133: 2014-10-22 | AF133: 00:00:00 | AH133: 00:00:00 | AI133: TEST | AJ133: TEST | AK133: TEST | AL133: TEST | AM133: TEST | AN133: TEST | AO133: TEST | AP133: TEST | AQ133: TEST | AR133: 2 | AS133: 2 | AT133: TEST | AU133: TEST
A134: 0 | B134: 70724050 | C134: Contrôle | D134: 2014-10-22 | E134: 1 | F134: 1 | G134: 707240501 | H134: 707240501 | I134: 41934 | J134: 41934 | K134: 41927 | L134: 7 | O134: 707240 | P134: 1 | Q134: 50 | R134: FRAISAGE CENTRE USINAGE | S134: TEST | T134: TEST | U134: CONT | V134: TEST | W134: TEST | X134: 0.8 | Y134: TEST | Z134: TEST | AA134: TEST | AB134: TEST | AC134: TEST | AD134: TEST | AE134: 2014-10-22 | AF134: 15:10:00 | AG134: 2014-10-22 | AH134: 15:58:00 | AI134: TEST | AJ134: TEST | AK134: TEST | AL134: TEST | AM134: TEST | AN134: TEST | AO134: TEST | AP134: TEST | AQ134: TEST | AR134: 19.75 | AS134: 1 | AT134: TEST | AU134: TEST
A135: 0 | B135: 707242110 | C135: Contrôle | D135: 2014-10-22 | E135: 1 | F135: 1 | G135: 7072421101 | H135: 7072421101 | I135: 41934 | J135: 41934 | K135: 41934 | L135: 0 | O135: 707242 | P135: 1 | Q135: 110 | R135: CONTROLE AVANT S/T | S135: TEST | T135: TEST | U135: CONT | V135: TEST | W135: TEST | X135: 0.3 | Y135: TEST | Z135: TEST | AA135: TEST | AB135: TEST | AC135: TEST | AD135: TEST | AE135: 2014-10-22 | AF135: 00:00:00 | AH135: 00:00:00 | AI135: TEST | AJ135: TEST | AK135: TEST | AL135: TEST | AM135: TEST | AN135: TEST | AO135: TEST | AP135: TEST | AQ135: TEST | AR135: 0.3 | AS135: 0.3 | AT135: TEST | AU135: TEST
A136: 0 | B136: 70725260 | C136: Contrôle | D136: 2014-10-22 | E136: 1 | F136: 1 | G136: 707252601 | H136: 707252601 | I136: 41934 | J136: 41934 | K136: 41934 | L136: 0 | O136: 707252 | P136: 1 | Q136: 60 | R136: CONTROLE | S136: TEST | T136: TEST | U136: CONT | V136: TEST | W136: TEST | X136: 0.25 | Y136: TEST | Z136: TEST | AA136: TEST | AB136: TEST | AC136: TEST | AD136: TEST | AE136: 2014-10-22 | AF136: 00:00:00 | AH136: 00:00:00 | AI136: TEST | AJ136: TEST | AK136: TEST | AL136: TEST | AM136: TEST | AN136: TEST | AO136: TEST | AP136: TEST | AQ136: TEST | AR136: 0.25 | AS136: 0.25 | AT136: TEST | AU136: TEST
A137: 0 | B137: 70725960 | C137: Contrôle | D137: 2014-10-22 | E137: 1 | F137: 1 | G137: 707259601 | H137: 707259601 | I137: 41934 | J137: 41934 | K137: 41934 | L137: 0 | O137: 707259 | P137: 1 | Q137: 60 | R137: CONTROLE | S137: TEST | T137: TEST | U137: CONT | V137: TEST | W137: TEST | X137: 0.25 | Y137: TEST | Z137: TEST | AA137: TEST | AB137: TEST | AC137: TEST | AD137: TEST | AE137: 2014-10-22 | AF137: 00:00:00 | AH137: 00:00:00 | AI137: TEST | AJ137: TEST | AK137: TEST | AL137: TEST | AM137: TEST | AN137: TEST | AO137: TEST | AP137: TEST | AQ137: TEST | AR137: 0.25 | AS137: 0.25 | AT137: TEST | AU137: TEST
A138: 0 | B138: 70726060 | C138: Contrôle | D138: 2014-10-22 | E138: 1 | F138: 1 | G138: 707260601 | H138: 707260601 | I138: 41934 | J138: 41934 | K138: 41934 | L138: 0 | O138: 707260 | P138: 1 | Q138: 60 | R138: CONTROLE | S138: TEST | T138: TEST | U138: CONT | V138: TEST | W138: TEST | X138: 0.25 | Y138: TEST | Z138: TEST | AA138: TEST | AB138: TEST | AC138: TEST | AD138: TEST | AE138: 2014-10-22 | AF138: 00:00:00 | AH138: 00:00:00 | AI138: TEST | AJ138: TEST | AK138: TEST | AL138: TEST | AM138: TEST | AN138: TEST | AO138: TEST | AP138: TEST | AQ138: TEST | AR138: 0.25 | AS138: 0.25 | AT138: TEST | AU138: TEST
A139: 0 | B139: 70728740 | C139: Contrôle | D139: 2014-10-22 | E139: 1 | F139: 1 | G139: 707287401 | H139: 707287401 | I139: 41934 | J139: 41934 | K139: 41934 | L139: 0 | O139: 707287 | P139: 1 | Q139: 40 | R139: CONTRÔLE INTER OP | S139: TEST | T139: TEST | U139: COIN | V139: TEST | W139: TEST | X139: 0.63 | Y139: TEST | Z139: TEST | AA139: TEST | AB139: TEST | AC139: TEST | AD139: TEST | AE139: 2014-10-22 | AF139: 00:00:00 | AH139: 00:00:00 | AI139: TEST | AJ139: TEST | AK139: TEST | AL139: TEST | AM139: TEST | AN139: TEST | AO139: TEST | AP139: TEST | AQ139: TEST | AR139: 2 | AS139: 2 | AT139: TEST | AU139: TEST
A140: 0 | B140: 70730150 | C140: Contrôle | D140: 2014-10-22 | E140: 1 | F140: 1 | G140: 707301501 | H140: 707301501 | I140: 41934 | J140: 41934 | K140: 41934 | L140: 0 | O140: 707301 | P140: 1 | Q140: 50 | R140: CONTROLE EXPEDITION | S140: TEST | T140: TEST | U140: CONT | V140: TEST | W140: TEST | X140: 0.17 | Y140: TEST | Z140: TEST | AA140: TEST | AB140: TEST | AC140: TEST | AD140: TEST | AE140: 2014-10-22 | AF140: 09:00:00 | AG140: 2014-10-22 | AH140: 09:10:00 | AI140: TEST | AJ140: TEST | AK140: TEST | AL140: TEST | AM140: TEST | AN140: TEST | AO140: TEST | AP140: TEST | AQ140: TEST | AR140: 0.25 | AS140: 0.25 | AT140: TEST | AU140: TEST
A141: 0 | B141: 706751190 | C141: Contrôle | D141: 2014-10-01 | E141: 1 | F141: 0 | G141: 7067511901 | H141: 7067511900 | I141: 41913 | K141: 41912 | L141: 1 | O141: 706751 | P141: 1 | Q141: 190 | R141: CONTROLE | S141: TEST | T141: TEST | U141: CONT | V141: TEST | W141: TEST | X141: 3 | Y141: TEST | Z141: TEST | AA141: TEST | AB141: TEST | AC141: TEST | AD141: TEST | AE141: 2014-10-01 | AF141: 00:00:00 | AH141: 00:00:00 | AI141: TEST | AJ141: TEST | AK141: TEST | AL141: TEST | AM141: TEST | AN141: TEST | AO141: TEST | AP141: TEST | AQ141: TEST | AR141: 10 | AS141: 0 | AT141: TEST | AU141: TEST
A142: 0 | B142: 706751190 | C142: Contrôle | D142: 2014-10-01 | E142: 0 | F142: 1 | G142: 7067511900 | H142: 7067511901 | J142: 41913 | O142: 706751 | P142: 1 | Q142: 190 | R142: CONTROLE | S142: TEST | T142: TEST | U142: CONT | V142: TEST | W142: TEST | X142: 2.25 | Y142: TEST | Z142: TEST | AA142: TEST | AB142: TEST | AC142: TEST | AD142: TEST | AE142: 2014-10-01 | AF142: 00:00:00 | AH142: 00:00:00 | AI142: TEST | AJ142: TEST | AK142: TEST | AL142: TEST | AM142: TEST | AN142: TEST | AO142: TEST | AP142: TEST | AQ142: TEST | AR142: 10 | AS142: 0 | AT142: TEST | AU142: TEST
A143: 0 | B143: 706751210 | C143: Contrôle | D143: 2014-10-14 | E143: 1 | F143: 1 | G143: 7067512101 | H143: 7067512101 | I143: 41926 | J143: 41926 | O143: 706751 | P143: 1 | Q143: 210 | R143: CONTROLE | S143: TEST | T143: TEST | U143: CONT | V143: TEST | W143: TEST | X143: 0.5 | Y143: TEST | Z143: TEST | AA143: TEST | AB143: TEST | AC143: TEST | AD143: TEST | AE143: 2014-10-14 | AF143: 00:00:00 | AH143: 00:00:00 | AI143: TEST | AJ143: TEST | AK143: TEST | AL143: TEST | AM143: TEST | AN143: TEST | AO143: TEST | AP143: TEST | AQ143: TEST | AR143: 0.5 | AS143: 0.5 | AT143: TEST | AU143: TEST
A144: 0 | B144: 706754220 | C144: Contrôle | D144: 2014-09-18 | E144: 1 | F144: 0 | G144: 7067542201 | H144: 7067542200 | I144: 41900 | O144: 706754 | P144: 1 | Q144: 220 | R144: CONTRÔLE INTER OP | S144: TEST | T144: TEST | U144: COIN | V144: TEST | W144: TEST | X144: 0.75 | Y144: TEST | Z144: TEST | AA144: TEST | AB144: TEST | AC144: TEST | AD144: TEST | AE144: 2014-09-18 | AF144: 00:00:00 | AH144: 00:00:00 | AI144: TEST | AJ144: TEST | AK144: TEST | AL144: TEST | AM144: TEST | AN144: TEST | AO144: TEST | AP144: TEST | AQ144: TEST | AR144: 10.55 | AS144: 0.25 | AT144: TEST | AU144: TEST
A145: 0 | B145: 706754220 | C145: Contrôle | D145: 2014-09-17 | E145: 0 | F145: 0 | G145: 7067542200 | H145: 7067542200 | O145: 706754 | P145: 1 | Q145: 220 | R145: CONTRÔLE INTER OP | S145: TEST | T145: TEST | U145: COIN | V145: TEST | W145: TEST | X145: 4.5 | Y145: TEST | Z145: TEST | AA145: TEST | AB145: TEST | AC145: TEST | AD145: TEST | AE145: 2014-09-17 | AF145: 00:00:00 | AH145: 00:00:00 | AI145: TEST | AJ145: TEST | AK145: TEST | AL145: TEST | AM145: TEST | AN145: TEST | AO145: TEST | AP145: TEST | AQ145: TEST | AR145: 10.55 | AS145: 0.25 | AT145: TEST | AU145: TEST
A146: 0 | B146: 706754220 | C146: Contrôle | D146: 2014-09-16 | E146: 0 | F146: 1 | G146: 7067542200 | H146: 7067542201 | J146: 41898 | O146: 706754 | P146: 1 | Q146: 220 | R146: CONTRÔLE INTER OP | S146: TEST | T146: TEST | U146: COIN | V146: TEST | W146: TEST | X146: 3.75 | Y146: TEST | Z146: TEST | AA146: TEST | AB146: TEST | AC146: TEST | AD146: TEST | AE146: 2014-09-16 | AF146: 00:00:00 | AH146: 00:00:00 | AI146: TEST | AJ146: TEST | AK146: TEST | AL146: TEST | AM146: TEST | AN146: TEST | AO146: TEST | AP146: TEST | AQ146: TEST | AR146: 10.55 | AS146: 0.25 | AT146: TEST | AU146: TEST
A147: 0 | B147: 706754240 | C147: Contrôle | D147: 2014-09-22 | E147: 1 | F147: 1 | G147: 7067542401 | H147: 7067542401 | I147: 41904 | J147: 41904 | K147: 41897 | L147: 7 | O147: 706754 | P147: 1 | Q147: 240 | R147: CONTROLE EXPEDITION | S147: TEST | T147: TEST | U147: CONT | V147: TEST | W147: TEST | X147: 0.3 | Y147: TEST | Z147: TEST | AA147: TEST | AB147: TEST | AC147: TEST | AD147: TEST | AE147: 2014-09-22 | AF147: 00:00:00 | AH147: 00:00:00 | AI147: TEST | AJ147: TEST | AK147: TEST | AL147: TEST | AM147: TEST | AN147: TEST | AO147: TEST | AP147: TEST | AQ147: TEST | AR147: 0.3 | AS147: 0.3 | AT147: TEST | AU147: TEST
A148: 0 | B148: 706754260 | C148: Contrôle | D148: 2014-10-08 | E148: 1 | F148: 0 | G148: 7067542601 | H148: 7067542600 | I148: 41920 | O148: 706754 | P148: 1 | Q148: 260 | R148: CONTROLE INTER OP | S148: TEST | T148: TEST | U148: CONT | V148: TEST | W148: TEST | X148: 0.5 | Y148: TEST | Z148: TEST | AA148: TEST | AB148: TEST | AC148: TEST | AD148: TEST | AE148: 2014-10-08 | AF148: 00:00:00 | AH148: 00:00:00 | AI148: TEST | AJ148: TEST | AK148: TEST | AL148: TEST | AM148: TEST | AN148: TEST | AO148: TEST | AP148: TEST | AQ148: TEST | AR148: 0.5 | AS148: 0.5 | AT148: TEST | AU148: TEST
A149: 0 | B149: 706754260 | C149: Contrôle | D149: 2014-09-24 | E149: 0 | F149: 0 | G149: 7067542600 | H149: 7067542600 | O149: 706754 | P149: 1 | Q149: 260 | R149: CONTROLE INTER OP | S149: TEST | T149: TEST | U149: CONT | V149: TEST | W149: TEST | X149: 1.5 | Y149: TEST | Z149: TEST | AA149: TEST | AB149: TEST | AC149: TEST | AD149: TEST | AE149: 2014-09-24 | AF149: 00:00:00 | AH149: 00:00:00 | AI149: TEST | AJ149: TEST | AK149: TEST | AL149: TEST | AM149: TEST | AN149: TEST | AO149: TEST | AP149: TEST | AQ149: TEST | AR149: 0.5 | AS149: 0.5 | AT149: TEST | AU149: TEST
A150: 0 | B150: 706754260 | C150: Contrôle | D150: 2014-09-23 | E150: 0 | F150: 1 | G150: 7067542600 | H150: 7067542601 | J150: 41905 | O150: 706754 | P150: 1 | Q150: 260 | R150: CONTROLE INTER OP | S150: TEST | T150: TEST | U150: CONT | V150: TEST | W150: TEST | X150: 0.5 | Y150: TEST | Z150: TEST | AA150: TEST | AB150: TEST | AC150: TEST | AD150: TEST | AE150: 2014-09-23 | AF150: 11:00:00 | AG150: 2014-09-23 | AH150: 11:30:00 | AI150: TEST | AJ150: TEST | AK150: TEST | AL150: TEST | AM150: TEST | AN150: TEST | AO150: TEST | AP150: TEST | AQ150: TEST | AR150: 0.5 | AS150: 0.5 | AT150: TEST | AU150: TEST
A151: 0 | B151: 706754320 | C151: Contrôle | D151: 2014-11-03 | E151: 1 | F151: 0 | G151: 7067543201 | H151: 7067543200 | I151: 41946 | K151: 41943 | L151: 3 | O151: 706754 | P151: 1 | Q151: 320 | R151: CONTROLE EXPEDITION | S151: TEST | T151: TEST | U151: CONT | V151: TEST | W151: TEST | X151: 1.5 | Y151: TEST | Z151: TEST | AA151: TEST | AB151: TEST | AC151: TEST | AD151: TEST | AE151: 2014-11-03 | AF151: 00:00:00 | AH151: 00:00:00 | AI151: TEST | AJ151: TEST | AK151: TEST | AL151: TEST | AM151: TEST | AN151: TEST | AO151: TEST | AP151: TEST | AQ151: TEST | AR151: 0.3 | AS151: 0.3 | AT151: TEST | AU151: TEST
A152: 0 | B152: 706754320 | C152: Contrôle | D152: 2014-10-29 | E152: 0 | F152: 1 | G152: 7067543200 | H152: 7067543201 | J152: 41941 | O152: 706754 | P152: 1 | Q152: 320 | R152: CONTROLE EXPEDITION | S152: TEST | T152: TEST | U152: CONT | V152: TEST | W152: TEST | X152: 5.5 | Y152: TEST | Z152: TEST | AA152: TEST | AB152: TEST | AC152: TEST | AD152: TEST | AE152: 2014-10-29 | AF152: 00:00:00 | AH152: 00:00:00 | AI152: TEST | AJ152: TEST | AK152: TEST | AL152: TEST | AM152: TEST | AN152: TEST | AO152: TEST | AP152: TEST | AQ152: TEST | AR152: 0.3 | AS152: 0.3 | AT152: TEST | AU152: TEST
A153: 0 | B153: 706755140 | C153: Contrôle | D153: 2014-09-15 | E153: 1 | F153: 1 | G153: 7067551401 | H153: 7067551401 | I153: 41897 | J153: 41897 | O153: 706755 | P153: 1 | Q153: 140 | R153: CONTROLE EXPEDITION | S153: TEST | T153: TEST | U153: CONT | V153: TEST | W153: TEST | X153: 0.1 | Y153: TEST | Z153: TEST | AA153: TEST | AB153: TEST | AC153: TEST | AD153: TEST | AE153: 2014-09-15 | AF153: 00:00:00 | AH153: 00:00:00 | AI153: TEST | AJ153: TEST | AK153: TEST | AL153: TEST | AM153: TEST | AN153: TEST | AO153: TEST | AP153: TEST | AQ153: TEST | AR153: 0.3 | AS153: 0.3 | AT153: TEST | AU153: TEST
A154: 0 | B154: 706755200 | C154: Contrôle | D154: 2014-10-08 | E154: 1 | F154: 1 | G154: 7067552001 | H154: 7067552001 | I154: 41920 | J154: 41920 | K154: 41914 | L154: 6 | O154: 706755 | P154: 1 | Q154: 200 | R154: CONTRÔLE INTER OP | S154: TEST | T154: TEST | U154: COIN | V154: TEST | W154: TEST | X154: 0.5 | Y154: TEST | Z154: TEST | AA154: TEST | AB154: TEST | AC154: TEST | AD154: TEST | AE154: 2014-10-08 | AF154: 00:00:00 | AH154: 00:00:00 | AI154: TEST | AJ154: TEST | AK154: TEST | AL154: TEST | AM154: TEST | AN154: TEST | AO154: TEST | AP154: TEST | AQ154: TEST | AR154: 10.65 | AS154: 0.25 | AT154: TEST | AU154: TEST
A155: 0 | B155: 706755240 | C155: Contrôle | D155: 2014-11-12 | E155: 1 | F155: 0 | G155: 7067552401 | H155: 7067552400 | I155: 41955 | O155: 706755 | P155: 1 | Q155: 240 | R155: CONTROLE INTER OP | S155: TEST | T155: TEST | U155: CONT | V155: TEST | W155: TEST | X155: 0.5 | Y155: TEST | Z155: TEST | AA155: TEST | AB155: TEST | AC155: TEST | AD155: TEST | AE155: 2014-11-12 | AF155: 00:00:00 | AH155: 00:00:00 | AI155: TEST | AJ155: TEST | AK155: TEST | AL155: TEST | AM155: TEST | AN155: TEST | AO155: TEST | AP155: TEST | AQ155: TEST | AR155: 0.5 | AS155: 0.5 | AT155: TEST | AU155: TEST
A156: 0 | B156: 706755240 | C156: Contrôle | D156: 2014-10-28 | E156: 0 | F156: 1 | G156: 7067552400 | H156: 7067552401 | J156: 41940 | O156: 706755 | P156: 1 | Q156: 240 | R156: CONTROLE INTER OP | S156: TEST | T156: TEST | U156: CONT | V156: TEST | W156: TEST | X156: 0.25 | Y156: TEST | Z156: TEST | AA156: TEST | AB156: TEST | AC156: TEST | AD156: TEST | AE156: 2014-10-28 | AF156: 15:00:00 | AG156: 2014-10-28 | AH156: 15:15:00 | AI156: TEST | AJ156: TEST | AK156: TEST | AL156: TEST | AM156: TEST | AN156: TEST | AO156: TEST | AP156: TEST | AQ156: TEST | AR156: 0.5 | AS156: 0.5 | AT156: TEST | AU156: TEST
A157: 0 | B157: 70725560 | C157: Contrôle | D157: 2014-10-21 | E157: 1 | F157: 1 | G157: 707255601 | H157: 707255601 | I157: 41933 | J157: 41933 | K157: 41933 | L157: 0 | O157: 707255 | P157: 1 | Q157: 60 | R157: CONTROLE | S157: TEST | T157: TEST | U157: CONT | V157: TEST | W157: TEST | X157: 0.25 | Y157: TEST | Z157: TEST | AA157: TEST | AB157: TEST | AC157: TEST | AD157: TEST | AE157: 2014-10-21 | AF157: 00:00:00 | AH157: 00:00:00 | AI157: TEST | AJ157: TEST | AK157: TEST | AL157: TEST | AM157: TEST | AN157: TEST | AO157: TEST | AP157: TEST | AQ157: TEST | AR157: 0.25 | AS157: 0.25 | AT157: TEST | AU157: TEST
A158: 0 | B158: 706929200 | C158: Contrôle | D158: 2014-10-20 | E158: 1 | F158: 1 | G158: 7069292001 | H158: 7069292001 | I158: 41932 | J158: 41932 | K158: 41927 | L158: 5 | O158: 706929 | P158: 1 | Q158: 200 | R158: CONTRÔLE INTER OP | S158: TEST | T158: TEST | U158: COIN | V158: TEST | W158: TEST | X158: 0.5 | Y158: TEST | Z158: TEST | AA158: TEST | AB158: TEST | AC158: TEST | AD158: TEST | AE158: 2014-10-20 | AF158: 00:00:00 | AH158: 00:00:00 | AI158: TEST | AJ158: TEST | AK158: TEST | AL158: TEST | AM158: TEST | AN158: TEST | AO158: TEST | AP158: TEST | AQ158: TEST | AR158: 5 | AS158: 0 | AT158: TEST | AU158: TEST
A159: 0 | B159: 706778140 | C159: Contrôle | D159: 2014-10-28 | E159: 1 | F159: 1 | G159: 7067781401 | H159: 7067781401 | I159: 41940 | J159: 41940 | K159: 41943 | O159: 706778 | P159: 1 | Q159: 140 | R159: CONTROLE AVANT BONDERITE | S159: TEST | T159: TEST | U159: CONT | V159: TEST | W159: TEST | X159: 1.5 | Y159: TEST | Z159: TEST | AA159: TEST | AB159: TEST | AC159: TEST | AD159: TEST | AE159: 2014-10-28 | AF159: 00:00:00 | AH159: 00:00:00 | AI159: TEST | AJ159: TEST | AK159: TEST | AL159: TEST | AM159: TEST | AN159: TEST | AO159: TEST | AP159: TEST | AQ159: TEST | AR159: 0.3 | AS159: 0.3 | AT159: TEST | AU159: TEST
A160: 0 | B160: 70732550 | C160: Contrôle | D160: 2014-10-20 | E160: 1 | F160: 0 | G160: 707325501 | H160: 707325500 | I160: 41932 | K160: 41928 | L160: 4 | O160: 707325 | P160: 1 | Q160: 50 | R160: CONTROLE + MARQUAGE | S160: TEST | T160: TEST | U160: CONT | V160: TEST | W160: TEST | X160: 0.75 | Y160: TEST | Z160: TEST | AA160: TEST | AB160: TEST | AC160: TEST | AD160: TEST | AE160: 2014-10-20 | AF160: 00:00:00 | AH160: 00:00:00 | AI160: TEST | AJ160: TEST | AK160: TEST | AL160: TEST | AM160: TEST | AN160: TEST | AO160: TEST | AP160: TEST | AQ160: TEST | AR160: 1.21 | AS160: 0.25 | AT160: TEST | AU160: TEST
A161: 0 | B161: 70732550 | C161: Contrôle | D161: 2014-10-20 | E161: 0 | F161: 1 | G161: 707325500 | H161: 707325501 | J161: 41932 | O161: 707325 | P161: 1 | Q161: 50 | R161: CONTROLE + MARQUAGE | S161: TEST | T161: TEST | U161: CONT | V161: TEST | W161: TEST | X161: 0.25 | Y161: TEST | Z161: TEST | AA161: TEST | AB161: TEST | AC161: TEST | AD161: TEST | AE161: 2014-10-20 | AF161: 00:00:00 | AH161: 00:00:00 | AI161: TEST | AJ161: TEST | AK161: TEST | AL161: TEST | AM161: TEST | AN161: TEST | AO161: TEST | AP161: TEST | AQ161: TEST | AR161: 1.21 | AS161: 0.25 | AT161: TEST | AU161: TEST
A162: 0 | B162: 70734130 | C162: Contrôle | D162: 2014-10-20 | E162: 1 | F162: 1 | G162: 707341301 | H162: 707341301 | I162: 41932 | J162: 41932 | K162: 41929 | L162: 3 | O162: 707341 | P162: 1 | Q162: 30 | R162: CONTROLE | S162: TEST | T162: TEST | U162: CONT | V162: TEST | W162: TEST | X162: 4 | Y162: TEST | Z162: TEST | AA162: TEST | AB162: TEST | AC162: TEST | AD162: TEST | AE162: 2014-10-20 | AF162: 00:00:00 | AH162: 00:00:00 | AI162: TEST | AJ162: TEST | AK162: TEST | AL162: TEST | AM162: TEST | AN162: TEST | AO162: TEST | AP162: TEST | AQ162: TEST | AR162: 1.5 | AS162: 1.5 | AT162: TEST | AU162: TEST
A163: 0 | B163: 705433210 | C163: Contrôle | D163: 2014-10-17 | E163: 1 | F163: 1 | G163: 7054332101 | H163: 7054332101 | I163: 41929 | J163: 41929 | O163: 705433 | P163: 1 | Q163: 210 | R163: CONTROLE DIM. ET GEO. APRES TRAITEMENT | S163: TEST | T163: TEST | U163: CONT | V163: TEST | W163: TEST | X163: 1.25 | Y163: TEST | Z163: TEST | AA163: TEST | AB163: TEST | AC163: TEST | AD163: TEST | AE163: 2014-10-17 | AF163: 00:00:00 | AH163: 00:00:00 | AI163: TEST | AJ163: TEST | AK163: TEST | AL163: TEST | AM163: TEST | AN163: TEST | AO163: TEST | AP163: TEST | AQ163: TEST | AR163: 1.01 | AS163: 0.5 | AT163: TEST | AU163: TEST
A164: 0 | B164: 705706130 | C164: Contrôle | D164: 2014-10-17 | E164: 1 | F164: 1 | G164: 7057061301 | H164: 7057061301 | I164: 41929 | J164: 41929 | O164: 705706 | P164: 1 | Q164: 130 | R164: CONTROLE | S164: TEST | T164: TEST | U164: CONT | V164: TEST | W164: TEST | X164: 0.25 | Y164: TEST | Z164: TEST | AA164: TEST | AB164: TEST | AC164: TEST | AD164: TEST | AE164: 2014-10-17 | AF164: 00:00:00 | AH164: 00:00:00 | AI164: TEST | AJ164: TEST | AK164: TEST | AL164: TEST | AM164: TEST | AN164: TEST | AO164: TEST | AP164: TEST | AQ164: TEST | AR164: 3.5 | AS164: 0 | AT164: TEST | AU164: TEST
A165: 0 | B165: 706819160 | C165: Contrôle | D165: 2014-10-30 | E165: 1 | F165: 1 | G165: 7068191601 | H165: 7068191601 | I165: 41942 | J165: 41942 | K165: 41932 | L165: 10 | O165: 706819 | P165: 1 | Q165: 160 | R165: CONTROLE | S165: TEST | T165: TEST | U165: CONT | V165: TEST | W165: TEST | X165: 1.75 | Y165: TEST | Z165: TEST | AA165: TEST | AB165: TEST | AC165: TEST | AD165: TEST | AE165: 2014-10-30 | AF165: 00:00:00 | AH165: 00:00:00 | AI165: TEST | AJ165: TEST | AK165: TEST | AL165: TEST | AM165: TEST | AN165: TEST | AO165: TEST | AP165: TEST | AQ165: TEST | AR165: 3 | AS165: 3 | AT165: TEST | AU165: TEST
A166: 0 | B166: 706824170 | C166: Contrôle | D166: 2014-11-04 | E166: 1 | F166: 0 | G166: 7068241701 | H166: 7068241700 | I166: 41947 | K166: 41935 | L166: 12 | O166: 706824 | P166: 1 | Q166: 170 | R166: CONTRÔLE INTER OP | S166: TEST | T166: TEST | U166: COIN | V166: TEST | W166: TEST | X166: 1 | Y166: TEST | Z166: TEST | AA166: TEST | AB166: TEST | AC166: TEST | AD166: TEST | AE166: 2014-11-04 | AF166: 00:00:00 | AH166: 00:00:00 | AI166: TEST | AJ166: TEST | AK166: TEST | AL166: TEST | AM166: TEST | AN166: TEST | AO166: TEST | AP166: TEST | AQ166: TEST | AR166: 5.05 | AS166: 0.25 | AT166: TEST | AU166: TEST
A167: 0 | B167: 706824170 | C167: Contrôle | D167: 2014-11-03 | E167: 0 | F167: 1 | G167: 7068241700 | H167: 7068241701 | J167: 41946 | O167: 706824 | P167: 1 | Q167: 170 | R167: CONTRÔLE INTER OP | S167: TEST | T167: TEST | U167: COIN | V167: TEST | W167: TEST | X167: 1 | Y167: TEST | Z167: TEST | AA167: TEST | AB167: TEST | AC167: TEST | AD167: TEST | AE167: 2014-11-03 | AF167: 00:00:00 | AH167: 00:00:00 | AI167: TEST | AJ167: TEST | AK167: TEST | AL167: TEST | AM167: TEST | AN167: TEST | AO167: TEST | AP167: TEST | AQ167: TEST | AR167: 5.05 | AS167: 0.25 | AT167: TEST | AU167: TEST
A168: 0 | B168: 706826110 | C168: Contrôle | D168: 2014-10-06 | E168: 1 | F168: 1 | G168: 7068261101 | H168: 7068261101 | I168: 41918 | J168: 41918 | K168: 41918 | L168: 0 | O168: 706826 | P168: 1 | Q168: 110 | R168: CONTRÔLE INTER OP | S168: TEST | T168: TEST | U168: COIN | V168: TEST | W168: TEST | X168: 2.5 | Y168: TEST | Z168: TEST | AA168: TEST | AB168: TEST | AC168: TEST | AD168: TEST | AE168: 2014-10-06 | AF168: 00:00:00 | AH168: 00:00:00 | AI168: TEST | AJ168: TEST | AK168: TEST | AL168: TEST | AM168: TEST | AN168: TEST | AO168: TEST | AP168: TEST | AQ168: TEST | AR168: 6.25 | AS168: 0.25 | AT168: TEST | AU168: TEST
A169: 0 | B169: 70725760 | C169: Contrôle | D169: 2014-10-17 | E169: 1 | F169: 1 | G169: 707257601 | H169: 707257601 | I169: 41929 | J169: 41929 | K169: 41929 | L169: 0 | O169: 707257 | P169: 1 | Q169: 60 | R169: CONTROLE | S169: TEST | T169: TEST | U169: CONT | V169: TEST | W169: TEST | X169: 0.25 | Y169: TEST | Z169: TEST | AA169: TEST | AB169: TEST | AC169: TEST | AD169: TEST | AE169: 2014-10-17 | AF169: 00:00:00 | AH169: 00:00:00 | AI169: TEST | AJ169: TEST | AK169: TEST | AL169: TEST | AM169: TEST | AN169: TEST | AO169: TEST | AP169: TEST | AQ169: TEST | AR169: 0.25 | AS169: 0.25 | AT169: TEST | AU169: TEST
A170: 0 | B170: 706828240 | C170: Contrôle | D170: 2014-09-17 | E170: 1 | F170: 1 | G170: 7068282401 | H170: 7068282401 | I170: 41899 | J170: 41899 | O170: 706828 | P170: 1 | Q170: 240 | R170: CONTROLE | S170: TEST | T170: TEST | U170: CONT | V170: TEST | W170: TEST | X170: 0.5 | Y170: TEST | Z170: TEST | AA170: TEST | AB170: TEST | AC170: TEST | AD170: TEST | AE170: 2014-09-17 | AF170: 00:00:00 | AH170: 00:00:00 | AI170: TEST | AJ170: TEST | AK170: TEST | AL170: TEST | AM170: TEST | AN170: TEST | AO170: TEST | AP170: TEST | AQ170: TEST | AR170: 0.01 | AS170: 0.01 | AT170: TEST | AU170: TEST
A171: 0 | B171: 706850120 | C171: Contrôle | D171: 2014-09-24 | E171: 1 | F171: 1 | G171: 7068501201 | H171: 7068501201 | I171: 41906 | J171: 41906 | O171: 706850 | P171: 1 | Q171: 120 | R171: CONTROLE | S171: TEST | T171: TEST | U171: CONT | V171: TEST | W171: TEST | X171: 0.1 | Y171: TEST | Z171: TEST | AA171: TEST | AB171: TEST | AC171: TEST | AD171: TEST | AE171: 2014-09-24 | AF171: 00:00:00 | AH171: 00:00:00 | AI171: TEST | AJ171: TEST | AK171: TEST | AL171: TEST | AM171: TEST | AN171: TEST | AO171: TEST | AP171: TEST | AQ171: TEST | AR171: 2 | AS171: 2 | AT171: TEST | AU171: TEST
A172: 0 | B172: 706868110 | C172: Contrôle | D172: 2014-10-21 | E172: 1 | F172: 1 | G172: 7068681101 | H172: 7068681101 | I172: 41933 | J172: 41933 | O172: 706868 | P172: 1 | Q172: 110 | R172: CONTROLE FINAL | S172: TEST | T172: TEST | U172: CONT | V172: TEST | W172: TEST | X172: 0.5 | Y172: TEST | Z172: TEST | AA172: TEST | AB172: TEST | AC172: TEST | AD172: TEST | AE172: 2014-10-21 | AF172: 00:00:00 | AH172: 00:00:00 | AI172: TEST | AJ172: TEST | AK172: TEST | AL172: TEST | AM172: TEST | AN172: TEST | AO172: TEST | AP172: TEST | AQ172: TEST | AR172: 4.2 | AS172: 1 | AT172: TEST | AU172: TEST
A173: 0 | B173: 706914130 | C173: Contrôle | D173: 2014-10-15 | E173: 1 | F173: 1 | G173: 7069141301 | H173: 7069141301 | I173: 41927 | J173: 41927 | K173: 41943 | O173: 706914 | P173: 1 | Q173: 130 | R173: CONTROLE | S173: TEST | T173: TEST | U173: CONT | V173: TEST | W173: TEST | X173: 1.5 | Y173: TEST | Z173: TEST | AA173: TEST | AB173: TEST | AC173: TEST | AD173: TEST | AE173: 2014-10-15 | AF173: 08:00:00 | AG173: 2014-10-15 | AH173: 09:30:00 | AI173: TEST | AJ173: TEST | AK173: TEST | AL173: TEST | AM173: TEST | AN173: TEST | AO173: TEST | AP173: TEST | AQ173: TEST | AR173: 0.1 | AS173: 0.1 | AT173: TEST | AU173: TEST
A174: 0 | B174: 706915130 | C174: Contrôle | D174: 2014-10-15 | E174: 1 | F174: 1 | G174: 7069151301 | H174: 7069151301 | I174: 41927 | J174: 41927 | O174: 706915 | P174: 1 | Q174: 130 | R174: CONTROLE | S174: TEST | T174: TEST | U174: CONT | V174: TEST | W174: TEST | X174: 1.5 | Y174: TEST | Z174: TEST | AA174: TEST | AB174: TEST | AC174: TEST | AD174: TEST | AE174: 2014-10-15 | AF174: 09:30:00 | AG174: 2014-10-15 | AH174: 11:00:00 | AI174: TEST | AJ174: TEST | AK174: TEST | AL174: TEST | AM174: TEST | AN174: TEST | AO174: TEST | AP174: TEST | AQ174: TEST | AR174: 0.1 | AS174: 0.1 | AT174: TEST | AU174: TEST
A175: 0 | B175: 706929160 | C175: Contrôle | D175: 2014-10-14 | E175: 1 | F175: 0 | G175: 7069291601 | H175: 7069291600 | I175: 41926 | K175: 41897 | L175: 29 | O175: 706929 | P175: 1 | Q175: 160 | R175: CONTRÔLE INTER OP | S175: TEST | T175: TEST | U175: COIN | V175: TEST | W175: TEST | X175: 0 | Y175: TEST | Z175: TEST | AA175: TEST | AB175: TEST | AC175: TEST | AD175: TEST | AE175: 2014-10-14 | AF175: 00:00:00 | AH175: 00:00:00 | AI175: TEST | AJ175: TEST | AK175: TEST | AL175: TEST | AM175: TEST | AN175: TEST | AO175: TEST | AP175: TEST | AQ175: TEST | AR175: 5 | AS175: 0 | AT175: TEST | AU175: TEST
A176: 0 | B176: 706929160 | C176: Contrôle | D176: 2014-10-14 | E176: 0 | F176: 0 | G176: 7069291600 | H176: 7069291600 | O176: 706929 | P176: 1 | Q176: 160 | R176: CONTRÔLE INTER OP | S176: TEST | T176: TEST | U176: COIN | V176: TEST | W176: TEST | X176: 0 | Y176: TEST | Z176: TEST | AA176: TEST | AB176: TEST | AC176: TEST | AD176: TEST | AE176: 2014-10-14 | AF176: 00:00:00 | AH176: 00:00:00 | AI176: TEST | AJ176: TEST | AK176: TEST | AL176: TEST | AM176: TEST | AN176: TEST | AO176: TEST | AP176: TEST | AQ176: TEST | AR176: 5 | AS176: 0 | AT176: TEST | AU176: TEST
A177: 0 | B177: 706929160 | C177: Contrôle | D177: 2014-09-22 | E177: 0 | F177: 1 | G177: 7069291600 | H177: 7069291601 | J177: 41904 | O177: 706929 | P177: 1 | Q177: 160 | R177: CONTRÔLE INTER OP | S177: TEST | T177: TEST | U177: COIN | V177: TEST | W177: TEST | X177: 3 | Y177: TEST | Z177: TEST | AA177: TEST | AB177: TEST | AC177: TEST | AD177: TEST | AE177: 2014-09-22 | AF177: 00:00:00 | AH177: 00:00:00 | AI177: TEST | AJ177: TEST | AK177: TEST | AL177: TEST | AM177: TEST | AN177: TEST | AO177: TEST | AP177: TEST | AQ177: TEST | AR177: 5 | AS177: 0 | AT177: TEST | AU177: TEST
A178: 0 | B178: 706929180 | C178: Contrôle | D178: 2014-10-15 | E178: 1 | F178: 0 | G178: 7069291801 | H178: 7069291800 | I178: 41927 | O178: 706929 | P178: 1 | Q178: 180 | R178: CONTRÔLE INTER OP | S178: TEST | T178: TEST | U178: COIN | V178: TEST | W178: TEST | X178: 2 | Y178: TEST | Z178: TEST | AA178: TEST | AB178: TEST | AC178: TEST | AD178: TEST | AE178: 2014-10-15 | AF178: 00:00:00 | AH178: 00:00:00 | AI178: TEST | AJ178: TEST | AK178: TEST | AL178: TEST | AM178: TEST | AN178: TEST | AO178: TEST | AP178: TEST | AQ178: TEST | AR178: 5 | AS178: 0 | AT178: TEST | AU178: TEST
A179: 0 | B179: 706929180 | C179: Contrôle | D179: 2014-10-14 | E179: 0 | F179: 0 | G179: 7069291800 | H179: 7069291800 | O179: 706929 | P179: 1 | Q179: 180 | R179: CONTRÔLE INTER OP | S179: TEST | T179: TEST | U179: COIN | V179: TEST | W179: TEST | X179: 0.5 | Y179: TEST | Z179: TEST | AA179: TEST | AB179: TEST | AC179: TEST | AD179: TEST | AE179: 2014-10-14 | AF179: 00:00:00 | AH179: 00:00:00 | AI179: TEST | AJ179: TEST | AK179: TEST | AL179: TEST | AM179: TEST | AN179: TEST | AO179: TEST | AP179: TEST | AQ179: TEST | AR179: 5 | AS179: 0 | AT179: TEST | AU179: TEST
A180: 0 | B180: 706929180 | C180: Contrôle | D180: 2014-10-14 | E180: 0 | F180: 1 | G180: 7069291800 | H180: 7069291801 | J180: 41926 | O180: 706929 | P180: 1 | Q180: 180 | R180: CONTRÔLE INTER OP | S180: TEST | T180: TEST | U180: COIN | V180: TEST | W180: TEST | X180: 0 | Y180: TEST | Z180: TEST | AA180: TEST | AB180: TEST | AC180: TEST | AD180: TEST | AE180: 2014-10-14 | AF180: 00:00:00 | AH180: 00:00:00 | AI180: TEST | AJ180: TEST | AK180: TEST | AL180: TEST | AM180: TEST | AN180: TEST | AO180: TEST | AP180: TEST | AQ180: TEST | AR180: 5 | AS180: 0 | AT180: TEST | AU180: TEST
A181: 0 | B181: 706941110 | C181: Contrôle | D181: 2014-09-25 | E181: 1 | F181: 1 | G181: 7069411101 | H181: 7069411101 | I181: 41907 | J181: 41907 | K181: 41901 | L181: 6 | O181: 706941 | P181: 1 | Q181: 110 | R181: CONTROLE | S181: TEST | T181: TEST | U181: CONT | V181: TEST | W181: TEST | X181: 1 | Y181: TEST | Z181: TEST | AA181: TEST | AB181: TEST | AC181: TEST | AD181: TEST | AE181: 2014-09-25 | AF181: 00:00:00 | AH181: 00:00:00 | AI181: TEST | AJ181: TEST | AK181: TEST | AL181: TEST | AM181: TEST | AN181: TEST | AO181: TEST | AP181: TEST | AQ181: TEST | AR181: 0.5 | AS181: 0.5 | AT181: TEST | AU181: TEST
A182: 0 | B182: 706943130 | C182: Contrôle | D182: 2014-11-03 | E182: 1 | F182: 1 | G182: 7069431301 | H182: 7069431301 | I182: 41946 | J182: 41946 | O182: 706943 | P182: 1 | Q182: 130 | R182: CONTROLE | S182: TEST | T182: TEST | U182: CONT | V182: TEST | W182: TEST | X182: 0.5 | Y182: TEST | Z182: TEST | AA182: TEST | AB182: TEST | AC182: TEST | AD182: TEST | AE182: 2014-11-03 | AF182: 11:00:00 | AG182: 2014-11-03 | AH182: 11:30:00 | AI182: TEST | AJ182: TEST | AK182: TEST | AL182: TEST | AM182: TEST | AN182: TEST | AO182: TEST | AP182: TEST | AQ182: TEST | AR182: 0.25 | AS182: 0.25 | AT182: TEST | AU182: TEST
A183: 0 | B183: 706943180 | C183: Contrôle | D183: 2014-09-17 | E183: 1 | F183: 1 | G183: 7069431801 | H183: 7069431801 | I183: 41899 | J183: 41899 | O183: 706943 | P183: 1 | Q183: 180 | R183: CONTROLE | S183: TEST | T183: TEST | U183: CONT | V183: TEST | W183: TEST | X183: 0.5 | Y183: TEST | Z183: TEST | AA183: TEST | AB183: TEST | AC183: TEST | AD183: TEST | AE183: 2014-09-17 | AF183: 00:00:00 | AH183: 00:00:00 | AI183: TEST | AJ183: TEST | AK183: TEST | AL183: TEST | AM183: TEST | AN183: TEST | AO183: TEST | AP183: TEST | AQ183: TEST | AR183: 0.01 | AS183: 0.01 | AT183: TEST | AU183: TEST
A184: 0 | B184: 706960120 | C184: Contrôle | D184: 2014-10-01 | E184: 1 | F184: 1 | G184: 7069601201 | H184: 7069601201 | I184: 41913 | J184: 41913 | K184: 41912 | L184: 1 | O184: 706960 | P184: 1 | Q184: 120 | R184: CONTROLE | S184: TEST | T184: TEST | U184: CONT | V184: TEST | W184: TEST | X184: 1.5 | Y184: TEST | Z184: TEST | AA184: TEST | AB184: TEST | AC184: TEST | AD184: TEST | AE184: 2014-10-01 | AF184: 00:00:00 | AH184: 00:00:00 | AI184: TEST | AJ184: TEST | AK184: TEST | AL184: TEST | AM184: TEST | AN184: TEST | AO184: TEST | AP184: TEST | AQ184: TEST | AR184: 0.5 | AS184: 0.5 | AT184: TEST | AU184: TEST
A185: 0 | B185: 706960140 | C185: Contrôle | D185: 2014-10-15 | E185: 1 | F185: 1 | G185: 7069601401 | H185: 7069601401 | I185: 41927 | J185: 41927 | O185: 706960 | P185: 1 | Q185: 140 | R185: CONTROLE | S185: TEST | T185: TEST | U185: CONT | V185: TEST | W185: TEST | X185: 1 | Y185: TEST | Z185: TEST | AA185: TEST | AB185: TEST | AC185: TEST | AD185: TEST | AE185: 2014-10-15 | AF185: 00:00:00 | AH185: 00:00:00 | AI185: TEST | AJ185: TEST | AK185: TEST | AL185: TEST | AM185: TEST | AN185: TEST | AO185: TEST | AP185: TEST | AQ185: TEST | AR185: 0.32 | AS185: 0.25 | AT185: TEST | AU185: TEST
A186: 0 | B186: 70696970 | C186: Contrôle | D186: 2014-10-03 | E186: 1 | F186: 1 | G186: 706969701 | H186: 706969701 | I186: 41915 | J186: 41915 | O186: 706969 | P186: 1 | Q186: 70 | R186: CONTROLE | S186: TEST | T186: TEST | U186: CONT | V186: TEST | W186: TEST | X186: 0.3 | Y186: TEST | Z186: TEST | AA186: TEST | AB186: TEST | AC186: TEST | AD186: TEST | AE186: 2014-10-03 | AF186: 00:00:00 | AH186: 00:00:00 | AI186: TEST | AJ186: TEST | AK186: TEST | AL186: TEST | AM186: TEST | AN186: TEST | AO186: TEST | AP186: TEST | AQ186: TEST | AR186: 0.25 | AS186: 0.25 | AT186: TEST | AU186: TEST
A187: 0 | B187: 706970100 | C187: Contrôle | D187: 2014-10-14 | E187: 1 | F187: 0 | G187: 7069701001 | H187: 7069701000 | I187: 41926 | O187: 706970 | P187: 1 | Q187: 100 | R187: CONTROLE | S187: TEST | T187: TEST | U187: CONT | V187: TEST | W187: TEST | X187: 0.5 | Y187: TEST | Z187: TEST | AA187: TEST | AB187: TEST | AC187: TEST | AD187: TEST | AE187: 2014-10-14 | AF187: 00:00:00 | AH187: 00:00:00 | AI187: TEST | AJ187: TEST | AK187: TEST | AL187: TEST | AM187: TEST | AN187: TEST | AO187: TEST | AP187: TEST | AQ187: TEST | AR187: 0.33 | AS187: 0.33 | AT187: TEST | AU187: TEST
A188: 0 | B188: 706970100 | C188: Contrôle | D188: 2014-10-14 | E188: 0 | F188: 0 | G188: 7069701000 | H188: 7069701000 | O188: 706970 | P188: 1 | Q188: 100 | R188: CONTROLE | S188: TEST | T188: TEST | U188: CONT | V188: TEST | W188: TEST | X188: 0.5 | Y188: TEST | Z188: TEST | AA188: TEST | AB188: TEST | AC188: TEST | AD188: TEST | AE188: 2014-10-14 | AF188: 00:00:00 | AH188: 00:00:00 | AI188: TEST | AJ188: TEST | AK188: TEST | AL188: TEST | AM188: TEST | AN188: TEST | AO188: TEST | AP188: TEST | AQ188: TEST | AR188: 0.33 | AS188: 0.33 | AT188: TEST | AU188: TEST
A189: 0 | B189: 706970100 | C189: Contrôle | D189: 2014-10-14 | E189: 0 | F189: 1 | G189: 7069701000 | H189: 7069701001 | J189: 41926 | O189: 706970 | P189: 1 | Q189: 100 | R189: CONTROLE | S189: TEST | T189: TEST | U189: CONT | V189: TEST | W189: TEST | X189: 0 | Y189: TEST | Z189: TEST | AA189: TEST | AB189: TEST | AC189: TEST | AD189: TEST | AE189: 2014-10-14 | AF189: 00:00:00 | AH189: 00:00:00 | AI189: TEST | AJ189: TEST | AK189: TEST | AL189: TEST | AM189: TEST | AN189: TEST | AO189: TEST | AP189: TEST | AQ189: TEST | AR189: 0.33 | AS189: 0.33 | AT189: TEST | AU189: TEST
A190: 0 | B190: 706970130 | C190: Contrôle | D190: 2014-10-23 | E190: 1 | F190: 1 | G190: 7069701301 | H190: 7069701301 | I190: 41935 | J190: 41935 | O190: 706970 | P190: 1 | Q190: 130 | R190: CONTROLE | S190: TEST | T190: TEST | U190: CONT | V190: TEST | W190: TEST | X190: 0.5 | Y190: TEST | Z190: TEST | AA190: TEST | AB190: TEST | AC190: TEST | AD190: TEST | AE190: 2014-10-23 | AF190: 00:00:00 | AH190: 00:00:00 | AI190: TEST | AJ190: TEST | AK190: TEST | AL190: TEST | AM190: TEST | AN190: TEST | AO190: TEST | AP190: TEST | AQ190: TEST | AR190: 0.25 | AS190: 0.25 | AT190: TEST | AU190: TEST
A191: 0 | B191: 706971110 | C191: Contrôle | D191: 2014-10-27 | E191: 1 | F191: 1 | G191: 7069711101 | H191: 7069711101 | I191: 41939 | J191: 41939 | K191: 41936 | L191: 3 | O191: 706971 | P191: 1 | Q191: 110 | R191: CONTROLE | S191: TEST | T191: TEST | U191: CONT | V191: TEST | W191: TEST | X191: 1.25 | Y191: TEST | Z191: TEST | AA191: TEST | AB191: TEST | AC191: TEST | AD191: TEST | AE191: 2014-10-27 | AF191: 00:00:00 | AH191: 00:00:00 | AI191: TEST | AJ191: TEST | AK191: TEST | AL191: TEST | AM191: TEST | AN191: TEST | AO191: TEST | AP191: TEST | AQ191: TEST | AR191: 0.5 | AS191: 0.5 | AT191: TEST | AU191: TEST
A192: 0 | B192: 70724040 | C192: Contrôle | D192: 2014-10-15 | E192: 1 | F192: 1 | G192: 707240401 | H192: 707240401 | I192: 41927 | J192: 41927 | K192: 41934 | O192: 707240 | P192: 1 | Q192: 40 | R192: CONTROLE | S192: TEST | T192: TEST | U192: CONT | V192: TEST | W192: TEST | X192: 1 | Y192: TEST | Z192: TEST | AA192: TEST | AB192: TEST | AC192: TEST | AD192: TEST | AE192: 2014-10-15 | AF192: 00:00:00 | AH192: 00:00:00 | AI192: TEST | AJ192: TEST | AK192: TEST | AL192: TEST | AM192: TEST | AN192: TEST | AO192: TEST | AP192: TEST | AQ192: TEST | AR192: 25.5 | AS192: 0.5 | AT192: TEST | AU192: TEST
A193: 0 | B193: 70724280 | C193: Contrôle | D193: 2014-10-15 | E193: 1 | F193: 1 | G193: 707242801 | H193: 707242801 | I193: 41927 | J193: 41927 | K193: 41926 | L193: 1 | O193: 707242 | P193: 1 | Q193: 80 | R193: CONTROLE AVANT S/T | S193: TEST | T193: TEST | U193: CONT | V193: TEST | W193: TEST | X193: 0.5 | Y193: TEST | Z193: TEST | AA193: TEST | AB193: TEST | AC193: TEST | AD193: TEST | AE193: 2014-10-15 | AF193: 00:00:00 | AH193: 00:00:00 | AI193: TEST | AJ193: TEST | AK193: TEST | AL193: TEST | AM193: TEST | AN193: TEST | AO193: TEST | AP193: TEST | AQ193: TEST | AR193: 0.3 | AS193: 0.3 | AT193: TEST | AU193: TEST
A194: 0 | B194: 70725040 | C194: Contrôle | D194: 2014-10-15 | E194: 1 | F194: 1 | G194: 707250401 | H194: 707250401 | I194: 41927 | J194: 41927 | K194: 41927 | L194: 0 | O194: 707250 | P194: 1 | Q194: 40 | R194: CONTROLE | S194: TEST | T194: TEST | U194: CONT | V194: TEST | W194: TEST | X194: 0.25 | Y194: TEST | Z194: TEST | AA194: TEST | AB194: TEST | AC194: TEST | AD194: TEST | AE194: 2014-10-15 | AF194: 00:00:00 | AH194: 00:00:00 | AI194: TEST | AJ194: TEST | AK194: TEST | AL194: TEST | AM194: TEST | AN194: TEST | AO194: TEST | AP194: TEST | AQ194: TEST | AR194: 0.25 | AS194: 0.25 | AT194: TEST | AU194: TEST
A195: 0 | B195: 707052110 | C195: Contrôle | D195: 2014-10-15 | E195: 1 | F195: 1 | G195: 7070521101 | H195: 7070521101 | I195: 41927 | J195: 41927 | K195: 41925 | L195: 2 | O195: 707052 | P195: 1 | Q195: 110 | R195: CONTROLE EXPEDITION | S195: TEST | T195: TEST | U195: CONT | V195: TEST | W195: TEST | X195: 1 | Y195: TEST | Z195: TEST | AA195: TEST | AB195: TEST | AC195: TEST | AD195: TEST | AE195: 2014-10-15 | AF195: 00:00:00 | AH195: 00:00:00 | AI195: TEST | AJ195: TEST | AK195: TEST | AL195: TEST | AM195: TEST | AN195: TEST | AO195: TEST | AP195: TEST | AQ195: TEST | AR195: 0.3 | AS195: 0.3 | AT195: TEST | AU195: TEST
A196: 0 | B196: 707053100 | C196: Contrôle | D196: 2014-10-09 | E196: 1 | F196: 1 | G196: 7070531001 | H196: 7070531001 | I196: 41921 | J196: 41921 | O196: 707053 | P196: 1 | Q196: 100 | R196: CONTROLE | S196: TEST | T196: TEST | U196: CONT | V196: TEST | W196: TEST | X196: 0.5 | Y196: TEST | Z196: TEST | AA196: TEST | AB196: TEST | AC196: TEST | AD196: TEST | AE196: 2014-10-09 | AF196: 00:00:00 | AH196: 00:00:00 | AI196: TEST | AJ196: TEST | AK196: TEST | AL196: TEST | AM196: TEST | AN196: TEST | AO196: TEST | AP196: TEST | AQ196: TEST | AR196: 0.5 | AS196: 0.5 | AT196: TEST | AU196: TEST
A197: 0 | B197: 707053130 | C197: Contrôle | D197: 2014-11-05 | E197: 1 | F197: 1 | G197: 7070531301 | H197: 7070531301 | I197: 41948 | J197: 41948 | O197: 707053 | P197: 1 | Q197: 130 | R197: CONTROLE DIMENSIONNEL/GEOMETRIQUE | S197: TEST | T197: TEST | U197: CONT | V197: TEST | W197: TEST | X197: 0.5 | Y197: TEST | Z197: TEST | AA197: TEST | AB197: TEST | AC197: TEST | AD197: TEST | AE197: 2014-11-05 | AF197: 00:00:00 | AH197: 00:00:00 | AI197: TEST | AJ197: TEST | AK197: TEST | AL197: TEST | AM197: TEST | AN197: TEST | AO197: TEST | AP197: TEST | AQ197: TEST | AR197: 4.25 | AS197: 0.5 | AT197: TEST | AU197: TEST
A198: 0 | B198: 706777110 | C198: Contrôle | D198: 2014-10-13 | E198: 1 | F198: 1 | G198: 7067771101 | H198: 7067771101 | I198: 41925 | J198: 41925 | O198: 706777 | P198: 1 | Q198: 110 | R198: CONTROLE | S198: TEST | T198: TEST | U198: CONT | V198: TEST | W198: TEST | X198: 0.1 | Y198: TEST | Z198: TEST | AA198: TEST | AB198: TEST | AC198: TEST | AD198: TEST | AE198: 2014-10-13 | AF198: 00:00:00 | AH198: 00:00:00 | AI198: TEST | AJ198: TEST | AK198: TEST | AL198: TEST | AM198: TEST | AN198: TEST | AO198: TEST | AP198: TEST | AQ198: TEST | AR198: 3.85 | AS198: 0.25 | AT198: TEST | AU198: TEST
A199: 0 | B199: 706914130 | C199: Contrôle | D199: 2014-10-13 | E199: 1 | F199: 1 | G199: 7069141301 | H199: 7069141301 | I199: 41925 | J199: 41925 | K199: 41943 | O199: 706914 | P199: 1 | Q199: 130 | R199: CONTROLE | S199: TEST | T199: TEST | U199: CONT | V199: TEST | W199: TEST | X199: 0.25 | Y199: TEST | Z199: TEST | AA199: TEST | AB199: TEST | AC199: TEST | AD199: TEST | AE199: 2014-10-13 | AF199: 00:00:00 | AH199: 00:00:00 | AI199: TEST | AJ199: TEST | AK199: TEST | AL199: TEST | AM199: TEST | AN199: TEST | AO199: TEST | AP199: TEST | AQ199: TEST | AR199: 0.1 | AS199: 0.1 | AT199: TEST | AU199: TEST
A200: 0 | B200: 706915130 | C200: Contrôle | D200: 2014-10-13 | E200: 1 | F200: 1 | G200: 7069151301 | H200: 7069151301 | I200: 41925 | J200: 41925 | O200: 706915 | P200: 1 | Q200: 130 | R200: CONTROLE | S200: TEST | T200: TEST | U200: CONT | V200: TEST | W200: TEST | X200: 0.25 | Y200: TEST | Z200: TEST | AA200: TEST | AB200: TEST | AC200: TEST | AD200: TEST | AE200: 2014-10-13 | AF200: 00:00:00 | AH200: 00:00:00 | AI200: TEST | AJ200: TEST | AK200: TEST | AL200: TEST | AM200: TEST | AN200: TEST | AO200: TEST | AP200: TEST | AQ200: TEST | AR200: 0.1 | AS200: 0.1 | AT200: TEST | AU200: TEST
A201: 0 | B201: 706970100 | C201: Contrôle | D201: 2014-10-13 | E201: 1 | F201: 1 | G201: 7069701001 | H201: 7069701001 | I201: 41925 | J201: 41925 | O201: 706970 | P201: 1 | Q201: 100 | R201: CONTROLE | S201: TEST | T201: TEST | U201: CONT | V201: TEST | W201: TEST | X201: 0.25 | Y201: TEST | Z201: TEST | AA201: TEST | AB201: TEST | AC201: TEST | AD201: TEST | AE201: 2014-10-13 | AF201: 00:00:00 | AH201: 00:00:00 | AI201: TEST | AJ201: TEST | AK201: TEST | AL201: TEST | AM201: TEST | AN201: TEST | AO201: TEST | AP201: TEST | AQ201: TEST | AR201: 0.33 | AS201: 0.33 | AT201: TEST | AU201: TEST
A202: 0 | B202: 707053130 | C202: Contrôle | D202: 2014-10-31 | E202: 1 | F202: 1 | G202: 7070531301 | H202: 7070531301 | I202: 41943 | J202: 41943 | O202: 707053 | P202: 1 | Q202: 130 | R202: CONTROLE DIMENSIONNEL/GEOMETRIQUE | S202: TEST | T202: TEST | U202: CONT | V202: TEST | W202: TEST | X202: 1 | Y202: TEST | Z202: TEST | AA202: TEST | AB202: TEST | AC202: TEST | AD202: TEST | AE202: 2014-10-31 | AF202: 00:00:00 | AH202: 00:00:00 | AI202: TEST | AJ202: TEST | AK202: TEST | AL202: TEST | AM202: TEST | AN202: TEST | AO202: TEST | AP202: TEST | AQ202: TEST | AR202: 4.25 | AS202: 0.5 | AT202: TEST | AU202: TEST
A203: 0 | B203: 707053150 | C203: Contrôle | D203: 2014-11-03 | E203: 1 | F203: 1 | G203: 7070531501 | H203: 7070531501 | I203: 41946 | J203: 41946 | O203: 707053 | P203: 1 | Q203: 150 | R203: CONTROLE DIMENSIONNEL/GEOMETRIQUE | S203: TEST | T203: TEST | U203: CONT | V203: TEST | W203: TEST | X203: 2 | Y203: TEST | Z203: TEST | AA203: TEST | AB203: TEST | AC203: TEST | AD203: TEST | AE203: 2014-11-03 | AF203: 00:00:00 | AH203: 00:00:00 | AI203: TEST | AJ203: TEST | AK203: TEST | AL203: TEST | AM203: TEST | AN203: TEST | AO203: TEST | AP203: TEST | AQ203: TEST | AR203: 0.5 | AS203: 0.5 | AT203: TEST | AU203: TEST
A204: 0 | B204: 707054100 | C204: Contrôle | D204: 2014-10-09 | E204: 1 | F204: 1 | G204: 7070541001 | H204: 7070541001 | I204: 41921 | J204: 41921 | O204: 707054 | P204: 1 | Q204: 100 | R204: CONTROLE | S204: TEST | T204: TEST | U204: CONT | V204: TEST | W204: TEST | X204: 0.5 | Y204: TEST | Z204: TEST | AA204: TEST | AB204: TEST | AC204: TEST | AD204: TEST | AE204: 2014-10-09 | AF204: 00:00:00 | AH204: 00:00:00 | AI204: TEST | AJ204: TEST | AK204: TEST | AL204: TEST | AM204: TEST | AN204: TEST | AO204: TEST | AP204: TEST | AQ204: TEST | AR204: 0.5 | AS204: 0.5 | AT204: TEST | AU204: TEST
A205: 0 | B205: 707054130 | C205: Contrôle | D205: 2014-11-05 | E205: 1 | F205: 0 | G205: 7070541301 | H205: 7070541300 | I205: 41948 | O205: 707054 | P205: 1 | Q205: 130 | R205: CONTROLE DIMENSIONNEL/GEOMETRIQUE | S205: TEST | T205: TEST | U205: CONT | V205: TEST | W205: TEST | X205: 0.5 | Y205: TEST | Z205: TEST | AA205: TEST | AB205: TEST | AC205: TEST | AD205: TEST | AE205: 2014-11-05 | AF205: 00:00:00 | AH205: 00:00:00 | AI205: TEST | AJ205: TEST | AK205: TEST | AL205: TEST | AM205: TEST | AN205: TEST | AO205: TEST | AP205: TEST | AQ205: TEST | AR205: 4.25 | AS205: 0.5 | AT205: TEST | AU205: TEST
A206: 0 | B206: 707054130 | C206: Contrôle | D206: 2014-10-31 | E206: 0 | F206: 1 | G206: 7070541300 | H206: 7070541301 | J206: 41943 | O206: 707054 | P206: 1 | Q206: 130 | R206: CONTROLE DIMENSIONNEL/GEOMETRIQUE | S206: TEST | T206: TEST | U206: CONT | V206: TEST | W206: TEST | X206: 3 | Y206: TEST | Z206: TEST | AA206: TEST | AB206: TEST | AC206: TEST | AD206: TEST | AE206: 2014-10-31 | AF206: 00:00:00 | AH206: 00:00:00 | AI206: TEST | AJ206: TEST | AK206: TEST | AL206: TEST | AM206: TEST | AN206: TEST | AO206: TEST | AP206: TEST | AQ206: TEST | AR206: 4.25 | AS206: 0.5 | AT206: TEST | AU206: TEST
A207: 0 | B207: 70709050 | C207: Contrôle | D207: 2014-10-13 | E207: 1 | F207: 1 | G207: 707090501 | H207: 707090501 | I207: 41925 | J207: 41925 | K207: 41912 | L207: 13 | O207: 707090 | P207: 1 | Q207: 50 | R207: CONTROLE | S207: TEST | T207: TEST | U207: CONT | V207: TEST | W207: TEST | X207: 0.75 | Y207: TEST | Z207: TEST | AA207: TEST | AB207: TEST | AC207: TEST | AD207: TEST | AE207: 2014-10-13 | AF207: 00:00:00 | AH207: 00:00:00 | AI207: TEST | AJ207: TEST | AK207: TEST | AL207: TEST | AM207: TEST | AN207: TEST | AO207: TEST | AP207: TEST | AQ207: TEST | AR207: 0.3 | AS207: 0.3 | AT207: TEST | AU207: TEST
A208: 0 | B208: 707092110 | C208: Contrôle | D208: 2014-10-13 | E208: 1 | F208: 1 | G208: 7070921101 | H208: 7070921101 | I208: 41925 | J208: 41925 | K208: 41920 | L208: 5 | O208: 707092 | P208: 1 | Q208: 110 | R208: CONTROLE EXPEDITION | S208: TEST | T208: TEST | U208: CONT | V208: TEST | W208: TEST | X208: 0.3 | Y208: TEST | Z208: TEST | AA208: TEST | AB208: TEST | AC208: TEST | AD208: TEST | AE208: 2014-10-13 | AF208: 00:00:00 | AH208: 00:00:00 | AI208: TEST | AJ208: TEST | AK208: TEST | AL208: TEST | AM208: TEST | AN208: TEST | AO208: TEST | AP208: TEST | AQ208: TEST | AR208: 0.3 | AS208: 0.3 | AT208: TEST | AU208: TEST
A209: 0 | B209: 70718590 | C209: Contrôle | D209: 2014-10-13 | E209: 1 | F209: 1 | G209: 707185901 | H209: 707185901 | I209: 41925 | J209: 41925 | K209: 41922 | L209: 3 | O209: 707185 | P209: 1 | Q209: 90 | R209: CONTROLE EXPEDITION | S209: TEST | T209: TEST | U209: CONT | V209: TEST | W209: TEST | X209: 0.5 | Y209: TEST | Z209: TEST | AA209: TEST | AB209: TEST | AC209: TEST | AD209: TEST | AE209: 2014-10-13 | AF209: 00:00:00 | AH209: 00:00:00 | AI209: TEST | AJ209: TEST | AK209: TEST | AL209: TEST | AM209: TEST | AN209: TEST | AO209: TEST | AP209: TEST | AQ209: TEST | AR209: 0.3 | AS209: 0.3 | AT209: TEST | AU209: TEST
A210: 0 | B210: 707055110 | C210: Contrôle | D210: 2014-09-23 | E210: 1 | F210: 0 | G210: 7070551101 | H210: 7070551100 | I210: 41905 | O210: 707055 | P210: 1 | Q210: 110 | R210: CONTROLE RETOUR S/T | S210: TEST | T210: TEST | U210: CONT | V210: TEST | W210: TEST | X210: 2 | Y210: TEST | Z210: TEST | AA210: TEST | AB210: TEST | AC210: TEST | AD210: TEST | AE210: 2014-09-23 | AF210: 00:00:00 | AH210: 00:00:00 | AI210: TEST | AJ210: TEST | AK210: TEST | AL210: TEST | AM210: TEST | AN210: TEST | AO210: TEST | AP210: TEST | AQ210: TEST | AR210: 0.75 | AS210: 0.75 | AT210: TEST | AU210: TEST
A211: 0 | B211: 707055110 | C211: Contrôle | D211: 2014-09-23 | E211: 0 | F211: 1 | G211: 7070551100 | H211: 7070551101 | J211: 41905 | O211: 707055 | P211: 1 | Q211: 110 | R211: CONTROLE RETOUR S/T | S211: TEST | T211: TEST | U211: CONT | V211: TEST | W211: TEST | X211: 0.1 | Y211: TEST | Z211: TEST | AA211: TEST | AB211: TEST | AC211: TEST | AD211: TEST | AE211: 2014-09-23 | AF211: 00:00:00 | AH211: 00:00:00 | AI211: TEST | AJ211: TEST | AK211: TEST | AL211: TEST | AM211: TEST | AN211: TEST | AO211: TEST | AP211: TEST | AQ211: TEST | AR211: 0.75 | AS211: 0.75 | AT211: TEST | AU211: TEST
... 140 more rows

Sheet Controle Final
B2: Zone | C2: Temps de transit | D2: Temps passé | G2: Temps passé total | H2: Temps Alloué | K2: Temps alloué total | L2: Temps passé / Temps alloué | M2: Nombre de Pointage | N2: Heure / Pointage
D3: Min | E3: Max | F3: Moyen | H3: Min | I3: Max | J3: Moyen | L3: Total Zone
B4: =C16 -> Contrôle final | C4: =AVERAGE(L16:L5998) -> 4.612903226 | D4: =temps!H1 -> 0.01 | E4: =temps!G1 -> 62.25 | F4: =temps!H2 -> 5.0825 | G4: =temps!G2 -> 1158.81 | H4: =MIN(AS:AS) -> 0 | I4: =MAX(AR:AR) -> 225 | J4: =AVERAGEIF(E16:E4998,1,AR:AR) -> 11.29234114 | K4: =SUMIFS($AR:$AR,$E:$E,1) -> 3389.37 | L4: =K4/G4 -> 2.924871204 | M4: =COUNTIF(E16:E4998,"1")+COUNTIF(E16:E4998,0) -> 518 | N4: =G4/M4 -> 2.237084942
A15: Après COFI ? | B15: OF & Phase | C15: Secteur | D15: Date | E15: Premier ? | F15: Dernier ? | G15: OF & Phase & premier | H15: OF & Phase & dernier | I15: Date Premier | J15: Date dernière | K15: Date précé | L15: Temps de transite | M15: Type Pointage | N15: Obs. | O15: Affaire | P15: Rang | Q15: Phase | R15: Désignation Phase | S15: Pièce | T15: Sous pièce | U15: C.Frais | V15: Employé | W15: Nom employé | X15: Heures | Y15: Coûts | Z15: Nb. Pièces finies | AA15: Nb. Pièces abimées | AB15: Machine | AC15: Taux homme | AD15: Taux machine | AE15: Date | AF15: Heure debut | AG15: Date fin | AH15: Heure fin | AI15: Service | AJ15: Client | AK15: Commande | AL15: Activité | AM15: Section | AN15: Etat Af. | AO15: Type Af. | AP15: Typologie | AQ15: Famille | AR15: Prévu total | AS15: Prévu TP | AT15: Prévu pour nb pièces pointées | AU15: N° de pointage
A16: 0 | B16: 2250270 | C16: Contrôle final | D16: 2014-10-13 | E16: 1 | F16: 1 | G16: 22502701 | H16: 22502701 | I16: 41925 | J16: 41925 | K16: 41920 | L16: 5 | O16: 22502 | P16: 1 | Q16: 70 | R16: CONTROLE FINAL | S16: TEST | T16: TEST | U16: COFI | V16: TEST | W16: TEST | X16: 1 | Y16: TEST | Z16: TEST | AA16: TEST | AB16: TEST | AC16: TEST | AD16: TEST | AE16: 2014-10-13 | AF16: 00:00:00 | AH16: 00:00:00 | AI16: TEST | AJ16: TEST | AK16: TEST | AL16: TEST | AM16: TEST | AN16: TEST | AO16: TEST | AP16: TEST | AQ16: TEST | AR16: 0.25 | AS16: 0.25 | AT16: TEST | AU16: TEST
A17: 0 | B17: 345734150 | C17: Contrôle final | D17: 2014-11-04 | E17: 1 | F17: 0 | G17: 3457341501 | H17: 3457341500 | I17: 41947 | O17: 345734 | P17: 1 | Q17: 150 | R17: CONTROLE FINAL | S17: TEST | T17: TEST | U17: COFI | V17: TEST | W17: TEST | X17: 2 | Y17: TEST | Z17: TEST | AA17: TEST | AB17: TEST | AC17: TEST | AD17: TEST | AE17: 2014-11-04 | AF17: 00:00:00 | AH17: 00:00:00 | AI17: TEST | AJ17: TEST | AK17: TEST | AL17: TEST | AM17: TEST | AN17: TEST | AO17: TEST | AP17: TEST | AQ17: TEST | AR17: 2.8 | AS17: 1 | AT17: TEST | AU17: TEST
A18: 0 | B18: 345734150 | C18: Contrôle final | D18: 2014-11-04 | E18: 0 | F18: 0 | G18: 3457341500 | H18: 3457341500 | O18: 345734 | P18: 1 | Q18: 150 | R18: CONTROLE FINAL | S18: TEST | T18: TEST | U18: COFI | V18: TEST | W18: TEST | X18: 4 | Y18: TEST | Z18: TEST | AA18: TEST | AB18: TEST | AC18: TEST | AD18: TEST | AE18: 2014-11-04 | AF18: 00:00:00 | AH18: 00:00:00 | AI18: TEST | AJ18: TEST | AK18: TEST | AL18: TEST | AM18: TEST | AN18: TEST | AO18: TEST | AP18: TEST | AQ18: TEST | AR18: 2.8 | AS18: 1 | AT18: TEST | AU18: TEST
A19: 0 | B19: 345734150 | C19: Contrôle final | D19: 2014-11-03 | E19: 0 | F19: 0 | G19: 3457341500 | H19: 3457341500 | O19: 345734 | P19: 1 | Q19: 150 | R19: CONTROLE FINAL | S19: TEST | T19: TEST | U19: COFI | V19: TEST | W19: TEST | X19: 4 | Y19: TEST | Z19: TEST | AA19: TEST | AB19: TEST | AC19: TEST | AD19: TEST | AE19: 2014-11-03 | AF19: 00:00:00 | AH19: 00:00:00 | AI19: TEST | AJ19: TEST | AK19: TEST | AL19: TEST | AM19: TEST | AN19: TEST | AO19: TEST | AP19: TEST | AQ19: TEST | AR19: 2.8 | AS19: 1 | AT19: TEST | AU19: TEST
A20: 0 | B20: 345734150 | C20: Contrôle final | D20: 2014-10-30 | E20: 0 | F20: 0 | G20: 3457341500 | H20: 3457341500 | O20: 345734 | P20: 1 | Q20: 150 | R20: CONTROLE FINAL | S20: TEST | T20: TEST | U20: COFI | V20: TEST | W20: TEST | X20: 1.25 | Y20: TEST | Z20: TEST | AA20: TEST | AB20: TEST | AC20: TEST | AD20: TEST | AE20: 2014-10-30 | AF20: 00:00:00 | AH20: 00:00:00 | AI20: TEST | AJ20: TEST | AK20: TEST | AL20: TEST | AM20: TEST | AN20: TEST | AO20: TEST | AP20: TEST | AQ20: TEST | AR20: 2.8 | AS20: 1 | AT20: TEST | AU20: TEST
A21: 0 | B21: 345734150 | C21: Contrôle final | D21: 2014-10-29 | E21: 0 | F21: 1 | G21: 3457341500 | H21: 3457341501 | J21: 41941 | O21: 345734 | P21: 1 | Q21: 150 | R21: CONTROLE FINAL | S21: TEST | T21: TEST | U21: COFI | V21: TEST | W21: TEST | X21: 6.5 | Y21: TEST | Z21: TEST | AA21: TEST | AB21: TEST | AC21: TEST | AD21: TEST | AE21: 2014-10-29 | AF21: 00:00:00 | AH21: 00:00:00 | AI21: TEST | AJ21: TEST | AK21: TEST | AL21: TEST | AM21: TEST | AN21: TEST | AO21: TEST | AP21: TEST | AQ21: TEST | AR21: 2.8 | AS21: 1 | AT21: TEST | AU21: TEST
A22: 0 | B22: 355934240 | C22: Contrôle final | D22: 2014-10-24 | E22: 1 | F22: 0 | G22: 3559342401 | H22: 3559342400 | I22: 41936 | O22: 355934 | P22: 1 | Q22: 240 | R22: CONTROLE FINAL | S22: TEST | T22: TEST | U22: COFI | V22: TEST | W22: TEST | X22: 0.02 | Y22: TEST | Z22: TEST | AA22: TEST | AB22: TEST | AC22: TEST | AD22: TEST | AE22: 2014-10-24 | AF22: 15:00:00 | AG22: 2014-10-24 | AH22: 15:01:00 | AI22: TEST | AJ22: TEST | AK22: TEST | AL22: TEST | AM22: TEST | AN22: TEST | AO22: TEST | AP22: TEST | AQ22: TEST | AR22: 17 | AS22: 2 | AT22: TEST | AU22: TEST
A23: 0 | B23: 355934240 | C23: Contrôle final | D23: 2014-10-23 | E23: 0 | F23: 0 | G23: 3559342400 | H23: 3559342400 | O23: 355934 | P23: 1 | Q23: 240 | R23: CONTROLE FINAL | S23: TEST | T23: TEST | U23: COFI | V23: TEST | W23: TEST | X23: 7.75 | Y23: TEST | Z23: TEST | AA23: TEST | AB23: TEST | AC23: TEST | AD23: TEST | AE23: 2014-10-23 | AF23: 00:00:00 | AH23: 00:00:00 | AI23: TEST | AJ23: TEST | AK23: TEST | AL23: TEST | AM23: TEST | AN23: TEST | AO23: TEST | AP23: TEST | AQ23: TEST | AR23: 17 | AS23: 2 | AT23: TEST | AU23: TEST
A24: 0 | B24: 355934240 | C24: Contrôle final | D24: 2014-10-23 | E24: 0 | F24: 0 | G24: 3559342400 | H24: 3559342400 | O24: 355934 | P24: 1 | Q24: 240 | R24: CONTROLE FINAL | S24: TEST | T24: TEST | U24: COFI | V24: TEST | W24: TEST | X24: 5 | Y24: TEST | Z24: TEST | AA24: TEST | AB24: TEST | AC24: TEST | AD24: TEST | AE24: 2014-10-23 | AF24: 00:00:00 | AH24: 00:00:00 | AI24: TEST | AJ24: TEST | AK24: TEST | AL24: TEST | AM24: TEST | AN24: TEST | AO24: TEST | AP24: TEST | AQ24: TEST | AR24: 17 | AS24: 2 | AT24: TEST | AU24: TEST
A25: 0 | B25: 355934240 | C25: Contrôle final | D25: 2014-10-22 | E25: 0 | F25: 0 | G25: 3559342400 | H25: 3559342400 | O25: 355934 | P25: 1 | Q25: 240 | R25: CONTROLE FINAL | S25: TEST | T25: TEST | U25: COFI | V25: TEST | W25: TEST | X25: 7.75 | Y25: TEST | Z25: TEST | AA25: TEST | AB25: TEST | AC25: TEST | AD25: TEST | AE25: 2014-10-22 | AF25: 00:00:00 | AH25: 00:00:00 | AI25: TEST | AJ25: TEST | AK25: TEST | AL25: TEST | AM25: TEST | AN25: TEST | AO25: TEST | AP25: TEST | AQ25: TEST | AR25: 17 | AS25: 2 | AT25: TEST | AU25: TEST
A26: 0 | B26: 355934240 | C26: Contrôle final | D26: 2014-10-22 | E26: 0 | F26: 0 | G26: 3559342400 | H26: 3559342400 | O26: 355934 | P26: 1 | Q26: 240 | R26: CONTROLE FINAL | S26: TEST | T26: TEST | U26: COFI | V26: TEST | W26: TEST | X26: 5.3 | Y26: TEST | Z26: TEST | AA26: TEST | AB26: TEST | AC26: TEST | AD26: TEST | AE26: 2014-10-22 | AF26: 00:00:00 | AH26: 00:00:00 | AI26: TEST | AJ26: TEST | AK26: TEST | AL26: TEST | AM26: TEST | AN26: TEST | AO26: TEST | AP26: TEST | AQ26: TEST | AR26: 17 | AS26: 2 | AT26: TEST | AU26: TEST
A27: 0 | B27: 355934240 | C27: Contrôle final | D27: 2014-10-21 | E27: 0 | F27: 0 | G27: 3559342400 | H27: 3559342400 | O27: 355934 | P27: 1 | Q27: 240 | R27: CONTROLE FINAL | S27: TEST | T27: TEST | U27: COFI | V27: TEST | W27: TEST | X27: 2.75 | Y27: TEST | Z27: TEST | AA27: TEST | AB27: TEST | AC27: TEST | AD27: TEST | AE27: 2014-10-21 | AF27: 00:00:00 | AH27: 00:00:00 | AI27: TEST | AJ27: TEST | AK27: TEST | AL27: TEST | AM27: TEST | AN27: TEST | AO27: TEST | AP27: TEST | AQ27: TEST | AR27: 17 | AS27: 2 | AT27: TEST | AU27: TEST
A28: 0 | B28: 355934240 | C28: Contrôle final | D28: 2014-10-21 | E28: 0 | F28: 1 | G28: 3559342400 | H28: 3559342401 | J28: 41933 | O28: 355934 | P28: 1 | Q28: 240 | R28: CONTROLE FINAL | S28: TEST | T28: TEST | U28: COFI | V28: TEST | W28: TEST | X28: 4.7 | Y28: TEST | Z28: TEST | AA28: TEST | AB28: TEST | AC28: TEST | AD28: TEST | AE28: 2014-10-21 | AF28: 00:00:00 | AH28: 00:00:00 | AI28: TEST | AJ28: TEST | AK28: TEST | AL28: TEST | AM28: TEST | AN28: TEST | AO28: TEST | AP28: TEST | AQ28: TEST | AR28: 17 | AS28: 2 | AT28: TEST | AU28: TEST
A29: 0 | B29: 35593430 | C29: Contrôle final | D29: 2014-10-30 | E29: 1 | F29: 0 | G29: 355934301 | H29: 355934300 | I29: 41942 | K29: 41941 | L29: 1 | O29: 355934 | P29: 999/2 | Q29: 30 | R29: CONTROLE FINAL | S29: TEST | T29: TEST | U29: COFI | V29: TEST | W29: TEST | X29: 0.5 | Y29: TEST | Z29: TEST | AA29: TEST | AB29: TEST | AC29: TEST | AD29: TEST | AE29: 2014-10-30 | AF29: 00:00:00 | AH29: 00:00:00 | AI29: TEST | AJ29: TEST | AK29: TEST | AL29: TEST | AM29: TEST | AN29: TEST | AO29: TEST | AP29: TEST | AQ29: TEST | AR29: 1.5 | AS29: 1.5 | AT29: TEST | AU29: TEST
A30: 0 | B30: 35593430 | C30: Contrôle final | D30: 2014-10-29 | E30: 0 | F30: 1 | G30: 355934300 | H30: 355934301 | J30: 41941 | O30: 355934 | P30: 999/2 | Q30: 30 | R30: CONTROLE FINAL | S30: TEST | T30: TEST | U30: COFI | V30: TEST | W30: TEST | X30: 2.4 | Y30: TEST | Z30: TEST | AA30: TEST | AB30: TEST | AC30: TEST | AD30: TEST | AE30: 2014-10-29 | AF30: 00:00:00 | AH30: 00:00:00 | AI30: TEST | AJ30: TEST | AK30: TEST | AL30: TEST | AM30: TEST | AN30: TEST | AO30: TEST | AP30: TEST | AQ30: TEST | AR30: 1.5 | AS30: 1.5 | AT30: TEST | AU30: TEST
A31: 0 | B31: 700492280 | C31: Contrôle final | D31: 2014-09-29 | E31: 1 | F31: 0 | G31: 7004922801 | H31: 7004922800 | I31: 41911 | O31: 700492 | P31: 1 | Q31: 280 | R31: CONTROLE FINAL | S31: TEST | T31: TEST | U31: COFI | V31: TEST | W31: TEST | X31: 1.5 | Y31: TEST | Z31: TEST | AA31: TEST | AB31: TEST | AC31: TEST | AD31: TEST | AE31: 2014-09-29 | AF31: 00:00:00 | AH31: 00:00:00 | AI31: TEST | AJ31: TEST | AK31: TEST | AL31: TEST | AM31: TEST | AN31: TEST | AO31: TEST | AP31: TEST | AQ31: TEST | AR31: 7.73 | AS31: 0.25 | AT31: TEST | AU31: TEST
A32: 0 | B32: 700492280 | C32: Contrôle final | D32: 2014-09-26 | E32: 0 | F32: 1 | G32: 7004922800 | H32: 7004922801 | J32: 41908 | O32: 700492 | P32: 1 | Q32: 280 | R32: CONTROLE FINAL | S32: TEST | T32: TEST | U32: COFI | V32: TEST | W32: TEST | X32: 0.75 | Y32: TEST | Z32: TEST | AA32: TEST | AB32: TEST | AC32: TEST | AD32: TEST | AE32: 2014-09-26 | AF32: 00:00:00 | AH32: 00:00:00 | AI32: TEST | AJ32: TEST | AK32: TEST | AL32: TEST | AM32: TEST | AN32: TEST | AO32: TEST | AP32: TEST | AQ32: TEST | AR32: 7.73 | AS32: 0.25 | AT32: TEST | AU32: TEST
A33: 0 | B33: 700699280 | C33: Contrôle final | D33: 2014-09-29 | E33: 1 | F33: 1 | G33: 7006992801 | H33: 7006992801 | I33: 41911 | J33: 41911 | O33: 700699 | P33: 1 | Q33: 280 | R33: CONTROLE FINAL | S33: TEST | T33: TEST | U33: COFI | V33: TEST | W33: TEST | X33: 1 | Y33: TEST | Z33: TEST | AA33: TEST | AB33: TEST | AC33: TEST | AD33: TEST | AE33: 2014-09-29 | AF33: 00:00:00 | AH33: 00:00:00 | AI33: TEST | AJ33: TEST | AK33: TEST | AL33: TEST | AM33: TEST | AN33: TEST | AO33: TEST | AP33: TEST | AQ33: TEST | AR33: 7.73 | AS33: 0.25 | AT33: TEST | AU33: TEST
A34: 0 | B34: 700812280 | C34: Contrôle final | D34: 2014-09-26 | E34: 1 | F34: 1 | G34: 7008122801 | H34: 7008122801 | I34: 41908 | J34: 41908 | O34: 700812 | P34: 1 | Q34: 280 | R34: CONTROLE FINAL | S34: TEST | T34: TEST | U34: COFI | V34: TEST | W34: TEST | X34: 0.25 | Y34: TEST | Z34: TEST | AA34: TEST | AB34: TEST | AC34: TEST | AD34: TEST | AE34: 2014-09-26 | AF34: 00:00:00 | AH34: 00:00:00 | AI34: TEST | AJ34: TEST | AK34: TEST | AL34: TEST | AM34: TEST | AN34: TEST | AO34: TEST | AP34: TEST | AQ34: TEST | AR34: 7.73 | AS34: 0.25 | AT34: TEST | AU34: TEST
A35: 0 | B35: 701456100 | C35: Contrôle final | D35: 2014-10-24 | E35: 1 | F35: 1 | G35: 7014561001 | H35: 7014561001 | I35: 41936 | J35: 41936 | O35: 701456 | P35: 1 | Q35: 100 | R35: CONTROLE FINAL | S35: TEST | T35: TEST | U35: COFI | V35: TEST | W35: TEST | X35: 1.5 | Y35: TEST | Z35: TEST | AA35: TEST | AB35: TEST | AC35: TEST | AD35: TEST | AE35: 2014-10-24 | AF35: 00:00:00 | AH35: 00:00:00 | AI35: TEST | AJ35: TEST | AK35: TEST | AL35: TEST | AM35: TEST | AN35: TEST | AO35: TEST | AP35: TEST | AQ35: TEST | AR35: 3.18 | AS35: 1.5 | AT35: TEST | AU35: TEST
A36: 0 | B36: 701508360 | C36: Contrôle final | D36: 2014-09-29 | E36: 1 | F36: 1 | G36: 7015083601 | H36: 7015083601 | I36: 41911 | J36: 41911 | O36: 701508 | P36: 1 | Q36: 360 | R36: CONTROLE FINAL | S36: TEST | T36: TEST | U36: COFI | V36: TEST | W36: TEST | X36: 1 | Y36: TEST | Z36: TEST | AA36: TEST | AB36: TEST | AC36: TEST | AD36: TEST | AE36: 2014-09-29 | AF36: 00:00:00 | AH36: 00:00:00 | AI36: TEST | AJ36: TEST | AK36: TEST | AL36: TEST | AM36: TEST | AN36: TEST | AO36: TEST | AP36: TEST | AQ36: TEST | AR36: 7.73 | AS36: 0.25 | AT36: TEST | AU36: TEST
A37: 0 | B37: 706582190 | C37: Contrôle final | D37: 2014-11-06 | E37: 1 | F37: 1 | G37: 7065821901 | H37: 7065821901 | I37: 41949 | J37: 41949 | O37: 706582 | P37: 1 | Q37: 190 | R37: CONTROLE FINAL | S37: TEST | T37: TEST | U37: COFI | V37: TEST | W37: TEST | X37: 5 | Y37: TEST | Z37: TEST | AA37: TEST | AB37: TEST | AC37: TEST | AD37: TEST | AE37: 2014-11-06 | AF37: 00:00:00 | AH37: 00:00:00 | AI37: TEST | AJ37: TEST | AK37: TEST | AL37: TEST | AM37: TEST | AN37: TEST | AO37: TEST | AP37: TEST | AQ37: TEST | AR37: 44.5 | AS37: 1 | AT37: TEST | AU37: TEST
A38: 0 | B38: 701510380 | C38: Contrôle final | D38: 2014-10-01 | E38: 1 | F38: 0 | G38: 7015103801 | H38: 7015103800 | I38: 41913 | O38: 701510 | P38: 1 | Q38: 380 | R38: CONTROLE FINAL | S38: TEST | T38: TEST | U38: COFI | V38: TEST | W38: TEST | X38: 0.25 | Y38: TEST | Z38: TEST | AA38: TEST | AB38: TEST | AC38: TEST | AD38: TEST | AE38: 2014-10-01 | AF38: 00:00:00 | AH38: 00:00:00 | AI38: TEST | AJ38: TEST | AK38: TEST | AL38: TEST | AM38: TEST | AN38: TEST | AO38: TEST | AP38: TEST | AQ38: TEST | AR38: 24 | AS38: 24 | AT38: TEST | AU38: TEST
A39: 0 | B39: 701510380 | C39: Contrôle final | D39: 2014-09-29 | E39: 0 | F39: 0 | G39: 7015103800 | H39: 7015103800 | O39: 701510 | P39: 1 | Q39: 380 | R39: CONTROLE FINAL | S39: TEST | T39: TEST | U39: COFI | V39: TEST | W39: TEST | X39: 7 | Y39: TEST | Z39: TEST | AA39: TEST | AB39: TEST | AC39: TEST | AD39: TEST | AE39: 2014-09-29 | AF39: 00:00:00 | AH39: 00:00:00 | AI39: TEST | AJ39: TEST | AK39: TEST | AL39: TEST | AM39: TEST | AN39: TEST | AO39: TEST | AP39: TEST | AQ39: TEST | AR39: 24 | AS39: 24 | AT39: TEST | AU39: TEST
A40: 0 | B40: 701510380 | C40: Contrôle final | D40: 2014-09-29 | E40: 0 | F40: 0 | G40: 7015103800 | H40: 7015103800 | O40: 701510 | P40: 1 | Q40: 380 | R40: CONTROLE FINAL | S40: TEST | T40: TEST | U40: COFI | V40: TEST | W40: TEST | X40: 7 | Y40: TEST | Z40: TEST | AA40: TEST | AB40: TEST | AC40: TEST | AD40: TEST | AE40: 2014-09-29 | AF40: 00:00:00 | AH40: 00:00:00 | AI40: TEST | AJ40: TEST | AK40: TEST | AL40: TEST | AM40: TEST | AN40: TEST | AO40: TEST | AP40: TEST | AQ40: TEST | AR40: 24 | AS40: 24 | AT40: TEST | AU40: TEST
A41: 0 | B41: 701510380 | C41: Contrôle final | D41: 2014-09-29 | E41: 0 | F41: 1 | G41: 7015103800 | H41: 7015103801 | J41: 41911 | O41: 701510 | P41: 1 | Q41: 380 | R41: CONTROLE FINAL | S41: TEST | T41: TEST | U41: COFI | V41: TEST | W41: TEST | X41: 5.5 | Y41: TEST | Z41: TEST | AA41: TEST | AB41: TEST | AC41: TEST | AD41: TEST | AE41: 2014-09-29 | AF41: 00:00:00 | AH41: 00:00:00 | AI41: TEST | AJ41: TEST | AK41: TEST | AL41: TEST | AM41: TEST | AN41: TEST | AO41: TEST | AP41: TEST | AQ41: TEST | AR41: 24 | AS41: 24 | AT41: TEST | AU41: TEST
A42: 0 | B42: 70231580 | C42: Contrôle final | D42: 2014-11-06 | E42: 1 | F42: 0 | G42: 702315801 | H42: 702315800 | I42: 41949 | O42: 702315 | P42: 999/2 | Q42: 80 | R42: CONTROLE FINAL | S42: TEST | T42: TEST | U42: COFI | V42: TEST | W42: TEST | X42: 0.5 | Y42: TEST | Z42: TEST | AA42: TEST | AB42: TEST | AC42: TEST | AD42: TEST | AE42: 2014-11-06 | AF42: 00:00:00 | AH42: 00:00:00 | AI42: TEST | AJ42: TEST | AK42: TEST | AL42: TEST | AM42: TEST | AN42: TEST | AO42: TEST | AP42: TEST | AQ42: TEST | AR42: 1 | AS42: 1 | AT42: TEST | AU42: TEST
A43: 0 | B43: 70231580 | C43: Contrôle final | D43: 2014-11-05 | E43: 0 | F43: 0 | G43: 702315800 | H43: 702315800 | O43: 702315 | P43: 999/2 | Q43: 80 | R43: CONTROLE FINAL | S43: TEST | T43: TEST | U43: COFI | V43: TEST | W43: TEST | X43: 1.5 | Y43: TEST | Z43: TEST | AA43: TEST | AB43: TEST | AC43: TEST | AD43: TEST | AE43: 2014-11-05 | AF43: 00:00:00 | AH43: 00:00:00 | AI43: TEST | AJ43: TEST | AK43: TEST | AL43: TEST | AM43: TEST | AN43: TEST | AO43: TEST | AP43: TEST | AQ43: TEST | AR43: 1 | AS43: 1 | AT43: TEST | AU43: TEST
A44: 0 | B44: 70231580 | C44: Contrôle final | D44: 2014-09-25 | E44: 0 | F44: 0 | G44: 702315800 | H44: 702315800 | O44: 702315 | P44: 999/2 | Q44: 80 | R44: CONTROLE FINAL | S44: TEST | T44: TEST | U44: COFI | V44: TEST | W44: TEST | X44: 1 | Y44: TEST | Z44: TEST | AA44: TEST | AB44: TEST | AC44: TEST | AD44: TEST | AE44: 2014-09-25 | AF44: 13:00:00 | AG44: 2014-09-25 | AH44: 14:00:00 | AI44: TEST | AJ44: TEST | AK44: TEST | AL44: TEST | AM44: TEST | AN44: TEST | AO44: TEST | AP44: TEST | AQ44: TEST | AR44: 1 | AS44: 1 | AT44: TEST | AU44: TEST
A45: 0 | B45: 70231580 | C45: Contrôle final | D45: 2014-09-25 | E45: 0 | F45: 1 | G45: 702315800 | H45: 702315801 | J45: 41907 | O45: 702315 | P45: 999/2 | Q45: 80 | R45: CONTROLE FINAL | S45: TEST | T45: TEST | U45: COFI | V45: TEST | W45: TEST | X45: 1.38 | Y45: TEST | Z45: TEST | AA45: TEST | AB45: TEST | AC45: TEST | AD45: TEST | AE45: 2014-09-25 | AF45: 14:10:00 | AG45: 2014-09-25 | AH45: 15:33:00 | AI45: TEST | AJ45: TEST | AK45: TEST | AL45: TEST | AM45: TEST | AN45: TEST | AO45: TEST | AP45: TEST | AQ45: TEST | AR45: 1 | AS45: 1 | AT45: TEST | AU45: TEST
A46: 0 | B46: 70311940 | C46: Contrôle final | D46: 2014-09-23 | E46: 1 | F46: 1 | G46: 703119401 | H46: 703119401 | I46: 41905 | J46: 41905 | O46: 703119 | P46: 999/2 | Q46: 40 | R46: CONTROLE FINAL | S46: TEST | T46: TEST | U46: COFI | V46: TEST | W46: TEST | X46: 6 | Y46: TEST | Z46: TEST | AA46: TEST | AB46: TEST | AC46: TEST | AD46: TEST | AE46: 2014-09-23 | AF46: 00:00:00 | AH46: 00:00:00 | AI46: TEST | AJ46: TEST | AK46: TEST | AL46: TEST | AM46: TEST | AN46: TEST | AO46: TEST | AP46: TEST | AQ46: TEST | AR46: 0.25 | AS46: 0.25 | AT46: TEST | AU46: TEST
A47: 0 | B47: 703149170 | C47: Contrôle final | D47: 2014-09-24 | E47: 1 | F47: 0 | G47: 7031491701 | H47: 7031491700 | I47: 41906 | O47: 703149 | P47: 1 | Q47: 170 | R47: CONTROLE FINAL | S47: TEST | T47: TEST | U47: COFI | V47: TEST | W47: TEST | X47: 1 | Y47: TEST | Z47: TEST | AA47: TEST | AB47: TEST | AC47: TEST | AD47: TEST | AE47: 2014-09-24 | AF47: 00:00:00 | AH47: 00:00:00 | AI47: TEST | AJ47: TEST | AK47: TEST | AL47: TEST | AM47: TEST | AN47: TEST | AO47: TEST | AP47: TEST | AQ47: TEST | AR47: 4 | AS47: 0.5 | AT47: TEST | AU47: TEST
A48: 0 | B48: 703149170 | C48: Contrôle final | D48: 2014-09-24 | E48: 0 | F48: 1 | G48: 7031491700 | H48: 7031491701 | J48: 41906 | O48: 703149 | P48: 1 | Q48: 170 | R48: CONTROLE FINAL | S48: TEST | T48: TEST | U48: COFI | V48: TEST | W48: TEST | X48: 1 | Y48: TEST | Z48: TEST | AA48: TEST | AB48: TEST | AC48: TEST | AD48: TEST | AE48: 2014-09-24 | AF48: 00:00:00 | AH48: 00:00:00 | AI48: TEST | AJ48: TEST | AK48: TEST | AL48: TEST | AM48: TEST | AN48: TEST | AO48: TEST | AP48: TEST | AQ48: TEST | AR48: 4 | AS48: 0.5 | AT48: TEST | AU48: TEST
A49: 0 | B49: 703390360 | C49: Contrôle final | D49: 2014-09-24 | E49: 1 | F49: 1 | G49: 7033903601 | H49: 7033903601 | I49: 41906 | J49: 41906 | O49: 703390 | P49: 1 | Q49: 360 | R49: CONTROLE FINAL | S49: TEST | T49: TEST | U49: COFI | V49: TEST | W49: TEST | X49: 0.08 | Y49: TEST | Z49: TEST | AA49: TEST | AB49: TEST | AC49: TEST | AD49: TEST | AE49: 2014-09-24 | AF49: 09:50:00 | AG49: 2014-09-24 | AH49: 09:55:00 | AI49: TEST | AJ49: TEST | AK49: TEST | AL49: TEST | AM49: TEST | AN49: TEST | AO49: TEST | AP49: TEST | AQ49: TEST | AR49: 7.56 | AS49: 0.25 | AT49: TEST | AU49: TEST
A50: 0 | B50: 70343930 | C50: Contrôle final | D50: 2014-09-26 | E50: 1 | F50: 1 | G50: 703439301 | H50: 703439301 | I50: 41908 | J50: 41908 | O50: 703439 | P50: 1 | Q50: 30 | R50: CONTROLE FINAL | S50: TEST | T50: TEST | U50: COFI | V50: TEST | W50: TEST | X50: 0.25 | Y50: TEST | Z50: TEST | AA50: TEST | AB50: TEST | AC50: TEST | AD50: TEST | AE50: 2014-09-26 | AF50: 00:00:00 | AH50: 00:00:00 | AI50: TEST | AJ50: TEST | AK50: TEST | AL50: TEST | AM50: TEST | AN50: TEST | AO50: TEST | AP50: TEST | AQ50: TEST | AR50: 1.53 | AS50: 1 | AT50: TEST | AU50: TEST
A51: 0 | B51: 703666370 | C51: Contrôle final | D51: 2014-09-29 | E51: 1 | F51: 1 | G51: 7036663701 | H51: 7036663701 | I51: 41911 | J51: 41911 | O51: 703666 | P51: 1 | Q51: 370 | R51: CONTROLE FINAL | S51: TEST | T51: TEST | U51: COFI | V51: TEST | W51: TEST | X51: 1.5 | Y51: TEST | Z51: TEST | AA51: TEST | AB51: TEST | AC51: TEST | AD51: TEST | AE51: 2014-09-29 | AF51: 00:00:00 | AH51: 00:00:00 | AI51: TEST | AJ51: TEST | AK51: TEST | AL51: TEST | AM51: TEST | AN51: TEST | AO51: TEST | AP51: TEST | AQ51: TEST | AR51: 7.56 | AS51: 0.25 | AT51: TEST | AU51: TEST
A52: 0 | B52: 70393490 | C52: Contrôle final | D52: 2014-09-15 | E52: 1 | F52: 1 | G52: 703934901 | H52: 703934901 | I52: 41897 | J52: 41897 | O52: 703934 | P52: 1 | Q52: 90 | R52: CONTROLE FINAL | S52: TEST | T52: TEST | U52: COFI | V52: TEST | W52: TEST | X52: 2 | Y52: TEST | Z52: TEST | AA52: TEST | AB52: TEST | AC52: TEST | AD52: TEST | AE52: 2014-09-15 | AF52: 00:00:00 | AH52: 00:00:00 | AI52: TEST | AJ52: TEST | AK52: TEST | AL52: TEST | AM52: TEST | AN52: TEST | AO52: TEST | AP52: TEST | AQ52: TEST | AR52: 1 | AS52: 1 | AT52: TEST | AU52: TEST
A53: 0 | B53: 703964150 | C53: Contrôle final | D53: 2014-09-24 | E53: 1 | F53: 1 | G53: 7039641501 | H53: 7039641501 | I53: 41906 | J53: 41906 | O53: 703964 | P53: 1 | Q53: 150 | R53: CONTROLE FINAL | S53: TEST | T53: TEST | U53: COFI | V53: TEST | W53: TEST | X53: 1 | Y53: TEST | Z53: TEST | AA53: TEST | AB53: TEST | AC53: TEST | AD53: TEST | AE53: 2014-09-24 | AF53: 00:00:00 | AH53: 00:00:00 | AI53: TEST | AJ53: TEST | AK53: TEST | AL53: TEST | AM53: TEST | AN53: TEST | AO53: TEST | AP53: TEST | AQ53: TEST | AR53: 1.25 | AS53: 1.25 | AT53: TEST | AU53: TEST
A54: 0 | B54: 704066190 | C54: Contrôle final | D54: 2014-09-17 | E54: 1 | F54: 0 | G54: 7040661901 | H54: 7040661900 | I54: 41899 | O54: 704066 | P54: 1 | Q54: 190 | R54: CONTROLE FINAL | S54: TEST | T54: TEST | U54: COFI | V54: TEST | W54: TEST | X54: 7.25 | Y54: TEST | Z54: TEST | AA54: TEST | AB54: TEST | AC54: TEST | AD54: TEST | AE54: 2014-09-17 | AF54: 00:00:00 | AH54: 00:00:00 | AI54: TEST | AJ54: TEST | AK54: TEST | AL54: TEST | AM54: TEST | AN54: TEST | AO54: TEST | AP54: TEST | AQ54: TEST | AR54: 1 | AS54: 1 | AT54: TEST | AU54: TEST
A55: 0 | B55: 704066190 | C55: Contrôle final | D55: 2014-09-16 | E55: 0 | F55: 0 | G55: 7040661900 | H55: 7040661900 | O55: 704066 | P55: 1 | Q55: 190 | R55: CONTROLE FINAL | S55: TEST | T55: TEST | U55: COFI | V55: TEST | W55: TEST | X55: 7 | Y55: TEST | Z55: TEST | AA55: TEST | AB55: TEST | AC55: TEST | AD55: TEST | AE55: 2014-09-16 | AF55: 00:00:00 | AH55: 00:00:00 | AI55: TEST | AJ55: TEST | AK55: TEST | AL55: TEST | AM55: TEST | AN55: TEST | AO55: TEST | AP55: TEST | AQ55: TEST | AR55: 1 | AS55: 1 | AT55: TEST | AU55: TEST
A56: 0 | B56: 704066190 | C56: Contrôle final | D56: 2014-09-16 | E56: 0 | F56: 0 | G56: 7040661900 | H56: 7040661900 | O56: 704066 | P56: 1 | Q56: 190 | R56: CONTROLE FINAL | S56: TEST | T56: TEST | U56: COFI | V56: TEST | W56: TEST | X56: 7.75 | Y56: TEST | Z56: TEST | AA56: TEST | AB56: TEST | AC56: TEST | AD56: TEST | AE56: 2014-09-16 | AF56: 00:00:00 | AH56: 00:00:00 | AI56: TEST | AJ56: TEST | AK56: TEST | AL56: TEST | AM56: TEST | AN56: TEST | AO56: TEST | AP56: TEST | AQ56: TEST | AR56: 1 | AS56: 1 | AT56: TEST | AU56: TEST
A57: 0 | B57: 704066190 | C57: Contrôle final | D57: 2014-09-16 | E57: 0 | F57: 0 | G57: 7040661900 | H57: 7040661900 | O57: 704066 | P57: 1 | Q57: 190 | R57: CONTROLE FINAL | S57: TEST | T57: TEST | U57: COFI | V57: TEST | W57: TEST | X57: 6.3 | Y57: TEST | Z57: TEST | AA57: TEST | AB57: TEST | AC57: TEST | AD57: TEST | AE57: 2014-09-16 | AF57: 00:00:00 | AH57: 00:00:00 | AI57: TEST | AJ57: TEST | AK57: TEST | AL57: TEST | AM57: TEST | AN57: TEST | AO57: TEST | AP57: TEST | AQ57: TEST | AR57: 1 | AS57: 1 | AT57: TEST | AU57: TEST
A58: 0 | B58: 704066190 | C58: Contrôle final | D58: 2014-09-15 | E58: 0 | F58: 0 | G58: 7040661900 | H58: 7040661900 | O58: 704066 | P58: 1 | Q58: 190 | R58: CONTROLE FINAL | S58: TEST | T58: TEST | U58: COFI | V58: TEST | W58: TEST | X58: 3 | Y58: TEST | Z58: TEST | AA58: TEST | AB58: TEST | AC58: TEST | AD58: TEST | AE58: 2014-09-15 | AF58: 00:00:00 | AH58: 00:00:00 | AI58: TEST | AJ58: TEST | AK58: TEST | AL58: TEST | AM58: TEST | AN58: TEST | AO58: TEST | AP58: TEST | AQ58: TEST | AR58: 1 | AS58: 1 | AT58: TEST | AU58: TEST
A59: 0 | B59: 704066190 | C59: Contrôle final | D59: 2014-09-15 | E59: 0 | F59: 0 | G59: 7040661900 | H59: 7040661900 | O59: 704066 | P59: 1 | Q59: 190 | R59: CONTROLE FINAL | S59: TEST | T59: TEST | U59: COFI | V59: TEST | W59: TEST | X59: 2.4 | Y59: TEST | Z59: TEST | AA59: TEST | AB59: TEST | AC59: TEST | AD59: TEST | AE59: 2014-09-15 | AF59: 00:00:00 | AH59: 00:00:00 | AI59: TEST | AJ59: TEST | AK59: TEST | AL59: TEST | AM59: TEST | AN59: TEST | AO59: TEST | AP59: TEST | AQ59: TEST | AR59: 1 | AS59: 1 | AT59: TEST | AU59: TEST
A60: 0 | B60: 704066190 | C60: Contrôle final | D60: 2014-09-15 | E60: 0 | F60: 0 | G60: 7040661900 | H60: 7040661900 | O60: 704066 | P60: 1 | Q60: 190 | R60: CONTROLE FINAL | S60: TEST | T60: TEST | U60: COFI | V60: TEST | W60: TEST | X60: 5.8 | Y60: TEST | Z60: TEST | AA60: TEST | AB60: TEST | AC60: TEST | AD60: TEST | AE60: 2014-09-15 | AF60: 00:00:00 | AH60: 00:00:00 | AI60: TEST | AJ60: TEST | AK60: TEST | AL60: TEST | AM60: TEST | AN60: TEST | AO60: TEST | AP60: TEST | AQ60: TEST | AR60: 1 | AS60: 1 | AT60: TEST | AU60: TEST
A61: 0 | B61: 704066190 | C61: Contrôle final | D61: 2014-09-15 | E61: 0 | F61: 1 | G61: 7040661900 | H61: 7040661901 | J61: 41897 | O61: 704066 | P61: 1 | Q61: 190 | R61: CONTROLE FINAL | S61: TEST | T61: TEST | U61: COFI | V61: TEST | W61: TEST | X61: 1 | Y61: TEST | Z61: TEST | AA61: TEST | AB61: TEST | AC61: TEST | AD61: TEST | AE61: 2014-09-15 | AF61: 07:00:00 | AG61: 2014-09-15 | AH61: 08:00:00 | AI61: TEST | AJ61: TEST | AK61: TEST | AL61: TEST | AM61: TEST | AN61: TEST | AO61: TEST | AP61: TEST | AQ61: TEST | AR61: 1 | AS61: 1 | AT61: TEST | AU61: TEST
A62: 0 | B62: 70410550 | C62: Contrôle final | D62: 2014-09-23 | E62: 1 | F62: 1 | G62: 704105501 | H62: 704105501 | I62: 41905 | J62: 41905 | O62: 704105 | P62: 999/3 | Q62: 50 | R62: CONTROLE FINAL | S62: TEST | T62: TEST | U62: COFI | V62: TEST | W62: TEST | X62: 0.5 | Y62: TEST | Z62: TEST | AA62: TEST | AB62: TEST | AC62: TEST | AD62: TEST | AE62: 2014-09-23 | AF62: 00:00:00 | AH62: 00:00:00 | AI62: TEST | AJ62: TEST | AK62: TEST | AL62: TEST | AM62: TEST | AN62: TEST | AO62: TEST | AP62: TEST | AQ62: TEST | AR62: 2 | AS62: 2 | AT62: TEST | AU62: TEST
A63: 0 | B63: 704106220 | C63: Contrôle final | D63: 2014-09-23 | E63: 1 | F63: 0 | G63: 7041062201 | H63: 7041062200 | I63: 41905 | K63: 41901 | L63: 4 | O63: 704106 | P63: 1 | Q63: 220 | R63: CONTROLE FINAL | S63: TEST | T63: TEST | U63: COFI | V63: TEST | W63: TEST | X63: 0.25 | Y63: TEST | Z63: TEST | AA63: TEST | AB63: TEST | AC63: TEST | AD63: TEST | AE63: 2014-09-23 | AF63: 00:00:00 | AH63: 00:00:00 | AI63: TEST | AJ63: TEST | AK63: TEST | AL63: TEST | AM63: TEST | AN63: TEST | AO63: TEST | AP63: TEST | AQ63: TEST | AR63: 15.31 | AS63: 0.75 | AT63: TEST | AU63: TEST
A64: 0 | B64: 704106220 | C64: Contrôle final | D64: 2014-09-22 | E64: 0 | F64: 1 | G64: 7041062200 | H64: 7041062201 | J64: 41904 | O64: 704106 | P64: 1 | Q64: 220 | R64: CONTROLE FINAL | S64: TEST | T64: TEST | U64: COFI | V64: TEST | W64: TEST | X64: 1 | Y64: TEST | Z64: TEST | AA64: TEST | AB64: TEST | AC64: TEST | AD64: TEST | AE64: 2014-09-22 | AF64: 00:00:00 | AH64: 00:00:00 | AI64: TEST | AJ64: TEST | AK64: TEST | AL64: TEST | AM64: TEST | AN64: TEST | AO64: TEST | AP64: TEST | AQ64: TEST | AR64: 15.31 | AS64: 0.75 | AT64: TEST | AU64: TEST
A65: 0 | B65: 704121230 | C65: Contrôle final | D65: 2014-09-17 | E65: 1 | F65: 0 | G65: 7041212301 | H65: 7041212300 | I65: 41899 | O65: 704121 | P65: 1 | Q65: 230 | R65: CONTROLE FINAL | S65: TEST | T65: TEST | U65: COFI | V65: TEST | W65: TEST | X65: 1 | Y65: TEST | Z65: TEST | AA65: TEST | AB65: TEST | AC65: TEST | AD65: TEST | AE65: 2014-09-17 | AF65: 00:00:00 | AH65: 00:00:00 | AI65: TEST | AJ65: TEST | AK65: TEST | AL65: TEST | AM65: TEST | AN65: TEST | AO65: TEST | AP65: TEST | AQ65: TEST | AR65: 0.5 | AS65: 0.5 | AT65: TEST | AU65: TEST
A66: 0 | B66: 704121230 | C66: Contrôle final | D66: 2014-09-16 | E66: 0 | F66: 0 | G66: 7041212300 | H66: 7041212300 | O66: 704121 | P66: 1 | Q66: 230 | R66: CONTROLE FINAL | S66: TEST | T66: TEST | U66: COFI | V66: TEST | W66: TEST | X66: 2 | Y66: TEST | Z66: TEST | AA66: TEST | AB66: TEST | AC66: TEST | AD66: TEST | AE66: 2014-09-16 | AF66: 00:00:00 | AH66: 00:00:00 | AI66: TEST | AJ66: TEST | AK66: TEST | AL66: TEST | AM66: TEST | AN66: TEST | AO66: TEST | AP66: TEST | AQ66: TEST | AR66: 0.5 | AS66: 0.5 | AT66: TEST | AU66: TEST
A67: 0 | B67: 704121230 | C67: Contrôle final | D67: 2014-09-15 | E67: 0 | F67: 1 | G67: 7041212300 | H67: 7041212301 | J67: 41897 | O67: 704121 | P67: 1 | Q67: 230 | R67: CONTROLE FINAL | S67: TEST | T67: TEST | U67: COFI | V67: TEST | W67: TEST | X67: 3.5 | Y67: TEST | Z67: TEST | AA67: TEST | AB67: TEST | AC67: TEST | AD67: TEST | AE67: 2014-09-15 | AF67: 00:00:00 | AH67: 00:00:00 | AI67: TEST | AJ67: TEST | AK67: TEST | AL67: TEST | AM67: TEST | AN67: TEST | AO67: TEST | AP67: TEST | AQ67: TEST | AR67: 0.5 | AS67: 0.5 | AT67: TEST | AU67: TEST
A68: 0 | B68: 704122190 | C68: Contrôle final | D68: 2014-09-17 | E68: 1 | F68: 0 | G68: 7041221901 | H68: 7041221900 | I68: 41899 | O68: 704122 | P68: 1 | Q68: 190 | R68: CONTROLE FINAL | S68: TEST | T68: TEST | U68: COFI | V68: TEST | W68: TEST | X68: 1 | Y68: TEST | Z68: TEST | AA68: TEST | AB68: TEST | AC68: TEST | AD68: TEST | AE68: 2014-09-17 | AF68: 00:00:00 | AH68: 00:00:00 | AI68: TEST | AJ68: TEST | AK68: TEST | AL68: TEST | AM68: TEST | AN68: TEST | AO68: TEST | AP68: TEST | AQ68: TEST | AR68: 0.5 | AS68: 0.5 | AT68: TEST | AU68: TEST
A69: 0 | B69: 704122190 | C69: Contrôle final | D69: 2014-09-16 | E69: 0 | F69: 0 | G69: 7041221900 | H69: 7041221900 | O69: 704122 | P69: 1 | Q69: 190 | R69: CONTROLE FINAL | S69: TEST | T69: TEST | U69: COFI | V69: TEST | W69: TEST | X69: 2 | Y69: TEST | Z69: TEST | AA69: TEST | AB69: TEST | AC69: TEST | AD69: TEST | AE69: 2014-09-16 | AF69: 00:00:00 | AH69: 00:00:00 | AI69: TEST | AJ69: TEST | AK69: TEST | AL69: TEST | AM69: TEST | AN69: TEST | AO69: TEST | AP69: TEST | AQ69: TEST | AR69: 0.5 | AS69: 0.5 | AT69: TEST | AU69: TEST
A70: 0 | B70: 704122190 | C70: Contrôle final | D70: 2014-09-15 | E70: 0 | F70: 1 | G70: 7041221900 | H70: 7041221901 | J70: 41897 | O70: 704122 | P70: 1 | Q70: 190 | R70: CONTROLE FINAL | S70: TEST | T70: TEST | U70: COFI | V70: TEST | W70: TEST | X70: 3.5 | Y70: TEST | Z70: TEST | AA70: TEST | AB70: TEST | AC70: TEST | AD70: TEST | AE70: 2014-09-15 | AF70: 00:00:00 | AH70: 00:00:00 | AI70: TEST | AJ70: TEST | AK70: TEST | AL70: TEST | AM70: TEST | AN70: TEST | AO70: TEST | AP70: TEST | AQ70: TEST | AR70: 0.5 | AS70: 0.5 | AT70: TEST | AU70: TEST
A71: 0 | B71: 704343200 | C71: Contrôle final | D71: 2014-10-09 | E71: 1 | F71: 0 | G71: 7043432001 | H71: 7043432000 | I71: 41921 | O71: 704343 | P71: 1 | Q71: 200 | R71: CONTROLE FINAL | S71: TEST | T71: TEST | U71: COFI | V71: TEST | W71: TEST | X71: 0.25 | Y71: TEST | Z71: TEST | AA71: TEST | AB71: TEST | AC71: TEST | AD71: TEST | AE71: 2014-10-09 | AF71: 00:00:00 | AH71: 00:00:00 | AI71: TEST | AJ71: TEST | AK71: TEST | AL71: TEST | AM71: TEST | AN71: TEST | AO71: TEST | AP71: TEST | AQ71: TEST | AR71: 52.75 | AS71: 0.25 | AT71: TEST | AU71: TEST
A72: 0 | B72: 704343200 | C72: Contrôle final | D72: 2014-10-08 | E72: 0 | F72: 1 | G72: 7043432000 | H72: 7043432001 | J72: 41920 | O72: 704343 | P72: 1 | Q72: 200 | R72: CONTROLE FINAL | S72: TEST | T72: TEST | U72: COFI | V72: TEST | W72: TEST | X72: 0.75 | Y72: TEST | Z72: TEST | AA72: TEST | AB72: TEST | AC72: TEST | AD72: TEST | AE72: 2014-10-08 | AF72: 00:00:00 | AH72: 00:00:00 | AI72: TEST | AJ72: TEST | AK72: TEST | AL72: TEST | AM72: TEST | AN72: TEST | AO72: TEST | AP72: TEST | AQ72: TEST | AR72: 52.75 | AS72: 0.25 | AT72: TEST | AU72: TEST
A73: 0 | B73: 704619140 | C73: Contrôle final | D73: 2014-10-29 | E73: 1 | F73: 1 | G73: 7046191401 | H73: 7046191401 | I73: 41941 | J73: 41941 | O73: 704619 | P73: 1 | Q73: 140 | R73: CONTROLE FINAL | S73: TEST | T73: TEST | U73: COFI | V73: TEST | W73: TEST | X73: 0.5 | Y73: TEST | Z73: TEST | AA73: TEST | AB73: TEST | AC73: TEST | AD73: TEST | AE73: 2014-10-29 | AF73: 00:00:00 | AH73: 00:00:00 | AI73: TEST | AJ73: TEST | AK73: TEST | AL73: TEST | AM73: TEST | AN73: TEST | AO73: TEST | AP73: TEST | AQ73: TEST | AR73: 5.9 | AS73: 0.5 | AT73: TEST | AU73: TEST
A74: 0 | B74: 704620140 | C74: Contrôle final | D74: 2014-10-02 | E74: 1 | F74: 1 | G74: 7046201401 | H74: 7046201401 | I74: 41914 | J74: 41914 | O74: 704620 | P74: 1 | Q74: 140 | R74: CONTROLE FINAL | S74: TEST | T74: TEST | U74: COFI | V74: TEST | W74: TEST | X74: 0.75 | Y74: TEST | Z74: TEST | AA74: TEST | AB74: TEST | AC74: TEST | AD74: TEST | AE74: 2014-10-02 | AF74: 00:00:00 | AH74: 00:00:00 | AI74: TEST | AJ74: TEST | AK74: TEST | AL74: TEST | AM74: TEST | AN74: TEST | AO74: TEST | AP74: TEST | AQ74: TEST | AR74: 4.1 | AS74: 0.5 | AT74: TEST | AU74: TEST
A75: 0 | B75: 704634150 | C75: Contrôle final | D75: 2014-10-10 | E75: 1 | F75: 0 | G75: 7046341501 | H75: 7046341500 | I75: 41922 | O75: 704634 | P75: 1 | Q75: 150 | R75: CONTROLE FINAL | S75: TEST | T75: TEST | U75: COFI | V75: TEST | W75: TEST | X75: 0.5 | Y75: TEST | Z75: TEST | AA75: TEST | AB75: TEST | AC75: TEST | AD75: TEST | AE75: 2014-10-10 | AF75: 00:00:00 | AH75: 00:00:00 | AI75: TEST | AJ75: TEST | AK75: TEST | AL75: TEST | AM75: TEST | AN75: TEST | AO75: TEST | AP75: TEST | AQ75: TEST | AR75: 5.55 | AS75: 0.75 | AT75: TEST | AU75: TEST
A76: 0 | B76: 704634150 | C76: Contrôle final | D76: 2014-10-09 | E76: 0 | F76: 0 | G76: 7046341500 | H76: 7046341500 | O76: 704634 | P76: 1 | Q76: 150 | R76: CONTROLE FINAL | S76: TEST | T76: TEST | U76: COFI | V76: TEST | W76: TEST | X76: 1.5 | Y76: TEST | Z76: TEST | AA76: TEST | AB76: TEST | AC76: TEST | AD76: TEST | AE76: 2014-10-09 | AF76: 00:00:00 | AH76: 00:00:00 | AI76: TEST | AJ76: TEST | AK76: TEST | AL76: TEST | AM76: TEST | AN76: TEST | AO76: TEST | AP76: TEST | AQ76: TEST | AR76: 5.55 | AS76: 0.75 | AT76: TEST | AU76: TEST
A77: 0 | B77: 704634150 | C77: Contrôle final | D77: 2014-10-09 | E77: 0 | F77: 1 | G77: 7046341500 | H77: 7046341501 | J77: 41921 | O77: 704634 | P77: 1 | Q77: 150 | R77: CONTROLE FINAL | S77: TEST | T77: TEST | U77: COFI | V77: TEST | W77: TEST | X77: 2.25 | Y77: TEST | Z77: TEST | AA77: TEST | AB77: TEST | AC77: TEST | AD77: TEST | AE77: 2014-10-09 | AF77: 00:00:00 | AH77: 00:00:00 | AI77: TEST | AJ77: TEST | AK77: TEST | AL77: TEST | AM77: TEST | AN77: TEST | AO77: TEST | AP77: TEST | AQ77: TEST | AR77: 5.55 | AS77: 0.75 | AT77: TEST | AU77: TEST
A78: 0 | B78: 70463430 | C78: Contrôle final | D78: 2014-10-21 | E78: 1 | F78: 1 | G78: 704634301 | H78: 704634301 | I78: 41933 | J78: 41933 | K78: 41932 | L78: 1 | O78: 704634 | P78: 999/1 | Q78: 30 | R78: CONTROLE FINAL | S78: TEST | T78: TEST | U78: COFI | V78: TEST | W78: TEST | X78: 2 | Y78: TEST | Z78: TEST | AA78: TEST | AB78: TEST | AC78: TEST | AD78: TEST | AE78: 2014-10-21 | AF78: 00:00:00 | AH78: 00:00:00 | AI78: TEST | AJ78: TEST | AK78: TEST | AL78: TEST | AM78: TEST | AN78: TEST | AO78: TEST | AP78: TEST | AQ78: TEST | AR78: 1 | AS78: 1 | AT78: TEST | AU78: TEST
A79: 0 | B79: 704771280 | C79: Contrôle final | D79: 2014-09-26 | E79: 1 | F79: 1 | G79: 7047712801 | H79: 7047712801 | I79: 41908 | J79: 41908 | O79: 704771 | P79: 1 | Q79: 280 | R79: CONTRÔLE FINAL | S79: TEST | T79: TEST | U79: COFI | V79: TEST | W79: TEST | X79: 1 | Y79: TEST | Z79: TEST | AA79: TEST | AB79: TEST | AC79: TEST | AD79: TEST | AE79: 2014-09-26 | AF79: 00:00:00 | AH79: 00:00:00 | AI79: TEST | AJ79: TEST | AK79: TEST | AL79: TEST | AM79: TEST | AN79: TEST | AO79: TEST | AP79: TEST | AQ79: TEST | AR79: 3.25 | AS79: 2 | AT79: TEST | AU79: TEST
A80: 0 | B80: 704776140 | C80: Contrôle final | D80: 2014-09-24 | E80: 1 | F80: 1 | G80: 7047761401 | H80: 7047761401 | I80: 41906 | J80: 41906 | K80: 41904 | L80: 2 | O80: 704776 | P80: 1 | Q80: 140 | R80: CONTROLE FINAL | S80: TEST | T80: TEST | U80: COFI | V80: TEST | W80: TEST | X80: 1.5 | Y80: TEST | Z80: TEST | AA80: TEST | AB80: TEST | AC80: TEST | AD80: TEST | AE80: 2014-09-24 | AF80: 08:30:00 | AG80: 2014-09-24 | AH80: 10:00:00 | AI80: TEST | AJ80: TEST | AK80: TEST | AL80: TEST | AM80: TEST | AN80: TEST | AO80: TEST | AP80: TEST | AQ80: TEST | AR80: 4.7 | AS80: 0.5 | AT80: TEST | AU80: TEST
A81: 0 | B81: 70477660 | C81: Contrôle final | D81: 2014-09-24 | E81: 1 | F81: 1 | G81: 704776601 | H81: 704776601 | I81: 41906 | J81: 41906 | O81: 704776 | P81: 999/1 | Q81: 60 | R81: CONTROLE FINAL | S81: TEST | T81: TEST | U81: COFI | V81: TEST | W81: TEST | X81: 0.08 | Y81: TEST | Z81: TEST | AA81: TEST | AB81: TEST | AC81: TEST | AD81: TEST | AE81: 2014-09-24 | AF81: 10:50:00 | AG81: 2014-09-24 | AH81: 10:55:00 | AI81: TEST | AJ81: TEST | AK81: TEST | AL81: TEST | AM81: TEST | AN81: TEST | AO81: TEST | AP81: TEST | AQ81: TEST | AR81: 0.25 | AS81: 0.25 | AT81: TEST | AU81: TEST
A82: 0 | B82: 704778130 | C82: Contrôle final | D82: 2014-11-03 | E82: 1 | F82: 1 | G82: 7047781301 | H82: 7047781301 | I82: 41946 | J82: 41946 | O82: 704778 | P82: 1 | Q82: 130 | R82: CONTROLE FINAL | S82: TEST | T82: TEST | U82: COFI | V82: TEST | W82: TEST | X82: 0.25 | Y82: TEST | Z82: TEST | AA82: TEST | AB82: TEST | AC82: TEST | AD82: TEST | AE82: 2014-11-03 | AF82: 07:45:00 | AG82: 2014-11-03 | AH82: 08:00:00 | AI82: TEST | AJ82: TEST | AK82: TEST | AL82: TEST | AM82: TEST | AN82: TEST | AO82: TEST | AP82: TEST | AQ82: TEST | AR82: 3.6 | AS82: 0 | AT82: TEST | AU82: TEST
A83: 0 | B83: 704831220 | C83: Contrôle final | D83: 2014-11-05 | E83: 1 | F83: 0 | G83: 7048312201 | H83: 7048312200 | I83: 41948 | O83: 704831 | P83: 1 | Q83: 220 | R83: CONTROLE FINAL | S83: TEST | T83: TEST | U83: COFI | V83: TEST | W83: TEST | X83: 3 | Y83: TEST | Z83: TEST | AA83: TEST | AB83: TEST | AC83: TEST | AD83: TEST | AE83: 2014-11-05 | AF83: 00:00:00 | AH83: 00:00:00 | AI83: TEST | AJ83: TEST | AK83: TEST | AL83: TEST | AM83: TEST | AN83: TEST | AO83: TEST | AP83: TEST | AQ83: TEST | AR83: 17.5 | AS83: 0 | AT83: TEST | AU83: TEST
A84: 0 | B84: 704831220 | C84: Contrôle final | D84: 2014-10-24 | E84: 0 | F84: 1 | G84: 7048312200 | H84: 7048312201 | J84: 41936 | O84: 704831 | P84: 1 | Q84: 220 | R84: CONTROLE FINAL | S84: TEST | T84: TEST | U84: COFI | V84: TEST | W84: TEST | X84: 5.5 | Y84: TEST | Z84: TEST | AA84: TEST | AB84: TEST | AC84: TEST | AD84: TEST | AE84: 2014-10-24 | AF84: 00:00:00 | AH84: 00:00:00 | AI84: TEST | AJ84: TEST | AK84: TEST | AL84: TEST | AM84: TEST | AN84: TEST | AO84: TEST | AP84: TEST | AQ84: TEST | AR84: 17.5 | AS84: 0 | AT84: TEST | AU84: TEST
A85: 0 | B85: 705050210 | C85: Contrôle final | D85: 2014-09-24 | E85: 1 | F85: 1 | G85: 7050502101 | H85: 7050502101 | I85: 41906 | J85: 41906 | O85: 705050 | P85: 1 | Q85: 210 | R85: CONTROLE FINAL | S85: TEST | T85: TEST | U85: COFI | V85: TEST | W85: TEST | X85: 0.5 | Y85: TEST | Z85: TEST | AA85: TEST | AB85: TEST | AC85: TEST | AD85: TEST | AE85: 2014-09-24 | AF85: 00:00:00 | AH85: 00:00:00 | AI85: TEST | AJ85: TEST | AK85: TEST | AL85: TEST | AM85: TEST | AN85: TEST | AO85: TEST | AP85: TEST | AQ85: TEST | AR85: 10 | AS85: 0 | AT85: TEST | AU85: TEST
A86: 0 | B86: 70506430 | C86: Contrôle final | D86: 2014-10-16 | E86: 1 | F86: 0 | G86: 705064301 | H86: 705064300 | I86: 41928 | O86: 705064 | P86: 999/1 | Q86: 30 | R86: CONTROLE FINAL | S86: TEST | T86: TEST | U86: COFI | V86: TEST | W86: TEST | X86: 4.15 | Y86: TEST | Z86: TEST | AA86: TEST | AB86: TEST | AC86: TEST | AD86: TEST | AE86: 2014-10-16 | AF86: 00:00:00 | AH86: 00:00:00 | AI86: TEST | AJ86: TEST | AK86: TEST | AL86: TEST | AM86: TEST | AN86: TEST | AO86: TEST | AP86: TEST | AQ86: TEST | AR86: 11.75 | AS86: 0.25 | AT86: TEST | AU86: TEST
A87: 0 | B87: 70506430 | C87: Contrôle final | D87: 2014-10-15 | E87: 0 | F87: 1 | G87: 705064300 | H87: 705064301 | J87: 41927 | O87: 705064 | P87: 999/1 | Q87: 30 | R87: CONTROLE FINAL | S87: TEST | T87: TEST | U87: COFI | V87: TEST | W87: TEST | X87: 1.9 | Y87: TEST | Z87: TEST | AA87: TEST | AB87: TEST | AC87: TEST | AD87: TEST | AE87: 2014-10-15 | AF87: 00:00:00 | AH87: 00:00:00 | AI87: TEST | AJ87: TEST | AK87: TEST | AL87: TEST | AM87: TEST | AN87: TEST | AO87: TEST | AP87: TEST | AQ87: TEST | AR87: 11.75 | AS87: 0.25 | AT87: TEST | AU87: TEST
A88: 0 | B88: 70509790 | C88: Contrôle final | D88: 2014-11-06 | E88: 1 | F88: 0 | G88: 705097901 | H88: 705097900 | I88: 41949 | K88: 41906 | L88: 43 | O88: 705097 | P88: 999/1 | Q88: 90 | R88: CONTROLE FINAL | S88: TEST | T88: TEST | U88: COFI | V88: TEST | W88: TEST | X88: 0.5 | Y88: TEST | Z88: TEST | AA88: TEST | AB88: TEST | AC88: TEST | AD88: TEST | AE88: 2014-11-06 | AF88: 00:00:00 | AH88: 00:00:00 | AI88: TEST | AJ88: TEST | AK88: TEST | AL88: TEST | AM88: TEST | AN88: TEST | AO88: TEST | AP88: TEST | AQ88: TEST | AR88: 2 | AS88: 2 | AT88: TEST | AU88: TEST
A89: 0 | B89: 70509790 | C89: Contrôle final | D89: 2014-11-05 | E89: 0 | F89: 1 | G89: 705097900 | H89: 705097901 | J89: 41948 | O89: 705097 | P89: 999/1 | Q89: 90 | R89: CONTROLE FINAL | S89: TEST | T89: TEST | U89: COFI | V89: TEST | W89: TEST | X89: 1.5 | Y89: TEST | Z89: TEST | AA89: TEST | AB89: TEST | AC89: TEST | AD89: TEST | AE89: 2014-11-05 | AF89: 00:00:00 | AH89: 00:00:00 | AI89: TEST | AJ89: TEST | AK89: TEST | AL89: TEST | AM89: TEST | AN89: TEST | AO89: TEST | AP89: TEST | AQ89: TEST | AR89: 2 | AS89: 2 | AT89: TEST | AU89: TEST
A90: 0 | B90: 705100140 | C90: Contrôle final | D90: 2014-10-02 | E90: 1 | F90: 1 | G90: 7051001401 | H90: 7051001401 | I90: 41914 | J90: 41914 | O90: 705100 | P90: 1 | Q90: 140 | R90: CONTROLE FINAL | S90: TEST | T90: TEST | U90: COFI | V90: TEST | W90: TEST | X90: 0.75 | Y90: TEST | Z90: TEST | AA90: TEST | AB90: TEST | AC90: TEST | AD90: TEST | AE90: 2014-10-02 | AF90: 00:00:00 | AH90: 00:00:00 | AI90: TEST | AJ90: TEST | AK90: TEST | AL90: TEST | AM90: TEST | AN90: TEST | AO90: TEST | AP90: TEST | AQ90: TEST | AR90: 2.3 | AS90: 0.5 | AT90: TEST | AU90: TEST
A91: 0 | B91: 705162380 | C91: Contrôle final | D91: 2014-10-21 | E91: 1 | F91: 1 | G91: 7051623801 | H91: 7051623801 | I91: 41933 | J91: 41933 | O91: 705162 | P91: 1 | Q91: 380 | R91: CONTROLE FINAL | S91: TEST | T91: TEST | U91: COFI | V91: TEST | W91: TEST | X91: 4.5 | Y91: TEST | Z91: TEST | AA91: TEST | AB91: TEST | AC91: TEST | AD91: TEST | AE91: 2014-10-21 | AF91: 00:00:00 | AH91: 00:00:00 | AI91: TEST | AJ91: TEST | AK91: TEST | AL91: TEST | AM91: TEST | AN91: TEST | AO91: TEST | AP91: TEST | AQ91: TEST | AR91: 30 | AS91: 30 | AT91: TEST | AU91: TEST
A92: 0 | B92: 70534430 | C92: Contrôle final | D92: 2014-09-15 | E92: 1 | F92: 0 | G92: 705344301 | H92: 705344300 | I92: 41897 | O92: 705344 | P92: 999/1 | Q92: 30 | R92: CONTROLE FINAL | S92: TEST | T92: TEST | U92: COFI | V92: TEST | W92: TEST | X92: 2 | Y92: TEST | Z92: TEST | AA92: TEST | AB92: TEST | AC92: TEST | AD92: TEST | AE92: 2014-09-15 | AF92: 00:00:00 | AH92: 00:00:00 | AI92: TEST | AJ92: TEST | AK92: TEST | AL92: TEST | AM92: TEST | AN92: TEST | AO92: TEST | AP92: TEST | AQ92: TEST | AR92: 0.5 | AS92: 0.5 | AT92: TEST | AU92: TEST
A93: 0 | B93: 70534430 | C93: Contrôle final | D93: 2014-09-15 | E93: 0 | F93: 0 | G93: 705344300 | H93: 705344300 | O93: 705344 | P93: 999/1 | Q93: 30 | R93: CONTROLE FINAL | S93: TEST | T93: TEST | U93: COFI | V93: TEST | W93: TEST | X93: 0.01 | Y93: TEST | Z93: TEST | AA93: TEST | AB93: TEST | AC93: TEST | AD93: TEST | AE93: 2014-09-15 | AF93: 00:00:00 | AH93: 00:00:00 | AI93: TEST | AJ93: TEST | AK93: TEST | AL93: TEST | AM93: TEST | AN93: TEST | AO93: TEST | AP93: TEST | AQ93: TEST | AR93: 0.5 | AS93: 0.5 | AT93: TEST | AU93: TEST
A94: 0 | B94: 70534430 | C94: Contrôle final | D94: 2014-09-15 | E94: 0 | F94: 1 | G94: 705344300 | H94: 705344301 | J94: 41897 | O94: 705344 | P94: 999/1 | Q94: 30 | R94: CONTROLE FINAL | S94: TEST | T94: TEST | U94: COFI | V94: TEST | W94: TEST | X94: 2 | Y94: TEST | Z94: TEST | AA94: TEST | AB94: TEST | AC94: TEST | AD94: TEST | AE94: 2014-09-15 | AF94: 00:00:00 | AH94: 00:00:00 | AI94: TEST | AJ94: TEST | AK94: TEST | AL94: TEST | AM94: TEST | AN94: TEST | AO94: TEST | AP94: TEST | AQ94: TEST | AR94: 0.5 | AS94: 0.5 | AT94: TEST | AU94: TEST
A95: 0 | B95: 705390210 | C95: Contrôle final | D95: 2014-09-26 | E95: 1 | F95: 1 | G95: 7053902101 | H95: 7053902101 | I95: 41908 | J95: 41908 | O95: 705390 | P95: 1 | Q95: 210 | R95: CONTROLE FINAL | S95: TEST | T95: TEST | U95: COFI | V95: TEST | W95: TEST | X95: 0.5 | Y95: TEST | Z95: TEST | AA95: TEST | AB95: TEST | AC95: TEST | AD95: TEST | AE95: 2014-09-26 | AF95: 00:00:00 | AH95: 00:00:00 | AI95: TEST | AJ95: TEST | AK95: TEST | AL95: TEST | AM95: TEST | AN95: TEST | AO95: TEST | AP95: TEST | AQ95: TEST | AR95: 19.7 | AS95: 0.5 | AT95: TEST | AU95: TEST
A96: 0 | B96: 70540830 | C96: Contrôle final | D96: 2014-10-13 | E96: 1 | F96: 0 | G96: 705408301 | H96: 705408300 | I96: 41925 | K96: 41900 | L96: 25 | O96: 705408 | P96: 999/1 | Q96: 30 | R96: CONTROLE FINAL | S96: TEST | T96: TEST | U96: COFI | V96: TEST | W96: TEST | X96: 2 | Y96: TEST | Z96: TEST | AA96: TEST | AB96: TEST | AC96: TEST | AD96: TEST | AE96: 2014-10-13 | AF96: 00:00:00 | AH96: 00:00:00 | AI96: TEST | AJ96: TEST | AK96: TEST | AL96: TEST | AM96: TEST | AN96: TEST | AO96: TEST | AP96: TEST | AQ96: TEST | AR96: 1.5 | AS96: 1.5 | AT96: TEST | AU96: TEST
A97: 0 | B97: 70540830 | C97: Contrôle final | D97: 2014-09-23 | E97: 0 | F97: 0 | G97: 705408300 | H97: 705408300 | O97: 705408 | P97: 999/1 | Q97: 30 | R97: CONTROLE FINAL | S97: TEST | T97: TEST | U97: COFI | V97: TEST | W97: TEST | X97: 1.65 | Y97: TEST | Z97: TEST | AA97: TEST | AB97: TEST | AC97: TEST | AD97: TEST | AE97: 2014-09-23 | AF97: 00:00:00 | AH97: 00:00:00 | AI97: TEST | AJ97: TEST | AK97: TEST | AL97: TEST | AM97: TEST | AN97: TEST | AO97: TEST | AP97: TEST | AQ97: TEST | AR97: 1.5 | AS97: 1.5 | AT97: TEST | AU97: TEST
A98: 0 | B98: 70540830 | C98: Contrôle final | D98: 2014-09-19 | E98: 0 | F98: 1 | G98: 705408300 | H98: 705408301 | J98: 41901 | O98: 705408 | P98: 999/1 | Q98: 30 | R98: CONTROLE FINAL | S98: TEST | T98: TEST | U98: COFI | V98: TEST | W98: TEST | X98: 3 | Y98: TEST | Z98: TEST | AA98: TEST | AB98: TEST | AC98: TEST | AD98: TEST | AE98: 2014-09-19 | AF98: 00:00:00 | AH98: 00:00:00 | AI98: TEST | AJ98: TEST | AK98: TEST | AL98: TEST | AM98: TEST | AN98: TEST | AO98: TEST | AP98: TEST | AQ98: TEST | AR98: 1.5 | AS98: 1.5 | AT98: TEST | AU98: TEST
A99: 0 | B99: 70540930 | C99: Contrôle final | D99: 2014-10-13 | E99: 1 | F99: 0 | G99: 705409301 | H99: 705409300 | I99: 41925 | K99: 41901 | L99: 24 | O99: 705409 | P99: 999/1 | Q99: 30 | R99: CONTROLE FINAL | S99: TEST | T99: TEST | U99: COFI | V99: TEST | W99: TEST | X99: 2 | Y99: TEST | Z99: TEST | AA99: TEST | AB99: TEST | AC99: TEST | AD99: TEST | AE99: 2014-10-13 | AF99: 00:00:00 | AH99: 00:00:00 | AI99: TEST | AJ99: TEST | AK99: TEST | AL99: TEST | AM99: TEST | AN99: TEST | AO99: TEST | AP99: TEST | AQ99: TEST | AR99: 1.5 | AS99: 1.5 | AT99: TEST | AU99: TEST
A100: 0 | B100: 70540930 | C100: Contrôle final | D100: 2014-09-23 | E100: 0 | F100: 1 | G100: 705409300 | H100: 705409301 | J100: 41905 | O100: 705409 | P100: 999/1 | Q100: 30 | R100: CONTROLE FINAL | S100: TEST | T100: TEST | U100: COFI | V100: TEST | W100: TEST | X100: 1.65 | Y100: TEST | Z100: TEST | AA100: TEST | AB100: TEST | AC100: TEST | AD100: TEST | AE100: 2014-09-23 | AF100: 00:00:00 | AH100: 00:00:00 | AI100: TEST | AJ100: TEST | AK100: TEST | AL100: TEST | AM100: TEST | AN100: TEST | AO100: TEST | AP100: TEST | AQ100: TEST | AR100: 1.5 | AS100: 1.5 | AT100: TEST | AU100: TEST
A101: 0 | B101: 705409370 | C101: Contrôle final | D101: 2014-09-17 | E101: 1 | F101: 1 | G101: 7054093701 | H101: 7054093701 | I101: 41899 | J101: 41899 | O101: 705409 | P101: 1 | Q101: 370 | R101: CONTROLE FINAL | S101: TEST | T101: TEST | U101: COFI | V101: TEST | W101: TEST | X101: 1 | Y101: TEST | Z101: TEST | AA101: TEST | AB101: TEST | AC101: TEST | AD101: TEST | AE101: 2014-09-17 | AF101: 11:30:00 | AG101: 2014-09-17 | AH101: 12:30:00 | AI101: TEST | AJ101: TEST | AK101: TEST | AL101: TEST | AM101: TEST | AN101: TEST | AO101: TEST | AP101: TEST | AQ101: TEST | AR101: 24.33 | AS101: 0.33 | AT101: TEST | AU101: TEST
A102: 0 | B102: 707067140 | C102: Contrôle final | D102: 2014-11-05 | E102: 1 | F102: 1 | G102: 7070671401 | H102: 7070671401 | I102: 41948 | J102: 41948 | O102: 707067 | P102: 1 | Q102: 140 | R102: CONTROLE FINAL | S102: TEST | T102: TEST | U102: COFI | V102: TEST | W102: TEST | X102: 0.5 | Y102: TEST | Z102: TEST | AA102: TEST | AB102: TEST | AC102: TEST | AD102: TEST | AE102: 2014-11-05 | AF102: 00:00:00 | AH102: 00:00:00 | AI102: TEST | AJ102: TEST | AK102: TEST | AL102: TEST | AM102: TEST | AN102: TEST | AO102: TEST | AP102: TEST | AQ102: TEST | AR102: 2 | AS102: 2 | AT102: TEST | AU102: TEST
A103: 0 | B103: 707160140 | C103: Contrôle final | D103: 2014-11-05 | E103: 1 | F103: 1 | G103: 7071601401 | H103: 7071601401 | I103: 41948 | J103: 41948 | O103: 707160 | P103: 1 | Q103: 140 | R103: CONTROLE FINAL | S103: TEST | T103: TEST | U103: COFI | V103: TEST | W103: TEST | X103: 0.25 | Y103: TEST | Z103: TEST | AA103: TEST | AB103: TEST | AC103: TEST | AD103: TEST | AE103: 2014-11-05 | AF103: 00:00:00 | AH103: 00:00:00 | AI103: TEST | AJ103: TEST | AK103: TEST | AL103: TEST | AM103: TEST | AN103: TEST | AO103: TEST | AP103: TEST | AQ103: TEST | AR103: 12.5 | AS103: 0.5 | AT103: TEST | AU103: TEST
A104: 0 | B104: 705103140 | C104: Contrôle final | D104: 2014-11-04 | E104: 1 | F104: 1 | G104: 7051031401 | H104: 7051031401 | I104: 41947 | J104: 41947 | K104: 41934 | L104: 13 | O104: 705103 | P104: 1 | Q104: 140 | R104: CONTROLE FINAL | S104: TEST | T104: TEST | U104: COFI | V104: TEST | W104: TEST | X104: 1.25 | Y104: TEST | Z104: TEST | AA104: TEST | AB104: TEST | AC104: TEST | AD104: TEST | AE104: 2014-11-04 | AF104: 07:15:00 | AG104: 2014-11-04 | AH104: 08:30:00 | AI104: TEST | AJ104: TEST | AK104: TEST | AL104: TEST | AM104: TEST | AN104: TEST | AO104: TEST | AP104: TEST | AQ104: TEST | AR104: 4.7 | AS104: 0.5 | AT104: TEST | AU104: TEST
A105: 0 | B105: 705433240 | C105: Contrôle final | D105: 2014-11-04 | E105: 1 | F105: 0 | G105: 7054332401 | H105: 7054332400 | I105: 41947 | O105: 705433 | P105: 1 | Q105: 240 | R105: CONTROLE FINAL | S105: TEST | T105: TEST | U105: COFI | V105: TEST | W105: TEST | X105: 5 | Y105: TEST | Z105: TEST | AA105: TEST | AB105: TEST | AC105: TEST | AD105: TEST | AE105: 2014-11-04 | AF105: 00:00:00 | AH105: 00:00:00 | AI105: TEST | AJ105: TEST | AK105: TEST | AL105: TEST | AM105: TEST | AN105: TEST | AO105: TEST | AP105: TEST | AQ105: TEST | AR105: 17 | AS105: 2 | AT105: TEST | AU105: TEST
A106: 0 | B106: 705433240 | C106: Contrôle final | D106: 2014-11-04 | E106: 0 | F106: 0 | G106: 7054332400 | H106: 7054332400 | O106: 705433 | P106: 1 | Q106: 240 | R106: CONTROLE FINAL | S106: TEST | T106: TEST | U106: COFI | V106: TEST | W106: TEST | X106: 4.2 | Y106: TEST | Z106: TEST | AA106: TEST | AB106: TEST | AC106: TEST | AD106: TEST | AE106: 2014-11-04 | AF106: 00:00:00 | AH106: 00:00:00 | AI106: TEST | AJ106: TEST | AK106: TEST | AL106: TEST | AM106: TEST | AN106: TEST | AO106: TEST | AP106: TEST | AQ106: TEST | AR106: 17 | AS106: 2 | AT106: TEST | AU106: TEST
A107: 0 | B107: 705433240 | C107: Contrôle final | D107: 2014-11-04 | E107: 0 | F107: 0 | G107: 7054332400 | H107: 7054332400 | O107: 705433 | P107: 1 | Q107: 240 | R107: CONTROLE FINAL | S107: TEST | T107: TEST | U107: COFI | V107: TEST | W107: TEST | X107: 3.65 | Y107: TEST | Z107: TEST | AA107: TEST | AB107: TEST | AC107: TEST | AD107: TEST | AE107: 2014-11-04 | AF107: 13:25:00 | AG107: 2014-11-04 | AH107: 17:04:00 | AI107: TEST | AJ107: TEST | AK107: TEST | AL107: TEST | AM107: TEST | AN107: TEST | AO107: TEST | AP107: TEST | AQ107: TEST | AR107: 17 | AS107: 2 | AT107: TEST | AU107: TEST
A108: 0 | B108: 705433240 | C108: Contrôle final | D108: 2014-11-04 | E108: 0 | F108: 0 | G108: 7054332400 | H108: 7054332400 | O108: 705433 | P108: 1 | Q108: 240 | R108: CONTROLE FINAL | S108: TEST | T108: TEST | U108: COFI | V108: TEST | W108: TEST | X108: 3.35 | Y108: TEST | Z108: TEST | AA108: TEST | AB108: TEST | AC108: TEST | AD108: TEST | AE108: 2014-11-04 | AF108: 17:19:00 | AG108: 2014-11-04 | AH108: 20:40:00 | AI108: TEST | AJ108: TEST | AK108: TEST | AL108: TEST | AM108: TEST | AN108: TEST | AO108: TEST | AP108: TEST | AQ108: TEST | AR108: 17 | AS108: 2 | AT108: TEST | AU108: TEST
A109: 0 | B109: 705433240 | C109: Contrôle final | D109: 2014-11-04 | E109: 0 | F109: 0 | G109: 7054332400 | H109: 7054332400 | O109: 705433 | P109: 1 | Q109: 240 | R109: CONTROLE FINAL | S109: TEST | T109: TEST | U109: COFI | V109: TEST | W109: TEST | X109: 0.4 | Y109: TEST | Z109: TEST | AA109: TEST | AB109: TEST | AC109: TEST | AD109: TEST | AE109: 2014-11-04 | AF109: 20:04:00 | AG109: 2014-11-04 | AH109: 20:28:00 | AI109: TEST | AJ109: TEST | AK109: TEST | AL109: TEST | AM109: TEST | AN109: TEST | AO109: TEST | AP109: TEST | AQ109: TEST | AR109: 17 | AS109: 2 | AT109: TEST | AU109: TEST
A110: 0 | B110: 705433240 | C110: Contrôle final | D110: 2014-11-04 | E110: 0 | F110: 1 | G110: 7054332400 | H110: 7054332401 | J110: 41947 | O110: 705433 | P110: 1 | Q110: 240 | R110: CONTROLE FINAL | S110: TEST | T110: TEST | U110: COFI | V110: TEST | W110: TEST | X110: 0.2 | Y110: TEST | Z110: TEST | AA110: TEST | AB110: TEST | AC110: TEST | AD110: TEST | AE110: 2014-11-04 | AF110: 20:28:00 | AG110: 2014-11-04 | AH110: 20:40:00 | AI110: TEST | AJ110: TEST | AK110: TEST | AL110: TEST | AM110: TEST | AN110: TEST | AO110: TEST | AP110: TEST | AQ110: TEST | AR110: 17 | AS110: 2 | AT110: TEST | AU110: TEST
A111: 0 | B111: 705434240 | C111: Contrôle final | D111: 2014-11-04 | E111: 1 | F111: 1 | G111: 7054342401 | H111: 7054342401 | I111: 41947 | J111: 41947 | O111: 705434 | P111: 1 | Q111: 240 | R111: CONTROLE FINAL | S111: TEST | T111: TEST | U111: COFI | V111: TEST | W111: TEST | X111: 1.25 | Y111: TEST | Z111: TEST | AA111: TEST | AB111: TEST | AC111: TEST | AD111: TEST | AE111: 2014-11-04 | AF111: 00:00:00 | AH111: 00:00:00 | AI111: TEST | AJ111: TEST | AK111: TEST | AL111: TEST | AM111: TEST | AN111: TEST | AO111: TEST | AP111: TEST | AQ111: TEST | AR111: 17 | AS111: 2 | AT111: TEST | AU111: TEST
A112: 0 | B112: 705430220 | C112: Contrôle final | D112: 2014-11-12 | E112: 1 | F112: 0 | G112: 7054302201 | H112: 7054302200 | I112: 41955 | O112: 705430 | P112: 1 | Q112: 220 | R112: CONTROLE FINAL | S112: TEST | T112: TEST | U112: COFI | V112: TEST | W112: TEST | X112: 6 | Y112: TEST | Z112: TEST | AA112: TEST | AB112: TEST | AC112: TEST | AD112: TEST | AE112: 2014-11-12 | AF112: 00:00:00 | AH112: 00:00:00 | AI112: TEST | AJ112: TEST | AK112: TEST | AL112: TEST | AM112: TEST | AN112: TEST | AO112: TEST | AP112: TEST | AQ112: TEST | AR112: 4.6 | AS112: 1 | AT112: TEST | AU112: TEST
